Workbook

Sheet 2022 Legal Max
G1: Col 1 | K1: Col 2 | O1: Col 3 | P1: Col 4 | Q1: Col 5 | R1: Col 6 | S1: Col 7 | T1: Col 8 | U1: Col 9 | V1: Col 10 | W1: Col 11 | X1: Col 12 | Y1: Col 13 | Z1: Col 14 | AA1: Col 15 | AB1: Col 16 | AC1: Col 17 | AD1: Col 18 | AE1: Col 19 | AF1: Col 20 | AG1: Col 21 | AH1: Col 22 | AI1: Col 23 | AJ1: Col 24 | AK1: Col 25 | AL1: Col 26 | AM1: Col 27 | AN1: Col 28 | AO1: Col 29 | AP1: Col 30 | AQ1: Col 31 | AR1: Col 32 | AS1: Col 33 | AT1: Col 34 | AU1: Col 35 | AV1: Col 36 | AW1: Col 37 | AX1: Col 38 | AY1: Col 39 | BC1: Col 40 | BD1: Col 41 | BE1: Col 42 | BF1: Col 43 | BG1: Col 44 | BH1: Col 45 | BI1: Col 46 | BJ1: Col 47 | BK1: Col 48 | BL1: Col 49 | BM1: Col 50 | BN1: Col 51 | BO1: Col 52 | BP1: Col 53 | BQ1: Col 54 | BR1: Col 55 | BS1: Col 56 | BT1: Col 57 | BU1: Col 58 | BV1: Col 59 | BW1: Col 60 | BX1: Col 61 | BY1: Col 62 | BZ1: Col 63 | CA1: Col 64 | CB1: Col 65 | CC1: Col 66 | CD1: Col 67 | CE1: Col 68 | CF1: Col 69 | CG1: Col 70 | CH1: Col 71 | CI1: Col 72 | CJ1: Col 73 | CK1: Col 74 | CL1: Col 75 | CM1: Col 76 | CN1: Col 77 | CO1: Col 78 | CP1: Col 79 | CQ1: Col 80 | CR1: Col 81 | CS1: Col 82 | CT1: Col 83 | CU1: Col 84 | CV1: Col 85 | CW1: Col 86
B2: 2022-07-06 | E2: N/A | G2: Updated | K2: Updated | M2: Info Only | O2: Updated | P2: (Info Only) | Q2: (Info Only) | R2: (Info Only) | AT2: (Info Only) | AU2: (Info Only) | BR2: Table I - Low & High Enrollment | CB2: Table II - Transportation | CK2: Table III - Tax Appeal Amounts | CP2: Table IV High Density At Risk | CT2: LOB Transfers
B3: County | C3: District Name | D3: FTE Enroll (excl 4yr old at-risk & virtual) 9/20/2018 | E3: FTE Enroll Tax Credit Scholarship (TCS) excl 4yr old at-risk & virtual - 9/20 | F3: FTE Enroll (excl 4yr old at-risk & virtual) 2/20/2019 | G3: FTE Enroll (excl 4yr old at-risk & virtual) 9/20/2018 2/20/2019 | H3: FTE Enroll (exc 4yr old at-risk & virtual) 9/20/2019 | I3: FTE Enroll Tax Credit Scholarship (TCS) excl 4yr old at-risk & virtual - 9/20 | J3: FTE Enroll (excl 4yr old at-risk & virtual) 2/20/2020 | K3: FTE Enroll (exc. 4yr old at-risk & virtual ) 9/20/2019 2/20/2020 | L3: FTE Enroll (exc 4yr old at-risk & virtual) 9/20/2020 | M3: FTE Enroll Tax Credit Scholarship (TCS) excl 4yr old at-risk & virtual - 9/20 | N3: FTE Enroll (excl 4yr old at-risk & virtual) 2/20/2021 | O3: FTE Enroll (excl 4yr old at-risk & virtual) 9/20/2020 2/20/2021 | P3: FTE Enroll (excl 4yr old at-risk & virtual) 9/20/2021 | Q3: FTE Enroll (excl 4yr old at-risk & virtual) 2/20/2022 | R3: FTE Enroll (excl 4yr old at-risk & virtual) 9/20/2021 2/20/2022 | S3: Adjusted Enrollment | T3: Preschool-Aged At-Risk 3 yr & 4yr Old (9/20 + 2/20) | U3: Total Adjusted Enrollment (incl 4yr AR) | V3: Low and High Enrollment WTD FTE | W3: 2021-22 Bilingual Contact Hours (9/20 + 2/20) | X3: Bilingual Contact Hours WTD FTE | Y3: 2021-22 Bilingual Headcount (9/20 + 2/20) | Z3: Bilingual Headcount WTD FTE | AA3: Bilingual (max Hrs or Hdct) WTD FTE | AB3: 2021-22 Career /Tech Ed Contact Hours (9/20 + 2/20) | AC3: Career /Tech Ed WTD FTE | AD3: Funded Headcount (excl virtual, KAMS, JDC) (9/20 + 2/20) | AE3: Free Lunch (9/20 + 2/20) | AF3: At-Risk (Free Lunch) WTD FTE | AG3: High Density At-Risk (USD) | AH3: High Density At-Risk (School) | AI3: High Density At-Risk WTD FTE | AJ3: School Facilities FTE (9/20 + 2/20) | AK3: School Facilities WTD FTE | AL3: Transportation FTE > = 2.5 Miles (9/20 + 2/20) | AM3: 2021-22 Transportation Aid | AN3: Transportation WTD FTE | AO3: Ancillary WTD FTE | AP3: Cost of Living WTD FTE | AQ3: Special Education State Aid | AR3: Special Education WTD FTE | AS3: KAMS FTE | AT3: WTD FTE (excl COLA; incl SPED) | AU3: WTD FTE (excl SPED) | AV3: Virtual Full-Time FTE | AW3: Virtual Part-Time FTE | AX3: Virtual Credits (20yrs & Older) | AY3: Virtual State Aid | AZ3: Sequence Number | BA3: Audit | BB3: Republished | BC3: Info Only General Fund (excl SPED) | BD3: Computed General Fund | BE3: Adopted General Fund | BF3: Legal Max General Fund (before reductions) | BG3: Prior Year Budget Law Violation | BH3: Trans Audit Adjust | BI3: Prior Year Virtual Credits Audit Adj | BJ3: Prior Year Total Reductions | BK3: 2021-22 Adjusted Legal General Fund Budget | BL3: 2021-22 LOB Base General Fund | BM3: 2021-22 LOB Authorized Percent | BN3: Computed Local Option Budget | BO3: Adopted Local Option Budget | BP3: Legal Max Local Option Budget | BQ3: LOB Percent Used | BR3: 0-99.9 | BV3: 100-299.9 | BZ3: 300-1621.9 | CA3: 1622 and higher | CB3: Area in Square Miles | CC3: Density Figure Range | CD3: Order ID | CE3: Per Capita | CF3: Base Change (Factor A) | CG3: Factor Per Capita Allowance (Factor B) | CH3: Factor per Capita times Constant (Factor C) | CI3: Factor per Capita Allowance times the Variable (Factor D) | CJ3: Trans Weighted FTE | CK3: Board of Tax Appeals (Ancillary) | CL3: Form 150-Board of Tax Appeals (Cost of Living) | CM3: Cost of Living Authorized Percent | CN3: Max Computed Cost of Living | CO3: Cost of Living Authority | CP3: Percent of Free Lunch (Current Year) | CQ3: Free Lunch >=50% | CR3: Free Lunch >=35% <50% | CS3: Total WTD FTE (inc. SPED) | CT3: At-Risk LOB Transfer | CU3: Bilingual LOB Transfer | CV3: At-Risk General Fund Transfer | CW3: Total FTE (incl Virtual)
A4: Total | C4: STATE TOTALS | D4: =SUM(D5:D290) -> 464895.7 | E4: =SUM(E5:E290) -> 0 | F4: 464.8 | G4: 465360.5 | H4: 464596.4 | I4: =SUM(I5:I290) -> 79 | J4: 562.4 | K4: 465079.8 | L4: 446279.5 | M4: =SUM(M5:M290) -> 0 | N4: 580.4 | O4: 446859.9 | P4: 447667.9 | Q4: 470.9 | R4: 448138.8 | S4: 465691.8 | T4: 4755.5 | U4: 470447.3 | V4: 54538.6 | W4: 111592.1 | X4: 7347 | Y4: 42387 | Z4: 7842.3 | AA4: 8679.5 | AB4: 117805.4 | AC4: 9817.4 | AD4: 463210 | AE4: 158116 | AF4: 76528.3 | AG4: 9036.4 | AH4: 9248.4 | AI4: 9813.3 | AJ4: 0 | AK4: 0 | AL4: 128029.3 | AM4: =SUM(AM5:AM290) -> 102818805 | AN4: 21848.8 | AO4: 5466.5 | AP4: 6906.6 | AQ4: 500348016 | AR4: 106320.7 | AS4: 32 | AT4: 763492.4 | AU4: 664078.3 | AV4: 8335 | AW4: 1499.7 | AX4: 5599.5 | AY4: 48194546 | BC4: =SUM(BC5:BC290) -> 3173347022 | BD4: 3673692247 | BE4: 3803677683 | BF4: 3673690070 | BG4: 0 | BH4: -3220811 | BI4: -437636 | BJ4: -3658447 | BK4: 3670031623 | BL4: 3641017406 | BM4: =SUM(BM5:BM290)/286 -> 0.3185 | BN4: 1178898548 | BO4: 1206881781 | BP4: 1175792130 | BQ4: =SUM(BQ5:BQ290)/286 -> 0.3168 | BR4: =SUM(BR5:BR290) -> 333.8 | BV4: =SUM(BV5:BV290) -> 9609.3 | BZ4: =SUM(BZ5:BZ290) -> 32180.7 | CA4: 12414.8 | CB4: 82019.7 | CC4: 1349.96 | CD4: 7700 | CE4: =SUM(CE5:CE290) -> 300510 | CF4: =SUM(CF5:CF290) -> 323.1514 | CG4: =SUM(CG5:CG290) -> 90998148 | CH4: =SUM(CH5:CH290) -> 90998148 | CI4: =SUM(CI5:CI290) -> 102818805 | CJ4: 21848.8 | CK4: 25724958 | CL4: 33204251 | CM4: 0.4287 | CN4: =SUM(CN5:CN290) -> 38004182 | CO4: =SUM(CO5:CO290) -> 32502091 | CP4: =AE4/AD4 -> 0.3413 | CQ4: =SUM(CQ5:CQ290) -> 7565 | CR4: =SUM(CR5:CR290) -> 1471.4 | CS4: =SUM(CS5:CS290) -> 770399 | CT4: =SUM(CT5:CT290) -> 117660152 | CU4: =SUM(CU5:CU290) -> 13385623 | CV4: =SUM(CV5:CV290) -> 406323574 | CW4: 463662
A5: 101 | B5: Neosho | C5: Erie-Galesburg | D5: 491.5 | F5: 0 | G5: =SUM(D5-E5+F5) -> 491.5 | H5: 467 | J5: 0 | K5: =SUM(H5-I5+J5) -> 467 | L5: 422.5 | N5: 0 | O5: =SUM(L5-M5+N5) -> 422.5 | P5: =IF(ISNA(VLOOKUP($CX5,'Audit Values'!$A:$BW,2,FALSE)),'Preliminary SO66'!C4,VLOOKUP($CX5,'Audit Values'!$A:$BW,73,FALSE)) -> 419 | Q5: =IF(ISNA(VLOOKUP($CX5,'Audit Values'!$A:$BW,2,FALSE)),'Preliminary SO66'!F4,VLOOKUP($CX5,'Audit Values'!$A$2:$BW$936,4,FALSE)) -> 0 | R5: =SUM(P5+Q5) -> 419 | S5: =IF('Military Provision'!J5="YES", MAX('2022 Legal Max'!O5,'2022 Legal Max'!K5,AVERAGE('2022 Legal Max'!G5,'2022 Legal Max'!K5,'2022 Legal Max'!O5)), MAX(O5, K5)) -> 467 | T5: =IF(ISNA(VLOOKUP($CX5,'Audit Values'!$A:$BU,2,FALSE)),'Preliminary SO66'!AL4,VLOOKUP($CX5,'Audit Values'!$A:$BU,58,FALSE)) -> 11 | U5: =S5+T5 -> 478 | V5: =MAX(BR5, BV5, BZ5, CA5) -> 202.5 | W5: =IF(ISNA(VLOOKUP($CX5,'Audit Values'!$A:$BW,2,FALSE)),'Preliminary SO66'!AM4,VLOOKUP($CX5,'Audit Values'!$A:$BW,62,FALSE)) -> 0.7 | X5: =(W5/6)*'Weighting Factors'!$O$7 -> 0 | Y5: =IF(ISNA(VLOOKUP($CX5,'Audit Values'!$A:$BW,2,FALSE)),'Preliminary SO66'!AN4,VLOOKUP($CX5,'Audit Values'!$A:$BW,61,FALSE)) -> 7 | Z5: =Y5*'Weighting Factors'!$O$8 -> 1.3 | AA5: =MAX(X5,Z5) -> 1.3 | AB5: =IF(ISNA(VLOOKUP($CX5,'Audit Values'!$A:$BW,2,FALSE)),'Preliminary SO66'!AO4,VLOOKUP($CX5,'Audit Values'!$A:$BW,60,FALSE)) -> 112.8 | AC5: =AB5/6*'Weighting Factors'!$O$6 -> 9.4 | AD5: =IF(ISNA(VLOOKUP($CX5,'Audit Values'!$A:$BU,2,FALSE)),'Preliminary SO66'!AS4,VLOOKUP($CX5,'Audit Values'!$A:$BU,63,FALSE)) -> 445 | AE5: =IF(ISNA(VLOOKUP($CX5,'Audit Values'!$A:$BU,2,FALSE)),'Preliminary SO66'!AP4,VLOOKUP($CX5,'Audit Values'!$A:$BU,64,FALSE)) -> 144 | AF5: =IF(A5=207, AE5,(AE5))*'Weighting Factors'!$O$9 -> 69.7 | AG5: =MAX(CQ5,CR5) -> 0 | AH5: =IF(ISNA(VLOOKUP($CX5,'Audit Values'!$A:$BW,2,FALSE)),'Preliminary SO66'!AG4,VLOOKUP($CX5,'Audit Values'!$A:$BW,70,FALSE)) -> 2.5 | AI5: =MAX(AG5, AH5) -> 2.5 | AJ5: =IF(ISNA(VLOOKUP($CX5,'Audit Values'!$A:$BU,2,FALSE)),'Preliminary SO66'!AQ4,VLOOKUP($CX5,'Audit Values'!$A:$BU,65,FALSE)) -> 0 | AK5: =AJ5*'Weighting Factors'!$O$10 -> 0 | AL5: =IF(ISNA(VLOOKUP($CX5,'Audit Values'!$A:$BU,2,FALSE)),'Preliminary SO66'!AR4,VLOOKUP($CX5,'Audit Values'!$A:$BU,66,FALSE)) -> 203 | AM5: =CI5 -> 240838 | AN5: =AM5/'Weighting Factors'!$O$5 -> 51.2 | AO5: =CK5/'Weighting Factors'!$O$5 -> 0 | AP5: =CO5/'Weighting Factors'!$O$5 -> 0 | AQ5: 617222 | AR5: =AQ5/'Weighting Factors'!$O$5 -> 131.2 | AS5: =IF(ISNA(VLOOKUP($CX5,'Audit Values'!$A:$BU,2,FALSE)),'Preliminary SO66'!X4,VLOOKUP($CX5,'Audit Values'!$A:$BU,47,FALSE)) -> 0 | AT5: =SUM(U5+V5+AA5+AC5+AF5+AI5+AK5++AN5+AO5+AR5+AS5) -> 945.8 | AU5: =SUM(U5+V5+AA5+AC5+AF5+AI5+AK5+AN5+AO5+AP5+AS5) -> 814.6 | AV5: =IF(ISNA(VLOOKUP($CX5,'Audit Values'!$A$2:$BU$917,2,FALSE)),'Preliminary SO66'!AA4,VLOOKUP($CX5,'Audit Values'!$A$2:$BU$917,41,FALSE)) -> 6 | AW5: =IF(ISNA(VLOOKUP($CX5,'Audit Values'!$A$2:$BU$917,2,FALSE)),'Preliminary SO66'!AB4,VLOOKUP($CX5,'Audit Values'!$A$2:$BU$917,42,FALSE)) -> 0 | AX5: 0 | AY5: =SUM(AV5*'Weighting Factors'!$R$10)+('2022 Legal Max'!AW5*'Weighting Factors'!$R$11)+('2022 Legal Max'!AX5*'Weighting Factors'!$R$12) -> 30000 | AZ5: =IF(ISNA(VLOOKUP($CX5,'Audit Values'!$A$2:$BU$936,2,FALSE)),"",IF(AND('Weighting Factors'!F5>0,VLOOKUP($CX5,'Audit Values'!$A$2:$BU$936,51,FALSE)<'Weighting Factors'!F5),'Weighting Factors'!F5,VLOOKUP($CX5,'Audit Values'!$A$2:$BU$936,50,FALSE))) -> 11 | BA5: =IF(ISNA(VLOOKUP($CX5,'Audit Values'!$A:$BV,2,FALSE)),"",VLOOKUP($CX5,'Audit Values'!$A:$BV,51,FALSE)) -> A | BB5: =IF('Weighting Factors'!F5="","",IF('Weighting Factors'!H5="Pending","PX","R")) ->  | BC5: =SUM((U5+V5+AA5+AC5+AF5+AI5+AK5++AN5+AO5+AS5+AP5)*'Weighting Factors'!$O$5)+'2022 Legal Max'!AY5 -> 3863508 | BD5: =SUM((AT5+AP5)*'Weighting Factors'!$O$5)+AY5 -> 4480935 | BE5: =IF('Weighting Factors'!F5>0,'Weighting Factors'!F5,'Preliminary SO66'!AV4) -> 5096244 | BF5: =MIN(BD5,BE5) -> 4480935 | BG5: ='Weighting Factors'!E5 -> 0 | BH5: =Transportation!G5 -> -29969 | BI5: =IF(ISNA(VLOOKUP($CX5,'Audit Values'!$A$2:$BT$511,2,FALSE)), 0, VLOOKUP($CX5,'Audit Values'!$A$2:$BT$511,72,FALSE)) -> 0 | BJ5: =SUM(BG5:BI5) -> -29969 | BK5: =BF5+BJ5 -> 4450966 | BL5: =SUM((U5+V5+AA5+AC5+AF5+AI5+AK5+AN5+AO5+AP5)*'Weighting Factors'!O$12)+(MAX(AQ5,'Weighting Factors'!B5)) -> 4564675 | BM5: ='LOB%'!F3 -> 0.31 | BN5: =BL5*BM5 -> 1415049 | BO5: 1564345 | BP5: =MIN(BN5,BO5) -> 1415049 | BQ5: =BP5/BL5 -> 0.31 | BR5: =ROUND(IF(U5<=99.9,(U5*1.014331),0),1) -> 0 | BS5: =AND(U5>99.9,U5<=299.9) -> FALSE | BT5: =IF(BS5=TRUE,ROUND((U5-100)*9.655,3),0) -> 0 | BU5: =IF(BS5=TRUE,ROUND(((7337-BT5)/3642.4)-1,6),0) -> 0 | BV5: =ROUND(BU5*U5,1) -> 0 | BW5: =AND(U5>299.9,U5<=1621.9) -> TRUE | BX5: =IF(BW5=TRUE,ROUND((U5-300)*1.2375,4),0) -> 220.275 | BY5: =IF(BW5=TRUE,ROUND(((5406-BX5)/3642.4)-1,6),0) -> 0.423711 | BZ5: =ROUND(BY5*U5,1) -> 202.5 | CA5: =ROUND(IF(U5>=1622,(U5*0.03504),0),1) -> 0 | CB5: 325 | CC5: =AL5/CB5 -> 0.625 | CD5: =IF(CC5<0.06,1,IF(CC5>=18.29,52,MATCH(CC5-0.001,'Weighting Factors'!$W$5:$W$156)+1)) -> 27 | CE5: =VLOOKUP(CD5, 'Weighting Factors'!$U$5:$X$56,4) -> 1050 | CF5: =('Weighting Factors'!$O$5/'Weighting Factors'!$O$14) -> 1.1299 | CG5: =AL5*CE5 -> 213150 | CH5: =CG5*'Weighting Factors'!$Q$7 -> 213150 | CI5: =CH5*CF5 -> 240838 | CJ5: =AM5/'Weighting Factors'!$O$5 -> 51.2 | CK5: 0 | CL5: 0 | CM5: 0 | CN5: =SUM((AT5*'Weighting Factors'!$O$5)+'2022 Legal Max'!AY5)*CM5 -> 0 | CO5: =IF(CL5>CN5,CN5,CL5) -> 0 | CP5: =AE5/AD5 -> 0.3236 | CQ5: =IF(CP5>=50%,AE5*10.5%,0) -> 0 | CR5: =IF(AND(CP5>35%,CP5<50%),AE5*(CP5-35%)*0.7,0) -> 0 | CS5: =AU5+AR5 -> 945.8 | CT5: ='LOB Transfers'!G4 -> 105563 | CU5: ='LOB Transfers'!J4 -> 1981 | CV5: ='General Fund Transfers'!F4 -> 339773 | CW5: =SUM(R5+T5+AV5+AW5+AX5/6) -> 436 | CX5: D0101
A6: 102 | B6: Gray | C6: Cimarron-Ensign | D6: 659.1 | F6: 0 | G6: 659.1 | H6: 654.4 | J6: 0 | K6: 654.4 | L6: 633 | N6: 0 | O6: 633 | P6: =IF(ISNA(VLOOKUP($CX6,'Audit Values'!$A:$BW,2,FALSE)),'Preliminary SO66'!C5,VLOOKUP($CX6,'Audit Values'!$A:$BW,73,FALSE)) -> 626.5 | Q6: =IF(ISNA(VLOOKUP($CX6,'Audit Values'!$A:$BW,2,FALSE)),'Preliminary SO66'!F5,VLOOKUP($CX6,'Audit Values'!$A$2:$BW$936,4,FALSE)) -> 0 | R6: 626.5 | S6: =IF('Military Provision'!J6="YES", MAX('2022 Legal Max'!O6,'2022 Legal Max'!K6,AVERAGE('2022 Legal Max'!G6,'2022 Legal Max'!K6,'2022 Legal Max'!O6)), MAX(O6, K6)) -> 654.4 | T6: =IF(ISNA(VLOOKUP($CX6,'Audit Values'!$A:$BU,2,FALSE)),'Preliminary SO66'!AL5,VLOOKUP($CX6,'Audit Values'!$A:$BU,58,FALSE)) -> 6.5 | U6: 660.9 | V6: 239 | W6: =IF(ISNA(VLOOKUP($CX6,'Audit Values'!$A:$BW,2,FALSE)),'Preliminary SO66'!AM5,VLOOKUP($CX6,'Audit Values'!$A:$BW,62,FALSE)) -> 516.1 | X6: =(W6/6)*'Weighting Factors'!$O$7 -> 34 | Y6: =IF(ISNA(VLOOKUP($CX6,'Audit Values'!$A:$BW,2,FALSE)),'Preliminary SO66'!AN5,VLOOKUP($CX6,'Audit Values'!$A:$BW,61,FALSE)) -> 107 | Z6: =Y6*'Weighting Factors'!$O$8 -> 19.8 | AA6: 34 | AB6: =IF(ISNA(VLOOKUP($CX6,'Audit Values'!$A:$BW,2,FALSE)),'Preliminary SO66'!AO5,VLOOKUP($CX6,'Audit Values'!$A:$BW,60,FALSE)) -> 197.4 | AC6: =AB6/6*'Weighting Factors'!$O$6 -> 16.5 | AD6: =IF(ISNA(VLOOKUP($CX6,'Audit Values'!$A:$BU,2,FALSE)),'Preliminary SO66'!AS5,VLOOKUP($CX6,'Audit Values'!$A:$BU,63,FALSE)) -> 644 | AE6: =IF(ISNA(VLOOKUP($CX6,'Audit Values'!$A:$BU,2,FALSE)),'Preliminary SO66'!AP5,VLOOKUP($CX6,'Audit Values'!$A:$BU,64,FALSE)) -> 170 | AF6: =IF(A6=207, AE6,(AE6))*'Weighting Factors'!$O$9 -> 82.3 | AG6: 0 | AH6: =IF(ISNA(VLOOKUP($CX6,'Audit Values'!$A:$BW,2,FALSE)),'Preliminary SO66'!AG5,VLOOKUP($CX6,'Audit Values'!$A:$BW,70,FALSE)) -> 0 | AI6: 0 | AJ6: =IF(ISNA(VLOOKUP($CX6,'Audit Values'!$A:$BU,2,FALSE)),'Preliminary SO66'!AQ5,VLOOKUP($CX6,'Audit Values'!$A:$BU,65,FALSE)) -> 0 | AK6: =AJ6*'Weighting Factors'!$O$10 -> 0 | AL6: =IF(ISNA(VLOOKUP($CX6,'Audit Values'!$A:$BU,2,FALSE)),'Preliminary SO66'!AR5,VLOOKUP($CX6,'Audit Values'!$A:$BU,66,FALSE)) -> 104.5 | AM6: 153497 | AN6: =AM6/'Weighting Factors'!$O$5 -> 32.6 | AO6: =CK6/'Weighting Factors'!$O$5 -> 0 | AP6: =CO6/'Weighting Factors'!$O$5 -> 0 | AQ6: 499144 | AR6: =AQ6/'Weighting Factors'!$O$5 -> 106.1 | AS6: =IF(ISNA(VLOOKUP($CX6,'Audit Values'!$A:$BU,2,FALSE)),'Preliminary SO66'!X5,VLOOKUP($CX6,'Audit Values'!$A:$BU,47,FALSE)) -> 0 | AT6: 1171.4 | AU6: 1065.3 | AV6: =IF(ISNA(VLOOKUP($CX6,'Audit Values'!$A$2:$BU$917,2,FALSE)),'Preliminary SO66'!AA5,VLOOKUP($CX6,'Audit Values'!$A$2:$BU$917,41,FALSE)) -> 0 | AW6: =IF(ISNA(VLOOKUP($CX6,'Audit Values'!$A$2:$BU$917,2,FALSE)),'Preliminary SO66'!AB5,VLOOKUP($CX6,'Audit Values'!$A$2:$BU$917,42,FALSE)) -> 0 | AX6: 0 | AY6: =SUM(AV6*'Weighting Factors'!$R$10)+('2022 Legal Max'!AW6*'Weighting Factors'!$R$11)+('2022 Legal Max'!AX6*'Weighting Factors'!$R$12) -> 0 | AZ6: =IF(ISNA(VLOOKUP($CX6,'Audit Values'!$A$2:$BU$936,2,FALSE)),"",IF(AND('Weighting Factors'!F6>0,VLOOKUP($CX6,'Audit Values'!$A$2:$BU$936,51,FALSE)<'Weighting Factors'!F6),'Weighting Factors'!F6,VLOOKUP($CX6,'Audit Values'!$A$2:$BU$936,50,FALSE))) -> 10 | BA6: =IF(ISNA(VLOOKUP($CX6,'Audit Values'!$A:$BV,2,FALSE)),"",VLOOKUP($CX6,'Audit Values'!$A:$BV,51,FALSE)) -> A | BB6: =IF('Weighting Factors'!F6="","",IF('Weighting Factors'!H6="Pending","PX","R")) ->  | BC6: =SUM((U6+V6+AA6+AC6+AF6+AI6+AK6++AN6+AO6+AS6+AP6)*'Weighting Factors'!$O$5)+'2022 Legal Max'!AY6 -> 5013302 | BD6: =SUM((AT6+AP6)*'Weighting Factors'!$O$5)+AY6 -> 5512608 | BE6: =IF('Weighting Factors'!F6>0,'Weighting Factors'!F6,'Preliminary SO66'!AV5) -> 5756379 | BF6: 5512608 | BG6: ='Weighting Factors'!E6 -> 0 | BH6: =Transportation!G6 -> 0 | BI6: =IF(ISNA(VLOOKUP($CX6,'Audit Values'!$A$2:$BT$511,2,FALSE)), 0, VLOOKUP($CX6,'Audit Values'!$A$2:$BT$511,72,FALSE)) -> 0 | BJ6: 0 | BK6: 5512608 | BL6: =SUM((U6+V6+AA6+AC6+AF6+AI6+AK6+AN6+AO6+AP6)*'Weighting Factors'!O$12)+(MAX(AQ6,'Weighting Factors'!B6)) -> 5551685 | BM6: ='LOB%'!F4 -> 0.31 | BN6: 1721022 | BO6: 1679427 | BP6: 1679427 | BQ6: 0.3025 | BR6: =ROUND(IF(U6<=99.9,(U6*1.014331),0),1) -> 0 | BS6: =AND(U6>99.9,U6<=299.9) -> FALSE | BT6: =IF(BS6=TRUE,ROUND((U6-100)*9.655,3),0) -> 0 | BU6: 0 | BV6: =ROUND(BU6*U6,1) -> 0 | BW6: =AND(U6>299.9,U6<=1621.9) -> TRUE | BX6: =IF(BW6=TRUE,ROUND((U6-300)*1.2375,4),0) -> 446.6138 | BY6: 0.361571 | BZ6: =ROUND(BY6*U6,1) -> 239 | CA6: =ROUND(IF(U6>=1622,(U6*0.03504),0),1) -> 0 | CB6: 538 | CC6: =AL6/CB6 -> 0.194 | CD6: =IF(CC6<0.06,1,IF(CC6>=18.29,52,MATCH(CC6-0.001,'Weighting Factors'!$W$5:$W$156)+1)) -> 14 | CE6: =VLOOKUP(CD6, 'Weighting Factors'!$U$5:$X$56,4) -> 1300 | CF6: =('Weighting Factors'!$O$5/'Weighting Factors'!$O$14) -> 1.1299 | CG6: =AL6*CE6 -> 135850 | CH6: =CG6*'Weighting Factors'!$Q$7 -> 135850 | CI6: 153497 | CJ6: =AM6/'Weighting Factors'!$O$5 -> 32.6 | CK6: 0 | CL6: 0 | CM6: 0 | CN6: =SUM((AT6*'Weighting Factors'!$O$5)+'2022 Legal Max'!AY6)*CM6 -> 0 | CO6: 0 | CP6: =AE6/AD6 -> 0.264 | CQ6: =IF(CP6>=50%,AE6*10.5%,0) -> 0 | CR6: =IF(AND(CP6>35%,CP6<50%),AE6*(CP6-35%)*0.7,0) -> 0 | CS6: =AU6+AR6 -> 1171.4 | CT6: ='LOB Transfers'!G5 -> 118568 | CU6: ='LOB Transfers'!J5 -> 49039 | CV6: ='General Fund Transfers'!F5 -> 387304 | CW6: =SUM(R6+T6+AV6+AW6+AX6/6) -> 633 | CX6: D0102
A7: 103 | B7: Cheyenne | C7: Cheylin | D7: 126.5 | F7: 0 | G7: 126.5 | H7: 143 | J7: 0 | K7: 143 | L7: 144 | N7: 0 | O7: 144 | P7: =IF(ISNA(VLOOKUP($CX7,'Audit Values'!$A:$BW,2,FALSE)),'Preliminary SO66'!C6,VLOOKUP($CX7,'Audit Values'!$A:$BW,73,FALSE)) -> 144.8 | Q7: =IF(ISNA(VLOOKUP($CX7,'Audit Values'!$A:$BW,2,FALSE)),'Preliminary SO66'!F6,VLOOKUP($CX7,'Audit Values'!$A$2:$BW$936,4,FALSE)) -> 0 | R7: 144.8 | S7: =IF('Military Provision'!J7="YES", MAX('2022 Legal Max'!O7,'2022 Legal Max'!K7,AVERAGE('2022 Legal Max'!G7,'2022 Legal Max'!K7,'2022 Legal Max'!O7)), MAX(O7, K7)) -> 144 | T7: =IF(ISNA(VLOOKUP($CX7,'Audit Values'!$A:$BU,2,FALSE)),'Preliminary SO66'!AL6,VLOOKUP($CX7,'Audit Values'!$A:$BU,58,FALSE)) -> 0 | U7: 144 | V7: 129.3 | W7: =IF(ISNA(VLOOKUP($CX7,'Audit Values'!$A:$BW,2,FALSE)),'Preliminary SO66'!AM6,VLOOKUP($CX7,'Audit Values'!$A:$BW,62,FALSE)) -> 89.2 | X7: =(W7/6)*'Weighting Factors'!$O$7 -> 5.9 | Y7: =IF(ISNA(VLOOKUP($CX7,'Audit Values'!$A:$BW,2,FALSE)),'Preliminary SO66'!AN6,VLOOKUP($CX7,'Audit Values'!$A:$BW,61,FALSE)) -> 27 | Z7: =Y7*'Weighting Factors'!$O$8 -> 5 | AA7: 5.9 | AB7: =IF(ISNA(VLOOKUP($CX7,'Audit Values'!$A:$BW,2,FALSE)),'Preliminary SO66'!AO6,VLOOKUP($CX7,'Audit Values'!$A:$BW,60,FALSE)) -> 50.4 | AC7: =AB7/6*'Weighting Factors'!$O$6 -> 4.2 | AD7: =IF(ISNA(VLOOKUP($CX7,'Audit Values'!$A:$BU,2,FALSE)),'Preliminary SO66'!AS6,VLOOKUP($CX7,'Audit Values'!$A:$BU,63,FALSE)) -> 146 | AE7: =IF(ISNA(VLOOKUP($CX7,'Audit Values'!$A:$BU,2,FALSE)),'Preliminary SO66'!AP6,VLOOKUP($CX7,'Audit Values'!$A:$BU,64,FALSE)) -> 60 | AF7: =IF(A7=207, AE7,(AE7))*'Weighting Factors'!$O$9 -> 29 | AG7: 2.6 | AH7: =IF(ISNA(VLOOKUP($CX7,'Audit Values'!$A:$BW,2,FALSE)),'Preliminary SO66'!AG6,VLOOKUP($CX7,'Audit Values'!$A:$BW,70,FALSE)) -> 3.5 | AI7: 3.5 | AJ7: =IF(ISNA(VLOOKUP($CX7,'Audit Values'!$A:$BU,2,FALSE)),'Preliminary SO66'!AQ6,VLOOKUP($CX7,'Audit Values'!$A:$BU,65,FALSE)) -> 0 | AK7: =AJ7*'Weighting Factors'!$O$10 -> 0 | AL7: =IF(ISNA(VLOOKUP($CX7,'Audit Values'!$A:$BU,2,FALSE)),'Preliminary SO66'!AR6,VLOOKUP($CX7,'Audit Values'!$A:$BU,66,FALSE)) -> 61.5 | AM7: 104233 | AN7: =AM7/'Weighting Factors'!$O$5 -> 22.1 | AO7: =CK7/'Weighting Factors'!$O$5 -> 0 | AP7: =CO7/'Weighting Factors'!$O$5 -> 0 | AQ7: 136830 | AR7: =AQ7/'Weighting Factors'!$O$5 -> 29.1 | AS7: =IF(ISNA(VLOOKUP($CX7,'Audit Values'!$A:$BU,2,FALSE)),'Preliminary SO66'!X6,VLOOKUP($CX7,'Audit Values'!$A:$BU,47,FALSE)) -> 0 | AT7: 367.1 | AU7: 338 | AV7: =IF(ISNA(VLOOKUP($CX7,'Audit Values'!$A$2:$BU$917,2,FALSE)),'Preliminary SO66'!AA6,VLOOKUP($CX7,'Audit Values'!$A$2:$BU$917,41,FALSE)) -> 0 | AW7: =IF(ISNA(VLOOKUP($CX7,'Audit Values'!$A$2:$BU$917,2,FALSE)),'Preliminary SO66'!AB6,VLOOKUP($CX7,'Audit Values'!$A$2:$BU$917,42,FALSE)) -> 0 | AX7: 0 | AY7: =SUM(AV7*'Weighting Factors'!$R$10)+('2022 Legal Max'!AW7*'Weighting Factors'!$R$11)+('2022 Legal Max'!AX7*'Weighting Factors'!$R$12) -> 0 | AZ7: =IF(ISNA(VLOOKUP($CX7,'Audit Values'!$A$2:$BU$936,2,FALSE)),"",IF(AND('Weighting Factors'!F7>0,VLOOKUP($CX7,'Audit Values'!$A$2:$BU$936,51,FALSE)<'Weighting Factors'!F7),'Weighting Factors'!F7,VLOOKUP($CX7,'Audit Values'!$A$2:$BU$936,50,FALSE))) -> 8 | BA7: =IF(ISNA(VLOOKUP($CX7,'Audit Values'!$A:$BV,2,FALSE)),"",VLOOKUP($CX7,'Audit Values'!$A:$BV,51,FALSE)) -> A | BB7: =IF('Weighting Factors'!F7="","",IF('Weighting Factors'!H7="Pending","PX","R")) ->  | BC7: =SUM((U7+V7+AA7+AC7+AF7+AI7+AK7++AN7+AO7+AS7+AP7)*'Weighting Factors'!$O$5)+'2022 Legal Max'!AY7 -> 1590628 | BD7: =SUM((AT7+AP7)*'Weighting Factors'!$O$5)+AY7 -> 1727573 | BE7: =IF('Weighting Factors'!F7>0,'Weighting Factors'!F7,'Preliminary SO66'!AV6) -> 1809928 | BF7: 1727573 | BG7: ='Weighting Factors'!E7 -> 0 | BH7: =Transportation!G7 -> 0 | BI7: =IF(ISNA(VLOOKUP($CX7,'Audit Values'!$A$2:$BT$511,2,FALSE)), 0, VLOOKUP($CX7,'Audit Values'!$A$2:$BT$511,72,FALSE)) -> 0 | BJ7: 0 | BK7: 1727573 | BL7: =SUM((U7+V7+AA7+AC7+AF7+AI7+AK7+AN7+AO7+AP7)*'Weighting Factors'!O$12)+(MAX(AQ7,'Weighting Factors'!B7)) -> 1780883 | BM7: ='LOB%'!F5 -> 0.31 | BN7: 552074 | BO7: 567246 | BP7: 552074 | BQ7: 0.31 | BR7: =ROUND(IF(U7<=99.9,(U7*1.014331),0),1) -> 0 | BS7: =AND(U7>99.9,U7<=299.9) -> TRUE | BT7: =IF(BS7=TRUE,ROUND((U7-100)*9.655,3),0) -> 424.82 | BU7: 0.897699 | BV7: =ROUND(BU7*U7,1) -> 129.3 | BW7: =AND(U7>299.9,U7<=1621.9) -> FALSE | BX7: =IF(BW7=TRUE,ROUND((U7-300)*1.2375,4),0) -> 0 | BY7: 0 | BZ7: =ROUND(BY7*U7,1) -> 0 | CA7: =ROUND(IF(U7>=1622,(U7*0.03504),0),1) -> 0 | CB7: 688 | CC7: =AL7/CB7 -> 0.089 | CD7: =IF(CC7<0.06,1,IF(CC7>=18.29,52,MATCH(CC7-0.001,'Weighting Factors'!$W$5:$W$156)+1)) -> 4 | CE7: =VLOOKUP(CD7, 'Weighting Factors'!$U$5:$X$56,4) -> 1500 | CF7: =('Weighting Factors'!$O$5/'Weighting Factors'!$O$14) -> 1.1299 | CG7: =AL7*CE7 -> 92250 | CH7: =CG7*'Weighting Factors'!$Q$7 -> 92250 | CI7: 104233 | CJ7: =AM7/'Weighting Factors'!$O$5 -> 22.1 | CK7: 0 | CL7: 0 | CM7: 0 | CN7: =SUM((AT7*'Weighting Factors'!$O$5)+'2022 Legal Max'!AY7)*CM7 -> 0 | CO7: 0 | CP7: =AE7/AD7 -> 0.411 | CQ7: =IF(CP7>=50%,AE7*10.5%,0) -> 0 | CR7: =IF(AND(CP7>35%,CP7<50%),AE7*(CP7-35%)*0.7,0) -> 2.6 | CS7: =AU7+AR7 -> 367.1 | CT7: ='LOB Transfers'!G6 -> 43614 | CU7: ='LOB Transfers'!J6 -> 8888 | CV7: ='General Fund Transfers'!F6 -> 152945 | CW7: =SUM(R7+T7+AV7+AW7+AX7/6) -> 144.8 | CX7: D0103
A8: 105 | B8: Rawlins | C8: Rawlins County | D8: 353.9 | F8: 0 | G8: 353.9 | H8: 364 | J8: 0 | K8: 364 | L8: 341 | N8: 0 | O8: 341 | P8: =IF(ISNA(VLOOKUP($CX8,'Audit Values'!$A:$BW,2,FALSE)),'Preliminary SO66'!C7,VLOOKUP($CX8,'Audit Values'!$A:$BW,73,FALSE)) -> 360.9 | Q8: =IF(ISNA(VLOOKUP($CX8,'Audit Values'!$A:$BW,2,FALSE)),'Preliminary SO66'!F7,VLOOKUP($CX8,'Audit Values'!$A$2:$BW$936,4,FALSE)) -> 0 | R8: 360.9 | S8: =IF('Military Provision'!J8="YES", MAX('2022 Legal Max'!O8,'2022 Legal Max'!K8,AVERAGE('2022 Legal Max'!G8,'2022 Legal Max'!K8,'2022 Legal Max'!O8)), MAX(O8, K8)) -> 364 | T8: =IF(ISNA(VLOOKUP($CX8,'Audit Values'!$A:$BU,2,FALSE)),'Preliminary SO66'!AL7,VLOOKUP($CX8,'Audit Values'!$A:$BU,58,FALSE)) -> 0 | U8: 364 | V8: 168.3 | W8: =IF(ISNA(VLOOKUP($CX8,'Audit Values'!$A:$BW,2,FALSE)),'Preliminary SO66'!AM7,VLOOKUP($CX8,'Audit Values'!$A:$BW,62,FALSE)) -> 57.2 | X8: =(W8/6)*'Weighting Factors'!$O$7 -> 3.8 | Y8: =IF(ISNA(VLOOKUP($CX8,'Audit Values'!$A:$BW,2,FALSE)),'Preliminary SO66'!AN7,VLOOKUP($CX8,'Audit Values'!$A:$BW,61,FALSE)) -> 26 | Z8: =Y8*'Weighting Factors'!$O$8 -> 4.8 | AA8: 4.8 | AB8: =IF(ISNA(VLOOKUP($CX8,'Audit Values'!$A:$BW,2,FALSE)),'Preliminary SO66'!AO7,VLOOKUP($CX8,'Audit Values'!$A:$BW,60,FALSE)) -> 115.1 | AC8: =AB8/6*'Weighting Factors'!$O$6 -> 9.6 | AD8: =IF(ISNA(VLOOKUP($CX8,'Audit Values'!$A:$BU,2,FALSE)),'Preliminary SO66'!AS7,VLOOKUP($CX8,'Audit Values'!$A:$BU,63,FALSE)) -> 362 | AE8: =IF(ISNA(VLOOKUP($CX8,'Audit Values'!$A:$BU,2,FALSE)),'Preliminary SO66'!AP7,VLOOKUP($CX8,'Audit Values'!$A:$BU,64,FALSE)) -> 140 | AF8: =IF(A8=207, AE8,(AE8))*'Weighting Factors'!$O$9 -> 67.8 | AG8: 3.6 | AH8: =IF(ISNA(VLOOKUP($CX8,'Audit Values'!$A:$BW,2,FALSE)),'Preliminary SO66'!AG7,VLOOKUP($CX8,'Audit Values'!$A:$BW,70,FALSE)) -> 3.7 | AI8: 3.7 | AJ8: =IF(ISNA(VLOOKUP($CX8,'Audit Values'!$A:$BU,2,FALSE)),'Preliminary SO66'!AQ7,VLOOKUP($CX8,'Audit Values'!$A:$BU,65,FALSE)) -> 0 | AK8: =AJ8*'Weighting Factors'!$O$10 -> 0 | AL8: =IF(ISNA(VLOOKUP($CX8,'Audit Values'!$A:$BU,2,FALSE)),'Preliminary SO66'!AR7,VLOOKUP($CX8,'Audit Values'!$A:$BU,66,FALSE)) -> 125.5 | AM8: 187179 | AN8: =AM8/'Weighting Factors'!$O$5 -> 39.8 | AO8: =CK8/'Weighting Factors'!$O$5 -> 0 | AP8: =CO8/'Weighting Factors'!$O$5 -> 0 | AQ8: 291580 | AR8: =AQ8/'Weighting Factors'!$O$5 -> 62 | AS8: =IF(ISNA(VLOOKUP($CX8,'Audit Values'!$A:$BU,2,FALSE)),'Preliminary SO66'!X7,VLOOKUP($CX8,'Audit Values'!$A:$BU,47,FALSE)) -> 0 | AT8: 720 | AU8: 658 | AV8: =IF(ISNA(VLOOKUP($CX8,'Audit Values'!$A$2:$BU$917,2,FALSE)),'Preliminary SO66'!AA7,VLOOKUP($CX8,'Audit Values'!$A$2:$BU$917,41,FALSE)) -> 0 | AW8: =IF(ISNA(VLOOKUP($CX8,'Audit Values'!$A$2:$BU$917,2,FALSE)),'Preliminary SO66'!AB7,VLOOKUP($CX8,'Audit Values'!$A$2:$BU$917,42,FALSE)) -> 0 | AX8: 0 | AY8: =SUM(AV8*'Weighting Factors'!$R$10)+('2022 Legal Max'!AW8*'Weighting Factors'!$R$11)+('2022 Legal Max'!AX8*'Weighting Factors'!$R$12) -> 0 | AZ8: =IF(ISNA(VLOOKUP($CX8,'Audit Values'!$A$2:$BU$936,2,FALSE)),"",IF(AND('Weighting Factors'!F8>0,VLOOKUP($CX8,'Audit Values'!$A$2:$BU$936,51,FALSE)<'Weighting Factors'!F8),'Weighting Factors'!F8,VLOOKUP($CX8,'Audit Values'!$A$2:$BU$936,50,FALSE))) -> 14 | BA8: =IF(ISNA(VLOOKUP($CX8,'Audit Values'!$A:$BV,2,FALSE)),"",VLOOKUP($CX8,'Audit Values'!$A:$BV,51,FALSE)) -> A | BB8: =IF('Weighting Factors'!F8="","",IF('Weighting Factors'!H8="Pending","PX","R")) ->  | BC8: =SUM((U8+V8+AA8+AC8+AF8+AI8+AK8++AN8+AO8+AS8+AP8)*'Weighting Factors'!$O$5)+'2022 Legal Max'!AY8 -> 3096548 | BD8: =SUM((AT8+AP8)*'Weighting Factors'!$O$5)+AY8 -> 3388320 | BE8: =IF('Weighting Factors'!F8>0,'Weighting Factors'!F8,'Preliminary SO66'!AV7) -> 3439145 | BF8: 3388320 | BG8: ='Weighting Factors'!E8 -> 0 | BH8: =Transportation!G8 -> 0 | BI8: =IF(ISNA(VLOOKUP($CX8,'Audit Values'!$A$2:$BT$511,2,FALSE)), 0, VLOOKUP($CX8,'Audit Values'!$A$2:$BT$511,72,FALSE)) -> 0 | BJ8: 0 | BK8: 3388320 | BL8: =SUM((U8+V8+AA8+AC8+AF8+AI8+AK8+AN8+AO8+AP8)*'Weighting Factors'!O$12)+(MAX(AQ8,'Weighting Factors'!B8)) -> 3430151 | BM8: ='LOB%'!F6 -> 0.31 | BN8: 1063347 | BO8: 1066154 | BP8: 1063347 | BQ8: 0.31 | BR8: =ROUND(IF(U8<=99.9,(U8*1.014331),0),1) -> 0 | BS8: =AND(U8>99.9,U8<=299.9) -> FALSE | BT8: =IF(BS8=TRUE,ROUND((U8-100)*9.655,3),0) -> 0 | BU8: 0 | BV8: =ROUND(BU8*U8,1) -> 0 | BW8: =AND(U8>299.9,U8<=1621.9) -> TRUE | BX8: =IF(BW8=TRUE,ROUND((U8-300)*1.2375,4),0) -> 79.2 | BY8: 0.462442 | BZ8: =ROUND(BY8*U8,1) -> 168.3 | CA8: =ROUND(IF(U8>=1622,(U8*0.03504),0),1) -> 0 | CB8: 740.1 | CC8: =AL8/CB8 -> 0.17 | CD8: =IF(CC8<0.06,1,IF(CC8>=18.29,52,MATCH(CC8-0.001,'Weighting Factors'!$W$5:$W$156)+1)) -> 13 | CE8: =VLOOKUP(CD8, 'Weighting Factors'!$U$5:$X$56,4) -> 1320 | CF8: =('Weighting Factors'!$O$5/'Weighting Factors'!$O$14) -> 1.1299 | CG8: =AL8*CE8 -> 165660 | CH8: =CG8*'Weighting Factors'!$Q$7 -> 165660 | CI8: 187179 | CJ8: =AM8/'Weighting Factors'!$O$5 -> 39.8 | CK8: 0 | CL8: 0 | CM8: 0 | CN8: =SUM((AT8*'Weighting Factors'!$O$5)+'2022 Legal Max'!AY8)*CM8 -> 0 | CO8: 0 | CP8: =AE8/AD8 -> 0.3867 | CQ8: =IF(CP8>=50%,AE8*10.5%,0) -> 0 | CR8: =IF(AND(CP8>35%,CP8<50%),AE8*(CP8-35%)*0.7,0) -> 3.6 | CS8: =AU8+AR8 -> 720 | CT8: ='LOB Transfers'!G7 -> 100167 | CU8: ='LOB Transfers'!J7 -> 7124 | CV8: ='General Fund Transfers'!F7 -> 336479 | CW8: =SUM(R8+T8+AV8+AW8+AX8/6) -> 360.9 | CX8: D0105
A9: 106 | B9: Ness | C9: Western Plains | D9: 99.5 | F9: 0 | G9: 99.5 | H9: 109.5 | J9: 0 | K9: 109.5 | L9: 104.5 | N9: 0 | O9: 104.5 | P9: =IF(ISNA(VLOOKUP($CX9,'Audit Values'!$A:$BW,2,FALSE)),'Preliminary SO66'!C8,VLOOKUP($CX9,'Audit Values'!$A:$BW,73,FALSE)) -> 107.5 | Q9: =IF(ISNA(VLOOKUP($CX9,'Audit Values'!$A:$BW,2,FALSE)),'Preliminary SO66'!F8,VLOOKUP($CX9,'Audit Values'!$A$2:$BW$936,4,FALSE)) -> 0 | R9: 107.5 | S9: =IF('Military Provision'!J9="YES", MAX('2022 Legal Max'!O9,'2022 Legal Max'!K9,AVERAGE('2022 Legal Max'!G9,'2022 Legal Max'!K9,'2022 Legal Max'!O9)), MAX(O9, K9)) -> 109.5 | T9: =IF(ISNA(VLOOKUP($CX9,'Audit Values'!$A:$BU,2,FALSE)),'Preliminary SO66'!AL8,VLOOKUP($CX9,'Audit Values'!$A:$BU,58,FALSE)) -> 4.5 | U9: 114 | V9: 111.4 | W9: =IF(ISNA(VLOOKUP($CX9,'Audit Values'!$A:$BW,2,FALSE)),'Preliminary SO66'!AM8,VLOOKUP($CX9,'Audit Values'!$A:$BW,62,FALSE)) -> 71.3 | X9: =(W9/6)*'Weighting Factors'!$O$7 -> 4.7 | Y9: =IF(ISNA(VLOOKUP($CX9,'Audit Values'!$A:$BW,2,FALSE)),'Preliminary SO66'!AN8,VLOOKUP($CX9,'Audit Values'!$A:$BW,61,FALSE)) -> 18 | Z9: =Y9*'Weighting Factors'!$O$8 -> 3.3 | AA9: 4.7 | AB9: =IF(ISNA(VLOOKUP($CX9,'Audit Values'!$A:$BW,2,FALSE)),'Preliminary SO66'!AO8,VLOOKUP($CX9,'Audit Values'!$A:$BW,60,FALSE)) -> 72.8 | AC9: =AB9/6*'Weighting Factors'!$O$6 -> 6.1 | AD9: =IF(ISNA(VLOOKUP($CX9,'Audit Values'!$A:$BU,2,FALSE)),'Preliminary SO66'!AS8,VLOOKUP($CX9,'Audit Values'!$A:$BU,63,FALSE)) -> 117 | AE9: =IF(ISNA(VLOOKUP($CX9,'Audit Values'!$A:$BU,2,FALSE)),'Preliminary SO66'!AP8,VLOOKUP($CX9,'Audit Values'!$A:$BU,64,FALSE)) -> 58 | AF9: =IF(A9=207, AE9,(AE9))*'Weighting Factors'!$O$9 -> 28.1 | AG9: 5.9 | AH9: =IF(ISNA(VLOOKUP($CX9,'Audit Values'!$A:$BW,2,FALSE)),'Preliminary SO66'!AG8,VLOOKUP($CX9,'Audit Values'!$A:$BW,70,FALSE)) -> 3.7 | AI9: 5.9 | AJ9: =IF(ISNA(VLOOKUP($CX9,'Audit Values'!$A:$BU,2,FALSE)),'Preliminary SO66'!AQ8,VLOOKUP($CX9,'Audit Values'!$A:$BU,65,FALSE)) -> 0 | AK9: =AJ9*'Weighting Factors'!$O$10 -> 0 | AL9: =IF(ISNA(VLOOKUP($CX9,'Audit Values'!$A:$BU,2,FALSE)),'Preliminary SO66'!AR8,VLOOKUP($CX9,'Audit Values'!$A:$BU,66,FALSE)) -> 30 | AM9: 54913 | AN9: =AM9/'Weighting Factors'!$O$5 -> 11.7 | AO9: =CK9/'Weighting Factors'!$O$5 -> 0 | AP9: =CO9/'Weighting Factors'!$O$5 -> 0 | AQ9: 87138 | AR9: =AQ9/'Weighting Factors'!$O$5 -> 18.5 | AS9: =IF(ISNA(VLOOKUP($CX9,'Audit Values'!$A:$BU,2,FALSE)),'Preliminary SO66'!X8,VLOOKUP($CX9,'Audit Values'!$A:$BU,47,FALSE)) -> 0 | AT9: 300.4 | AU9: 281.9 | AV9: =IF(ISNA(VLOOKUP($CX9,'Audit Values'!$A$2:$BU$917,2,FALSE)),'Preliminary SO66'!AA8,VLOOKUP($CX9,'Audit Values'!$A$2:$BU$917,41,FALSE)) -> 0 | AW9: =IF(ISNA(VLOOKUP($CX9,'Audit Values'!$A$2:$BU$917,2,FALSE)),'Preliminary SO66'!AB8,VLOOKUP($CX9,'Audit Values'!$A$2:$BU$917,42,FALSE)) -> 0 | AX9: 0 | AY9: =SUM(AV9*'Weighting Factors'!$R$10)+('2022 Legal Max'!AW9*'Weighting Factors'!$R$11)+('2022 Legal Max'!AX9*'Weighting Factors'!$R$12) -> 0 | AZ9: =IF(ISNA(VLOOKUP($CX9,'Audit Values'!$A$2:$BU$936,2,FALSE)),"",IF(AND('Weighting Factors'!F9>0,VLOOKUP($CX9,'Audit Values'!$A$2:$BU$936,51,FALSE)<'Weighting Factors'!F9),'Weighting Factors'!F9,VLOOKUP($CX9,'Audit Values'!$A$2:$BU$936,50,FALSE))) -> 19 | BA9: =IF(ISNA(VLOOKUP($CX9,'Audit Values'!$A:$BV,2,FALSE)),"",VLOOKUP($CX9,'Audit Values'!$A:$BV,51,FALSE)) -> A | BB9: =IF('Weighting Factors'!F9="","",IF('Weighting Factors'!H9="Pending","PX","R")) ->  | BC9: =SUM((U9+V9+AA9+AC9+AF9+AI9+AK9++AN9+AO9+AS9+AP9)*'Weighting Factors'!$O$5)+'2022 Legal Max'!AY9 -> 1326621 | BD9: =SUM((AT9+AP9)*'Weighting Factors'!$O$5)+AY9 -> 1413682 | BE9: =IF('Weighting Factors'!F9>0,'Weighting Factors'!F9,'Preliminary SO66'!AV8) -> 1494155 | BF9: 1413682 | BG9: ='Weighting Factors'!E9 -> 0 | BH9: =Transportation!G9 -> -9248 | BI9: =IF(ISNA(VLOOKUP($CX9,'Audit Values'!$A$2:$BT$511,2,FALSE)), 0, VLOOKUP($CX9,'Audit Values'!$A$2:$BT$511,72,FALSE)) -> 0 | BJ9: -9248 | BK9: 1404434 | BL9: =SUM((U9+V9+AA9+AC9+AF9+AI9+AK9+AN9+AO9+AP9)*'Weighting Factors'!O$12)+(MAX(AQ9,'Weighting Factors'!B9)) -> 1477963 | BM9: ='LOB%'!F7 -> 0.33 | BN9: 487728 | BO9: 507451 | BP9: 487728 | BQ9: 0.33 | BR9: =ROUND(IF(U9<=99.9,(U9*1.014331),0),1) -> 0 | BS9: =AND(U9>99.9,U9<=299.9) -> TRUE | BT9: =IF(BS9=TRUE,ROUND((U9-100)*9.655,3),0) -> 135.17 | BU9: 0.977221 | BV9: =ROUND(BU9*U9,1) -> 111.4 | BW9: =AND(U9>299.9,U9<=1621.9) -> FALSE | BX9: =IF(BW9=TRUE,ROUND((U9-300)*1.2375,4),0) -> 0 | BY9: 0 | BZ9: =ROUND(BY9*U9,1) -> 0 | CA9: =ROUND(IF(U9>=1622,(U9*0.03504),0),1) -> 0 | CB9: 601.2 | CC9: =AL9/CB9 -> 0.05 | CD9: =IF(CC9<0.06,1,IF(CC9>=18.29,52,MATCH(CC9-0.001,'Weighting Factors'!$W$5:$W$156)+1)) -> 1 | CE9: =VLOOKUP(CD9, 'Weighting Factors'!$U$5:$X$56,4) -> 1620 | CF9: =('Weighting Factors'!$O$5/'Weighting Factors'!$O$14) -> 1.1299 | CG9: =AL9*CE9 -> 48600 | CH9: =CG9*'Weighting Factors'!$Q$7 -> 48600 | CI9: 54913 | CJ9: =AM9/'Weighting Factors'!$O$5 -> 11.7 | CK9: 0 | CL9: 0 | CM9: 0 | CN9: =SUM((AT9*'Weighting Factors'!$O$5)+'2022 Legal Max'!AY9)*CM9 -> 0 | CO9: 0 | CP9: =AE9/AD9 -> 0.4957 | CQ9: =IF(CP9>=50%,AE9*10.5%,0) -> 0 | CR9: =IF(AND(CP9>35%,CP9<50%),AE9*(CP9-35%)*0.7,0) -> 5.9 | CS9: =AU9+AR9 -> 300.4 | CT9: ='LOB Transfers'!G8 -> 46334 | CU9: ='LOB Transfers'!J8 -> 7755 | CV9: ='General Fund Transfers'!F8 -> 160004 | CW9: =SUM(R9+T9+AV9+AW9+AX9/6) -> 112 | CX9: D0106
A10: 107 | B10: Jewell | C10: Rock Hills | D10: 293.5 | F10: 0 | G10: 293.5 | H10: 316 | J10: 0 | K10: 316 | L10: 328.2 | N10: 0 | O10: 328.2 | P10: =IF(ISNA(VLOOKUP($CX10,'Audit Values'!$A:$BW,2,FALSE)),'Preliminary SO66'!C9,VLOOKUP($CX10,'Audit Values'!$A:$BW,73,FALSE)) -> 374 | Q10: =IF(ISNA(VLOOKUP($CX10,'Audit Values'!$A:$BW,2,FALSE)),'Preliminary SO66'!F9,VLOOKUP($CX10,'Audit Values'!$A$2:$BW$936,4,FALSE)) -> 0 | R10: 374 | S10: =IF('Military Provision'!J10="YES", MAX('2022 Legal Max'!O10,'2022 Legal Max'!K10,AVERAGE('2022 Legal Max'!G10,'2022 Legal Max'!K10,'2022 Legal Max'!O10)), MAX(O10, K10)) -> 328.2 | T10: =IF(ISNA(VLOOKUP($CX10,'Audit Values'!$A:$BU,2,FALSE)),'Preliminary SO66'!AL9,VLOOKUP($CX10,'Audit Values'!$A:$BU,58,FALSE)) -> 6.5 | U10: 334.7 | V10: 158.1 | W10: =IF(ISNA(VLOOKUP($CX10,'Audit Values'!$A:$BW,2,FALSE)),'Preliminary SO66'!AM9,VLOOKUP($CX10,'Audit Values'!$A:$BW,62,FALSE)) -> 0 | X10: =(W10/6)*'Weighting Factors'!$O$7 -> 0 | Y10: =IF(ISNA(VLOOKUP($CX10,'Audit Values'!$A:$BW,2,FALSE)),'Preliminary SO66'!AN9,VLOOKUP($CX10,'Audit Values'!$A:$BW,61,FALSE)) -> 0 | Z10: =Y10*'Weighting Factors'!$O$8 -> 0 | AA10: 0 | AB10: =IF(ISNA(VLOOKUP($CX10,'Audit Values'!$A:$BW,2,FALSE)),'Preliminary SO66'!AO9,VLOOKUP($CX10,'Audit Values'!$A:$BW,60,FALSE)) -> 110.4 | AC10: =AB10/6*'Weighting Factors'!$O$6 -> 9.2 | AD10: =IF(ISNA(VLOOKUP($CX10,'Audit Values'!$A:$BU,2,FALSE)),'Preliminary SO66'!AS9,VLOOKUP($CX10,'Audit Values'!$A:$BU,63,FALSE)) -> 392 | AE10: =IF(ISNA(VLOOKUP($CX10,'Audit Values'!$A:$BU,2,FALSE)),'Preliminary SO66'!AP9,VLOOKUP($CX10,'Audit Values'!$A:$BU,64,FALSE)) -> 142 | AF10: =IF(A10=207, AE10,(AE10))*'Weighting Factors'!$O$9 -> 68.7 | AG10: 1.2 | AH10: =IF(ISNA(VLOOKUP($CX10,'Audit Values'!$A:$BW,2,FALSE)),'Preliminary SO66'!AG9,VLOOKUP($CX10,'Audit Values'!$A:$BW,70,FALSE)) -> 1.8 | AI10: 1.8 | AJ10: =IF(ISNA(VLOOKUP($CX10,'Audit Values'!$A:$BU,2,FALSE)),'Preliminary SO66'!AQ9,VLOOKUP($CX10,'Audit Values'!$A:$BU,65,FALSE)) -> 0 | AK10: =AJ10*'Weighting Factors'!$O$10 -> 0 | AL10: =IF(ISNA(VLOOKUP($CX10,'Audit Values'!$A:$BU,2,FALSE)),'Preliminary SO66'!AR9,VLOOKUP($CX10,'Audit Values'!$A:$BU,66,FALSE)) -> 187 | AM10: 259888 | AN10: =AM10/'Weighting Factors'!$O$5 -> 55.2 | AO10: =CK10/'Weighting Factors'!$O$5 -> 0 | AP10: =CO10/'Weighting Factors'!$O$5 -> 0 | AQ10: 394596 | AR10: =AQ10/'Weighting Factors'!$O$5 -> 83.8 | AS10: =IF(ISNA(VLOOKUP($CX10,'Audit Values'!$A:$BU,2,FALSE)),'Preliminary SO66'!X9,VLOOKUP($CX10,'Audit Values'!$A:$BU,47,FALSE)) -> 0 | AT10: 711.5 | AU10: 627.7 | AV10: =IF(ISNA(VLOOKUP($CX10,'Audit Values'!$A$2:$BU$917,2,FALSE)),'Preliminary SO66'!AA9,VLOOKUP($CX10,'Audit Values'!$A$2:$BU$917,41,FALSE)) -> 0 | AW10: =IF(ISNA(VLOOKUP($CX10,'Audit Values'!$A$2:$BU$917,2,FALSE)),'Preliminary SO66'!AB9,VLOOKUP($CX10,'Audit Values'!$A$2:$BU$917,42,FALSE)) -> 0 | AX10: 0 | AY10: =SUM(AV10*'Weighting Factors'!$R$10)+('2022 Legal Max'!AW10*'Weighting Factors'!$R$11)+('2022 Legal Max'!AX10*'Weighting Factors'!$R$12) -> 0 | AZ10: =IF(ISNA(VLOOKUP($CX10,'Audit Values'!$A$2:$BU$936,2,FALSE)),"",IF(AND('Weighting Factors'!F10>0,VLOOKUP($CX10,'Audit Values'!$A$2:$BU$936,51,FALSE)<'Weighting Factors'!F10),'Weighting Factors'!F10,VLOOKUP($CX10,'Audit Values'!$A$2:$BU$936,50,FALSE))) -> 16 | BA10: =IF(ISNA(VLOOKUP($CX10,'Audit Values'!$A:$BV,2,FALSE)),"",VLOOKUP($CX10,'Audit Values'!$A:$BV,51,FALSE)) -> A | BB10: =IF('Weighting Factors'!F10="","",IF('Weighting Factors'!H10="Pending","PX","R")) -> R | BC10: =SUM((U10+V10+AA10+AC10+AF10+AI10+AK10++AN10+AO10+AS10+AP10)*'Weighting Factors'!$O$5)+'2022 Legal Max'!AY10 -> 2953956 | BD10: =SUM((AT10+AP10)*'Weighting Factors'!$O$5)+AY10 -> 3348319 | BE10: =IF('Weighting Factors'!F10>0,'Weighting Factors'!F10,'Preliminary SO66'!AV9) -> 3393497 | BF10: 3348319 | BG10: ='Weighting Factors'!E10 -> 0 | BH10: =Transportation!G10 -> -1212 | BI10: =IF(ISNA(VLOOKUP($CX10,'Audit Values'!$A$2:$BT$511,2,FALSE)), 0, VLOOKUP($CX10,'Audit Values'!$A$2:$BT$511,72,FALSE)) -> 0 | BJ10: -1212 | BK10: 3347107 | BL10: =SUM((U10+V10+AA10+AC10+AF10+AI10+AK10+AN10+AO10+AP10)*'Weighting Factors'!O$12)+(MAX(AQ10,'Weighting Factors'!B10)) -> 3348552 | BM10: ='LOB%'!F8 -> 0.31 | BN10: 1038051 | BO10: 1028900 | BP10: 1028900 | BQ10: 0.3073 | BR10: =ROUND(IF(U10<=99.9,(U10*1.014331),0),1) -> 0 | BS10: =AND(U10>99.9,U10<=299.9) -> FALSE | BT10: =IF(BS10=TRUE,ROUND((U10-100)*9.655,3),0) -> 0 | BU10: 0 | BV10: =ROUND(BU10*U10,1) -> 0 | BW10: =AND(U10>299.9,U10<=1621.9) -> TRUE | BX10: =IF(BW10=TRUE,ROUND((U10-300)*1.2375,4),0) -> 42.9413 | BY10: 0.472397 | BZ10: =ROUND(BY10*U10,1) -> 158.1 | CA10: =ROUND(IF(U10>=1622,(U10*0.03504),0),1) -> 0 | CB10: 762 | CC10: =AL10/CB10 -> 0.245 | CD10: =IF(CC10<0.06,1,IF(CC10>=18.29,52,MATCH(CC10-0.001,'Weighting Factors'!$W$5:$W$156)+1)) -> 18 | CE10: =VLOOKUP(CD10, 'Weighting Factors'!$U$5:$X$56,4) -> 1230 | CF10: =('Weighting Factors'!$O$5/'Weighting Factors'!$O$14) -> 1.1299 | CG10: =AL10*CE10 -> 230010 | CH10: =CG10*'Weighting Factors'!$Q$7 -> 230010 | CI10: 259888 | CJ10: =AM10/'Weighting Factors'!$O$5 -> 55.2 | CK10: 0 | CL10: 0 | CM10: 0 | CN10: =SUM((AT10*'Weighting Factors'!$O$5)+'2022 Legal Max'!AY10)*CM10 -> 0 | CO10: 0 | CP10: =AE10/AD10 -> 0.3622 | CQ10: =IF(CP10>=50%,AE10*10.5%,0) -> 0 | CR10: =IF(AND(CP10>35%,CP10<50%),AE10*(CP10-35%)*0.7,0) -> 1.2 | CS10: =AU10+AR10 -> 711.5 | CT10: ='LOB Transfers'!G9 -> 100215 | CU10: ='LOB Transfers'!J9 -> 0 | CV10: ='General Fund Transfers'!F9 -> 331773 | CW10: =SUM(R10+T10+AV10+AW10+AX10/6) -> 380.5 | CX10: D0107
A11: 108 | B11: Washington | C11: Washington Co. Schools | D11: 327.3 | F11: 0 | G11: 327.3 | H11: 350.7 | J11: 0 | K11: 350.7 | L11: 365.1 | N11: 0 | O11: 365.1 | P11: =IF(ISNA(VLOOKUP($CX11,'Audit Values'!$A:$BW,2,FALSE)),'Preliminary SO66'!C10,VLOOKUP($CX11,'Audit Values'!$A:$BW,73,FALSE)) -> 347 | Q11: =IF(ISNA(VLOOKUP($CX11,'Audit Values'!$A:$BW,2,FALSE)),'Preliminary SO66'!F10,VLOOKUP($CX11,'Audit Values'!$A$2:$BW$936,4,FALSE)) -> 0 | R11: 347 | S11: =IF('Military Provision'!J11="YES", MAX('2022 Legal Max'!O11,'2022 Legal Max'!K11,AVERAGE('2022 Legal Max'!G11,'2022 Legal Max'!K11,'2022 Legal Max'!O11)), MAX(O11, K11)) -> 365.1 | T11: =IF(ISNA(VLOOKUP($CX11,'Audit Values'!$A:$BU,2,FALSE)),'Preliminary SO66'!AL10,VLOOKUP($CX11,'Audit Values'!$A:$BU,58,FALSE)) -> 2 | U11: 367.1 | V11: 169.4 | W11: =IF(ISNA(VLOOKUP($CX11,'Audit Values'!$A:$BW,2,FALSE)),'Preliminary SO66'!AM10,VLOOKUP($CX11,'Audit Values'!$A:$BW,62,FALSE)) -> 16.1 | X11: =(W11/6)*'Weighting Factors'!$O$7 -> 1.1 | Y11: =IF(ISNA(VLOOKUP($CX11,'Audit Values'!$A:$BW,2,FALSE)),'Preliminary SO66'!AN10,VLOOKUP($CX11,'Audit Values'!$A:$BW,61,FALSE)) -> 22 | Z11: =Y11*'Weighting Factors'!$O$8 -> 4.1 | AA11: 4.1 | AB11: =IF(ISNA(VLOOKUP($CX11,'Audit Values'!$A:$BW,2,FALSE)),'Preliminary SO66'!AO10,VLOOKUP($CX11,'Audit Values'!$A:$BW,60,FALSE)) -> 102.3 | AC11: =AB11/6*'Weighting Factors'!$O$6 -> 8.5 | AD11: =IF(ISNA(VLOOKUP($CX11,'Audit Values'!$A:$BU,2,FALSE)),'Preliminary SO66'!AS10,VLOOKUP($CX11,'Audit Values'!$A:$BU,63,FALSE)) -> 354 | AE11: =IF(ISNA(VLOOKUP($CX11,'Audit Values'!$A:$BU,2,FALSE)),'Preliminary SO66'!AP10,VLOOKUP($CX11,'Audit Values'!$A:$BU,64,FALSE)) -> 119 | AF11: =IF(A11=207, AE11,(AE11))*'Weighting Factors'!$O$9 -> 57.6 | AG11: 0 | AH11: =IF(ISNA(VLOOKUP($CX11,'Audit Values'!$A:$BW,2,FALSE)),'Preliminary SO66'!AG10,VLOOKUP($CX11,'Audit Values'!$A:$BW,70,FALSE)) -> 0 | AI11: 0 | AJ11: =IF(ISNA(VLOOKUP($CX11,'Audit Values'!$A:$BU,2,FALSE)),'Preliminary SO66'!AQ10,VLOOKUP($CX11,'Audit Values'!$A:$BU,65,FALSE)) -> 0 | AK11: =AJ11*'Weighting Factors'!$O$10 -> 0 | AL11: =IF(ISNA(VLOOKUP($CX11,'Audit Values'!$A:$BU,2,FALSE)),'Preliminary SO66'!AR10,VLOOKUP($CX11,'Audit Values'!$A:$BU,66,FALSE)) -> 150 | AM11: 194908 | AN11: =AM11/'Weighting Factors'!$O$5 -> 41.4 | AO11: =CK11/'Weighting Factors'!$O$5 -> 0 | AP11: =CO11/'Weighting Factors'!$O$5 -> 0 | AQ11: 336614 | AR11: =AQ11/'Weighting Factors'!$O$5 -> 71.5 | AS11: =IF(ISNA(VLOOKUP($CX11,'Audit Values'!$A:$BU,2,FALSE)),'Preliminary SO66'!X10,VLOOKUP($CX11,'Audit Values'!$A:$BU,47,FALSE)) -> 0 | AT11: 719.6 | AU11: 648.1 | AV11: =IF(ISNA(VLOOKUP($CX11,'Audit Values'!$A$2:$BU$917,2,FALSE)),'Preliminary SO66'!AA10,VLOOKUP($CX11,'Audit Values'!$A$2:$BU$917,41,FALSE)) -> 0 | AW11: =IF(ISNA(VLOOKUP($CX11,'Audit Values'!$A$2:$BU$917,2,FALSE)),'Preliminary SO66'!AB10,VLOOKUP($CX11,'Audit Values'!$A$2:$BU$917,42,FALSE)) -> 0 | AX11: 0 | AY11: =SUM(AV11*'Weighting Factors'!$R$10)+('2022 Legal Max'!AW11*'Weighting Factors'!$R$11)+('2022 Legal Max'!AX11*'Weighting Factors'!$R$12) -> 0 | AZ11: =IF(ISNA(VLOOKUP($CX11,'Audit Values'!$A$2:$BU$936,2,FALSE)),"",IF(AND('Weighting Factors'!F11>0,VLOOKUP($CX11,'Audit Values'!$A$2:$BU$936,51,FALSE)<'Weighting Factors'!F11),'Weighting Factors'!F11,VLOOKUP($CX11,'Audit Values'!$A$2:$BU$936,50,FALSE))) -> 3 | BA11: =IF(ISNA(VLOOKUP($CX11,'Audit Values'!$A:$BV,2,FALSE)),"",VLOOKUP($CX11,'Audit Values'!$A:$BV,51,FALSE)) -> A | BB11: =IF('Weighting Factors'!F11="","",IF('Weighting Factors'!H11="Pending","PX","R")) ->  | BC11: =SUM((U11+V11+AA11+AC11+AF11+AI11+AK11++AN11+AO11+AS11+AP11)*'Weighting Factors'!$O$5)+'2022 Legal Max'!AY11 -> 3049959 | BD11: =SUM((AT11+AP11)*'Weighting Factors'!$O$5)+AY11 -> 3386438 | BE11: =IF('Weighting Factors'!F11>0,'Weighting Factors'!F11,'Preliminary SO66'!AV10) -> 3522912 | BF11: 3386438 | BG11: ='Weighting Factors'!E11 -> 0 | BH11: =Transportation!G11 -> 0 | BI11: =IF(ISNA(VLOOKUP($CX11,'Audit Values'!$A$2:$BT$511,2,FALSE)), 0, VLOOKUP($CX11,'Audit Values'!$A$2:$BT$511,72,FALSE)) -> 0 | BJ11: 0 | BK11: 3386438 | BL11: =SUM((U11+V11+AA11+AC11+AF11+AI11+AK11+AN11+AO11+AP11)*'Weighting Factors'!O$12)+(MAX(AQ11,'Weighting Factors'!B11)) -> 3598290 | BM11: ='LOB%'!F9 -> 0.31 | BN11: 1115470 | BO11: 1145231 | BP11: 1115470 | BQ11: 0.31 | BR11: =ROUND(IF(U11<=99.9,(U11*1.014331),0),1) -> 0 | BS11: =AND(U11>99.9,U11<=299.9) -> FALSE | BT11: =IF(BS11=TRUE,ROUND((U11-100)*9.655,3),0) -> 0 | BU11: 0 | BV11: =ROUND(BU11*U11,1) -> 0 | BW11: =AND(U11>299.9,U11<=1621.9) -> TRUE | BX11: =IF(BW11=TRUE,ROUND((U11-300)*1.2375,4),0) -> 83.0363 | BY11: 0.461389 | BZ11: =ROUND(BY11*U11,1) -> 169.4 | CA11: =ROUND(IF(U11>=1622,(U11*0.03504),0),1) -> 0 | CB11: 389 | CC11: =AL11/CB11 -> 0.386 | CD11: =IF(CC11<0.06,1,IF(CC11>=18.29,52,MATCH(CC11-0.001,'Weighting Factors'!$W$5:$W$156)+1)) -> 22 | CE11: =VLOOKUP(CD11, 'Weighting Factors'!$U$5:$X$56,4) -> 1150 | CF11: =('Weighting Factors'!$O$5/'Weighting Factors'!$O$14) -> 1.1299 | CG11: =AL11*CE11 -> 172500 | CH11: =CG11*'Weighting Factors'!$Q$7 -> 172500 | CI11: 194908 | CJ11: =AM11/'Weighting Factors'!$O$5 -> 41.4 | CK11: 0 | CL11: 0 | CM11: 0 | CN11: =SUM((AT11*'Weighting Factors'!$O$5)+'2022 Legal Max'!AY11)*CM11 -> 0 | CO11: 0 | CP11: =AE11/AD11 -> 0.3362 | CQ11: =IF(CP11>=50%,AE11*10.5%,0) -> 0 | CR11: =IF(AND(CP11>35%,CP11<50%),AE11*(CP11-35%)*0.7,0) -> 0 | CS11: =AU11+AR11 -> 719.6 | CT11: ='LOB Transfers'!G10 -> 89572 | CU11: ='LOB Transfers'!J10 -> 6358 | CV11: ='General Fund Transfers'!F10 -> 271066 | CW11: =SUM(R11+T11+AV11+AW11+AX11/6) -> 349 | CX11: D0108
A12: 109 | B12: Republic | C12: Republic County | D12: 515.4 | F12: 0 | G12: 515.4 | H12: 514.7 | J12: 0 | K12: 514.7 | L12: 477.4 | N12: 0 | O12: 477.4 | P12: =IF(ISNA(VLOOKUP($CX12,'Audit Values'!$A:$BW,2,FALSE)),'Preliminary SO66'!C11,VLOOKUP($CX12,'Audit Values'!$A:$BW,73,FALSE)) -> 498.8 | Q12: =IF(ISNA(VLOOKUP($CX12,'Audit Values'!$A:$BW,2,FALSE)),'Preliminary SO66'!F11,VLOOKUP($CX12,'Audit Values'!$A$2:$BW$936,4,FALSE)) -> 0 | R12: 498.8 | S12: =IF('Military Provision'!J12="YES", MAX('2022 Legal Max'!O12,'2022 Legal Max'!K12,AVERAGE('2022 Legal Max'!G12,'2022 Legal Max'!K12,'2022 Legal Max'!O12)), MAX(O12, K12)) -> 514.7 | T12: =IF(ISNA(VLOOKUP($CX12,'Audit Values'!$A:$BU,2,FALSE)),'Preliminary SO66'!AL11,VLOOKUP($CX12,'Audit Values'!$A:$BU,58,FALSE)) -> 2 | U12: 516.7 | V12: 212.1 | W12: =IF(ISNA(VLOOKUP($CX12,'Audit Values'!$A:$BW,2,FALSE)),'Preliminary SO66'!AM11,VLOOKUP($CX12,'Audit Values'!$A:$BW,62,FALSE)) -> 0.8 | X12: =(W12/6)*'Weighting Factors'!$O$7 -> 0.1 | Y12: =IF(ISNA(VLOOKUP($CX12,'Audit Values'!$A:$BW,2,FALSE)),'Preliminary SO66'!AN11,VLOOKUP($CX12,'Audit Values'!$A:$BW,61,FALSE)) -> 5 | Z12: =Y12*'Weighting Factors'!$O$8 -> 0.9 | AA12: 0.9 | AB12: =IF(ISNA(VLOOKUP($CX12,'Audit Values'!$A:$BW,2,FALSE)),'Preliminary SO66'!AO11,VLOOKUP($CX12,'Audit Values'!$A:$BW,60,FALSE)) -> 111.9 | AC12: =AB12/6*'Weighting Factors'!$O$6 -> 9.3 | AD12: =IF(ISNA(VLOOKUP($CX12,'Audit Values'!$A:$BU,2,FALSE)),'Preliminary SO66'!AS11,VLOOKUP($CX12,'Audit Values'!$A:$BU,63,FALSE)) -> 507 | AE12: =IF(ISNA(VLOOKUP($CX12,'Audit Values'!$A:$BU,2,FALSE)),'Preliminary SO66'!AP11,VLOOKUP($CX12,'Audit Values'!$A:$BU,64,FALSE)) -> 185 | AF12: =IF(A12=207, AE12,(AE12))*'Weighting Factors'!$O$9 -> 89.5 | AG12: 1.9 | AH12: =IF(ISNA(VLOOKUP($CX12,'Audit Values'!$A:$BW,2,FALSE)),'Preliminary SO66'!AG11,VLOOKUP($CX12,'Audit Values'!$A:$BW,70,FALSE)) -> 3 | AI12: 3 | AJ12: =IF(ISNA(VLOOKUP($CX12,'Audit Values'!$A:$BU,2,FALSE)),'Preliminary SO66'!AQ11,VLOOKUP($CX12,'Audit Values'!$A:$BU,65,FALSE)) -> 0 | AK12: =AJ12*'Weighting Factors'!$O$10 -> 0 | AL12: =IF(ISNA(VLOOKUP($CX12,'Audit Values'!$A:$BU,2,FALSE)),'Preliminary SO66'!AR11,VLOOKUP($CX12,'Audit Values'!$A:$BU,66,FALSE)) -> 164 | AM12: 220511 | AN12: =AM12/'Weighting Factors'!$O$5 -> 46.9 | AO12: =CK12/'Weighting Factors'!$O$5 -> 0 | AP12: =CO12/'Weighting Factors'!$O$5 -> 0 | AQ12: 430291 | AR12: =AQ12/'Weighting Factors'!$O$5 -> 91.4 | AS12: =IF(ISNA(VLOOKUP($CX12,'Audit Values'!$A:$BU,2,FALSE)),'Preliminary SO66'!X11,VLOOKUP($CX12,'Audit Values'!$A:$BU,47,FALSE)) -> 0 | AT12: 969.8 | AU12: 878.4 | AV12: =IF(ISNA(VLOOKUP($CX12,'Audit Values'!$A$2:$BU$917,2,FALSE)),'Preliminary SO66'!AA11,VLOOKUP($CX12,'Audit Values'!$A$2:$BU$917,41,FALSE)) -> 0 | AW12: =IF(ISNA(VLOOKUP($CX12,'Audit Values'!$A$2:$BU$917,2,FALSE)),'Preliminary SO66'!AB11,VLOOKUP($CX12,'Audit Values'!$A$2:$BU$917,42,FALSE)) -> 0 | AX12: 0 | AY12: =SUM(AV12*'Weighting Factors'!$R$10)+('2022 Legal Max'!AW12*'Weighting Factors'!$R$11)+('2022 Legal Max'!AX12*'Weighting Factors'!$R$12) -> 0 | AZ12: =IF(ISNA(VLOOKUP($CX12,'Audit Values'!$A$2:$BU$936,2,FALSE)),"",IF(AND('Weighting Factors'!F12>0,VLOOKUP($CX12,'Audit Values'!$A$2:$BU$936,51,FALSE)<'Weighting Factors'!F12),'Weighting Factors'!F12,VLOOKUP($CX12,'Audit Values'!$A$2:$BU$936,50,FALSE))) -> 1 | BA12: =IF(ISNA(VLOOKUP($CX12,'Audit Values'!$A:$BV,2,FALSE)),"",VLOOKUP($CX12,'Audit Values'!$A:$BV,51,FALSE)) -> A | BB12: =IF('Weighting Factors'!F12="","",IF('Weighting Factors'!H12="Pending","PX","R")) ->  | BC12: =SUM((U12+V12+AA12+AC12+AF12+AI12+AK12++AN12+AO12+AS12+AP12)*'Weighting Factors'!$O$5)+'2022 Legal Max'!AY12 -> 4133750 | BD12: =SUM((AT12+AP12)*'Weighting Factors'!$O$5)+AY12 -> 4563879 | BE12: =IF('Weighting Factors'!F12>0,'Weighting Factors'!F12,'Preliminary SO66'!AV11) -> 4685764 | BF12: 4563879 | BG12: ='Weighting Factors'!E12 -> 0 | BH12: =Transportation!G12 -> 0 | BI12: =IF(ISNA(VLOOKUP($CX12,'Audit Values'!$A$2:$BT$511,2,FALSE)), 0, VLOOKUP($CX12,'Audit Values'!$A$2:$BT$511,72,FALSE)) -> 0 | BJ12: 0 | BK12: 4563879 | BL12: =SUM((U12+V12+AA12+AC12+AF12+AI12+AK12+AN12+AO12+AP12)*'Weighting Factors'!O$12)+(MAX(AQ12,'Weighting Factors'!B12)) -> 4749010 | BM12: ='LOB%'!F10 -> 0.3 | BN12: 1424703 | BO12: 1447857 | BP12: 1424703 | BQ12: 0.3 | BR12: =ROUND(IF(U12<=99.9,(U12*1.014331),0),1) -> 0 | BS12: =AND(U12>99.9,U12<=299.9) -> FALSE | BT12: =IF(BS12=TRUE,ROUND((U12-100)*9.655,3),0) -> 0 | BU12: 0 | BV12: =ROUND(BU12*U12,1) -> 0 | BW12: =AND(U12>299.9,U12<=1621.9) -> TRUE | BX12: =IF(BW12=TRUE,ROUND((U12-300)*1.2375,4),0) -> 268.1663 | BY12: 0.410563 | BZ12: =ROUND(BY12*U12,1) -> 212.1 | CA12: =ROUND(IF(U12>=1622,(U12*0.03504),0),1) -> 0 | CB12: 560 | CC12: =AL12/CB12 -> 0.293 | CD12: =IF(CC12<0.06,1,IF(CC12>=18.29,52,MATCH(CC12-0.001,'Weighting Factors'!$W$5:$W$156)+1)) -> 20 | CE12: =VLOOKUP(CD12, 'Weighting Factors'!$U$5:$X$56,4) -> 1190 | CF12: =('Weighting Factors'!$O$5/'Weighting Factors'!$O$14) -> 1.1299 | CG12: =AL12*CE12 -> 195160 | CH12: =CG12*'Weighting Factors'!$Q$7 -> 195160 | CI12: 220511 | CJ12: =AM12/'Weighting Factors'!$O$5 -> 46.9 | CK12: 0 | CL12: 0 | CM12: 0 | CN12: =SUM((AT12*'Weighting Factors'!$O$5)+'2022 Legal Max'!AY12)*CM12 -> 0 | CO12: 0 | CP12: =AE12/AD12 -> 0.3649 | CQ12: =IF(CP12>=50%,AE12*10.5%,0) -> 0 | CR12: =IF(AND(CP12>35%,CP12<50%),AE12*(CP12-35%)*0.7,0) -> 1.9 | CS12: =AU12+AR12 -> 969.8 | CT12: ='LOB Transfers'!G11 -> 131785 | CU12: ='LOB Transfers'!J11 -> 1282 | CV12: ='General Fund Transfers'!F11 -> 435305 | CW12: =SUM(R12+T12+AV12+AW12+AX12/6) -> 500.8 | CX12: D0109
A13: 110 | B13: Phillips | C13: Thunder Ridge Schools | D13: 196 | F13: 0 | G13: 196 | H13: 190.1 | J13: 0 | K13: 190.1 | L13: 178 | N13: 0 | O13: 178 | P13: =IF(ISNA(VLOOKUP($CX13,'Audit Values'!$A:$BW,2,FALSE)),'Preliminary SO66'!C12,VLOOKUP($CX13,'Audit Values'!$A:$BW,73,FALSE)) -> 176 | Q13: =IF(ISNA(VLOOKUP($CX13,'Audit Values'!$A:$BW,2,FALSE)),'Preliminary SO66'!F12,VLOOKUP($CX13,'Audit Values'!$A$2:$BW$936,4,FALSE)) -> 0 | R13: 176 | S13: =IF('Military Provision'!J13="YES", MAX('2022 Legal Max'!O13,'2022 Legal Max'!K13,AVERAGE('2022 Legal Max'!G13,'2022 Legal Max'!K13,'2022 Legal Max'!O13)), MAX(O13, K13)) -> 190.1 | T13: =IF(ISNA(VLOOKUP($CX13,'Audit Values'!$A:$BU,2,FALSE)),'Preliminary SO66'!AL12,VLOOKUP($CX13,'Audit Values'!$A:$BU,58,FALSE)) -> 2.5 | U13: 192.6 | V13: 148.1 | W13: =IF(ISNA(VLOOKUP($CX13,'Audit Values'!$A:$BW,2,FALSE)),'Preliminary SO66'!AM12,VLOOKUP($CX13,'Audit Values'!$A:$BW,62,FALSE)) -> 0 | X13: =(W13/6)*'Weighting Factors'!$O$7 -> 0 | Y13: =IF(ISNA(VLOOKUP($CX13,'Audit Values'!$A:$BW,2,FALSE)),'Preliminary SO66'!AN12,VLOOKUP($CX13,'Audit Values'!$A:$BW,61,FALSE)) -> 0 | Z13: =Y13*'Weighting Factors'!$O$8 -> 0 | AA13: 0 | AB13: =IF(ISNA(VLOOKUP($CX13,'Audit Values'!$A:$BW,2,FALSE)),'Preliminary SO66'!AO12,VLOOKUP($CX13,'Audit Values'!$A:$BW,60,FALSE)) -> 67.6 | AC13: =AB13/6*'Weighting Factors'!$O$6 -> 5.6 | AD13: =IF(ISNA(VLOOKUP($CX13,'Audit Values'!$A:$BU,2,FALSE)),'Preliminary SO66'!AS12,VLOOKUP($CX13,'Audit Values'!$A:$BU,63,FALSE)) -> 182 | AE13: =IF(ISNA(VLOOKUP($CX13,'Audit Values'!$A:$BU,2,FALSE)),'Preliminary SO66'!AP12,VLOOKUP($CX13,'Audit Values'!$A:$BU,64,FALSE)) -> 54 | AF13: =IF(A13=207, AE13,(AE13))*'Weighting Factors'!$O$9 -> 26.1 | AG13: 0 | AH13: =IF(ISNA(VLOOKUP($CX13,'Audit Values'!$A:$BW,2,FALSE)),'Preliminary SO66'!AG12,VLOOKUP($CX13,'Audit Values'!$A:$BW,70,FALSE)) -> 0 | AI13: 0 | AJ13: =IF(ISNA(VLOOKUP($CX13,'Audit Values'!$A:$BU,2,FALSE)),'Preliminary SO66'!AQ12,VLOOKUP($CX13,'Audit Values'!$A:$BU,65,FALSE)) -> 0 | AK13: =AJ13*'Weighting Factors'!$O$10 -> 0 | AL13: =IF(ISNA(VLOOKUP($CX13,'Audit Values'!$A:$BU,2,FALSE)),'Preliminary SO66'!AR12,VLOOKUP($CX13,'Audit Values'!$A:$BU,66,FALSE)) -> 130 | AM13: 180671 | AN13: =AM13/'Weighting Factors'!$O$5 -> 38.4 | AO13: =CK13/'Weighting Factors'!$O$5 -> 0 | AP13: =CO13/'Weighting Factors'!$O$5 -> 0 | AQ13: 236287 | AR13: =AQ13/'Weighting Factors'!$O$5 -> 50.2 | AS13: =IF(ISNA(VLOOKUP($CX13,'Audit Values'!$A:$BU,2,FALSE)),'Preliminary SO66'!X12,VLOOKUP($CX13,'Audit Values'!$A:$BU,47,FALSE)) -> 0 | AT13: 461 | AU13: 410.8 | AV13: =IF(ISNA(VLOOKUP($CX13,'Audit Values'!$A$2:$BU$917,2,FALSE)),'Preliminary SO66'!AA12,VLOOKUP($CX13,'Audit Values'!$A$2:$BU$917,41,FALSE)) -> 0 | AW13: =IF(ISNA(VLOOKUP($CX13,'Audit Values'!$A$2:$BU$917,2,FALSE)),'Preliminary SO66'!AB12,VLOOKUP($CX13,'Audit Values'!$A$2:$BU$917,42,FALSE)) -> 0 | AX13: 0 | AY13: =SUM(AV13*'Weighting Factors'!$R$10)+('2022 Legal Max'!AW13*'Weighting Factors'!$R$11)+('2022 Legal Max'!AX13*'Weighting Factors'!$R$12) -> 0 | AZ13: =IF(ISNA(VLOOKUP($CX13,'Audit Values'!$A$2:$BU$936,2,FALSE)),"",IF(AND('Weighting Factors'!F13>0,VLOOKUP($CX13,'Audit Values'!$A$2:$BU$936,51,FALSE)<'Weighting Factors'!F13),'Weighting Factors'!F13,VLOOKUP($CX13,'Audit Values'!$A$2:$BU$936,50,FALSE))) -> 14 | BA13: =IF(ISNA(VLOOKUP($CX13,'Audit Values'!$A:$BV,2,FALSE)),"",VLOOKUP($CX13,'Audit Values'!$A:$BV,51,FALSE)) -> A | BB13: =IF('Weighting Factors'!F13="","",IF('Weighting Factors'!H13="Pending","PX","R")) ->  | BC13: =SUM((U13+V13+AA13+AC13+AF13+AI13+AK13++AN13+AO13+AS13+AP13)*'Weighting Factors'!$O$5)+'2022 Legal Max'!AY13 -> 1933225 | BD13: =SUM((AT13+AP13)*'Weighting Factors'!$O$5)+AY13 -> 2169466 | BE13: =IF('Weighting Factors'!F13>0,'Weighting Factors'!F13,'Preliminary SO66'!AV12) -> 2252292 | BF13: 2169466 | BG13: ='Weighting Factors'!E13 -> 0 | BH13: =Transportation!G13 -> 0 | BI13: =IF(ISNA(VLOOKUP($CX13,'Audit Values'!$A$2:$BT$511,2,FALSE)), 0, VLOOKUP($CX13,'Audit Values'!$A$2:$BT$511,72,FALSE)) -> 0 | BJ13: 0 | BK13: 2169466 | BL13: =SUM((U13+V13+AA13+AC13+AF13+AI13+AK13+AN13+AO13+AP13)*'Weighting Factors'!O$12)+(MAX(AQ13,'Weighting Factors'!B13)) -> 2267156 | BM13: ='LOB%'!F11 -> 0.31 | BN13: 702818 | BO13: 717990 | BP13: 702818 | BQ13: 0.31 | BR13: =ROUND(IF(U13<=99.9,(U13*1.014331),0),1) -> 0 | BS13: =AND(U13>99.9,U13<=299.9) -> TRUE | BT13: =IF(BS13=TRUE,ROUND((U13-100)*9.655,3),0) -> 894.053 | BU13: 0.768874 | BV13: =ROUND(BU13*U13,1) -> 148.1 | BW13: =AND(U13>299.9,U13<=1621.9) -> FALSE | BX13: =IF(BW13=TRUE,ROUND((U13-300)*1.2375,4),0) -> 0 | BY13: 0 | BZ13: =ROUND(BY13*U13,1) -> 0 | CA13: =ROUND(IF(U13>=1622,(U13*0.03504),0),1) -> 0 | CB13: 491 | CC13: =AL13/CB13 -> 0.265 | CD13: =IF(CC13<0.06,1,IF(CC13>=18.29,52,MATCH(CC13-0.001,'Weighting Factors'!$W$5:$W$156)+1)) -> 18 | CE13: =VLOOKUP(CD13, 'Weighting Factors'!$U$5:$X$56,4) -> 1230 | CF13: =('Weighting Factors'!$O$5/'Weighting Factors'!$O$14) -> 1.1299 | CG13: =AL13*CE13 -> 159900 | CH13: =CG13*'Weighting Factors'!$Q$7 -> 159900 | CI13: 180671 | CJ13: =AM13/'Weighting Factors'!$O$5 -> 38.4 | CK13: 0 | CL13: 0 | CM13: 0 | CN13: =SUM((AT13*'Weighting Factors'!$O$5)+'2022 Legal Max'!AY13)*CM13 -> 0 | CO13: 0 | CP13: =AE13/AD13 -> 0.2967 | CQ13: =IF(CP13>=50%,AE13*10.5%,0) -> 0 | CR13: =IF(AND(CP13>35%,CP13<50%),AE13*(CP13-35%)*0.7,0) -> 0 | CS13: =AU13+AR13 -> 461 | CT13: ='LOB Transfers'!G12 -> 39990 | CU13: ='LOB Transfers'!J12 -> 0 | CV13: ='General Fund Transfers'!F12 -> 122827 | CW13: =SUM(R13+T13+AV13+AW13+AX13/6) -> 178.5 | CX13: D0110
A14: 111 | B14: Doniphan | C14: Doniphan West Schools | D14: 316 | F14: 0 | G14: 316 | H14: 318.7 | J14: 0 | K14: 318.7 | L14: 290.5 | N14: 0 | O14: 290.5 | P14: =IF(ISNA(VLOOKUP($CX14,'Audit Values'!$A:$BW,2,FALSE)),'Preliminary SO66'!C13,VLOOKUP($CX14,'Audit Values'!$A:$BW,73,FALSE)) -> 333.9 | Q14: =IF(ISNA(VLOOKUP($CX14,'Audit Values'!$A:$BW,2,FALSE)),'Preliminary SO66'!F13,VLOOKUP($CX14,'Audit Values'!$A$2:$BW$936,4,FALSE)) -> 0 | R14: 333.9 | S14: =IF('Military Provision'!J14="YES", MAX('2022 Legal Max'!O14,'2022 Legal Max'!K14,AVERAGE('2022 Legal Max'!G14,'2022 Legal Max'!K14,'2022 Legal Max'!O14)), MAX(O14, K14)) -> 318.7 | T14: =IF(ISNA(VLOOKUP($CX14,'Audit Values'!$A:$BU,2,FALSE)),'Preliminary SO66'!AL13,VLOOKUP($CX14,'Audit Values'!$A:$BU,58,FALSE)) -> 3.5 | U14: 322.2 | V14: 153.6 | W14: =IF(ISNA(VLOOKUP($CX14,'Audit Values'!$A:$BW,2,FALSE)),'Preliminary SO66'!AM13,VLOOKUP($CX14,'Audit Values'!$A:$BW,62,FALSE)) -> 0 | X14: =(W14/6)*'Weighting Factors'!$O$7 -> 0 | Y14: =IF(ISNA(VLOOKUP($CX14,'Audit Values'!$A:$BW,2,FALSE)),'Preliminary SO66'!AN13,VLOOKUP($CX14,'Audit Values'!$A:$BW,61,FALSE)) -> 1 | Z14: =Y14*'Weighting Factors'!$O$8 -> 0.2 | AA14: 0.2 | AB14: =IF(ISNA(VLOOKUP($CX14,'Audit Values'!$A:$BW,2,FALSE)),'Preliminary SO66'!AO13,VLOOKUP($CX14,'Audit Values'!$A:$BW,60,FALSE)) -> 59.1 | AC14: =AB14/6*'Weighting Factors'!$O$6 -> 4.9 | AD14: =IF(ISNA(VLOOKUP($CX14,'Audit Values'!$A:$BU,2,FALSE)),'Preliminary SO66'!AS13,VLOOKUP($CX14,'Audit Values'!$A:$BU,63,FALSE)) -> 343 | AE14: =IF(ISNA(VLOOKUP($CX14,'Audit Values'!$A:$BU,2,FALSE)),'Preliminary SO66'!AP13,VLOOKUP($CX14,'Audit Values'!$A:$BU,64,FALSE)) -> 78 | AF14: =IF(A14=207, AE14,(AE14))*'Weighting Factors'!$O$9 -> 37.8 | AG14: 0 | AH14: =IF(ISNA(VLOOKUP($CX14,'Audit Values'!$A:$BW,2,FALSE)),'Preliminary SO66'!AG13,VLOOKUP($CX14,'Audit Values'!$A:$BW,70,FALSE)) -> 0 | AI14: 0 | AJ14: =IF(ISNA(VLOOKUP($CX14,'Audit Values'!$A:$BU,2,FALSE)),'Preliminary SO66'!AQ13,VLOOKUP($CX14,'Audit Values'!$A:$BU,65,FALSE)) -> 0 | AK14: =AJ14*'Weighting Factors'!$O$10 -> 0 | AL14: =IF(ISNA(VLOOKUP($CX14,'Audit Values'!$A:$BU,2,FALSE)),'Preliminary SO66'!AR13,VLOOKUP($CX14,'Audit Values'!$A:$BU,66,FALSE)) -> 182 | AM14: 203585 | AN14: =AM14/'Weighting Factors'!$O$5 -> 43.3 | AO14: =CK14/'Weighting Factors'!$O$5 -> 0 | AP14: =CO14/'Weighting Factors'!$O$5 -> 0 | AQ14: 414816 | AR14: =AQ14/'Weighting Factors'!$O$5 -> 88.1 | AS14: =IF(ISNA(VLOOKUP($CX14,'Audit Values'!$A:$BU,2,FALSE)),'Preliminary SO66'!X13,VLOOKUP($CX14,'Audit Values'!$A:$BU,47,FALSE)) -> 0 | AT14: 650.1 | AU14: 562 | AV14: =IF(ISNA(VLOOKUP($CX14,'Audit Values'!$A$2:$BU$917,2,FALSE)),'Preliminary SO66'!AA13,VLOOKUP($CX14,'Audit Values'!$A$2:$BU$917,41,FALSE)) -> 0 | AW14: =IF(ISNA(VLOOKUP($CX14,'Audit Values'!$A$2:$BU$917,2,FALSE)),'Preliminary SO66'!AB13,VLOOKUP($CX14,'Audit Values'!$A$2:$BU$917,42,FALSE)) -> 0 | AX14: 0 | AY14: =SUM(AV14*'Weighting Factors'!$R$10)+('2022 Legal Max'!AW14*'Weighting Factors'!$R$11)+('2022 Legal Max'!AX14*'Weighting Factors'!$R$12) -> 0 | AZ14: =IF(ISNA(VLOOKUP($CX14,'Audit Values'!$A$2:$BU$936,2,FALSE)),"",IF(AND('Weighting Factors'!F14>0,VLOOKUP($CX14,'Audit Values'!$A$2:$BU$936,51,FALSE)<'Weighting Factors'!F14),'Weighting Factors'!F14,VLOOKUP($CX14,'Audit Values'!$A$2:$BU$936,50,FALSE))) -> 16 | BA14: =IF(ISNA(VLOOKUP($CX14,'Audit Values'!$A:$BV,2,FALSE)),"",VLOOKUP($CX14,'Audit Values'!$A:$BV,51,FALSE)) -> A | BB14: =IF('Weighting Factors'!F14="","",IF('Weighting Factors'!H14="Pending","PX","R")) ->  | BC14: =SUM((U14+V14+AA14+AC14+AF14+AI14+AK14++AN14+AO14+AS14+AP14)*'Weighting Factors'!$O$5)+'2022 Legal Max'!AY14 -> 2644772 | BD14: =SUM((AT14+AP14)*'Weighting Factors'!$O$5)+AY14 -> 3059371 | BE14: =IF('Weighting Factors'!F14>0,'Weighting Factors'!F14,'Preliminary SO66'!AV13) -> 3321495 | BF14: 3059371 | BG14: ='Weighting Factors'!E14 -> 0 | BH14: =Transportation!G14 -> 0 | BI14: =IF(ISNA(VLOOKUP($CX14,'Audit Values'!$A$2:$BT$511,2,FALSE)), 0, VLOOKUP($CX14,'Audit Values'!$A$2:$BT$511,72,FALSE)) -> 0 | BJ14: 0 | BK14: 3059371 | BL14: =SUM((U14+V14+AA14+AC14+AF14+AI14+AK14+AN14+AO14+AP14)*'Weighting Factors'!O$12)+(MAX(AQ14,'Weighting Factors'!B14)) -> 3199993 | BM14: ='LOB%'!F12 -> 0.31 | BN14: 991998 | BO14: 1070776 | BP14: 991998 | BQ14: 0.31 | BR14: =ROUND(IF(U14<=99.9,(U14*1.014331),0),1) -> 0 | BS14: =AND(U14>99.9,U14<=299.9) -> FALSE | BT14: =IF(BS14=TRUE,ROUND((U14-100)*9.655,3),0) -> 0 | BU14: 0 | BV14: =ROUND(BU14*U14,1) -> 0 | BW14: =AND(U14>299.9,U14<=1621.9) -> TRUE | BX14: =IF(BW14=TRUE,ROUND((U14-300)*1.2375,4),0) -> 27.4725 | BY14: 0.476644 | BZ14: =ROUND(BY14*U14,1) -> 153.6 | CA14: =ROUND(IF(U14>=1622,(U14*0.03504),0),1) -> 0 | CB14: 229 | CC14: =AL14/CB14 -> 0.795 | CD14: =IF(CC14<0.06,1,IF(CC14>=18.29,52,MATCH(CC14-0.001,'Weighting Factors'!$W$5:$W$156)+1)) -> 30 | CE14: =VLOOKUP(CD14, 'Weighting Factors'!$U$5:$X$56,4) -> 990 | CF14: =('Weighting Factors'!$O$5/'Weighting Factors'!$O$14) -> 1.1299 | CG14: =AL14*CE14 -> 180180 | CH14: =CG14*'Weighting Factors'!$Q$7 -> 180180 | CI14: 203585 | CJ14: =AM14/'Weighting Factors'!$O$5 -> 43.3 | CK14: 0 | CL14: 0 | CM14: 0 | CN14: =SUM((AT14*'Weighting Factors'!$O$5)+'2022 Legal Max'!AY14)*CM14 -> 0 | CO14: 0 | CP14: =AE14/AD14 -> 0.2274 | CQ14: =IF(CP14>=50%,AE14*10.5%,0) -> 0 | CR14: =IF(AND(CP14>35%,CP14<50%),AE14*(CP14-35%)*0.7,0) -> 0 | CS14: =AU14+AR14 -> 650.1 | CT14: ='LOB Transfers'!G13 -> 58032 | CU14: ='LOB Transfers'!J13 -> 298 | CV14: ='General Fund Transfers'!F13 -> 177887 | CW14: =SUM(R14+T14+AV14+AW14+AX14/6) -> 337.4 | CX14: D0111
A15: 112 | B15: Ellsworth | C15: Central Plains | D15: 456 | F15: 0 | G15: 456 | H15: 428 | J15: 0 | K15: 428 | L15: 433.5 | N15: 0 | O15: 433.5 | P15: =IF(ISNA(VLOOKUP($CX15,'Audit Values'!$A:$BW,2,FALSE)),'Preliminary SO66'!C14,VLOOKUP($CX15,'Audit Values'!$A:$BW,73,FALSE)) -> 444.7 | Q15: =IF(ISNA(VLOOKUP($CX15,'Audit Values'!$A:$BW,2,FALSE)),'Preliminary SO66'!F14,VLOOKUP($CX15,'Audit Values'!$A$2:$BW$936,4,FALSE)) -> 0 | R15: 444.7 | S15: =IF('Military Provision'!J15="YES", MAX('2022 Legal Max'!O15,'2022 Legal Max'!K15,AVERAGE('2022 Legal Max'!G15,'2022 Legal Max'!K15,'2022 Legal Max'!O15)), MAX(O15, K15)) -> 433.5 | T15: =IF(ISNA(VLOOKUP($CX15,'Audit Values'!$A:$BU,2,FALSE)),'Preliminary SO66'!AL14,VLOOKUP($CX15,'Audit Values'!$A:$BU,58,FALSE)) -> 4.5 | U15: 438 | V15: 191.5 | W15: =IF(ISNA(VLOOKUP($CX15,'Audit Values'!$A:$BW,2,FALSE)),'Preliminary SO66'!AM14,VLOOKUP($CX15,'Audit Values'!$A:$BW,62,FALSE)) -> 0 | X15: =(W15/6)*'Weighting Factors'!$O$7 -> 0 | Y15: =IF(ISNA(VLOOKUP($CX15,'Audit Values'!$A:$BW,2,FALSE)),'Preliminary SO66'!AN14,VLOOKUP($CX15,'Audit Values'!$A:$BW,61,FALSE)) -> 0 | Z15: =Y15*'Weighting Factors'!$O$8 -> 0 | AA15: 0 | AB15: =IF(ISNA(VLOOKUP($CX15,'Audit Values'!$A:$BW,2,FALSE)),'Preliminary SO66'!AO14,VLOOKUP($CX15,'Audit Values'!$A:$BW,60,FALSE)) -> 127.8 | AC15: =AB15/6*'Weighting Factors'!$O$6 -> 10.7 | AD15: =IF(ISNA(VLOOKUP($CX15,'Audit Values'!$A:$BU,2,FALSE)),'Preliminary SO66'!AS14,VLOOKUP($CX15,'Audit Values'!$A:$BU,63,FALSE)) -> 460 | AE15: =IF(ISNA(VLOOKUP($CX15,'Audit Values'!$A:$BU,2,FALSE)),'Preliminary SO66'!AP14,VLOOKUP($CX15,'Audit Values'!$A:$BU,64,FALSE)) -> 158 | AF15: =IF(A15=207, AE15,(AE15))*'Weighting Factors'!$O$9 -> 76.5 | AG15: 0 | AH15: =IF(ISNA(VLOOKUP($CX15,'Audit Values'!$A:$BW,2,FALSE)),'Preliminary SO66'!AG14,VLOOKUP($CX15,'Audit Values'!$A:$BW,70,FALSE)) -> 0.7 | AI15: 0.7 | AJ15: =IF(ISNA(VLOOKUP($CX15,'Audit Values'!$A:$BU,2,FALSE)),'Preliminary SO66'!AQ14,VLOOKUP($CX15,'Audit Values'!$A:$BU,65,FALSE)) -> 0 | AK15: =AJ15*'Weighting Factors'!$O$10 -> 0 | AL15: =IF(ISNA(VLOOKUP($CX15,'Audit Values'!$A:$BU,2,FALSE)),'Preliminary SO66'!AR14,VLOOKUP($CX15,'Audit Values'!$A:$BU,66,FALSE)) -> 232 | AM15: 296215 | AN15: =AM15/'Weighting Factors'!$O$5 -> 62.9 | AO15: =CK15/'Weighting Factors'!$O$5 -> 0 | AP15: =CO15/'Weighting Factors'!$O$5 -> 0 | AQ15: 543884 | AR15: =AQ15/'Weighting Factors'!$O$5 -> 115.6 | AS15: =IF(ISNA(VLOOKUP($CX15,'Audit Values'!$A:$BU,2,FALSE)),'Preliminary SO66'!X14,VLOOKUP($CX15,'Audit Values'!$A:$BU,47,FALSE)) -> 0 | AT15: 895.9 | AU15: 780.3 | AV15: =IF(ISNA(VLOOKUP($CX15,'Audit Values'!$A$2:$BU$917,2,FALSE)),'Preliminary SO66'!AA14,VLOOKUP($CX15,'Audit Values'!$A$2:$BU$917,41,FALSE)) -> 9 | AW15: =IF(ISNA(VLOOKUP($CX15,'Audit Values'!$A$2:$BU$917,2,FALSE)),'Preliminary SO66'!AB14,VLOOKUP($CX15,'Audit Values'!$A$2:$BU$917,42,FALSE)) -> 0 | AX15: 2800 | AY15: =SUM(AV15*'Weighting Factors'!$R$10)+('2022 Legal Max'!AW15*'Weighting Factors'!$R$11)+('2022 Legal Max'!AX15*'Weighting Factors'!$R$12) -> 2030200 | AZ15: 22 | BA15: =IF(ISNA(VLOOKUP($CX15,'Audit Values'!$A:$BV,2,FALSE)),"",VLOOKUP($CX15,'Audit Values'!$A:$BV,51,FALSE)) -> A | BB15: R | BC15: =SUM((U15+V15+AA15+AC15+AF15+AI15+AK15++AN15+AO15+AS15+AP15)*'Weighting Factors'!$O$5)+'2022 Legal Max'!AY15 -> 5702292 | BD15: =SUM((AT15+AP15)*'Weighting Factors'!$O$5)+AY15 -> 6246305 | BE15: =IF('Weighting Factors'!F15>0,'Weighting Factors'!F15,'Preliminary SO66'!AV14) -> 6279647 | BF15: 6246305 | BG15: ='Weighting Factors'!E15 -> 0 | BH15: =Transportation!G15 -> 0 | BI15: =IF(ISNA(VLOOKUP($CX15,'Audit Values'!$A$2:$BT$511,2,FALSE)), 0, VLOOKUP($CX15,'Audit Values'!$A$2:$BT$511,72,FALSE)) -> -189303 | BJ15: -189303 | BK15: 6057002 | BL15: =SUM((U15+V15+AA15+AC15+AF15+AI15+AK15+AN15+AO15+AP15)*'Weighting Factors'!O$12)+(MAX(AQ15,'Weighting Factors'!B15)) -> 4358068 | BM15: ='LOB%'!F13 -> 0.33 | BN15: 1438162 | BO15: 1440336 | BP15: 1438162 | BQ15: 0.33 | BR15: =ROUND(IF(U15<=99.9,(U15*1.014331),0),1) -> 0 | BS15: =AND(U15>99.9,U15<=299.9) -> FALSE | BT15: =IF(BS15=TRUE,ROUND((U15-100)*9.655,3),0) -> 0 | BU15: 0 | BV15: =ROUND(BU15*U15,1) -> 0 | BW15: =AND(U15>299.9,U15<=1621.9) -> TRUE | BX15: =IF(BW15=TRUE,ROUND((U15-300)*1.2375,4),0) -> 170.775 | BY15: 0.437301 | BZ15: =ROUND(BY15*U15,1) -> 191.5 | CA15: =ROUND(IF(U15>=1622,(U15*0.03504),0),1) -> 0 | CB15: 582.8 | CC15: =AL15/CB15 -> 0.398 | CD15: =IF(CC15<0.06,1,IF(CC15>=18.29,52,MATCH(CC15-0.001,'Weighting Factors'!$W$5:$W$156)+1)) -> 23 | CE15: =VLOOKUP(CD15, 'Weighting Factors'!$U$5:$X$56,4) -> 1130 | CF15: =('Weighting Factors'!$O$5/'Weighting Factors'!$O$14) -> 1.1299 | CG15: =AL15*CE15 -> 262160 | CH15: =CG15*'Weighting Factors'!$Q$7 -> 262160 | CI15: 296215 | CJ15: =AM15/'Weighting Factors'!$O$5 -> 62.9 | CK15: 0 | CL15: 0 | CM15: 0 | CN15: =SUM((AT15*'Weighting Factors'!$O$5)+'2022 Legal Max'!AY15)*CM15 -> 0 | CO15: 0 | CP15: =AE15/AD15 -> 0.3435 | CQ15: =IF(CP15>=50%,AE15*10.5%,0) -> 0 | CR15: =IF(AND(CP15>35%,CP15<50%),AE15*(CP15-35%)*0.7,0) -> 0 | CS15: =AU15+AR15 -> 895.9 | CT15: ='LOB Transfers'!G14 -> 123394 | CU15: ='LOB Transfers'!J14 -> 0 | CV15: ='General Fund Transfers'!F14 -> 363303 | CW15: =SUM(R15+T15+AV15+AW15+AX15/6) -> 924.9 | CX15: D0112
A16: 113 | B16: Nemaha | C16: Prairie Hills | D16: 1072.3 | F16: 0 | G16: 1072.3 | H16: 1053.5 | J16: 0 | K16: 1053.5 | L16: 1044.2 | N16: 0 | O16: 1044.2 | P16: =IF(ISNA(VLOOKUP($CX16,'Audit Values'!$A:$BW,2,FALSE)),'Preliminary SO66'!C15,VLOOKUP($CX16,'Audit Values'!$A:$BW,73,FALSE)) -> 1027.2 | Q16: =IF(ISNA(VLOOKUP($CX16,'Audit Values'!$A:$BW,2,FALSE)),'Preliminary SO66'!F15,VLOOKUP($CX16,'Audit Values'!$A$2:$BW$936,4,FALSE)) -> 0 | R16: 1027.2 | S16: =IF('Military Provision'!J16="YES", MAX('2022 Legal Max'!O16,'2022 Legal Max'!K16,AVERAGE('2022 Legal Max'!G16,'2022 Legal Max'!K16,'2022 Legal Max'!O16)), MAX(O16, K16)) -> 1053.5 | T16: =IF(ISNA(VLOOKUP($CX16,'Audit Values'!$A:$BU,2,FALSE)),'Preliminary SO66'!AL15,VLOOKUP($CX16,'Audit Values'!$A:$BU,58,FALSE)) -> 14.5 | U16: 1068 | V16: 238.4 | W16: =IF(ISNA(VLOOKUP($CX16,'Audit Values'!$A:$BW,2,FALSE)),'Preliminary SO66'!AM15,VLOOKUP($CX16,'Audit Values'!$A:$BW,62,FALSE)) -> 0 | X16: =(W16/6)*'Weighting Factors'!$O$7 -> 0 | Y16: =IF(ISNA(VLOOKUP($CX16,'Audit Values'!$A:$BW,2,FALSE)),'Preliminary SO66'!AN15,VLOOKUP($CX16,'Audit Values'!$A:$BW,61,FALSE)) -> 0 | Z16: =Y16*'Weighting Factors'!$O$8 -> 0 | AA16: 0 | AB16: =IF(ISNA(VLOOKUP($CX16,'Audit Values'!$A:$BW,2,FALSE)),'Preliminary SO66'!AO15,VLOOKUP($CX16,'Audit Values'!$A:$BW,60,FALSE)) -> 300.5 | AC16: =AB16/6*'Weighting Factors'!$O$6 -> 25 | AD16: =IF(ISNA(VLOOKUP($CX16,'Audit Values'!$A:$BU,2,FALSE)),'Preliminary SO66'!AS15,VLOOKUP($CX16,'Audit Values'!$A:$BU,63,FALSE)) -> 1064 | AE16: =IF(ISNA(VLOOKUP($CX16,'Audit Values'!$A:$BU,2,FALSE)),'Preliminary SO66'!AP15,VLOOKUP($CX16,'Audit Values'!$A:$BU,64,FALSE)) -> 256 | AF16: =IF(A16=207, AE16,(AE16))*'Weighting Factors'!$O$9 -> 123.9 | AG16: 0 | AH16: =IF(ISNA(VLOOKUP($CX16,'Audit Values'!$A:$BW,2,FALSE)),'Preliminary SO66'!AG15,VLOOKUP($CX16,'Audit Values'!$A:$BW,70,FALSE)) -> 4.8 | AI16: 4.8 | AJ16: =IF(ISNA(VLOOKUP($CX16,'Audit Values'!$A:$BU,2,FALSE)),'Preliminary SO66'!AQ15,VLOOKUP($CX16,'Audit Values'!$A:$BU,65,FALSE)) -> 0 | AK16: =AJ16*'Weighting Factors'!$O$10 -> 0 | AL16: =IF(ISNA(VLOOKUP($CX16,'Audit Values'!$A:$BU,2,FALSE)),'Preliminary SO66'!AR15,VLOOKUP($CX16,'Audit Values'!$A:$BU,66,FALSE)) -> 377.5 | AM16: 439333 | AN16: =AM16/'Weighting Factors'!$O$5 -> 93.4 | AO16: =CK16/'Weighting Factors'!$O$5 -> 0 | AP16: =CO16/'Weighting Factors'!$O$5 -> 0 | AQ16: 779833 | AR16: =AQ16/'Weighting Factors'!$O$5 -> 165.7 | AS16: =IF(ISNA(VLOOKUP($CX16,'Audit Values'!$A:$BU,2,FALSE)),'Preliminary SO66'!X15,VLOOKUP($CX16,'Audit Values'!$A:$BU,47,FALSE)) -> 0 | AT16: 1719.2 | AU16: 1553.5 | AV16: =IF(ISNA(VLOOKUP($CX16,'Audit Values'!$A$2:$BU$917,2,FALSE)),'Preliminary SO66'!AA15,VLOOKUP($CX16,'Audit Values'!$A$2:$BU$917,41,FALSE)) -> 1 | AW16: =IF(ISNA(VLOOKUP($CX16,'Audit Values'!$A$2:$BU$917,2,FALSE)),'Preliminary SO66'!AB15,VLOOKUP($CX16,'Audit Values'!$A$2:$BU$917,42,FALSE)) -> 0 | AX16: 0 | AY16: =SUM(AV16*'Weighting Factors'!$R$10)+('2022 Legal Max'!AW16*'Weighting Factors'!$R$11)+('2022 Legal Max'!AX16*'Weighting Factors'!$R$12) -> 5000 | AZ16: =IF(ISNA(VLOOKUP($CX16,'Audit Values'!$A$2:$BU$936,2,FALSE)),"",IF(AND('Weighting Factors'!F16>0,VLOOKUP($CX16,'Audit Values'!$A$2:$BU$936,51,FALSE)<'Weighting Factors'!F16),'Weighting Factors'!F16,VLOOKUP($CX16,'Audit Values'!$A$2:$BU$936,50,FALSE))) -> 5 | BA16: =IF(ISNA(VLOOKUP($CX16,'Audit Values'!$A:$BV,2,FALSE)),"",VLOOKUP($CX16,'Audit Values'!$A:$BV,51,FALSE)) -> A | BB16: =IF('Weighting Factors'!F16="","",IF('Weighting Factors'!H16="Pending","PX","R")) ->  | BC16: =SUM((U16+V16+AA16+AC16+AF16+AI16+AK16++AN16+AO16+AS16+AP16)*'Weighting Factors'!$O$5)+'2022 Legal Max'!AY16 -> 7315771 | BD16: =SUM((AT16+AP16)*'Weighting Factors'!$O$5)+AY16 -> 8095555 | BE16: =IF('Weighting Factors'!F16>0,'Weighting Factors'!F16,'Preliminary SO66'!AV15) -> 8224734 | BF16: 8095555 | BG16: ='Weighting Factors'!E16 -> 0 | BH16: =Transportation!G16 -> -4146 | BI16: =IF(ISNA(VLOOKUP($CX16,'Audit Values'!$A$2:$BT$511,2,FALSE)), 0, VLOOKUP($CX16,'Audit Values'!$A$2:$BT$511,72,FALSE)) -> 0 | BJ16: -4146 | BK16: 8091409 | BL16: =SUM((U16+V16+AA16+AC16+AF16+AI16+AK16+AN16+AO16+AP16)*'Weighting Factors'!O$12)+(MAX(AQ16,'Weighting Factors'!B16)) -> 8411564 | BM16: ='LOB%'!F14 -> 0.33 | BN16: 2775816 | BO16: 2790259 | BP16: 2775816 | BQ16: 0.33 | BR16: =ROUND(IF(U16<=99.9,(U16*1.014331),0),1) -> 0 | BS16: =AND(U16>99.9,U16<=299.9) -> FALSE | BT16: =IF(BS16=TRUE,ROUND((U16-100)*9.655,3),0) -> 0 | BU16: 0 | BV16: =ROUND(BU16*U16,1) -> 0 | BW16: =AND(U16>299.9,U16<=1621.9) -> TRUE | BX16: =IF(BW16=TRUE,ROUND((U16-300)*1.2375,4),0) -> 950.4 | BY16: 0.223259 | BZ16: =ROUND(BY16*U16,1) -> 238.4 | CA16: =ROUND(IF(U16>=1622,(U16*0.03504),0),1) -> 0 | CB16: 543 | CC16: =AL16/CB16 -> 0.695 | CD16: =IF(CC16<0.06,1,IF(CC16>=18.29,52,MATCH(CC16-0.001,'Weighting Factors'!$W$5:$W$156)+1)) -> 28 | CE16: =VLOOKUP(CD16, 'Weighting Factors'!$U$5:$X$56,4) -> 1030 | CF16: =('Weighting Factors'!$O$5/'Weighting Factors'!$O$14) -> 1.1299 | CG16: =AL16*CE16 -> 388825 | CH16: =CG16*'Weighting Factors'!$Q$7 -> 388825 | CI16: 439333 | CJ16: =AM16/'Weighting Factors'!$O$5 -> 93.4 | CK16: 0 | CL16: 0 | CM16: 0 | CN16: =SUM((AT16*'Weighting Factors'!$O$5)+'2022 Legal Max'!AY16)*CM16 -> 0 | CO16: 0 | CP16: =AE16/AD16 -> 0.2406 | CQ16: =IF(CP16>=50%,AE16*10.5%,0) -> 0 | CR16: =IF(AND(CP16>35%,CP16<50%),AE16*(CP16-35%)*0.7,0) -> 0 | CS16: =AU16+AR16 -> 1719.2 | CT16: ='LOB Transfers'!G15 -> 201802 | CU16: ='LOB Transfers'!J15 -> 0 | CV16: ='General Fund Transfers'!F15 -> 605662 | CW16: =SUM(R16+T16+AV16+AW16+AX16/6) -> 1042.7 | CX16: D0113
A17: 114 | B17: Doniphan | C17: Riverside | D17: 580 | F17: 0 | G17: 580 | H17: 563.4 | J17: 0 | K17: 563.4 | L17: 577.3 | N17: 0 | O17: 577.3 | P17: =IF(ISNA(VLOOKUP($CX17,'Audit Values'!$A:$BW,2,FALSE)),'Preliminary SO66'!C16,VLOOKUP($CX17,'Audit Values'!$A:$BW,73,FALSE)) -> 580.5 | Q17: =IF(ISNA(VLOOKUP($CX17,'Audit Values'!$A:$BW,2,FALSE)),'Preliminary SO66'!F16,VLOOKUP($CX17,'Audit Values'!$A$2:$BW$936,4,FALSE)) -> 0 | R17: 580.5 | S17: =IF('Military Provision'!J17="YES", MAX('2022 Legal Max'!O17,'2022 Legal Max'!K17,AVERAGE('2022 Legal Max'!G17,'2022 Legal Max'!K17,'2022 Legal Max'!O17)), MAX(O17, K17)) -> 577.3 | T17: =IF(ISNA(VLOOKUP($CX17,'Audit Values'!$A:$BU,2,FALSE)),'Preliminary SO66'!AL16,VLOOKUP($CX17,'Audit Values'!$A:$BU,58,FALSE)) -> 4.5 | U17: 581.8 | V17: 226 | W17: =IF(ISNA(VLOOKUP($CX17,'Audit Values'!$A:$BW,2,FALSE)),'Preliminary SO66'!AM16,VLOOKUP($CX17,'Audit Values'!$A:$BW,62,FALSE)) -> 0 | X17: =(W17/6)*'Weighting Factors'!$O$7 -> 0 | Y17: =IF(ISNA(VLOOKUP($CX17,'Audit Values'!$A:$BW,2,FALSE)),'Preliminary SO66'!AN16,VLOOKUP($CX17,'Audit Values'!$A:$BW,61,FALSE)) -> 0 | Z17: =Y17*'Weighting Factors'!$O$8 -> 0 | AA17: 0 | AB17: =IF(ISNA(VLOOKUP($CX17,'Audit Values'!$A:$BW,2,FALSE)),'Preliminary SO66'!AO16,VLOOKUP($CX17,'Audit Values'!$A:$BW,60,FALSE)) -> 146.7 | AC17: =AB17/6*'Weighting Factors'!$O$6 -> 12.2 | AD17: =IF(ISNA(VLOOKUP($CX17,'Audit Values'!$A:$BU,2,FALSE)),'Preliminary SO66'!AS16,VLOOKUP($CX17,'Audit Values'!$A:$BU,63,FALSE)) -> 609 | AE17: =IF(ISNA(VLOOKUP($CX17,'Audit Values'!$A:$BU,2,FALSE)),'Preliminary SO66'!AP16,VLOOKUP($CX17,'Audit Values'!$A:$BU,64,FALSE)) -> 173 | AF17: =IF(A17=207, AE17,(AE17))*'Weighting Factors'!$O$9 -> 83.7 | AG17: 0 | AH17: =IF(ISNA(VLOOKUP($CX17,'Audit Values'!$A:$BW,2,FALSE)),'Preliminary SO66'!AG16,VLOOKUP($CX17,'Audit Values'!$A:$BW,70,FALSE)) -> 0 | AI17: 0 | AJ17: =IF(ISNA(VLOOKUP($CX17,'Audit Values'!$A:$BU,2,FALSE)),'Preliminary SO66'!AQ16,VLOOKUP($CX17,'Audit Values'!$A:$BU,65,FALSE)) -> 0 | AK17: =AJ17*'Weighting Factors'!$O$10 -> 0 | AL17: =IF(ISNA(VLOOKUP($CX17,'Audit Values'!$A:$BU,2,FALSE)),'Preliminary SO66'!AR16,VLOOKUP($CX17,'Audit Values'!$A:$BU,66,FALSE)) -> 291 | AM17: 253177 | AN17: =AM17/'Weighting Factors'!$O$5 -> 53.8 | AO17: =CK17/'Weighting Factors'!$O$5 -> 0 | AP17: =CO17/'Weighting Factors'!$O$5 -> 0 | AQ17: 719784 | AR17: =AQ17/'Weighting Factors'!$O$5 -> 153 | AS17: =IF(ISNA(VLOOKUP($CX17,'Audit Values'!$A:$BU,2,FALSE)),'Preliminary SO66'!X16,VLOOKUP($CX17,'Audit Values'!$A:$BU,47,FALSE)) -> 0 | AT17: 1110.5 | AU17: 957.5 | AV17: =IF(ISNA(VLOOKUP($CX17,'Audit Values'!$A$2:$BU$917,2,FALSE)),'Preliminary SO66'!AA16,VLOOKUP($CX17,'Audit Values'!$A$2:$BU$917,41,FALSE)) -> 0 | AW17: =IF(ISNA(VLOOKUP($CX17,'Audit Values'!$A$2:$BU$917,2,FALSE)),'Preliminary SO66'!AB16,VLOOKUP($CX17,'Audit Values'!$A$2:$BU$917,42,FALSE)) -> 0 | AX17: 7 | AY17: =SUM(AV17*'Weighting Factors'!$R$10)+('2022 Legal Max'!AW17*'Weighting Factors'!$R$11)+('2022 Legal Max'!AX17*'Weighting Factors'!$R$12) -> 4963 | AZ17: =IF(ISNA(VLOOKUP($CX17,'Audit Values'!$A$2:$BU$936,2,FALSE)),"",IF(AND('Weighting Factors'!F17>0,VLOOKUP($CX17,'Audit Values'!$A$2:$BU$936,51,FALSE)<'Weighting Factors'!F17),'Weighting Factors'!F17,VLOOKUP($CX17,'Audit Values'!$A$2:$BU$936,50,FALSE))) -> 16 | BA17: =IF(ISNA(VLOOKUP($CX17,'Audit Values'!$A:$BV,2,FALSE)),"",VLOOKUP($CX17,'Audit Values'!$A:$BV,51,FALSE)) -> A | BB17: =IF('Weighting Factors'!F17="","",IF('Weighting Factors'!H17="Pending","PX","R")) ->  | BC17: =SUM((U17+V17+AA17+AC17+AF17+AI17+AK17++AN17+AO17+AS17+AP17)*'Weighting Factors'!$O$5)+'2022 Legal Max'!AY17 -> 4510958 | BD17: =SUM((AT17+AP17)*'Weighting Factors'!$O$5)+AY17 -> 5230976 | BE17: =IF('Weighting Factors'!F17>0,'Weighting Factors'!F17,'Preliminary SO66'!AV16) -> 5818805 | BF17: 5230976 | BG17: ='Weighting Factors'!E17 -> 0 | BH17: =Transportation!G17 -> -48393 | BI17: =IF(ISNA(VLOOKUP($CX17,'Audit Values'!$A$2:$BT$511,2,FALSE)), 0, VLOOKUP($CX17,'Audit Values'!$A$2:$BT$511,72,FALSE)) -> -1418 | BJ17: -49811 | BK17: 5181165 | BL17: =SUM((U17+V17+AA17+AC17+AF17+AI17+AK17+AN17+AO17+AP17)*'Weighting Factors'!O$12)+(MAX(AQ17,'Weighting Factors'!B17)) -> 5225779 | BM17: ='LOB%'!F15 -> 0.31 | BN17: 1619991 | BO17: 1788179 | BP17: 1619991 | BQ17: 0.31 | BR17: =ROUND(IF(U17<=99.9,(U17*1.014331),0),1) -> 0 | BS17: =AND(U17>99.9,U17<=299.9) -> FALSE | BT17: =IF(BS17=TRUE,ROUND((U17-100)*9.655,3),0) -> 0 | BU17: 0 | BV17: =ROUND(BU17*U17,1) -> 0 | BW17: =AND(U17>299.9,U17<=1621.9) -> TRUE | BX17: =IF(BW17=TRUE,ROUND((U17-300)*1.2375,4),0) -> 348.7275 | BY17: 0.388445 | BZ17: =ROUND(BY17*U17,1) -> 226 | CA17: =ROUND(IF(U17>=1622,(U17*0.03504),0),1) -> 0 | CB17: 88 | CC17: =AL17/CB17 -> 3.307 | CD17: =IF(CC17<0.06,1,IF(CC17>=18.29,52,MATCH(CC17-0.001,'Weighting Factors'!$W$5:$W$156)+1)) -> 41 | CE17: =VLOOKUP(CD17, 'Weighting Factors'!$U$5:$X$56,4) -> 770 | CF17: =('Weighting Factors'!$O$5/'Weighting Factors'!$O$14) -> 1.1299 | CG17: =AL17*CE17 -> 224070 | CH17: =CG17*'Weighting Factors'!$Q$7 -> 224070 | CI17: 253177 | CJ17: =AM17/'Weighting Factors'!$O$5 -> 53.8 | CK17: 0 | CL17: 0 | CM17: 0 | CN17: =SUM((AT17*'Weighting Factors'!$O$5)+'2022 Legal Max'!AY17)*CM17 -> 0 | CO17: 0 | CP17: =AE17/AD17 -> 0.2841 | CQ17: =IF(CP17>=50%,AE17*10.5%,0) -> 0 | CR17: =IF(AND(CP17>35%,CP17<50%),AE17*(CP17-35%)*0.7,0) -> 0 | CS17: =AU17+AR17 -> 1110.5 | CT17: ='LOB Transfers'!G16 -> 122633 | CU17: ='LOB Transfers'!J16 -> 0 | CV17: ='General Fund Transfers'!F16 -> 393892 | CW17: =SUM(R17+T17+AV17+AW17+AX17/6) -> 586.2 | CX17: D0114
A18: 115 | B18: Nemaha | C18: Nemaha Central | D18: 564.4 | F18: 0 | G18: 564.4 | H18: 595.3 | J18: 0 | K18: 595.3 | L18: 591.6 | N18: 0 | O18: 591.6 | P18: =IF(ISNA(VLOOKUP($CX18,'Audit Values'!$A:$BW,2,FALSE)),'Preliminary SO66'!C17,VLOOKUP($CX18,'Audit Values'!$A:$BW,73,FALSE)) -> 637 | Q18: =IF(ISNA(VLOOKUP($CX18,'Audit Values'!$A:$BW,2,FALSE)),'Preliminary SO66'!F17,VLOOKUP($CX18,'Audit Values'!$A$2:$BW$936,4,FALSE)) -> 0 | R18: 637 | S18: =IF('Military Provision'!J18="YES", MAX('2022 Legal Max'!O18,'2022 Legal Max'!K18,AVERAGE('2022 Legal Max'!G18,'2022 Legal Max'!K18,'2022 Legal Max'!O18)), MAX(O18, K18)) -> 595.3 | T18: =IF(ISNA(VLOOKUP($CX18,'Audit Values'!$A:$BU,2,FALSE)),'Preliminary SO66'!AL17,VLOOKUP($CX18,'Audit Values'!$A:$BU,58,FALSE)) -> 16.5 | U18: 611.8 | V18: 231.4 | W18: =IF(ISNA(VLOOKUP($CX18,'Audit Values'!$A:$BW,2,FALSE)),'Preliminary SO66'!AM17,VLOOKUP($CX18,'Audit Values'!$A:$BW,62,FALSE)) -> 11.8 | X18: =(W18/6)*'Weighting Factors'!$O$7 -> 0.8 | Y18: =IF(ISNA(VLOOKUP($CX18,'Audit Values'!$A:$BW,2,FALSE)),'Preliminary SO66'!AN17,VLOOKUP($CX18,'Audit Values'!$A:$BW,61,FALSE)) -> 8 | Z18: =Y18*'Weighting Factors'!$O$8 -> 1.5 | AA18: 1.5 | AB18: =IF(ISNA(VLOOKUP($CX18,'Audit Values'!$A:$BW,2,FALSE)),'Preliminary SO66'!AO17,VLOOKUP($CX18,'Audit Values'!$A:$BW,60,FALSE)) -> 200.9 | AC18: =AB18/6*'Weighting Factors'!$O$6 -> 16.7 | AD18: =IF(ISNA(VLOOKUP($CX18,'Audit Values'!$A:$BU,2,FALSE)),'Preliminary SO66'!AS17,VLOOKUP($CX18,'Audit Values'!$A:$BU,63,FALSE)) -> 715 | AE18: =IF(ISNA(VLOOKUP($CX18,'Audit Values'!$A:$BU,2,FALSE)),'Preliminary SO66'!AP17,VLOOKUP($CX18,'Audit Values'!$A:$BU,64,FALSE)) -> 123 | AF18: =IF(A18=207, AE18,(AE18))*'Weighting Factors'!$O$9 -> 59.5 | AG18: 0 | AH18: =IF(ISNA(VLOOKUP($CX18,'Audit Values'!$A:$BW,2,FALSE)),'Preliminary SO66'!AG17,VLOOKUP($CX18,'Audit Values'!$A:$BW,70,FALSE)) -> 0 | AI18: 0 | AJ18: =IF(ISNA(VLOOKUP($CX18,'Audit Values'!$A:$BU,2,FALSE)),'Preliminary SO66'!AQ17,VLOOKUP($CX18,'Audit Values'!$A:$BU,65,FALSE)) -> 0 | AK18: =AJ18*'Weighting Factors'!$O$10 -> 0 | AL18: =IF(ISNA(VLOOKUP($CX18,'Audit Values'!$A:$BU,2,FALSE)),'Preliminary SO66'!AR17,VLOOKUP($CX18,'Audit Values'!$A:$BU,66,FALSE)) -> 244.6 | AM18: 262555 | AN18: =AM18/'Weighting Factors'!$O$5 -> 55.8 | AO18: =CK18/'Weighting Factors'!$O$5 -> 0 | AP18: =CO18/'Weighting Factors'!$O$5 -> 0 | AQ18: 545336 | AR18: =AQ18/'Weighting Factors'!$O$5 -> 115.9 | AS18: =IF(ISNA(VLOOKUP($CX18,'Audit Values'!$A:$BU,2,FALSE)),'Preliminary SO66'!X17,VLOOKUP($CX18,'Audit Values'!$A:$BU,47,FALSE)) -> 0 | AT18: 1092.6 | AU18: 976.7 | AV18: =IF(ISNA(VLOOKUP($CX18,'Audit Values'!$A$2:$BU$917,2,FALSE)),'Preliminary SO66'!AA17,VLOOKUP($CX18,'Audit Values'!$A$2:$BU$917,41,FALSE)) -> 0 | AW18: =IF(ISNA(VLOOKUP($CX18,'Audit Values'!$A$2:$BU$917,2,FALSE)),'Preliminary SO66'!AB17,VLOOKUP($CX18,'Audit Values'!$A$2:$BU$917,42,FALSE)) -> 0 | AX18: 0 | AY18: =SUM(AV18*'Weighting Factors'!$R$10)+('2022 Legal Max'!AW18*'Weighting Factors'!$R$11)+('2022 Legal Max'!AX18*'Weighting Factors'!$R$12) -> 0 | AZ18: =IF(ISNA(VLOOKUP($CX18,'Audit Values'!$A$2:$BU$936,2,FALSE)),"",IF(AND('Weighting Factors'!F18>0,VLOOKUP($CX18,'Audit Values'!$A$2:$BU$936,51,FALSE)<'Weighting Factors'!F18),'Weighting Factors'!F18,VLOOKUP($CX18,'Audit Values'!$A$2:$BU$936,50,FALSE))) -> 11 | BA18: =IF(ISNA(VLOOKUP($CX18,'Audit Values'!$A:$BV,2,FALSE)),"",VLOOKUP($CX18,'Audit Values'!$A:$BV,51,FALSE)) -> A | BB18: =IF('Weighting Factors'!F18="","",IF('Weighting Factors'!H18="Pending","PX","R")) ->  | BC18: =SUM((U18+V18+AA18+AC18+AF18+AI18+AK18++AN18+AO18+AS18+AP18)*'Weighting Factors'!$O$5)+'2022 Legal Max'!AY18 -> 4596350 | BD18: =SUM((AT18+AP18)*'Weighting Factors'!$O$5)+AY18 -> 5141776 | BE18: =IF('Weighting Factors'!F18>0,'Weighting Factors'!F18,'Preliminary SO66'!AV17) -> 5316839 | BF18: 5141776 | BG18: ='Weighting Factors'!E18 -> 0 | BH18: =Transportation!G18 -> -61173 | BI18: =IF(ISNA(VLOOKUP($CX18,'Audit Values'!$A$2:$BT$511,2,FALSE)), 0, VLOOKUP($CX18,'Audit Values'!$A$2:$BT$511,72,FALSE)) -> 0 | BJ18: -61173 | BK18: 5080603 | BL18: =SUM((U18+V18+AA18+AC18+AF18+AI18+AK18+AN18+AO18+AP18)*'Weighting Factors'!O$12)+(MAX(AQ18,'Weighting Factors'!B18)) -> 5173583 | BM18: ='LOB%'!F16 -> 0.31 | BN18: 1603811 | BO18: 1648262 | BP18: 1603811 | BQ18: 0.31 | BR18: =ROUND(IF(U18<=99.9,(U18*1.014331),0),1) -> 0 | BS18: =AND(U18>99.9,U18<=299.9) -> FALSE | BT18: =IF(BS18=TRUE,ROUND((U18-100)*9.655,3),0) -> 0 | BU18: 0 | BV18: =ROUND(BU18*U18,1) -> 0 | BW18: =AND(U18>299.9,U18<=1621.9) -> TRUE | BX18: =IF(BW18=TRUE,ROUND((U18-300)*1.2375,4),0) -> 385.8525 | BY18: 0.378253 | BZ18: =ROUND(BY18*U18,1) -> 231.4 | CA18: =ROUND(IF(U18>=1622,(U18*0.03504),0),1) -> 0 | CB18: 222 | CC18: =AL18/CB18 -> 1.102 | CD18: =IF(CC18<0.06,1,IF(CC18>=18.29,52,MATCH(CC18-0.001,'Weighting Factors'!$W$5:$W$156)+1)) -> 32 | CE18: =VLOOKUP(CD18, 'Weighting Factors'!$U$5:$X$56,4) -> 950 | CF18: =('Weighting Factors'!$O$5/'Weighting Factors'!$O$14) -> 1.1299 | CG18: =AL18*CE18 -> 232370 | CH18: =CG18*'Weighting Factors'!$Q$7 -> 232370 | CI18: 262555 | CJ18: =AM18/'Weighting Factors'!$O$5 -> 55.8 | CK18: 0 | CL18: 0 | CM18: 0 | CN18: =SUM((AT18*'Weighting Factors'!$O$5)+'2022 Legal Max'!AY18)*CM18 -> 0 | CO18: 0 | CP18: =AE18/AD18 -> 0.172 | CQ18: =IF(CP18>=50%,AE18*10.5%,0) -> 0 | CR18: =IF(AND(CP18>35%,CP18<50%),AE18*(CP18-35%)*0.7,0) -> 0 | CS18: =AU18+AR18 -> 1092.6 | CT18: ='LOB Transfers'!G17 -> 88691 | CU18: ='LOB Transfers'!J17 -> 2245 | CV18: ='General Fund Transfers'!F17 -> 280007 | CW18: =SUM(R18+T18+AV18+AW18+AX18/6) -> 653.5 | CX18: D0115
A19: 200 | B19: Greeley | C19: Greeley County Schools | D19: 250 | F19: 0 | G19: 250 | H19: 234.2 | J19: 0 | K19: 234.2 | L19: 234.6 | N19: 0 | O19: 234.6 | P19: =IF(ISNA(VLOOKUP($CX19,'Audit Values'!$A:$BW,2,FALSE)),'Preliminary SO66'!C18,VLOOKUP($CX19,'Audit Values'!$A:$BW,73,FALSE)) -> 236.5 | Q19: =IF(ISNA(VLOOKUP($CX19,'Audit Values'!$A:$BW,2,FALSE)),'Preliminary SO66'!F18,VLOOKUP($CX19,'Audit Values'!$A$2:$BW$936,4,FALSE)) -> 0 | R19: 236.5 | S19: =IF('Military Provision'!J19="YES", MAX('2022 Legal Max'!O19,'2022 Legal Max'!K19,AVERAGE('2022 Legal Max'!G19,'2022 Legal Max'!K19,'2022 Legal Max'!O19)), MAX(O19, K19)) -> 234.6 | T19: =IF(ISNA(VLOOKUP($CX19,'Audit Values'!$A:$BU,2,FALSE)),'Preliminary SO66'!AL18,VLOOKUP($CX19,'Audit Values'!$A:$BU,58,FALSE)) -> 2.5 | U19: 237.1 | V19: 154.3 | W19: =IF(ISNA(VLOOKUP($CX19,'Audit Values'!$A:$BW,2,FALSE)),'Preliminary SO66'!AM18,VLOOKUP($CX19,'Audit Values'!$A:$BW,62,FALSE)) -> 57.5 | X19: =(W19/6)*'Weighting Factors'!$O$7 -> 3.8 | Y19: =IF(ISNA(VLOOKUP($CX19,'Audit Values'!$A:$BW,2,FALSE)),'Preliminary SO66'!AN18,VLOOKUP($CX19,'Audit Values'!$A:$BW,61,FALSE)) -> 50 | Z19: =Y19*'Weighting Factors'!$O$8 -> 9.3 | AA19: 9.3 | AB19: =IF(ISNA(VLOOKUP($CX19,'Audit Values'!$A:$BW,2,FALSE)),'Preliminary SO66'!AO18,VLOOKUP($CX19,'Audit Values'!$A:$BW,60,FALSE)) -> 63.1 | AC19: =AB19/6*'Weighting Factors'!$O$6 -> 5.3 | AD19: =IF(ISNA(VLOOKUP($CX19,'Audit Values'!$A:$BU,2,FALSE)),'Preliminary SO66'!AS18,VLOOKUP($CX19,'Audit Values'!$A:$BU,63,FALSE)) -> 244 | AE19: =IF(ISNA(VLOOKUP($CX19,'Audit Values'!$A:$BU,2,FALSE)),'Preliminary SO66'!AP18,VLOOKUP($CX19,'Audit Values'!$A:$BU,64,FALSE)) -> 89 | AF19: =IF(A19=207, AE19,(AE19))*'Weighting Factors'!$O$9 -> 43.1 | AG19: 0.9 | AH19: =IF(ISNA(VLOOKUP($CX19,'Audit Values'!$A:$BW,2,FALSE)),'Preliminary SO66'!AG18,VLOOKUP($CX19,'Audit Values'!$A:$BW,70,FALSE)) -> 0.9 | AI19: 0.9 | AJ19: =IF(ISNA(VLOOKUP($CX19,'Audit Values'!$A:$BU,2,FALSE)),'Preliminary SO66'!AQ18,VLOOKUP($CX19,'Audit Values'!$A:$BU,65,FALSE)) -> 0 | AK19: =AJ19*'Weighting Factors'!$O$10 -> 0 | AL19: =IF(ISNA(VLOOKUP($CX19,'Audit Values'!$A:$BU,2,FALSE)),'Preliminary SO66'!AR18,VLOOKUP($CX19,'Audit Values'!$A:$BU,66,FALSE)) -> 55 | AM19: 95703 | AN19: =AM19/'Weighting Factors'!$O$5 -> 20.3 | AO19: =CK19/'Weighting Factors'!$O$5 -> 0 | AP19: =CO19/'Weighting Factors'!$O$5 -> 0 | AQ19: 148367 | AR19: =AQ19/'Weighting Factors'!$O$5 -> 31.5 | AS19: =IF(ISNA(VLOOKUP($CX19,'Audit Values'!$A:$BU,2,FALSE)),'Preliminary SO66'!X18,VLOOKUP($CX19,'Audit Values'!$A:$BU,47,FALSE)) -> 0 | AT19: 501.8 | AU19: 470.3 | AV19: =IF(ISNA(VLOOKUP($CX19,'Audit Values'!$A$2:$BU$917,2,FALSE)),'Preliminary SO66'!AA18,VLOOKUP($CX19,'Audit Values'!$A$2:$BU$917,41,FALSE)) -> 0 | AW19: =IF(ISNA(VLOOKUP($CX19,'Audit Values'!$A$2:$BU$917,2,FALSE)),'Preliminary SO66'!AB18,VLOOKUP($CX19,'Audit Values'!$A$2:$BU$917,42,FALSE)) -> 0 | AX19: 0 | AY19: =SUM(AV19*'Weighting Factors'!$R$10)+('2022 Legal Max'!AW19*'Weighting Factors'!$R$11)+('2022 Legal Max'!AX19*'Weighting Factors'!$R$12) -> 0 | AZ19: =IF(ISNA(VLOOKUP($CX19,'Audit Values'!$A$2:$BU$936,2,FALSE)),"",IF(AND('Weighting Factors'!F19>0,VLOOKUP($CX19,'Audit Values'!$A$2:$BU$936,51,FALSE)<'Weighting Factors'!F19),'Weighting Factors'!F19,VLOOKUP($CX19,'Audit Values'!$A$2:$BU$936,50,FALSE))) -> 16 | BA19: =IF(ISNA(VLOOKUP($CX19,'Audit Values'!$A:$BV,2,FALSE)),"",VLOOKUP($CX19,'Audit Values'!$A:$BV,51,FALSE)) -> A | BB19: =IF('Weighting Factors'!F19="","",IF('Weighting Factors'!H19="Pending","PX","R")) ->  | BC19: =SUM((U19+V19+AA19+AC19+AF19+AI19+AK19++AN19+AO19+AS19+AP19)*'Weighting Factors'!$O$5)+'2022 Legal Max'!AY19 -> 2213232 | BD19: =SUM((AT19+AP19)*'Weighting Factors'!$O$5)+AY19 -> 2361471 | BE19: =IF('Weighting Factors'!F19>0,'Weighting Factors'!F19,'Preliminary SO66'!AV18) -> 2488062 | BF19: 2361471 | BG19: ='Weighting Factors'!E19 -> 0 | BH19: =Transportation!G19 -> 0 | BI19: =IF(ISNA(VLOOKUP($CX19,'Audit Values'!$A$2:$BT$511,2,FALSE)), 0, VLOOKUP($CX19,'Audit Values'!$A$2:$BT$511,72,FALSE)) -> 0 | BJ19: 0 | BK19: 2361471 | BL19: =SUM((U19+V19+AA19+AC19+AF19+AI19+AK19+AN19+AO19+AP19)*'Weighting Factors'!O$12)+(MAX(AQ19,'Weighting Factors'!B19)) -> 2379083 | BM19: ='LOB%'!F17 -> 0.31 | BN19: 737516 | BO19: 746902 | BP19: 737516 | BQ19: 0.31 | BR19: =ROUND(IF(U19<=99.9,(U19*1.014331),0),1) -> 0 | BS19: =AND(U19>99.9,U19<=299.9) -> TRUE | BT19: =IF(BS19=TRUE,ROUND((U19-100)*9.655,3),0) -> 1323.701 | BU19: 0.650917 | BV19: =ROUND(BU19*U19,1) -> 154.3 | BW19: =AND(U19>299.9,U19<=1621.9) -> FALSE | BX19: =IF(BW19=TRUE,ROUND((U19-300)*1.2375,4),0) -> 0 | BY19: 0 | BZ19: =ROUND(BY19*U19,1) -> 0 | CA19: =ROUND(IF(U19>=1622,(U19*0.03504),0),1) -> 0 | CB19: 780 | CC19: =AL19/CB19 -> 0.071 | CD19: =IF(CC19<0.06,1,IF(CC19>=18.29,52,MATCH(CC19-0.001,'Weighting Factors'!$W$5:$W$156)+1)) -> 3 | CE19: =VLOOKUP(CD19, 'Weighting Factors'!$U$5:$X$56,4) -> 1540 | CF19: =('Weighting Factors'!$O$5/'Weighting Factors'!$O$14) -> 1.1299 | CG19: =AL19*CE19 -> 84700 | CH19: =CG19*'Weighting Factors'!$Q$7 -> 84700 | CI19: 95703 | CJ19: =AM19/'Weighting Factors'!$O$5 -> 20.3 | CK19: 0 | CL19: 0 | CM19: 0 | CN19: =SUM((AT19*'Weighting Factors'!$O$5)+'2022 Legal Max'!AY19)*CM19 -> 0 | CO19: 0 | CP19: =AE19/AD19 -> 0.3648 | CQ19: =IF(CP19>=50%,AE19*10.5%,0) -> 0 | CR19: =IF(AND(CP19>35%,CP19<50%),AE19*(CP19-35%)*0.7,0) -> 0.9 | CS19: =AU19+AR19 -> 501.8 | CT19: ='LOB Transfers'!G18 -> 63648 | CU19: ='LOB Transfers'!J18 -> 13718 | CV19: ='General Fund Transfers'!F18 -> 207064 | CW19: =SUM(R19+T19+AV19+AW19+AX19/6) -> 239 | CX19: D0200
A20: 202 | B20: Wyandotte | C20: Turner-Kansas City | D20: 3899.5 | F20: 0 | G20: 3899.5 | H20: 3839.8 | J20: 0 | K20: 3839.8 | L20: 3681.8 | N20: 0 | O20: 3681.8 | P20: =IF(ISNA(VLOOKUP($CX20,'Audit Values'!$A:$BW,2,FALSE)),'Preliminary SO66'!C19,VLOOKUP($CX20,'Audit Values'!$A:$BW,73,FALSE)) -> 3698.6 | Q20: =IF(ISNA(VLOOKUP($CX20,'Audit Values'!$A:$BW,2,FALSE)),'Preliminary SO66'!F19,VLOOKUP($CX20,'Audit Values'!$A$2:$BW$936,4,FALSE)) -> 0 | R20: 3698.6 | S20: =IF('Military Provision'!J20="YES", MAX('2022 Legal Max'!O20,'2022 Legal Max'!K20,AVERAGE('2022 Legal Max'!G20,'2022 Legal Max'!K20,'2022 Legal Max'!O20)), MAX(O20, K20)) -> 3839.8 | T20: =IF(ISNA(VLOOKUP($CX20,'Audit Values'!$A:$BU,2,FALSE)),'Preliminary SO66'!AL19,VLOOKUP($CX20,'Audit Values'!$A:$BU,58,FALSE)) -> 68 | U20: 3907.8 | V20: 136.9 | W20: =IF(ISNA(VLOOKUP($CX20,'Audit Values'!$A:$BW,2,FALSE)),'Preliminary SO66'!AM19,VLOOKUP($CX20,'Audit Values'!$A:$BW,62,FALSE)) -> 1698.4 | X20: =(W20/6)*'Weighting Factors'!$O$7 -> 111.8 | Y20: =IF(ISNA(VLOOKUP($CX20,'Audit Values'!$A:$BW,2,FALSE)),'Preliminary SO66'!AN19,VLOOKUP($CX20,'Audit Values'!$A:$BW,61,FALSE)) -> 747 | Z20: =Y20*'Weighting Factors'!$O$8 -> 138.2 | AA20: 138.2 | AB20: =IF(ISNA(VLOOKUP($CX20,'Audit Values'!$A:$BW,2,FALSE)),'Preliminary SO66'!AO19,VLOOKUP($CX20,'Audit Values'!$A:$BW,60,FALSE)) -> 1179.5 | AC20: =AB20/6*'Weighting Factors'!$O$6 -> 98.3 | AD20: =IF(ISNA(VLOOKUP($CX20,'Audit Values'!$A:$BU,2,FALSE)),'Preliminary SO66'!AS19,VLOOKUP($CX20,'Audit Values'!$A:$BU,63,FALSE)) -> 3851 | AE20: =IF(ISNA(VLOOKUP($CX20,'Audit Values'!$A:$BU,2,FALSE)),'Preliminary SO66'!AP19,VLOOKUP($CX20,'Audit Values'!$A:$BU,64,FALSE)) -> 2050 | AF20: =IF(A20=207, AE20,(AE20))*'Weighting Factors'!$O$9 -> 992.2 | AG20: 215.3 | AH20: =IF(ISNA(VLOOKUP($CX20,'Audit Values'!$A:$BW,2,FALSE)),'Preliminary SO66'!AG19,VLOOKUP($CX20,'Audit Values'!$A:$BW,70,FALSE)) -> 203.1 | AI20: 215.3 | AJ20: =IF(ISNA(VLOOKUP($CX20,'Audit Values'!$A:$BU,2,FALSE)),'Preliminary SO66'!AQ19,VLOOKUP($CX20,'Audit Values'!$A:$BU,65,FALSE)) -> 0 | AK20: =AJ20*'Weighting Factors'!$O$10 -> 0 | AL20: =IF(ISNA(VLOOKUP($CX20,'Audit Values'!$A:$BU,2,FALSE)),'Preliminary SO66'!AR19,VLOOKUP($CX20,'Audit Values'!$A:$BU,66,FALSE)) -> 1366 | AM20: 848894 | AN20: =AM20/'Weighting Factors'!$O$5 -> 180.4 | AO20: =CK20/'Weighting Factors'!$O$5 -> 0 | AP20: =CO20/'Weighting Factors'!$O$5 -> 0 | AQ20: 3336971 | AR20: =AQ20/'Weighting Factors'!$O$5 -> 709.1 | AS20: =IF(ISNA(VLOOKUP($CX20,'Audit Values'!$A:$BU,2,FALSE)),'Preliminary SO66'!X19,VLOOKUP($CX20,'Audit Values'!$A:$BU,47,FALSE)) -> 1 | AT20: 6379.2 | AU20: 5670.1 | AV20: =IF(ISNA(VLOOKUP($CX20,'Audit Values'!$A$2:$BU$917,2,FALSE)),'Preliminary SO66'!AA19,VLOOKUP($CX20,'Audit Values'!$A$2:$BU$917,41,FALSE)) -> 12 | AW20: =IF(ISNA(VLOOKUP($CX20,'Audit Values'!$A$2:$BU$917,2,FALSE)),'Preliminary SO66'!AB19,VLOOKUP($CX20,'Audit Values'!$A$2:$BU$917,42,FALSE)) -> 0.7 | AX20: 70 | AY20: =SUM(AV20*'Weighting Factors'!$R$10)+('2022 Legal Max'!AW20*'Weighting Factors'!$R$11)+('2022 Legal Max'!AX20*'Weighting Factors'!$R$12) -> 110820 | AZ20: =IF(ISNA(VLOOKUP($CX20,'Audit Values'!$A$2:$BU$936,2,FALSE)),"",IF(AND('Weighting Factors'!F20>0,VLOOKUP($CX20,'Audit Values'!$A$2:$BU$936,51,FALSE)<'Weighting Factors'!F20),'Weighting Factors'!F20,VLOOKUP($CX20,'Audit Values'!$A$2:$BU$936,50,FALSE))) -> 11 | BA20: =IF(ISNA(VLOOKUP($CX20,'Audit Values'!$A:$BV,2,FALSE)),"",VLOOKUP($CX20,'Audit Values'!$A:$BV,51,FALSE)) -> A | BB20: =IF('Weighting Factors'!F20="","",IF('Weighting Factors'!H20="Pending","PX","R")) ->  | BC20: =SUM((U20+V20+AA20+AC20+AF20+AI20+AK20++AN20+AO20+AS20+AP20)*'Weighting Factors'!$O$5)+'2022 Legal Max'!AY20 -> 26794311 | BD20: =SUM((AT20+AP20)*'Weighting Factors'!$O$5)+AY20 -> 30131335 | BE20: =IF('Weighting Factors'!F20>0,'Weighting Factors'!F20,'Preliminary SO66'!AV19) -> 30893564 | BF20: 30131335 | BG20: ='Weighting Factors'!E20 -> 0 | BH20: =Transportation!G20 -> 0 | BI20: =IF(ISNA(VLOOKUP($CX20,'Audit Values'!$A$2:$BT$511,2,FALSE)), 0, VLOOKUP($CX20,'Audit Values'!$A$2:$BT$511,72,FALSE)) -> 0 | BJ20: 0 | BK20: 30131335 | BL20: =SUM((U20+V20+AA20+AC20+AF20+AI20+AK20+AN20+AO20+AP20)*'Weighting Factors'!O$12)+(MAX(AQ20,'Weighting Factors'!B20)) -> 30015756 | BM20: ='LOB%'!F18 -> 0.31 | BN20: 9304884 | BO20: 9532036 | BP20: 9304884 | BQ20: 0.31 | BR20: =ROUND(IF(U20<=99.9,(U20*1.014331),0),1) -> 0 | BS20: =AND(U20>99.9,U20<=299.9) -> FALSE | BT20: =IF(BS20=TRUE,ROUND((U20-100)*9.655,3),0) -> 0 | BU20: 0 | BV20: =ROUND(BU20*U20,1) -> 0 | BW20: =AND(U20>299.9,U20<=1621.9) -> FALSE | BX20: =IF(BW20=TRUE,ROUND((U20-300)*1.2375,4),0) -> 0 | BY20: 0 | BZ20: =ROUND(BY20*U20,1) -> 0 | CA20: =ROUND(IF(U20>=1622,(U20*0.03504),0),1) -> 136.9 | CB20: 17 | CC20: =AL20/CB20 -> 80.353 | CD20: =IF(CC20<0.06,1,IF(CC20>=18.29,52,MATCH(CC20-0.001,'Weighting Factors'!$W$5:$W$156)+1)) -> 52 | CE20: =VLOOKUP(CD20, 'Weighting Factors'!$U$5:$X$56,4) -> 550 | CF20: =('Weighting Factors'!$O$5/'Weighting Factors'!$O$14) -> 1.1299 | CG20: =AL20*CE20 -> 751300 | CH20: =CG20*'Weighting Factors'!$Q$7 -> 751300 | CI20: 848894 | CJ20: =AM20/'Weighting Factors'!$O$5 -> 180.4 | CK20: 0 | CL20: 0 | CM20: 0 | CN20: =SUM((AT20*'Weighting Factors'!$O$5)+'2022 Legal Max'!AY20)*CM20 -> 0 | CO20: 0 | CP20: =AE20/AD20 -> 0.5323 | CQ20: =IF(CP20>=50%,AE20*10.5%,0) -> 215.3 | CR20: =IF(AND(CP20>35%,CP20<50%),AE20*(CP20-35%)*0.7,0) -> 0 | CS20: =AU20+AR20 -> 6379.2 | CT20: ='LOB Transfers'!G19 -> 1462728 | CU20: ='LOB Transfers'!J19 -> 203777 | CV20: ='General Fund Transfers'!F19 -> 5682495 | CW20: =SUM(R20+T20+AV20+AW20+AX20/6) -> 3791 | CX20: D0202
A21: 203 | B21: Wyandotte | C21: Piper-Kansas City | D21: 2314 | F21: 0 | G21: 2314 | H21: 2435.5 | J21: 0 | K21: 2435.5 | L21: 2465.2 | N21: 0 | O21: 2465.2 | P21: =IF(ISNA(VLOOKUP($CX21,'Audit Values'!$A:$BW,2,FALSE)),'Preliminary SO66'!C20,VLOOKUP($CX21,'Audit Values'!$A:$BW,73,FALSE)) -> 2498.5 | Q21: =IF(ISNA(VLOOKUP($CX21,'Audit Values'!$A:$BW,2,FALSE)),'Preliminary SO66'!F20,VLOOKUP($CX21,'Audit Values'!$A$2:$BW$936,4,FALSE)) -> 0 | R21: 2498.5 | S21: =IF('Military Provision'!J21="YES", MAX('2022 Legal Max'!O21,'2022 Legal Max'!K21,AVERAGE('2022 Legal Max'!G21,'2022 Legal Max'!K21,'2022 Legal Max'!O21)), MAX(O21, K21)) -> 2465.2 | T21: =IF(ISNA(VLOOKUP($CX21,'Audit Values'!$A:$BU,2,FALSE)),'Preliminary SO66'!AL20,VLOOKUP($CX21,'Audit Values'!$A:$BU,58,FALSE)) -> 0 | U21: 2465.2 | V21: 86.4 | W21: =IF(ISNA(VLOOKUP($CX21,'Audit Values'!$A:$BW,2,FALSE)),'Preliminary SO66'!AM20,VLOOKUP($CX21,'Audit Values'!$A:$BW,62,FALSE)) -> 341.7 | X21: =(W21/6)*'Weighting Factors'!$O$7 -> 22.5 | Y21: =IF(ISNA(VLOOKUP($CX21,'Audit Values'!$A:$BW,2,FALSE)),'Preliminary SO66'!AN20,VLOOKUP($CX21,'Audit Values'!$A:$BW,61,FALSE)) -> 138 | Z21: =Y21*'Weighting Factors'!$O$8 -> 25.5 | AA21: 25.5 | AB21: =IF(ISNA(VLOOKUP($CX21,'Audit Values'!$A:$BW,2,FALSE)),'Preliminary SO66'!AO20,VLOOKUP($CX21,'Audit Values'!$A:$BW,60,FALSE)) -> 464.1 | AC21: =AB21/6*'Weighting Factors'!$O$6 -> 38.7 | AD21: =IF(ISNA(VLOOKUP($CX21,'Audit Values'!$A:$BU,2,FALSE)),'Preliminary SO66'!AS20,VLOOKUP($CX21,'Audit Values'!$A:$BU,63,FALSE)) -> 2501 | AE21: =IF(ISNA(VLOOKUP($CX21,'Audit Values'!$A:$BU,2,FALSE)),'Preliminary SO66'!AP20,VLOOKUP($CX21,'Audit Values'!$A:$BU,64,FALSE)) -> 242 | AF21: =IF(A21=207, AE21,(AE21))*'Weighting Factors'!$O$9 -> 117.1 | AG21: 0 | AH21: =IF(ISNA(VLOOKUP($CX21,'Audit Values'!$A:$BW,2,FALSE)),'Preliminary SO66'!AG20,VLOOKUP($CX21,'Audit Values'!$A:$BW,70,FALSE)) -> 0 | AI21: 0 | AJ21: =IF(ISNA(VLOOKUP($CX21,'Audit Values'!$A:$BU,2,FALSE)),'Preliminary SO66'!AQ20,VLOOKUP($CX21,'Audit Values'!$A:$BU,65,FALSE)) -> 0 | AK21: =AJ21*'Weighting Factors'!$O$10 -> 0 | AL21: =IF(ISNA(VLOOKUP($CX21,'Audit Values'!$A:$BU,2,FALSE)),'Preliminary SO66'!AR20,VLOOKUP($CX21,'Audit Values'!$A:$BU,66,FALSE)) -> 1394 | AM21: 866294 | AN21: =AM21/'Weighting Factors'!$O$5 -> 184.1 | AO21: =CK21/'Weighting Factors'!$O$5 -> 0 | AP21: =CO21/'Weighting Factors'!$O$5 -> 70.2 | AQ21: 2752674 | AR21: =AQ21/'Weighting Factors'!$O$5 -> 584.9 | AS21: =IF(ISNA(VLOOKUP($CX21,'Audit Values'!$A:$BU,2,FALSE)),'Preliminary SO66'!X20,VLOOKUP($CX21,'Audit Values'!$A:$BU,47,FALSE)) -> 0 | AT21: 3501.9 | AU21: 2987.2 | AV21: =IF(ISNA(VLOOKUP($CX21,'Audit Values'!$A$2:$BU$917,2,FALSE)),'Preliminary SO66'!AA20,VLOOKUP($CX21,'Audit Values'!$A$2:$BU$917,41,FALSE)) -> 24 | AW21: =IF(ISNA(VLOOKUP($CX21,'Audit Values'!$A$2:$BU$917,2,FALSE)),'Preliminary SO66'!AB20,VLOOKUP($CX21,'Audit Values'!$A$2:$BU$917,42,FALSE)) -> 3.4 | AX21: 0 | AY21: =SUM(AV21*'Weighting Factors'!$R$10)+('2022 Legal Max'!AW21*'Weighting Factors'!$R$11)+('2022 Legal Max'!AX21*'Weighting Factors'!$R$12) -> 125780 | AZ21: =IF(ISNA(VLOOKUP($CX21,'Audit Values'!$A$2:$BU$936,2,FALSE)),"",IF(AND('Weighting Factors'!F21>0,VLOOKUP($CX21,'Audit Values'!$A$2:$BU$936,51,FALSE)<'Weighting Factors'!F21),'Weighting Factors'!F21,VLOOKUP($CX21,'Audit Values'!$A$2:$BU$936,50,FALSE))) -> 14 | BA21: =IF(ISNA(VLOOKUP($CX21,'Audit Values'!$A:$BV,2,FALSE)),"",VLOOKUP($CX21,'Audit Values'!$A:$BV,51,FALSE)) -> A | BB21: =IF('Weighting Factors'!F21="","",IF('Weighting Factors'!H21="Pending","PX","R")) ->  | BC21: =SUM((U21+V21+AA21+AC21+AF21+AI21+AK21++AN21+AO21+AS21+AP21)*'Weighting Factors'!$O$5)+'2022 Legal Max'!AY21 -> 14183543 | BD21: =SUM((AT21+AP21)*'Weighting Factors'!$O$5)+AY21 -> 16936083 | BE21: =IF('Weighting Factors'!F21>0,'Weighting Factors'!F21,'Preliminary SO66'!AV20) -> 17370962 | BF21: 16936083 | BG21: ='Weighting Factors'!E21 -> 0 | BH21: =Transportation!G21 -> 0 | BI21: =IF(ISNA(VLOOKUP($CX21,'Audit Values'!$A$2:$BT$511,2,FALSE)), 0, VLOOKUP($CX21,'Audit Values'!$A$2:$BT$511,72,FALSE)) -> 0 | BJ21: 0 | BK21: 16936083 | BL21: =SUM((U21+V21+AA21+AC21+AF21+AI21+AK21+AN21+AO21+AP21)*'Weighting Factors'!O$12)+(MAX(AQ21,'Weighting Factors'!B21)) -> 16810437 | BM21: ='LOB%'!F19 -> 0.33 | BN21: 5547444 | BO21: 5707701 | BP21: 5547444 | BQ21: 0.33 | BR21: =ROUND(IF(U21<=99.9,(U21*1.014331),0),1) -> 0 | BS21: =AND(U21>99.9,U21<=299.9) -> FALSE | BT21: =IF(BS21=TRUE,ROUND((U21-100)*9.655,3),0) -> 0 | BU21: 0 | BV21: =ROUND(BU21*U21,1) -> 0 | BW21: =AND(U21>299.9,U21<=1621.9) -> FALSE | BX21: =IF(BW21=TRUE,ROUND((U21-300)*1.2375,4),0) -> 0 | BY21: 0 | BZ21: =ROUND(BY21*U21,1) -> 0 | CA21: =ROUND(IF(U21>=1622,(U21*0.03504),0),1) -> 86.4 | CB21: 31.4 | CC21: =AL21/CB21 -> 44.395 | CD21: =IF(CC21<0.06,1,IF(CC21>=18.29,52,MATCH(CC21-0.001,'Weighting Factors'!$W$5:$W$156)+1)) -> 52 | CE21: =VLOOKUP(CD21, 'Weighting Factors'!$U$5:$X$56,4) -> 550 | CF21: =('Weighting Factors'!$O$5/'Weighting Factors'!$O$14) -> 1.1299 | CG21: =AL21*CE21 -> 766700 | CH21: =CG21*'Weighting Factors'!$Q$7 -> 766700 | CI21: 866294 | CJ21: =AM21/'Weighting Factors'!$O$5 -> 184.1 | CK21: 0 | CL21: 332262 | CM21: 0.0199 | CN21: =SUM((AT21*'Weighting Factors'!$O$5)+'2022 Legal Max'!AY21)*CM21 -> 330454 | CO21: 330454 | CP21: =AE21/AD21 -> 0.0968 | CQ21: =IF(CP21>=50%,AE21*10.5%,0) -> 0 | CR21: =IF(AND(CP21>35%,CP21<50%),AE21*(CP21-35%)*0.7,0) -> 0 | CS21: =AU21+AR21 -> 3572.1 | CT21: ='LOB Transfers'!G20 -> 181956 | CU21: ='LOB Transfers'!J20 -> 39387 | CV21: ='General Fund Transfers'!F20 -> 551073 | CW21: =SUM(R21+T21+AV21+AW21+AX21/6) -> 2525.9 | CX21: D0203
A22: 204 | B22: Wyandotte | C22: Bonner Springs | D22: 2591.3 | F22: 0 | G22: 2591.3 | H22: 2621.5 | J22: 0 | K22: 2621.5 | L22: 2515.9 | N22: 0 | O22: 2515.9 | P22: =IF(ISNA(VLOOKUP($CX22,'Audit Values'!$A:$BW,2,FALSE)),'Preliminary SO66'!C21,VLOOKUP($CX22,'Audit Values'!$A:$BW,73,FALSE)) -> 2406 | Q22: =IF(ISNA(VLOOKUP($CX22,'Audit Values'!$A:$BW,2,FALSE)),'Preliminary SO66'!F21,VLOOKUP($CX22,'Audit Values'!$A$2:$BW$936,4,FALSE)) -> 0 | R22: 2406 | S22: =IF('Military Provision'!J22="YES", MAX('2022 Legal Max'!O22,'2022 Legal Max'!K22,AVERAGE('2022 Legal Max'!G22,'2022 Legal Max'!K22,'2022 Legal Max'!O22)), MAX(O22, K22)) -> 2621.5 | T22: =IF(ISNA(VLOOKUP($CX22,'Audit Values'!$A:$BU,2,FALSE)),'Preliminary SO66'!AL21,VLOOKUP($CX22,'Audit Values'!$A:$BU,58,FALSE)) -> 20 | U22: 2641.5 | V22: 92.6 | W22: =IF(ISNA(VLOOKUP($CX22,'Audit Values'!$A:$BW,2,FALSE)),'Preliminary SO66'!AM21,VLOOKUP($CX22,'Audit Values'!$A:$BW,62,FALSE)) -> 322.9 | X22: =(W22/6)*'Weighting Factors'!$O$7 -> 21.3 | Y22: =IF(ISNA(VLOOKUP($CX22,'Audit Values'!$A:$BW,2,FALSE)),'Preliminary SO66'!AN21,VLOOKUP($CX22,'Audit Values'!$A:$BW,61,FALSE)) -> 138 | Z22: =Y22*'Weighting Factors'!$O$8 -> 25.5 | AA22: 25.5 | AB22: =IF(ISNA(VLOOKUP($CX22,'Audit Values'!$A:$BW,2,FALSE)),'Preliminary SO66'!AO21,VLOOKUP($CX22,'Audit Values'!$A:$BW,60,FALSE)) -> 695.2 | AC22: =AB22/6*'Weighting Factors'!$O$6 -> 57.9 | AD22: =IF(ISNA(VLOOKUP($CX22,'Audit Values'!$A:$BU,2,FALSE)),'Preliminary SO66'!AS21,VLOOKUP($CX22,'Audit Values'!$A:$BU,63,FALSE)) -> 2461 | AE22: =IF(ISNA(VLOOKUP($CX22,'Audit Values'!$A:$BU,2,FALSE)),'Preliminary SO66'!AP21,VLOOKUP($CX22,'Audit Values'!$A:$BU,64,FALSE)) -> 869 | AF22: =IF(A22=207, AE22,(AE22))*'Weighting Factors'!$O$9 -> 420.6 | AG22: 1.9 | AH22: =IF(ISNA(VLOOKUP($CX22,'Audit Values'!$A:$BW,2,FALSE)),'Preliminary SO66'!AG21,VLOOKUP($CX22,'Audit Values'!$A:$BW,70,FALSE)) -> 14.2 | AI22: 14.2 | AJ22: =IF(ISNA(VLOOKUP($CX22,'Audit Values'!$A:$BU,2,FALSE)),'Preliminary SO66'!AQ21,VLOOKUP($CX22,'Audit Values'!$A:$BU,65,FALSE)) -> 0 | AK22: =AJ22*'Weighting Factors'!$O$10 -> 0 | AL22: =IF(ISNA(VLOOKUP($CX22,'Audit Values'!$A:$BU,2,FALSE)),'Preliminary SO66'!AR21,VLOOKUP($CX22,'Audit Values'!$A:$BU,66,FALSE)) -> 390 | AM22: 277616 | AN22: =AM22/'Weighting Factors'!$O$5 -> 59 | AO22: =CK22/'Weighting Factors'!$O$5 -> 0 | AP22: =CO22/'Weighting Factors'!$O$5 -> 0 | AQ22: 3275896 | AR22: =AQ22/'Weighting Factors'!$O$5 -> 696.1 | AS22: =IF(ISNA(VLOOKUP($CX22,'Audit Values'!$A:$BU,2,FALSE)),'Preliminary SO66'!X21,VLOOKUP($CX22,'Audit Values'!$A:$BU,47,FALSE)) -> 0 | AT22: 4007.4 | AU22: 3311.3 | AV22: =IF(ISNA(VLOOKUP($CX22,'Audit Values'!$A$2:$BU$917,2,FALSE)),'Preliminary SO66'!AA21,VLOOKUP($CX22,'Audit Values'!$A$2:$BU$917,41,FALSE)) -> 12 | AW22: =IF(ISNA(VLOOKUP($CX22,'Audit Values'!$A$2:$BU$917,2,FALSE)),'Preliminary SO66'!AB21,VLOOKUP($CX22,'Audit Values'!$A$2:$BU$917,42,FALSE)) -> 3.9 | AX22: 60 | AY22: =SUM(AV22*'Weighting Factors'!$R$10)+('2022 Legal Max'!AW22*'Weighting Factors'!$R$11)+('2022 Legal Max'!AX22*'Weighting Factors'!$R$12) -> 109170 | AZ22: =IF(ISNA(VLOOKUP($CX22,'Audit Values'!$A$2:$BU$936,2,FALSE)),"",IF(AND('Weighting Factors'!F22>0,VLOOKUP($CX22,'Audit Values'!$A$2:$BU$936,51,FALSE)<'Weighting Factors'!F22),'Weighting Factors'!F22,VLOOKUP($CX22,'Audit Values'!$A$2:$BU$936,50,FALSE))) -> 20 | BA22: =IF(ISNA(VLOOKUP($CX22,'Audit Values'!$A:$BV,2,FALSE)),"",VLOOKUP($CX22,'Audit Values'!$A:$BV,51,FALSE)) -> A | BB22: =IF('Weighting Factors'!F22="","",IF('Weighting Factors'!H22="Pending","PX","R")) ->  | BC22: =SUM((U22+V22+AA22+AC22+AF22+AI22+AK22++AN22+AO22+AS22+AP22)*'Weighting Factors'!$O$5)+'2022 Legal Max'!AY22 -> 15692148 | BD22: =SUM((AT22+AP22)*'Weighting Factors'!$O$5)+AY22 -> 18967994 | BE22: =IF('Weighting Factors'!F22>0,'Weighting Factors'!F22,'Preliminary SO66'!AV21) -> 20124160 | BF22: 18967994 | BG22: ='Weighting Factors'!E22 -> 0 | BH22: =Transportation!G22 -> 0 | BI22: =IF(ISNA(VLOOKUP($CX22,'Audit Values'!$A$2:$BT$511,2,FALSE)), 0, VLOOKUP($CX22,'Audit Values'!$A$2:$BT$511,72,FALSE)) -> -2836 | BJ22: -2836 | BK22: 18965158 | BL22: =SUM((U22+V22+AA22+AC22+AF22+AI22+AK22+AN22+AO22+AP22)*'Weighting Factors'!O$12)+(MAX(AQ22,'Weighting Factors'!B22)) -> 18858874 | BM22: ='LOB%'!F20 -> 0.33 | BN22: 6223428 | BO22: 6489022 | BP22: 6223428 | BQ22: 0.33 | BR22: =ROUND(IF(U22<=99.9,(U22*1.014331),0),1) -> 0 | BS22: =AND(U22>99.9,U22<=299.9) -> FALSE | BT22: =IF(BS22=TRUE,ROUND((U22-100)*9.655,3),0) -> 0 | BU22: 0 | BV22: =ROUND(BU22*U22,1) -> 0 | BW22: =AND(U22>299.9,U22<=1621.9) -> FALSE | BX22: =IF(BW22=TRUE,ROUND((U22-300)*1.2375,4),0) -> 0 | BY22: 0 | BZ22: =ROUND(BY22*U22,1) -> 0 | CA22: =ROUND(IF(U22>=1622,(U22*0.03504),0),1) -> 92.6 | CB22: 38 | CC22: =AL22/CB22 -> 10.263 | CD22: =IF(CC22<0.06,1,IF(CC22>=18.29,52,MATCH(CC22-0.001,'Weighting Factors'!$W$5:$W$156)+1)) -> 48 | CE22: =VLOOKUP(CD22, 'Weighting Factors'!$U$5:$X$56,4) -> 630 | CF22: =('Weighting Factors'!$O$5/'Weighting Factors'!$O$14) -> 1.1299 | CG22: =AL22*CE22 -> 245700 | CH22: =CG22*'Weighting Factors'!$Q$7 -> 245700 | CI22: 277616 | CJ22: =AM22/'Weighting Factors'!$O$5 -> 59 | CK22: 0 | CL22: 0 | CM22: 0 | CN22: =SUM((AT22*'Weighting Factors'!$O$5)+'2022 Legal Max'!AY22)*CM22 -> 0 | CO22: 0 | CP22: =AE22/AD22 -> 0.3531 | CQ22: =IF(CP22>=50%,AE22*10.5%,0) -> 0 | CR22: =IF(AND(CP22>35%,CP22<50%),AE22*(CP22-35%)*0.7,0) -> 1.9 | CS22: =AU22+AR22 -> 4007.4 | CT22: ='LOB Transfers'!G21 -> 656572 | CU22: ='LOB Transfers'!J21 -> 39830 | CV22: ='General Fund Transfers'!F21 -> 2046169 | CW22: =SUM(R22+T22+AV22+AW22+AX22/6) -> 2451.9 | CX22: D0204
A23: 205 | B23: Butler | C23: Bluestem | D23: 496 | F23: 0 | G23: 496 | H23: 483.2 | J23: 0 | K23: 483.2 | L23: 476.6 | N23: 0 | O23: 476.6 | P23: =IF(ISNA(VLOOKUP($CX23,'Audit Values'!$A:$BW,2,FALSE)),'Preliminary SO66'!C22,VLOOKUP($CX23,'Audit Values'!$A:$BW,73,FALSE)) -> 505 | Q23: =IF(ISNA(VLOOKUP($CX23,'Audit Values'!$A:$BW,2,FALSE)),'Preliminary SO66'!F22,VLOOKUP($CX23,'Audit Values'!$A$2:$BW$936,4,FALSE)) -> 0 | R23: 505 | S23: =IF('Military Provision'!J23="YES", MAX('2022 Legal Max'!O23,'2022 Legal Max'!K23,AVERAGE('2022 Legal Max'!G23,'2022 Legal Max'!K23,'2022 Legal Max'!O23)), MAX(O23, K23)) -> 483.2 | T23: =IF(ISNA(VLOOKUP($CX23,'Audit Values'!$A:$BU,2,FALSE)),'Preliminary SO66'!AL22,VLOOKUP($CX23,'Audit Values'!$A:$BU,58,FALSE)) -> 0 | U23: 483.2 | V23: 203.9 | W23: =IF(ISNA(VLOOKUP($CX23,'Audit Values'!$A:$BW,2,FALSE)),'Preliminary SO66'!AM22,VLOOKUP($CX23,'Audit Values'!$A:$BW,62,FALSE)) -> 0 | X23: =(W23/6)*'Weighting Factors'!$O$7 -> 0 | Y23: =IF(ISNA(VLOOKUP($CX23,'Audit Values'!$A:$BW,2,FALSE)),'Preliminary SO66'!AN22,VLOOKUP($CX23,'Audit Values'!$A:$BW,61,FALSE)) -> 5 | Z23: =Y23*'Weighting Factors'!$O$8 -> 0.9 | AA23: 0.9 | AB23: =IF(ISNA(VLOOKUP($CX23,'Audit Values'!$A:$BW,2,FALSE)),'Preliminary SO66'!AO22,VLOOKUP($CX23,'Audit Values'!$A:$BW,60,FALSE)) -> 226.3 | AC23: =AB23/6*'Weighting Factors'!$O$6 -> 18.9 | AD23: =IF(ISNA(VLOOKUP($CX23,'Audit Values'!$A:$BU,2,FALSE)),'Preliminary SO66'!AS22,VLOOKUP($CX23,'Audit Values'!$A:$BU,63,FALSE)) -> 512 | AE23: =IF(ISNA(VLOOKUP($CX23,'Audit Values'!$A:$BU,2,FALSE)),'Preliminary SO66'!AP22,VLOOKUP($CX23,'Audit Values'!$A:$BU,64,FALSE)) -> 162 | AF23: =IF(A23=207, AE23,(AE23))*'Weighting Factors'!$O$9 -> 78.4 | AG23: 0 | AH23: =IF(ISNA(VLOOKUP($CX23,'Audit Values'!$A:$BW,2,FALSE)),'Preliminary SO66'!AG22,VLOOKUP($CX23,'Audit Values'!$A:$BW,70,FALSE)) -> 0 | AI23: 0 | AJ23: =IF(ISNA(VLOOKUP($CX23,'Audit Values'!$A:$BU,2,FALSE)),'Preliminary SO66'!AQ22,VLOOKUP($CX23,'Audit Values'!$A:$BU,65,FALSE)) -> 0 | AK23: =AJ23*'Weighting Factors'!$O$10 -> 0 | AL23: =IF(ISNA(VLOOKUP($CX23,'Audit Values'!$A:$BU,2,FALSE)),'Preliminary SO66'!AR22,VLOOKUP($CX23,'Audit Values'!$A:$BU,66,FALSE)) -> 290.5 | AM23: 324954 | AN23: =AM23/'Weighting Factors'!$O$5 -> 69.1 | AO23: =CK23/'Weighting Factors'!$O$5 -> 0 | AP23: =CO23/'Weighting Factors'!$O$5 -> 0 | AQ23: 544061 | AR23: =AQ23/'Weighting Factors'!$O$5 -> 115.6 | AS23: =IF(ISNA(VLOOKUP($CX23,'Audit Values'!$A:$BU,2,FALSE)),'Preliminary SO66'!X22,VLOOKUP($CX23,'Audit Values'!$A:$BU,47,FALSE)) -> 0 | AT23: 970 | AU23: 854.4 | AV23: =IF(ISNA(VLOOKUP($CX23,'Audit Values'!$A$2:$BU$917,2,FALSE)),'Preliminary SO66'!AA22,VLOOKUP($CX23,'Audit Values'!$A$2:$BU$917,41,FALSE)) -> 0 | AW23: =IF(ISNA(VLOOKUP($CX23,'Audit Values'!$A$2:$BU$917,2,FALSE)),'Preliminary SO66'!AB22,VLOOKUP($CX23,'Audit Values'!$A$2:$BU$917,42,FALSE)) -> 0 | AX23: 0 | AY23: =SUM(AV23*'Weighting Factors'!$R$10)+('2022 Legal Max'!AW23*'Weighting Factors'!$R$11)+('2022 Legal Max'!AX23*'Weighting Factors'!$R$12) -> 0 | AZ23: =IF(ISNA(VLOOKUP($CX23,'Audit Values'!$A$2:$BU$936,2,FALSE)),"",IF(AND('Weighting Factors'!F23>0,VLOOKUP($CX23,'Audit Values'!$A$2:$BU$936,51,FALSE)<'Weighting Factors'!F23),'Weighting Factors'!F23,VLOOKUP($CX23,'Audit Values'!$A$2:$BU$936,50,FALSE))) -> 11 | BA23: =IF(ISNA(VLOOKUP($CX23,'Audit Values'!$A:$BV,2,FALSE)),"",VLOOKUP($CX23,'Audit Values'!$A:$BV,51,FALSE)) -> A | BC23: =SUM((U23+V23+AA23+AC23+AF23+AI23+AK23++AN23+AO23+AS23+AP23)*'Weighting Factors'!$O$5)+'2022 Legal Max'!AY23 -> 4020806 | BD23: =SUM((AT23+AP23)*'Weighting Factors'!$O$5)+AY23 -> 4564820 | BE23: =IF('Weighting Factors'!F23>0,'Weighting Factors'!F23,'Preliminary SO66'!AV22) -> 4615820 | BF23: 4564820 | BG23: ='Weighting Factors'!E23 -> 0 | BH23: =Transportation!G23 -> -130195 | BI23: =IF(ISNA(VLOOKUP($CX23,'Audit Values'!$A$2:$BT$511,2,FALSE)), 0, VLOOKUP($CX23,'Audit Values'!$A$2:$BT$511,72,FALSE)) -> 0 | BJ23: -130195 | BK23: 4434625 | BL23: =SUM((U23+V23+AA23+AC23+AF23+AI23+AK23+AN23+AO23+AP23)*'Weighting Factors'!O$12)+(MAX(AQ23,'Weighting Factors'!B23)) -> 4627280 | BM23: ='LOB%'!F21 -> 0.33 | BN23: 1527002 | BO23: 1511622 | BP23: 1511622 | BQ23: 0.3267 | BR23: =ROUND(IF(U23<=99.9,(U23*1.014331),0),1) -> 0 | BS23: =AND(U23>99.9,U23<=299.9) -> FALSE | BT23: =IF(BS23=TRUE,ROUND((U23-100)*9.655,3),0) -> 0 | BU23: 0 | BV23: =ROUND(BU23*U23,1) -> 0 | BW23: =AND(U23>299.9,U23<=1621.9) -> TRUE | BX23: =IF(BW23=TRUE,ROUND((U23-300)*1.2375,4),0) -> 226.71 | BY23: 0.421944 | BZ23: =ROUND(BY23*U23,1) -> 203.9 | CA23: =ROUND(IF(U23>=1622,(U23*0.03504),0),1) -> 0 | CB23: 348.6 | CC23: =AL23/CB23 -> 0.833 | CD23: =IF(CC23<0.06,1,IF(CC23>=18.29,52,MATCH(CC23-0.001,'Weighting Factors'!$W$5:$W$156)+1)) -> 30 | CE23: =VLOOKUP(CD23, 'Weighting Factors'!$U$5:$X$56,4) -> 990 | CF23: =('Weighting Factors'!$O$5/'Weighting Factors'!$O$14) -> 1.1299 | CG23: =AL23*CE23 -> 287595 | CH23: =CG23*'Weighting Factors'!$Q$7 -> 287595 | CI23: 324954 | CJ23: =AM23/'Weighting Factors'!$O$5 -> 69.1 | CK23: 0 | CL23: 0 | CM23: 0 | CN23: =SUM((AT23*'Weighting Factors'!$O$5)+'2022 Legal Max'!AY23)*CM23 -> 0 | CO23: 0 | CP23: =AE23/AD23 -> 0.3164 | CQ23: =IF(CP23>=50%,AE23*10.5%,0) -> 0 | CR23: =IF(AND(CP23>35%,CP23<50%),AE23*(CP23-35%)*0.7,0) -> 0 | CS23: =AU23+AR23 -> 970 | CT23: ='LOB Transfers'!G22 -> 122139 | CU23: ='LOB Transfers'!J22 -> 1360 | CV23: ='General Fund Transfers'!F22 -> 368950 | CW23: =SUM(R23+T23+AV23+AW23+AX23/6) -> 505 | CX23: D0205
A24: 206 | B24: Butler | C24: Remington-Whitewater | D24: 492.9 | F24: 0 | G24: 492.9 | H24: 460.8 | J24: 0 | K24: 460.8 | L24: 454 | N24: 0 | O24: 454 | P24: =IF(ISNA(VLOOKUP($CX24,'Audit Values'!$A:$BW,2,FALSE)),'Preliminary SO66'!C23,VLOOKUP($CX24,'Audit Values'!$A:$BW,73,FALSE)) -> 464.5 | Q24: =IF(ISNA(VLOOKUP($CX24,'Audit Values'!$A:$BW,2,FALSE)),'Preliminary SO66'!F23,VLOOKUP($CX24,'Audit Values'!$A$2:$BW$936,4,FALSE)) -> 0 | R24: 464.5 | S24: =IF('Military Provision'!J24="YES", MAX('2022 Legal Max'!O24,'2022 Legal Max'!K24,AVERAGE('2022 Legal Max'!G24,'2022 Legal Max'!K24,'2022 Legal Max'!O24)), MAX(O24, K24)) -> 460.8 | T24: =IF(ISNA(VLOOKUP($CX24,'Audit Values'!$A:$BU,2,FALSE)),'Preliminary SO66'!AL23,VLOOKUP($CX24,'Audit Values'!$A:$BU,58,FALSE)) -> 3.5 | U24: 464.3 | V24: 198.9 | W24: =IF(ISNA(VLOOKUP($CX24,'Audit Values'!$A:$BW,2,FALSE)),'Preliminary SO66'!AM23,VLOOKUP($CX24,'Audit Values'!$A:$BW,62,FALSE)) -> 17.6 | X24: =(W24/6)*'Weighting Factors'!$O$7 -> 1.2 | Y24: =IF(ISNA(VLOOKUP($CX24,'Audit Values'!$A:$BW,2,FALSE)),'Preliminary SO66'!AN23,VLOOKUP($CX24,'Audit Values'!$A:$BW,61,FALSE)) -> 11 | Z24: =Y24*'Weighting Factors'!$O$8 -> 2 | AA24: 2 | AB24: =IF(ISNA(VLOOKUP($CX24,'Audit Values'!$A:$BW,2,FALSE)),'Preliminary SO66'!AO23,VLOOKUP($CX24,'Audit Values'!$A:$BW,60,FALSE)) -> 125.9 | AC24: =AB24/6*'Weighting Factors'!$O$6 -> 10.5 | AD24: =IF(ISNA(VLOOKUP($CX24,'Audit Values'!$A:$BU,2,FALSE)),'Preliminary SO66'!AS23,VLOOKUP($CX24,'Audit Values'!$A:$BU,63,FALSE)) -> 473 | AE24: =IF(ISNA(VLOOKUP($CX24,'Audit Values'!$A:$BU,2,FALSE)),'Preliminary SO66'!AP23,VLOOKUP($CX24,'Audit Values'!$A:$BU,64,FALSE)) -> 119 | AF24: =IF(A24=207, AE24,(AE24))*'Weighting Factors'!$O$9 -> 57.6 | AG24: 0 | AH24: =IF(ISNA(VLOOKUP($CX24,'Audit Values'!$A:$BW,2,FALSE)),'Preliminary SO66'!AG23,VLOOKUP($CX24,'Audit Values'!$A:$BW,70,FALSE)) -> 0 | AI24: 0 | AJ24: =IF(ISNA(VLOOKUP($CX24,'Audit Values'!$A:$BU,2,FALSE)),'Preliminary SO66'!AQ23,VLOOKUP($CX24,'Audit Values'!$A:$BU,65,FALSE)) -> 0 | AK24: =AJ24*'Weighting Factors'!$O$10 -> 0 | AL24: =IF(ISNA(VLOOKUP($CX24,'Audit Values'!$A:$BU,2,FALSE)),'Preliminary SO66'!AR23,VLOOKUP($CX24,'Audit Values'!$A:$BU,66,FALSE)) -> 295.5 | AM24: 310513 | AN24: =AM24/'Weighting Factors'!$O$5 -> 66 | AO24: =CK24/'Weighting Factors'!$O$5 -> 0 | AP24: =CO24/'Weighting Factors'!$O$5 -> 0 | AQ24: 507241 | AR24: =AQ24/'Weighting Factors'!$O$5 -> 107.8 | AS24: =IF(ISNA(VLOOKUP($CX24,'Audit Values'!$A:$BU,2,FALSE)),'Preliminary SO66'!X23,VLOOKUP($CX24,'Audit Values'!$A:$BU,47,FALSE)) -> 0 | AT24: 907.1 | AU24: 799.3 | AV24: =IF(ISNA(VLOOKUP($CX24,'Audit Values'!$A$2:$BU$917,2,FALSE)),'Preliminary SO66'!AA23,VLOOKUP($CX24,'Audit Values'!$A$2:$BU$917,41,FALSE)) -> 0 | AW24: =IF(ISNA(VLOOKUP($CX24,'Audit Values'!$A$2:$BU$917,2,FALSE)),'Preliminary SO66'!AB23,VLOOKUP($CX24,'Audit Values'!$A$2:$BU$917,42,FALSE)) -> 0 | AX24: 0 | AY24: =SUM(AV24*'Weighting Factors'!$R$10)+('2022 Legal Max'!AW24*'Weighting Factors'!$R$11)+('2022 Legal Max'!AX24*'Weighting Factors'!$R$12) -> 0 | AZ24: =IF(ISNA(VLOOKUP($CX24,'Audit Values'!$A$2:$BU$936,2,FALSE)),"",IF(AND('Weighting Factors'!F24>0,VLOOKUP($CX24,'Audit Values'!$A$2:$BU$936,51,FALSE)<'Weighting Factors'!F24),'Weighting Factors'!F24,VLOOKUP($CX24,'Audit Values'!$A$2:$BU$936,50,FALSE))) -> 13 | BA24: =IF(ISNA(VLOOKUP($CX24,'Audit Values'!$A:$BV,2,FALSE)),"",VLOOKUP($CX24,'Audit Values'!$A:$BV,51,FALSE)) -> A | BB24: =IF('Weighting Factors'!F24="","",IF('Weighting Factors'!H24="Pending","PX","R")) ->  | BC24: =SUM((U24+V24+AA24+AC24+AF24+AI24+AK24++AN24+AO24+AS24+AP24)*'Weighting Factors'!$O$5)+'2022 Legal Max'!AY24 -> 3761506 | BD24: =SUM((AT24+AP24)*'Weighting Factors'!$O$5)+AY24 -> 4268813 | BE24: =IF('Weighting Factors'!F24>0,'Weighting Factors'!F24,'Preliminary SO66'!AV23) -> 4480583 | BF24: 4268813 | BG24: ='Weighting Factors'!E24 -> 0 | BH24: =Transportation!G24 -> 0 | BI24: =IF(ISNA(VLOOKUP($CX24,'Audit Values'!$A$2:$BT$511,2,FALSE)), 0, VLOOKUP($CX24,'Audit Values'!$A$2:$BT$511,72,FALSE)) -> 0 | BJ24: 0 | BK24: 4268813 | BL24: =SUM((U24+V24+AA24+AC24+AF24+AI24+AK24+AN24+AO24+AP24)*'Weighting Factors'!O$12)+(MAX(AQ24,'Weighting Factors'!B24)) -> 4293214 | BM24: ='LOB%'!F22 -> 0.33 | BN24: 1416761 | BO24: 1478602 | BP24: 1416761 | BQ24: 0.33 | BR24: =ROUND(IF(U24<=99.9,(U24*1.014331),0),1) -> 0 | BS24: =AND(U24>99.9,U24<=299.9) -> FALSE | BT24: =IF(BS24=TRUE,ROUND((U24-100)*9.655,3),0) -> 0 | BU24: 0 | BV24: =ROUND(BU24*U24,1) -> 0 | BW24: =AND(U24>299.9,U24<=1621.9) -> TRUE | BX24: =IF(BW24=TRUE,ROUND((U24-300)*1.2375,4),0) -> 203.3213 | BY24: 0.428366 | BZ24: =ROUND(BY24*U24,1) -> 198.9 | CA24: =ROUND(IF(U24>=1622,(U24*0.03504),0),1) -> 0 | CB24: 253 | CC24: =AL24/CB24 -> 1.168 | CD24: =IF(CC24<0.06,1,IF(CC24>=18.29,52,MATCH(CC24-0.001,'Weighting Factors'!$W$5:$W$156)+1)) -> 33 | CE24: =VLOOKUP(CD24, 'Weighting Factors'!$U$5:$X$56,4) -> 930 | CF24: =('Weighting Factors'!$O$5/'Weighting Factors'!$O$14) -> 1.1299 | CG24: =AL24*CE24 -> 274815 | CH24: =CG24*'Weighting Factors'!$Q$7 -> 274815 | CI24: 310513 | CJ24: =AM24/'Weighting Factors'!$O$5 -> 66 | CK24: 0 | CL24: 0 | CM24: 0 | CN24: =SUM((AT24*'Weighting Factors'!$O$5)+'2022 Legal Max'!AY24)*CM24 -> 0 | CO24: 0 | CP24: =AE24/AD24 -> 0.2516 | CQ24: =IF(CP24>=50%,AE24*10.5%,0) -> 0 | CR24: =IF(AND(CP24>35%,CP24<50%),AE24*(CP24-35%)*0.7,0) -> 0 | CS24: =AU24+AR24 -> 907.1 | CT24: ='LOB Transfers'!G23 -> 90248 | CU24: ='LOB Transfers'!J23 -> 3117 | CV24: ='General Fund Transfers'!F23 -> 271066 | CW24: =SUM(R24+T24+AV24+AW24+AX24/6) -> 468 | CX24: D0206
A25: 207 | B25: Leavenworth | C25: Fort Leavenworth | D25: 1695.5 | F25: 61 | G25: 1756.5 | H25: 1649.2 | J25: 66.8 | K25: 1716 | L25: 1350.8 | N25: 78.5 | O25: 1429.3 | P25: =IF(ISNA(VLOOKUP($CX25,'Audit Values'!$A:$BW,2,FALSE)),'Preliminary SO66'!C24,VLOOKUP($CX25,'Audit Values'!$A:$BW,73,FALSE)) -> 1434.6 | Q25: =IF(ISNA(VLOOKUP($CX25,'Audit Values'!$A:$BW,2,FALSE)),'Preliminary SO66'!F24,VLOOKUP($CX25,'Audit Values'!$A$2:$BW$936,4,FALSE)) -> 19.1 | R25: 1453.7 | S25: =IF('Military Provision'!J25="YES", MAX('2022 Legal Max'!O25,'2022 Legal Max'!K25,AVERAGE('2022 Legal Max'!G25,'2022 Legal Max'!K25,'2022 Legal Max'!O25)), MAX(O25, K25)) -> 1716 | T25: =IF(ISNA(VLOOKUP($CX25,'Audit Values'!$A:$BU,2,FALSE)),'Preliminary SO66'!AL24,VLOOKUP($CX25,'Audit Values'!$A:$BU,58,FALSE)) -> 0 | U25: 1716 | V25: 60.1 | W25: =IF(ISNA(VLOOKUP($CX25,'Audit Values'!$A:$BW,2,FALSE)),'Preliminary SO66'!AM24,VLOOKUP($CX25,'Audit Values'!$A:$BW,62,FALSE)) -> 31.1 | X25: =(W25/6)*'Weighting Factors'!$O$7 -> 2 | Y25: =IF(ISNA(VLOOKUP($CX25,'Audit Values'!$A:$BW,2,FALSE)),'Preliminary SO66'!AN24,VLOOKUP($CX25,'Audit Values'!$A:$BW,61,FALSE)) -> 74 | Z25: =Y25*'Weighting Factors'!$O$8 -> 13.7 | AA25: 13.7 | AB25: =IF(ISNA(VLOOKUP($CX25,'Audit Values'!$A:$BW,2,FALSE)),'Preliminary SO66'!AO24,VLOOKUP($CX25,'Audit Values'!$A:$BW,60,FALSE)) -> 0 | AC25: =AB25/6*'Weighting Factors'!$O$6 -> 0 | AD25: =IF(ISNA(VLOOKUP($CX25,'Audit Values'!$A:$BU,2,FALSE)),'Preliminary SO66'!AS24,VLOOKUP($CX25,'Audit Values'!$A:$BU,63,FALSE)) -> 1465 | AE25: =IF(ISNA(VLOOKUP($CX25,'Audit Values'!$A:$BU,2,FALSE)),'Preliminary SO66'!AP24,VLOOKUP($CX25,'Audit Values'!$A:$BU,64,FALSE)) -> 3 | AF25: =IF(A25=207, AE25,(AE25))*'Weighting Factors'!$O$9 -> 1.5 | AG25: 0 | AH25: =IF(ISNA(VLOOKUP($CX25,'Audit Values'!$A:$BW,2,FALSE)),'Preliminary SO66'!AG24,VLOOKUP($CX25,'Audit Values'!$A:$BW,70,FALSE)) -> 0 | AI25: 0 | AJ25: =IF(ISNA(VLOOKUP($CX25,'Audit Values'!$A:$BU,2,FALSE)),'Preliminary SO66'!AQ24,VLOOKUP($CX25,'Audit Values'!$A:$BU,65,FALSE)) -> 0 | AK25: =AJ25*'Weighting Factors'!$O$10 -> 0 | AL25: =IF(ISNA(VLOOKUP($CX25,'Audit Values'!$A:$BU,2,FALSE)),'Preliminary SO66'!AR24,VLOOKUP($CX25,'Audit Values'!$A:$BU,66,FALSE)) -> 150 | AM25: 96606 | AN25: =AM25/'Weighting Factors'!$O$5 -> 20.5 | AO25: =CK25/'Weighting Factors'!$O$5 -> 0 | AP25: =CO25/'Weighting Factors'!$O$5 -> 0 | AQ25: 1100297 | AR25: =AQ25/'Weighting Factors'!$O$5 -> 233.8 | AS25: =IF(ISNA(VLOOKUP($CX25,'Audit Values'!$A:$BU,2,FALSE)),'Preliminary SO66'!X24,VLOOKUP($CX25,'Audit Values'!$A:$BU,47,FALSE)) -> 0 | AT25: 2045.6 | AU25: 1811.8 | AV25: =IF(ISNA(VLOOKUP($CX25,'Audit Values'!$A$2:$BU$917,2,FALSE)),'Preliminary SO66'!AA24,VLOOKUP($CX25,'Audit Values'!$A$2:$BU$917,41,FALSE)) -> 1 | AW25: =IF(ISNA(VLOOKUP($CX25,'Audit Values'!$A$2:$BU$917,2,FALSE)),'Preliminary SO66'!AB24,VLOOKUP($CX25,'Audit Values'!$A$2:$BU$917,42,FALSE)) -> 0 | AX25: 0 | AY25: =SUM(AV25*'Weighting Factors'!$R$10)+('2022 Legal Max'!AW25*'Weighting Factors'!$R$11)+('2022 Legal Max'!AX25*'Weighting Factors'!$R$12) -> 5000 | AZ25: =IF(ISNA(VLOOKUP($CX25,'Audit Values'!$A$2:$BU$936,2,FALSE)),"",IF(AND('Weighting Factors'!F25>0,VLOOKUP($CX25,'Audit Values'!$A$2:$BU$936,51,FALSE)<'Weighting Factors'!F25),'Weighting Factors'!F25,VLOOKUP($CX25,'Audit Values'!$A$2:$BU$936,50,FALSE))) -> 21 | BA25: =IF(ISNA(VLOOKUP($CX25,'Audit Values'!$A:$BV,2,FALSE)),"",VLOOKUP($CX25,'Audit Values'!$A:$BV,51,FALSE)) -> A | BB25: =IF('Weighting Factors'!F25="","",IF('Weighting Factors'!H25="Pending","PX","R")) ->  | BC25: =SUM((U25+V25+AA25+AC25+AF25+AI25+AK25++AN25+AO25+AS25+AP25)*'Weighting Factors'!$O$5)+'2022 Legal Max'!AY25 -> 8531331 | BD25: =SUM((AT25+AP25)*'Weighting Factors'!$O$5)+AY25 -> 9631594 | BE25: =IF('Weighting Factors'!F25>0,'Weighting Factors'!F25,'Preliminary SO66'!AV24) -> 10152651 | BF25: 9631594 | BG25: ='Weighting Factors'!E25 -> 0 | BH25: =Transportation!G25 -> 0 | BI25: =IF(ISNA(VLOOKUP($CX25,'Audit Values'!$A$2:$BT$511,2,FALSE)), 0, VLOOKUP($CX25,'Audit Values'!$A$2:$BT$511,72,FALSE)) -> 0 | BJ25: 0 | BK25: 9631594 | BL25: =SUM((U25+V25+AA25+AC25+AF25+AI25+AK25+AN25+AO25+AP25)*'Weighting Factors'!O$12)+(MAX(AQ25,'Weighting Factors'!B25)) -> 9765931 | BM25: ='LOB%'!F23 -> 0.33 | BN25: 3222757 | BO25: 3279450 | BP25: 3222757 | BQ25: 0.33 | BR25: =ROUND(IF(U25<=99.9,(U25*1.014331),0),1) -> 0 | BS25: =AND(U25>99.9,U25<=299.9) -> FALSE | BT25: =IF(BS25=TRUE,ROUND((U25-100)*9.655,3),0) -> 0 | BU25: 0 | BV25: =ROUND(BU25*U25,1) -> 0 | BW25: =AND(U25>299.9,U25<=1621.9) -> FALSE | BX25: =IF(BW25=TRUE,ROUND((U25-300)*1.2375,4),0) -> 0 | BY25: 0 | BZ25: =ROUND(BY25*U25,1) -> 0 | CA25: =ROUND(IF(U25>=1622,(U25*0.03504),0),1) -> 60.1 | CB25: 8.5 | CC25: =AL25/CB25 -> 17.647 | CD25: =IF(CC25<0.06,1,IF(CC25>=18.29,52,MATCH(CC25-0.001,'Weighting Factors'!$W$5:$W$156)+1)) -> 51 | CE25: =VLOOKUP(CD25, 'Weighting Factors'!$U$5:$X$56,4) -> 570 | CF25: =('Weighting Factors'!$O$5/'Weighting Factors'!$O$14) -> 1.1299 | CG25: =AL25*CE25 -> 85500 | CH25: =CG25*'Weighting Factors'!$Q$7 -> 85500 | CI25: 96606 | CJ25: =AM25/'Weighting Factors'!$O$5 -> 20.5 | CK25: 0 | CL25: 0 | CM25: 0 | CN25: =SUM((AT25*'Weighting Factors'!$O$5)+'2022 Legal Max'!AY25)*CM25 -> 0 | CO25: 0 | CP25: =AE25/AD25 -> 0.002 | CQ25: =IF(CP25>=50%,AE25*10.5%,0) -> 0 | CR25: =IF(AND(CP25>35%,CP25<50%),AE25*(CP25-35%)*0.7,0) -> 0 | CS25: =AU25+AR25 -> 2045.6 | CT25: ='LOB Transfers'!G24 -> 2256 | CU25: ='LOB Transfers'!J24 -> 21592 | CV25: ='General Fund Transfers'!F24 -> 7059 | CW25: =SUM(R25+T25+AV25+AW25+AX25/6) -> 1454.7 | CX25: D0207
A26: 208 | B26: Trego | C26: Wakeeney | D26: 375.5 | F26: 0 | G26: 375.5 | H26: 384.5 | J26: 0 | K26: 384.5 | L26: 355.1 | N26: 0 | O26: 355.1 | P26: =IF(ISNA(VLOOKUP($CX26,'Audit Values'!$A:$BW,2,FALSE)),'Preliminary SO66'!C25,VLOOKUP($CX26,'Audit Values'!$A:$BW,73,FALSE)) -> 366.8 | Q26: =IF(ISNA(VLOOKUP($CX26,'Audit Values'!$A:$BW,2,FALSE)),'Preliminary SO66'!F25,VLOOKUP($CX26,'Audit Values'!$A$2:$BW$936,4,FALSE)) -> 0 | R26: 366.8 | S26: =IF('Military Provision'!J26="YES", MAX('2022 Legal Max'!O26,'2022 Legal Max'!K26,AVERAGE('2022 Legal Max'!G26,'2022 Legal Max'!K26,'2022 Legal Max'!O26)), MAX(O26, K26)) -> 384.5 | T26: =IF(ISNA(VLOOKUP($CX26,'Audit Values'!$A:$BU,2,FALSE)),'Preliminary SO66'!AL25,VLOOKUP($CX26,'Audit Values'!$A:$BU,58,FALSE)) -> 3 | U26: 387.5 | V26: 176.1 | W26: =IF(ISNA(VLOOKUP($CX26,'Audit Values'!$A:$BW,2,FALSE)),'Preliminary SO66'!AM25,VLOOKUP($CX26,'Audit Values'!$A:$BW,62,FALSE)) -> 0 | X26: =(W26/6)*'Weighting Factors'!$O$7 -> 0 | Y26: =IF(ISNA(VLOOKUP($CX26,'Audit Values'!$A:$BW,2,FALSE)),'Preliminary SO66'!AN25,VLOOKUP($CX26,'Audit Values'!$A:$BW,61,FALSE)) -> 0 | Z26: =Y26*'Weighting Factors'!$O$8 -> 0 | AA26: 0 | AB26: =IF(ISNA(VLOOKUP($CX26,'Audit Values'!$A:$BW,2,FALSE)),'Preliminary SO66'!AO25,VLOOKUP($CX26,'Audit Values'!$A:$BW,60,FALSE)) -> 189.5 | AC26: =AB26/6*'Weighting Factors'!$O$6 -> 15.8 | AD26: =IF(ISNA(VLOOKUP($CX26,'Audit Values'!$A:$BU,2,FALSE)),'Preliminary SO66'!AS25,VLOOKUP($CX26,'Audit Values'!$A:$BU,63,FALSE)) -> 374 | AE26: =IF(ISNA(VLOOKUP($CX26,'Audit Values'!$A:$BU,2,FALSE)),'Preliminary SO66'!AP25,VLOOKUP($CX26,'Audit Values'!$A:$BU,64,FALSE)) -> 80 | AF26: =IF(A26=207, AE26,(AE26))*'Weighting Factors'!$O$9 -> 38.7 | AG26: 0 | AH26: =IF(ISNA(VLOOKUP($CX26,'Audit Values'!$A:$BW,2,FALSE)),'Preliminary SO66'!AG25,VLOOKUP($CX26,'Audit Values'!$A:$BW,70,FALSE)) -> 0 | AI26: 0 | AJ26: =IF(ISNA(VLOOKUP($CX26,'Audit Values'!$A:$BU,2,FALSE)),'Preliminary SO66'!AQ25,VLOOKUP($CX26,'Audit Values'!$A:$BU,65,FALSE)) -> 0 | AK26: =AJ26*'Weighting Factors'!$O$10 -> 0 | AL26: =IF(ISNA(VLOOKUP($CX26,'Audit Values'!$A:$BU,2,FALSE)),'Preliminary SO66'!AR25,VLOOKUP($CX26,'Audit Values'!$A:$BU,66,FALSE)) -> 78 | AM26: 126029 | AN26: =AM26/'Weighting Factors'!$O$5 -> 26.8 | AO26: =CK26/'Weighting Factors'!$O$5 -> 0 | AP26: =CO26/'Weighting Factors'!$O$5 -> 0 | AQ26: 394809 | AR26: =AQ26/'Weighting Factors'!$O$5 -> 83.9 | AS26: =IF(ISNA(VLOOKUP($CX26,'Audit Values'!$A:$BU,2,FALSE)),'Preliminary SO66'!X25,VLOOKUP($CX26,'Audit Values'!$A:$BU,47,FALSE)) -> 0 | AT26: 728.8 | AU26: 644.9 | AV26: =IF(ISNA(VLOOKUP($CX26,'Audit Values'!$A$2:$BU$917,2,FALSE)),'Preliminary SO66'!AA25,VLOOKUP($CX26,'Audit Values'!$A$2:$BU$917,41,FALSE)) -> 0 | AW26: =IF(ISNA(VLOOKUP($CX26,'Audit Values'!$A$2:$BU$917,2,FALSE)),'Preliminary SO66'!AB25,VLOOKUP($CX26,'Audit Values'!$A$2:$BU$917,42,FALSE)) -> 0 | AX26: 0 | AY26: =SUM(AV26*'Weighting Factors'!$R$10)+('2022 Legal Max'!AW26*'Weighting Factors'!$R$11)+('2022 Legal Max'!AX26*'Weighting Factors'!$R$12) -> 0 | AZ26: =IF(ISNA(VLOOKUP($CX26,'Audit Values'!$A$2:$BU$936,2,FALSE)),"",IF(AND('Weighting Factors'!F26>0,VLOOKUP($CX26,'Audit Values'!$A$2:$BU$936,51,FALSE)<'Weighting Factors'!F26),'Weighting Factors'!F26,VLOOKUP($CX26,'Audit Values'!$A$2:$BU$936,50,FALSE))) -> 12 | BA26: =IF(ISNA(VLOOKUP($CX26,'Audit Values'!$A:$BV,2,FALSE)),"",VLOOKUP($CX26,'Audit Values'!$A:$BV,51,FALSE)) -> A | BB26: =IF('Weighting Factors'!F26="","",IF('Weighting Factors'!H26="Pending","PX","R")) ->  | BC26: =SUM((U26+V26+AA26+AC26+AF26+AI26+AK26++AN26+AO26+AS26+AP26)*'Weighting Factors'!$O$5)+'2022 Legal Max'!AY26 -> 3034899 | BD26: =SUM((AT26+AP26)*'Weighting Factors'!$O$5)+AY26 -> 3429733 | BE26: =IF('Weighting Factors'!F26>0,'Weighting Factors'!F26,'Preliminary SO66'!AV25) -> 3512088 | BF26: 3429733 | BG26: ='Weighting Factors'!E26 -> 0 | BH26: =Transportation!G26 -> 0 | BI26: =IF(ISNA(VLOOKUP($CX26,'Audit Values'!$A$2:$BT$511,2,FALSE)), 0, VLOOKUP($CX26,'Audit Values'!$A$2:$BT$511,72,FALSE)) -> 0 | BJ26: 0 | BK26: 3429733 | BL26: =SUM((U26+V26+AA26+AC26+AF26+AI26+AK26+AN26+AO26+AP26)*'Weighting Factors'!O$12)+(MAX(AQ26,'Weighting Factors'!B26)) -> 3544897 | BM26: ='LOB%'!F24 -> 0.33 | BN26: 1169816 | BO26: 1173388 | BP26: 1169816 | BQ26: 0.33 | BR26: =ROUND(IF(U26<=99.9,(U26*1.014331),0),1) -> 0 | BS26: =AND(U26>99.9,U26<=299.9) -> FALSE | BT26: =IF(BS26=TRUE,ROUND((U26-100)*9.655,3),0) -> 0 | BU26: 0 | BV26: =ROUND(BU26*U26,1) -> 0 | BW26: =AND(U26>299.9,U26<=1621.9) -> TRUE | BX26: =IF(BW26=TRUE,ROUND((U26-300)*1.2375,4),0) -> 108.2813 | BY26: 0.454458 | BZ26: =ROUND(BY26*U26,1) -> 176.1 | CA26: =ROUND(IF(U26>=1622,(U26*0.03504),0),1) -> 0 | CB26: 706.7 | CC26: =AL26/CB26 -> 0.11 | CD26: =IF(CC26<0.06,1,IF(CC26>=18.29,52,MATCH(CC26-0.001,'Weighting Factors'!$W$5:$W$156)+1)) -> 7 | CE26: =VLOOKUP(CD26, 'Weighting Factors'!$U$5:$X$56,4) -> 1430 | CF26: =('Weighting Factors'!$O$5/'Weighting Factors'!$O$14) -> 1.1299 | CG26: =AL26*CE26 -> 111540 | CH26: =CG26*'Weighting Factors'!$Q$7 -> 111540 | CI26: 126029 | CJ26: =AM26/'Weighting Factors'!$O$5 -> 26.8 | CK26: 0 | CL26: 0 | CM26: 0 | CN26: =SUM((AT26*'Weighting Factors'!$O$5)+'2022 Legal Max'!AY26)*CM26 -> 0 | CO26: 0 | CP26: =AE26/AD26 -> 0.2139 | CQ26: =IF(CP26>=50%,AE26*10.5%,0) -> 0 | CR26: =IF(AND(CP26>35%,CP26<50%),AE26*(CP26-35%)*0.7,0) -> 0 | CS26: =AU26+AR26 -> 728.8 | CT26: ='LOB Transfers'!G25 -> 62351 | CU26: ='LOB Transfers'!J25 -> 0 | CV26: ='General Fund Transfers'!F25 -> 182122 | CW26: =SUM(R26+T26+AV26+AW26+AX26/6) -> 369.8 | CX26: D0208
A27: 209 | B27: Stevens | C27: Moscow Public Schools | D27: 159.2 | F27: 0 | G27: 159.2 | H27: 148.9 | J27: 0 | K27: 148.9 | L27: 128 | N27: 0 | O27: 128 | P27: =IF(ISNA(VLOOKUP($CX27,'Audit Values'!$A:$BW,2,FALSE)),'Preliminary SO66'!C26,VLOOKUP($CX27,'Audit Values'!$A:$BW,73,FALSE)) -> 126 | Q27: =IF(ISNA(VLOOKUP($CX27,'Audit Values'!$A:$BW,2,FALSE)),'Preliminary SO66'!F26,VLOOKUP($CX27,'Audit Values'!$A$2:$BW$936,4,FALSE)) -> 0 | R27: 126 | S27: =IF('Military Provision'!J27="YES", MAX('2022 Legal Max'!O27,'2022 Legal Max'!K27,AVERAGE('2022 Legal Max'!G27,'2022 Legal Max'!K27,'2022 Legal Max'!O27)), MAX(O27, K27)) -> 148.9 | T27: =IF(ISNA(VLOOKUP($CX27,'Audit Values'!$A:$BU,2,FALSE)),'Preliminary SO66'!AL26,VLOOKUP($CX27,'Audit Values'!$A:$BU,58,FALSE)) -> 2 | U27: 150.9 | V27: 132.7 | W27: =IF(ISNA(VLOOKUP($CX27,'Audit Values'!$A:$BW,2,FALSE)),'Preliminary SO66'!AM26,VLOOKUP($CX27,'Audit Values'!$A:$BW,62,FALSE)) -> 143.3 | X27: =(W27/6)*'Weighting Factors'!$O$7 -> 9.4 | Y27: =IF(ISNA(VLOOKUP($CX27,'Audit Values'!$A:$BW,2,FALSE)),'Preliminary SO66'!AN26,VLOOKUP($CX27,'Audit Values'!$A:$BW,61,FALSE)) -> 35 | Z27: =Y27*'Weighting Factors'!$O$8 -> 6.5 | AA27: 9.4 | AB27: =IF(ISNA(VLOOKUP($CX27,'Audit Values'!$A:$BW,2,FALSE)),'Preliminary SO66'!AO26,VLOOKUP($CX27,'Audit Values'!$A:$BW,60,FALSE)) -> 0 | AC27: =AB27/6*'Weighting Factors'!$O$6 -> 0 | AD27: =IF(ISNA(VLOOKUP($CX27,'Audit Values'!$A:$BU,2,FALSE)),'Preliminary SO66'!AS26,VLOOKUP($CX27,'Audit Values'!$A:$BU,63,FALSE)) -> 132 | AE27: =IF(ISNA(VLOOKUP($CX27,'Audit Values'!$A:$BU,2,FALSE)),'Preliminary SO66'!AP26,VLOOKUP($CX27,'Audit Values'!$A:$BU,64,FALSE)) -> 46 | AF27: =IF(A27=207, AE27,(AE27))*'Weighting Factors'!$O$9 -> 22.3 | AG27: 0 | AH27: =IF(ISNA(VLOOKUP($CX27,'Audit Values'!$A:$BW,2,FALSE)),'Preliminary SO66'!AG26,VLOOKUP($CX27,'Audit Values'!$A:$BW,70,FALSE)) -> 0.2 | AI27: 0.2 | AJ27: =IF(ISNA(VLOOKUP($CX27,'Audit Values'!$A:$BU,2,FALSE)),'Preliminary SO66'!AQ26,VLOOKUP($CX27,'Audit Values'!$A:$BU,65,FALSE)) -> 0 | AK27: =AJ27*'Weighting Factors'!$O$10 -> 0 | AL27: =IF(ISNA(VLOOKUP($CX27,'Audit Values'!$A:$BU,2,FALSE)),'Preliminary SO66'!AR26,VLOOKUP($CX27,'Audit Values'!$A:$BU,66,FALSE)) -> 26 | AM27: 42010 | AN27: =AM27/'Weighting Factors'!$O$5 -> 8.9 | AO27: =CK27/'Weighting Factors'!$O$5 -> 0 | AP27: =CO27/'Weighting Factors'!$O$5 -> 0 | AQ27: 99499 | AR27: =AQ27/'Weighting Factors'!$O$5 -> 21.1 | AS27: =IF(ISNA(VLOOKUP($CX27,'Audit Values'!$A:$BU,2,FALSE)),'Preliminary SO66'!X26,VLOOKUP($CX27,'Audit Values'!$A:$BU,47,FALSE)) -> 0 | AT27: 345.5 | AU27: 324.4 | AV27: =IF(ISNA(VLOOKUP($CX27,'Audit Values'!$A$2:$BU$917,2,FALSE)),'Preliminary SO66'!AA26,VLOOKUP($CX27,'Audit Values'!$A$2:$BU$917,41,FALSE)) -> 0 | AW27: =IF(ISNA(VLOOKUP($CX27,'Audit Values'!$A$2:$BU$917,2,FALSE)),'Preliminary SO66'!AB26,VLOOKUP($CX27,'Audit Values'!$A$2:$BU$917,42,FALSE)) -> 0 | AX27: 0 | AY27: =SUM(AV27*'Weighting Factors'!$R$10)+('2022 Legal Max'!AW27*'Weighting Factors'!$R$11)+('2022 Legal Max'!AX27*'Weighting Factors'!$R$12) -> 0 | AZ27: =IF(ISNA(VLOOKUP($CX27,'Audit Values'!$A$2:$BU$936,2,FALSE)),"",IF(AND('Weighting Factors'!F27>0,VLOOKUP($CX27,'Audit Values'!$A$2:$BU$936,51,FALSE)<'Weighting Factors'!F27),'Weighting Factors'!F27,VLOOKUP($CX27,'Audit Values'!$A$2:$BU$936,50,FALSE))) -> 16 | BA27: =IF(ISNA(VLOOKUP($CX27,'Audit Values'!$A:$BV,2,FALSE)),"",VLOOKUP($CX27,'Audit Values'!$A:$BV,51,FALSE)) -> A | BB27: =IF('Weighting Factors'!F27="","",IF('Weighting Factors'!H27="Pending","PX","R")) ->  | BC27: =SUM((U27+V27+AA27+AC27+AF27+AI27+AK27++AN27+AO27+AS27+AP27)*'Weighting Factors'!$O$5)+'2022 Legal Max'!AY27 -> 1526626 | BD27: =SUM((AT27+AP27)*'Weighting Factors'!$O$5)+AY27 -> 1625923 | BE27: =IF('Weighting Factors'!F27>0,'Weighting Factors'!F27,'Preliminary SO66'!AV26) -> 1769456 | BF27: 1625923 | BG27: ='Weighting Factors'!E27 -> 0 | BH27: =Transportation!G27 -> 0 | BI27: =IF(ISNA(VLOOKUP($CX27,'Audit Values'!$A$2:$BT$511,2,FALSE)), 0, VLOOKUP($CX27,'Audit Values'!$A$2:$BT$511,72,FALSE)) -> 0 | BJ27: 0 | BK27: 1625923 | BL27: =SUM((U27+V27+AA27+AC27+AF27+AI27+AK27+AN27+AO27+AP27)*'Weighting Factors'!O$12)+(MAX(AQ27,'Weighting Factors'!B27)) -> 1664787 | BM27: ='LOB%'!F25 -> 0.33 | BN27: 549380 | BO27: 589447 | BP27: 549380 | BQ27: 0.33 | BR27: =ROUND(IF(U27<=99.9,(U27*1.014331),0),1) -> 0 | BS27: =AND(U27>99.9,U27<=299.9) -> TRUE | BT27: =IF(BS27=TRUE,ROUND((U27-100)*9.655,3),0) -> 491.44 | BU27: 0.879409 | BV27: =ROUND(BU27*U27,1) -> 132.7 | BW27: =AND(U27>299.9,U27<=1621.9) -> FALSE | BX27: =IF(BW27=TRUE,ROUND((U27-300)*1.2375,4),0) -> 0 | BY27: 0 | BZ27: =ROUND(BY27*U27,1) -> 0 | CA27: =ROUND(IF(U27>=1622,(U27*0.03504),0),1) -> 0 | CB27: 223 | CC27: =AL27/CB27 -> 0.117 | CD27: =IF(CC27<0.06,1,IF(CC27>=18.29,52,MATCH(CC27-0.001,'Weighting Factors'!$W$5:$W$156)+1)) -> 7 | CE27: =VLOOKUP(CD27, 'Weighting Factors'!$U$5:$X$56,4) -> 1430 | CF27: =('Weighting Factors'!$O$5/'Weighting Factors'!$O$14) -> 1.1299 | CG27: =AL27*CE27 -> 37180 | CH27: =CG27*'Weighting Factors'!$Q$7 -> 37180 | CI27: 42010 | CJ27: =AM27/'Weighting Factors'!$O$5 -> 8.9 | CK27: 0 | CL27: 0 | CM27: 0 | CN27: =SUM((AT27*'Weighting Factors'!$O$5)+'2022 Legal Max'!AY27)*CM27 -> 0 | CO27: 0 | CP27: =AE27/AD27 -> 0.3485 | CQ27: =IF(CP27>=50%,AE27*10.5%,0) -> 0 | CR27: =IF(AND(CP27>35%,CP27<50%),AE27*(CP27-35%)*0.7,0) -> 0 | CS27: =AU27+AR27 -> 345.5 | CT27: ='LOB Transfers'!G26 -> 35655 | CU27: ='LOB Transfers'!J26 -> 15053 | CV27: ='General Fund Transfers'!F26 -> 105885 | CW27: =SUM(R27+T27+AV27+AW27+AX27/6) -> 128 | CX27: D0209
A28: 210 | B28: Stevens | C28: Hugoton Public Schools | D28: 999.8 | F28: 0 | G28: 999.8 | H28: 984.7 | J28: 0 | K28: 984.7 | L28: 974.6 | N28: 0 | O28: 974.6 | P28: =IF(ISNA(VLOOKUP($CX28,'Audit Values'!$A:$BW,2,FALSE)),'Preliminary SO66'!C27,VLOOKUP($CX28,'Audit Values'!$A:$BW,73,FALSE)) -> 983 | Q28: =IF(ISNA(VLOOKUP($CX28,'Audit Values'!$A:$BW,2,FALSE)),'Preliminary SO66'!F27,VLOOKUP($CX28,'Audit Values'!$A$2:$BW$936,4,FALSE)) -> 0 | R28: 983 | S28: =IF('Military Provision'!J28="YES", MAX('2022 Legal Max'!O28,'2022 Legal Max'!K28,AVERAGE('2022 Legal Max'!G28,'2022 Legal Max'!K28,'2022 Legal Max'!O28)), MAX(O28, K28)) -> 984.7 | T28: =IF(ISNA(VLOOKUP($CX28,'Audit Values'!$A:$BU,2,FALSE)),'Preliminary SO66'!AL27,VLOOKUP($CX28,'Audit Values'!$A:$BU,58,FALSE)) -> 12.5 | U28: 997.2 | V28: 246.6 | W28: =IF(ISNA(VLOOKUP($CX28,'Audit Values'!$A:$BW,2,FALSE)),'Preliminary SO66'!AM27,VLOOKUP($CX28,'Audit Values'!$A:$BW,62,FALSE)) -> 964 | X28: =(W28/6)*'Weighting Factors'!$O$7 -> 63.5 | Y28: =IF(ISNA(VLOOKUP($CX28,'Audit Values'!$A:$BW,2,FALSE)),'Preliminary SO66'!AN27,VLOOKUP($CX28,'Audit Values'!$A:$BW,61,FALSE)) -> 233 | Z28: =Y28*'Weighting Factors'!$O$8 -> 43.1 | AA28: 63.5 | AB28: =IF(ISNA(VLOOKUP($CX28,'Audit Values'!$A:$BW,2,FALSE)),'Preliminary SO66'!AO27,VLOOKUP($CX28,'Audit Values'!$A:$BW,60,FALSE)) -> 304.6 | AC28: =AB28/6*'Weighting Factors'!$O$6 -> 25.4 | AD28: =IF(ISNA(VLOOKUP($CX28,'Audit Values'!$A:$BU,2,FALSE)),'Preliminary SO66'!AS27,VLOOKUP($CX28,'Audit Values'!$A:$BU,63,FALSE)) -> 1013 | AE28: =IF(ISNA(VLOOKUP($CX28,'Audit Values'!$A:$BU,2,FALSE)),'Preliminary SO66'!AP27,VLOOKUP($CX28,'Audit Values'!$A:$BU,64,FALSE)) -> 437 | AF28: =IF(A28=207, AE28,(AE28))*'Weighting Factors'!$O$9 -> 211.5 | AG28: 24.9 | AH28: =IF(ISNA(VLOOKUP($CX28,'Audit Values'!$A:$BW,2,FALSE)),'Preliminary SO66'!AG27,VLOOKUP($CX28,'Audit Values'!$A:$BW,70,FALSE)) -> 27.8 | AI28: 27.8 | AJ28: =IF(ISNA(VLOOKUP($CX28,'Audit Values'!$A:$BU,2,FALSE)),'Preliminary SO66'!AQ27,VLOOKUP($CX28,'Audit Values'!$A:$BU,65,FALSE)) -> 0 | AK28: =AJ28*'Weighting Factors'!$O$10 -> 0 | AL28: =IF(ISNA(VLOOKUP($CX28,'Audit Values'!$A:$BU,2,FALSE)),'Preliminary SO66'!AR27,VLOOKUP($CX28,'Audit Values'!$A:$BU,66,FALSE)) -> 146 | AM28: 202907 | AN28: =AM28/'Weighting Factors'!$O$5 -> 43.1 | AO28: =CK28/'Weighting Factors'!$O$5 -> 0 | AP28: =CO28/'Weighting Factors'!$O$5 -> 0 | AQ28: 590696 | AR28: =AQ28/'Weighting Factors'!$O$5 -> 125.5 | AS28: =IF(ISNA(VLOOKUP($CX28,'Audit Values'!$A:$BU,2,FALSE)),'Preliminary SO66'!X27,VLOOKUP($CX28,'Audit Values'!$A:$BU,47,FALSE)) -> 0 | AT28: 1740.6 | AU28: 1615.1 | AV28: =IF(ISNA(VLOOKUP($CX28,'Audit Values'!$A$2:$BU$917,2,FALSE)),'Preliminary SO66'!AA27,VLOOKUP($CX28,'Audit Values'!$A$2:$BU$917,41,FALSE)) -> 5 | AW28: =IF(ISNA(VLOOKUP($CX28,'Audit Values'!$A$2:$BU$917,2,FALSE)),'Preliminary SO66'!AB27,VLOOKUP($CX28,'Audit Values'!$A$2:$BU$917,42,FALSE)) -> 0.7 | AX28: 35 | AY28: =SUM(AV28*'Weighting Factors'!$R$10)+('2022 Legal Max'!AW28*'Weighting Factors'!$R$11)+('2022 Legal Max'!AX28*'Weighting Factors'!$R$12) -> 51005 | AZ28: =IF(ISNA(VLOOKUP($CX28,'Audit Values'!$A$2:$BU$936,2,FALSE)),"",IF(AND('Weighting Factors'!F28>0,VLOOKUP($CX28,'Audit Values'!$A$2:$BU$936,51,FALSE)<'Weighting Factors'!F28),'Weighting Factors'!F28,VLOOKUP($CX28,'Audit Values'!$A$2:$BU$936,50,FALSE))) -> 17 | BA28: =IF(ISNA(VLOOKUP($CX28,'Audit Values'!$A:$BV,2,FALSE)),"",VLOOKUP($CX28,'Audit Values'!$A:$BV,51,FALSE)) -> A | BB28: =IF('Weighting Factors'!F28="","",IF('Weighting Factors'!H28="Pending","PX","R")) ->  | BC28: =SUM((U28+V28+AA28+AC28+AF28+AI28+AK28++AN28+AO28+AS28+AP28)*'Weighting Factors'!$O$5)+'2022 Legal Max'!AY28 -> 7651666 | BD28: =SUM((AT28+AP28)*'Weighting Factors'!$O$5)+AY28 -> 8242269 | BE28: =IF('Weighting Factors'!F28>0,'Weighting Factors'!F28,'Preliminary SO66'!AV27) -> 8465739 | BF28: 8242269 | BG28: ='Weighting Factors'!E28 -> 0 | BH28: =Transportation!G28 -> 0 | BI28: =IF(ISNA(VLOOKUP($CX28,'Audit Values'!$A$2:$BT$511,2,FALSE)), 0, VLOOKUP($CX28,'Audit Values'!$A$2:$BT$511,72,FALSE)) -> 0 | BJ28: 0 | BK28: 8242269 | BL28: =SUM((U28+V28+AA28+AC28+AF28+AI28+AK28+AN28+AO28+AP28)*'Weighting Factors'!O$12)+(MAX(AQ28,'Weighting Factors'!B28)) -> 8223440 | BM28: ='LOB%'!F26 -> 0.31 | BN28: 2549266 | BO28: 2608553 | BP28: 2549266 | BQ28: 0.31 | BR28: =ROUND(IF(U28<=99.9,(U28*1.014331),0),1) -> 0 | BS28: =AND(U28>99.9,U28<=299.9) -> FALSE | BT28: =IF(BS28=TRUE,ROUND((U28-100)*9.655,3),0) -> 0 | BU28: 0 | BV28: =ROUND(BU28*U28,1) -> 0 | BW28: =AND(U28>299.9,U28<=1621.9) -> TRUE | BX28: =IF(BW28=TRUE,ROUND((U28-300)*1.2375,4),0) -> 862.785 | BY28: 0.247314 | BZ28: =ROUND(BY28*U28,1) -> 246.6 | CA28: =ROUND(IF(U28>=1622,(U28*0.03504),0),1) -> 0 | CB28: 575 | CC28: =AL28/CB28 -> 0.254 | CD28: =IF(CC28<0.06,1,IF(CC28>=18.29,52,MATCH(CC28-0.001,'Weighting Factors'!$W$5:$W$156)+1)) -> 18 | CE28: =VLOOKUP(CD28, 'Weighting Factors'!$U$5:$X$56,4) -> 1230 | CF28: =('Weighting Factors'!$O$5/'Weighting Factors'!$O$14) -> 1.1299 | CG28: =AL28*CE28 -> 179580 | CH28: =CG28*'Weighting Factors'!$Q$7 -> 179580 | CI28: 202907 | CJ28: =AM28/'Weighting Factors'!$O$5 -> 43.1 | CK28: 0 | CL28: 0 | CM28: 0 | CN28: =SUM((AT28*'Weighting Factors'!$O$5)+'2022 Legal Max'!AY28)*CM28 -> 0 | CO28: 0 | CP28: =AE28/AD28 -> 0.4314 | CQ28: =IF(CP28>=50%,AE28*10.5%,0) -> 0 | CR28: =IF(AND(CP28>35%,CP28<50%),AE28*(CP28-35%)*0.7,0) -> 24.9 | CS28: =AU28+AR28 -> 1740.6 | CT28: ='LOB Transfers'!G27 -> 312030 | CU28: ='LOB Transfers'!J27 -> 93558 | CV28: ='General Fund Transfers'!F27 -> 1126146 | CW28: =SUM(R28+T28+AV28+AW28+AX28/6) -> 1007 | CX28: D0210
A29: 211 | B29: Norton | C29: Norton Community Schools | D29: 672 | F29: 0 | G29: 672 | H29: 653.7 | J29: 0 | K29: 653.7 | L29: 618.5 | N29: 0 | O29: 618.5 | P29: =IF(ISNA(VLOOKUP($CX29,'Audit Values'!$A:$BW,2,FALSE)),'Preliminary SO66'!C28,VLOOKUP($CX29,'Audit Values'!$A:$BW,73,FALSE)) -> 645.9 | Q29: =IF(ISNA(VLOOKUP($CX29,'Audit Values'!$A:$BW,2,FALSE)),'Preliminary SO66'!F28,VLOOKUP($CX29,'Audit Values'!$A$2:$BW$936,4,FALSE)) -> 0 | R29: 645.9 | S29: =IF('Military Provision'!J29="YES", MAX('2022 Legal Max'!O29,'2022 Legal Max'!K29,AVERAGE('2022 Legal Max'!G29,'2022 Legal Max'!K29,'2022 Legal Max'!O29)), MAX(O29, K29)) -> 653.7 | T29: =IF(ISNA(VLOOKUP($CX29,'Audit Values'!$A:$BU,2,FALSE)),'Preliminary SO66'!AL28,VLOOKUP($CX29,'Audit Values'!$A:$BU,58,FALSE)) -> 0 | U29: 653.7 | V29: 238 | W29: =IF(ISNA(VLOOKUP($CX29,'Audit Values'!$A:$BW,2,FALSE)),'Preliminary SO66'!AM28,VLOOKUP($CX29,'Audit Values'!$A:$BW,62,FALSE)) -> 0 | X29: =(W29/6)*'Weighting Factors'!$O$7 -> 0 | Y29: =IF(ISNA(VLOOKUP($CX29,'Audit Values'!$A:$BW,2,FALSE)),'Preliminary SO66'!AN28,VLOOKUP($CX29,'Audit Values'!$A:$BW,61,FALSE)) -> 6 | Z29: =Y29*'Weighting Factors'!$O$8 -> 1.1 | AA29: 1.1 | AB29: =IF(ISNA(VLOOKUP($CX29,'Audit Values'!$A:$BW,2,FALSE)),'Preliminary SO66'!AO28,VLOOKUP($CX29,'Audit Values'!$A:$BW,60,FALSE)) -> 249.6 | AC29: =AB29/6*'Weighting Factors'!$O$6 -> 20.8 | AD29: =IF(ISNA(VLOOKUP($CX29,'Audit Values'!$A:$BU,2,FALSE)),'Preliminary SO66'!AS28,VLOOKUP($CX29,'Audit Values'!$A:$BU,63,FALSE)) -> 653 | AE29: =IF(ISNA(VLOOKUP($CX29,'Audit Values'!$A:$BU,2,FALSE)),'Preliminary SO66'!AP28,VLOOKUP($CX29,'Audit Values'!$A:$BU,64,FALSE)) -> 173 | AF29: =IF(A29=207, AE29,(AE29))*'Weighting Factors'!$O$9 -> 83.7 | AG29: 0 | AH29: =IF(ISNA(VLOOKUP($CX29,'Audit Values'!$A:$BW,2,FALSE)),'Preliminary SO66'!AG28,VLOOKUP($CX29,'Audit Values'!$A:$BW,70,FALSE)) -> 0 | AI29: 0 | AJ29: =IF(ISNA(VLOOKUP($CX29,'Audit Values'!$A:$BU,2,FALSE)),'Preliminary SO66'!AQ28,VLOOKUP($CX29,'Audit Values'!$A:$BU,65,FALSE)) -> 0 | AK29: =AJ29*'Weighting Factors'!$O$10 -> 0 | AL29: =IF(ISNA(VLOOKUP($CX29,'Audit Values'!$A:$BU,2,FALSE)),'Preliminary SO66'!AR28,VLOOKUP($CX29,'Audit Values'!$A:$BU,66,FALSE)) -> 106 | AM29: 161689 | AN29: =AM29/'Weighting Factors'!$O$5 -> 34.4 | AO29: =CK29/'Weighting Factors'!$O$5 -> 0 | AP29: =CO29/'Weighting Factors'!$O$5 -> 0 | AQ29: 821482 | AR29: =AQ29/'Weighting Factors'!$O$5 -> 174.6 | AS29: =IF(ISNA(VLOOKUP($CX29,'Audit Values'!$A:$BU,2,FALSE)),'Preliminary SO66'!X28,VLOOKUP($CX29,'Audit Values'!$A:$BU,47,FALSE)) -> 1 | AT29: 1207.3 | AU29: 1032.7 | AV29: =IF(ISNA(VLOOKUP($CX29,'Audit Values'!$A$2:$BU$917,2,FALSE)),'Preliminary SO66'!AA28,VLOOKUP($CX29,'Audit Values'!$A$2:$BU$917,41,FALSE)) -> 0 | AW29: =IF(ISNA(VLOOKUP($CX29,'Audit Values'!$A$2:$BU$917,2,FALSE)),'Preliminary SO66'!AB28,VLOOKUP($CX29,'Audit Values'!$A$2:$BU$917,42,FALSE)) -> 0 | AX29: 0 | AY29: =SUM(AV29*'Weighting Factors'!$R$10)+('2022 Legal Max'!AW29*'Weighting Factors'!$R$11)+('2022 Legal Max'!AX29*'Weighting Factors'!$R$12) -> 0 | AZ29: =IF(ISNA(VLOOKUP($CX29,'Audit Values'!$A$2:$BU$936,2,FALSE)),"",IF(AND('Weighting Factors'!F29>0,VLOOKUP($CX29,'Audit Values'!$A$2:$BU$936,51,FALSE)<'Weighting Factors'!F29),'Weighting Factors'!F29,VLOOKUP($CX29,'Audit Values'!$A$2:$BU$936,50,FALSE))) -> 16 | BA29: =IF(ISNA(VLOOKUP($CX29,'Audit Values'!$A:$BV,2,FALSE)),"",VLOOKUP($CX29,'Audit Values'!$A:$BV,51,FALSE)) -> A | BB29: =IF('Weighting Factors'!F29="","",IF('Weighting Factors'!H29="Pending","PX","R")) ->  | BC29: =SUM((U29+V29+AA29+AC29+AF29+AI29+AK29++AN29+AO29+AS29+AP29)*'Weighting Factors'!$O$5)+'2022 Legal Max'!AY29 -> 4859886 | BD29: =SUM((AT29+AP29)*'Weighting Factors'!$O$5)+AY29 -> 5681554 | BE29: =IF('Weighting Factors'!F29>0,'Weighting Factors'!F29,'Preliminary SO66'!AV28) -> 5752144 | BF29: 5681554 | BG29: ='Weighting Factors'!E29 -> 0 | BH29: =Transportation!G29 -> 0 | BI29: =IF(ISNA(VLOOKUP($CX29,'Audit Values'!$A$2:$BT$511,2,FALSE)), 0, VLOOKUP($CX29,'Audit Values'!$A$2:$BT$511,72,FALSE)) -> 0 | BJ29: 0 | BK29: 5681554 | BL29: =SUM((U29+V29+AA29+AC29+AF29+AI29+AK29+AN29+AO29+AP29)*'Weighting Factors'!O$12)+(MAX(AQ29,'Weighting Factors'!B29)) -> 5721714 | BM29: ='LOB%'!F27 -> 0.31 | BN29: 1773731 | BO29: 1781645 | BP29: 1773731 | BQ29: 0.31 | BR29: =ROUND(IF(U29<=99.9,(U29*1.014331),0),1) -> 0 | BS29: =AND(U29>99.9,U29<=299.9) -> FALSE | BT29: =IF(BS29=TRUE,ROUND((U29-100)*9.655,3),0) -> 0 | BU29: 0 | BV29: =ROUND(BU29*U29,1) -> 0 | BW29: =AND(U29>299.9,U29<=1621.9) -> TRUE | BX29: =IF(BW29=TRUE,ROUND((U29-300)*1.2375,4),0) -> 437.7038 | BY29: 0.364017 | BZ29: =ROUND(BY29*U29,1) -> 238 | CA29: =ROUND(IF(U29>=1622,(U29*0.03504),0),1) -> 0 | CB29: 678 | CC29: =AL29/CB29 -> 0.156 | CD29: =IF(CC29<0.06,1,IF(CC29>=18.29,52,MATCH(CC29-0.001,'Weighting Factors'!$W$5:$W$156)+1)) -> 11 | CE29: =VLOOKUP(CD29, 'Weighting Factors'!$U$5:$X$56,4) -> 1350 | CF29: =('Weighting Factors'!$O$5/'Weighting Factors'!$O$14) -> 1.1299 | CG29: =AL29*CE29 -> 143100 | CH29: =CG29*'Weighting Factors'!$Q$7 -> 143100 | CI29: 161689 | CJ29: =AM29/'Weighting Factors'!$O$5 -> 34.4 | CK29: 0 | CL29: 0 | CM29: 0 | CN29: =SUM((AT29*'Weighting Factors'!$O$5)+'2022 Legal Max'!AY29)*CM29 -> 0 | CO29: 0 | CP29: =AE29/AD29 -> 0.2649 | CQ29: =IF(CP29>=50%,AE29*10.5%,0) -> 0 | CR29: =IF(AND(CP29>35%,CP29<50%),AE29*(CP29-35%)*0.7,0) -> 0 | CS29: =AU29+AR29 -> 1207.3 | CT29: ='LOB Transfers'!G28 -> 123097 | CU29: ='LOB Transfers'!J28 -> 1596 | CV29: ='General Fund Transfers'!F28 -> 393892 | CW29: =SUM(R29+T29+AV29+AW29+AX29/6) -> 645.9 | CX29: D0211
A30: 212 | B30: Norton | C30: Northern Valley | D30: 144 | F30: 0 | G30: 144 | H30: 135.4 | J30: 0 | K30: 135.4 | L30: 122.7 | N30: 0 | O30: 122.7 | P30: =IF(ISNA(VLOOKUP($CX30,'Audit Values'!$A:$BW,2,FALSE)),'Preliminary SO66'!C29,VLOOKUP($CX30,'Audit Values'!$A:$BW,73,FALSE)) -> 139.6 | Q30: =IF(ISNA(VLOOKUP($CX30,'Audit Values'!$A:$BW,2,FALSE)),'Preliminary SO66'!F29,VLOOKUP($CX30,'Audit Values'!$A$2:$BW$936,4,FALSE)) -> 0 | R30: 139.6 | S30: =IF('Military Provision'!J30="YES", MAX('2022 Legal Max'!O30,'2022 Legal Max'!K30,AVERAGE('2022 Legal Max'!G30,'2022 Legal Max'!K30,'2022 Legal Max'!O30)), MAX(O30, K30)) -> 135.4 | T30: =IF(ISNA(VLOOKUP($CX30,'Audit Values'!$A:$BU,2,FALSE)),'Preliminary SO66'!AL29,VLOOKUP($CX30,'Audit Values'!$A:$BU,58,FALSE)) -> 4 | U30: 139.4 | V30: 126.8 | W30: =IF(ISNA(VLOOKUP($CX30,'Audit Values'!$A:$BW,2,FALSE)),'Preliminary SO66'!AM29,VLOOKUP($CX30,'Audit Values'!$A:$BW,62,FALSE)) -> 0 | X30: =(W30/6)*'Weighting Factors'!$O$7 -> 0 | Y30: =IF(ISNA(VLOOKUP($CX30,'Audit Values'!$A:$BW,2,FALSE)),'Preliminary SO66'!AN29,VLOOKUP($CX30,'Audit Values'!$A:$BW,61,FALSE)) -> 1 | Z30: =Y30*'Weighting Factors'!$O$8 -> 0.2 | AA30: 0.2 | AB30: =IF(ISNA(VLOOKUP($CX30,'Audit Values'!$A:$BW,2,FALSE)),'Preliminary SO66'!AO29,VLOOKUP($CX30,'Audit Values'!$A:$BW,60,FALSE)) -> 65.4 | AC30: =AB30/6*'Weighting Factors'!$O$6 -> 5.5 | AD30: =IF(ISNA(VLOOKUP($CX30,'Audit Values'!$A:$BU,2,FALSE)),'Preliminary SO66'!AS29,VLOOKUP($CX30,'Audit Values'!$A:$BU,63,FALSE)) -> 149 | AE30: =IF(ISNA(VLOOKUP($CX30,'Audit Values'!$A:$BU,2,FALSE)),'Preliminary SO66'!AP29,VLOOKUP($CX30,'Audit Values'!$A:$BU,64,FALSE)) -> 55 | AF30: =IF(A30=207, AE30,(AE30))*'Weighting Factors'!$O$9 -> 26.6 | AG30: 0.7 | AH30: =IF(ISNA(VLOOKUP($CX30,'Audit Values'!$A:$BW,2,FALSE)),'Preliminary SO66'!AG29,VLOOKUP($CX30,'Audit Values'!$A:$BW,70,FALSE)) -> 3 | AI30: 3 | AJ30: =IF(ISNA(VLOOKUP($CX30,'Audit Values'!$A:$BU,2,FALSE)),'Preliminary SO66'!AQ29,VLOOKUP($CX30,'Audit Values'!$A:$BU,65,FALSE)) -> 0 | AK30: =AJ30*'Weighting Factors'!$O$10 -> 0 | AL30: =IF(ISNA(VLOOKUP($CX30,'Audit Values'!$A:$BU,2,FALSE)),'Preliminary SO66'!AR29,VLOOKUP($CX30,'Audit Values'!$A:$BU,66,FALSE)) -> 43.5 | AM30: 65862 | AN30: =AM30/'Weighting Factors'!$O$5 -> 14 | AO30: =CK30/'Weighting Factors'!$O$5 -> 0 | AP30: =CO30/'Weighting Factors'!$O$5 -> 0 | AQ30: 162971 | AR30: =AQ30/'Weighting Factors'!$O$5 -> 34.6 | AS30: =IF(ISNA(VLOOKUP($CX30,'Audit Values'!$A:$BU,2,FALSE)),'Preliminary SO66'!X29,VLOOKUP($CX30,'Audit Values'!$A:$BU,47,FALSE)) -> 0 | AT30: 350.1 | AU30: 315.5 | AV30: =IF(ISNA(VLOOKUP($CX30,'Audit Values'!$A$2:$BU$917,2,FALSE)),'Preliminary SO66'!AA29,VLOOKUP($CX30,'Audit Values'!$A$2:$BU$917,41,FALSE)) -> 0 | AW30: =IF(ISNA(VLOOKUP($CX30,'Audit Values'!$A$2:$BU$917,2,FALSE)),'Preliminary SO66'!AB29,VLOOKUP($CX30,'Audit Values'!$A$2:$BU$917,42,FALSE)) -> 0 | AX30: 0 | AY30: =SUM(AV30*'Weighting Factors'!$R$10)+('2022 Legal Max'!AW30*'Weighting Factors'!$R$11)+('2022 Legal Max'!AX30*'Weighting Factors'!$R$12) -> 0 | AZ30: 21 | BA30: =IF(ISNA(VLOOKUP($CX30,'Audit Values'!$A:$BV,2,FALSE)),"",VLOOKUP($CX30,'Audit Values'!$A:$BV,51,FALSE)) -> A | BB30: =IF('Weighting Factors'!F30="","",IF('Weighting Factors'!H30="Pending","PX","R")) -> R | BC30: =SUM((U30+V30+AA30+AC30+AF30+AI30+AK30++AN30+AO30+AS30+AP30)*'Weighting Factors'!$O$5)+'2022 Legal Max'!AY30 -> 1484743 | BD30: =SUM((AT30+AP30)*'Weighting Factors'!$O$5)+AY30 -> 1647571 | BE30: =IF('Weighting Factors'!F30>0,'Weighting Factors'!F30,'Preliminary SO66'!AV29) -> 1647571 | BF30: 1647571 | BG30: ='Weighting Factors'!E30 -> 0 | BH30: =Transportation!G30 -> 0 | BI30: =IF(ISNA(VLOOKUP($CX30,'Audit Values'!$A$2:$BT$511,2,FALSE)), 0, VLOOKUP($CX30,'Audit Values'!$A$2:$BT$511,72,FALSE)) -> 0 | BJ30: 0 | BK30: 1647571 | BL30: =SUM((U30+V30+AA30+AC30+AF30+AI30+AK30+AN30+AO30+AP30)*'Weighting Factors'!O$12)+(MAX(AQ30,'Weighting Factors'!B30)) -> 1731843 | BM30: ='LOB%'!F28 -> 0.31 | BN30: 536871 | BO30: 531036 | BP30: 531036 | BQ30: 0.3066 | BR30: =ROUND(IF(U30<=99.9,(U30*1.014331),0),1) -> 0 | BS30: =AND(U30>99.9,U30<=299.9) -> TRUE | BT30: =IF(BS30=TRUE,ROUND((U30-100)*9.655,3),0) -> 380.407 | BU30: 0.909893 | BV30: =ROUND(BU30*U30,1) -> 126.8 | BW30: =AND(U30>299.9,U30<=1621.9) -> FALSE | BX30: =IF(BW30=TRUE,ROUND((U30-300)*1.2375,4),0) -> 0 | BY30: 0 | BZ30: =ROUND(BY30*U30,1) -> 0 | CA30: =ROUND(IF(U30>=1622,(U30*0.03504),0),1) -> 0 | CB30: 263 | CC30: =AL30/CB30 -> 0.165 | CD30: =IF(CC30<0.06,1,IF(CC30>=18.29,52,MATCH(CC30-0.001,'Weighting Factors'!$W$5:$W$156)+1)) -> 12 | CE30: =VLOOKUP(CD30, 'Weighting Factors'!$U$5:$X$56,4) -> 1340 | CF30: =('Weighting Factors'!$O$5/'Weighting Factors'!$O$14) -> 1.1299 | CG30: =AL30*CE30 -> 58290 | CH30: =CG30*'Weighting Factors'!$Q$7 -> 58290 | CI30: 65862 | CJ30: =AM30/'Weighting Factors'!$O$5 -> 14 | CK30: 0 | CL30: 0 | CM30: 0 | CN30: =SUM((AT30*'Weighting Factors'!$O$5)+'2022 Legal Max'!AY30)*CM30 -> 0 | CO30: 0 | CP30: =AE30/AD30 -> 0.3691 | CQ30: =IF(CP30>=50%,AE30*10.5%,0) -> 0 | CR30: =IF(AND(CP30>35%,CP30<50%),AE30*(CP30-35%)*0.7,0) -> 0.7 | CS30: =AU30+AR30 -> 350.1 | CT30: ='LOB Transfers'!G29 -> 40837 | CU30: ='LOB Transfers'!J29 -> 319 | CV30: ='General Fund Transfers'!F29 -> 139298 | CW30: =SUM(R30+T30+AV30+AW30+AX30/6) -> 143.6 | CX30: D0212
A31: 214 | B31: Grant | C31: Ulysses | D31: 1545 | F31: 0 | G31: 1545 | H31: 1530 | J31: 0 | K31: 1530 | L31: 1508.9 | N31: 0 | O31: 1508.9 | P31: =IF(ISNA(VLOOKUP($CX31,'Audit Values'!$A:$BW,2,FALSE)),'Preliminary SO66'!C30,VLOOKUP($CX31,'Audit Values'!$A:$BW,73,FALSE)) -> 1434.5 | Q31: =IF(ISNA(VLOOKUP($CX31,'Audit Values'!$A:$BW,2,FALSE)),'Preliminary SO66'!F30,VLOOKUP($CX31,'Audit Values'!$A$2:$BW$936,4,FALSE)) -> 0 | R31: 1434.5 | S31: =IF('Military Provision'!J31="YES", MAX('2022 Legal Max'!O31,'2022 Legal Max'!K31,AVERAGE('2022 Legal Max'!G31,'2022 Legal Max'!K31,'2022 Legal Max'!O31)), MAX(O31, K31)) -> 1530 | T31: =IF(ISNA(VLOOKUP($CX31,'Audit Values'!$A:$BU,2,FALSE)),'Preliminary SO66'!AL30,VLOOKUP($CX31,'Audit Values'!$A:$BU,58,FALSE)) -> 14.5 | U31: 1544.5 | V31: 94.8 | W31: =IF(ISNA(VLOOKUP($CX31,'Audit Values'!$A:$BW,2,FALSE)),'Preliminary SO66'!AM30,VLOOKUP($CX31,'Audit Values'!$A:$BW,62,FALSE)) -> 1421.1 | X31: =(W31/6)*'Weighting Factors'!$O$7 -> 93.6 | Y31: =IF(ISNA(VLOOKUP($CX31,'Audit Values'!$A:$BW,2,FALSE)),'Preliminary SO66'!AN30,VLOOKUP($CX31,'Audit Values'!$A:$BW,61,FALSE)) -> 405 | Z31: =Y31*'Weighting Factors'!$O$8 -> 74.9 | AA31: 93.6 | AB31: =IF(ISNA(VLOOKUP($CX31,'Audit Values'!$A:$BW,2,FALSE)),'Preliminary SO66'!AO30,VLOOKUP($CX31,'Audit Values'!$A:$BW,60,FALSE)) -> 472.1 | AC31: =AB31/6*'Weighting Factors'!$O$6 -> 39.3 | AD31: =IF(ISNA(VLOOKUP($CX31,'Audit Values'!$A:$BU,2,FALSE)),'Preliminary SO66'!AS30,VLOOKUP($CX31,'Audit Values'!$A:$BU,63,FALSE)) -> 1475 | AE31: =IF(ISNA(VLOOKUP($CX31,'Audit Values'!$A:$BU,2,FALSE)),'Preliminary SO66'!AP30,VLOOKUP($CX31,'Audit Values'!$A:$BU,64,FALSE)) -> 618 | AF31: =IF(A31=207, AE31,(AE31))*'Weighting Factors'!$O$9 -> 299.1 | AG31: 29.8 | AH31: =IF(ISNA(VLOOKUP($CX31,'Audit Values'!$A:$BW,2,FALSE)),'Preliminary SO66'!AG30,VLOOKUP($CX31,'Audit Values'!$A:$BW,70,FALSE)) -> 30.9 | AI31: 30.9 | AJ31: =IF(ISNA(VLOOKUP($CX31,'Audit Values'!$A:$BU,2,FALSE)),'Preliminary SO66'!AQ30,VLOOKUP($CX31,'Audit Values'!$A:$BU,65,FALSE)) -> 0 | AK31: =AJ31*'Weighting Factors'!$O$10 -> 0 | AL31: =IF(ISNA(VLOOKUP($CX31,'Audit Values'!$A:$BU,2,FALSE)),'Preliminary SO66'!AR30,VLOOKUP($CX31,'Audit Values'!$A:$BU,66,FALSE)) -> 193 | AM31: 250781 | AN31: =AM31/'Weighting Factors'!$O$5 -> 53.3 | AO31: =CK31/'Weighting Factors'!$O$5 -> 0 | AP31: =CO31/'Weighting Factors'!$O$5 -> 0 | AQ31: 911431 | AR31: =AQ31/'Weighting Factors'!$O$5 -> 193.7 | AS31: =IF(ISNA(VLOOKUP($CX31,'Audit Values'!$A:$BU,2,FALSE)),'Preliminary SO66'!X30,VLOOKUP($CX31,'Audit Values'!$A:$BU,47,FALSE)) -> 0 | AT31: 2349.2 | AU31: 2155.5 | AV31: =IF(ISNA(VLOOKUP($CX31,'Audit Values'!$A$2:$BU$917,2,FALSE)),'Preliminary SO66'!AA30,VLOOKUP($CX31,'Audit Values'!$A$2:$BU$917,41,FALSE)) -> 13 | AW31: =IF(ISNA(VLOOKUP($CX31,'Audit Values'!$A$2:$BU$917,2,FALSE)),'Preliminary SO66'!AB30,VLOOKUP($CX31,'Audit Values'!$A$2:$BU$917,42,FALSE)) -> 4.5 | AX31: 35 | AY31: =SUM(AV31*'Weighting Factors'!$R$10)+('2022 Legal Max'!AW31*'Weighting Factors'!$R$11)+('2022 Legal Max'!AX31*'Weighting Factors'!$R$12) -> 97465 | AZ31: =IF(ISNA(VLOOKUP($CX31,'Audit Values'!$A$2:$BU$936,2,FALSE)),"",IF(AND('Weighting Factors'!F31>0,VLOOKUP($CX31,'Audit Values'!$A$2:$BU$936,51,FALSE)<'Weighting Factors'!F31),'Weighting Factors'!F31,VLOOKUP($CX31,'Audit Values'!$A$2:$BU$936,50,FALSE))) -> 17 | BA31: =IF(ISNA(VLOOKUP($CX31,'Audit Values'!$A:$BV,2,FALSE)),"",VLOOKUP($CX31,'Audit Values'!$A:$BV,51,FALSE)) -> A | BB31: =IF('Weighting Factors'!F31="","",IF('Weighting Factors'!H31="Pending","PX","R")) ->  | BC31: =SUM((U31+V31+AA31+AC31+AF31+AI31+AK31++AN31+AO31+AS31+AP31)*'Weighting Factors'!$O$5)+'2022 Legal Max'!AY31 -> 10241248 | BD31: =SUM((AT31+AP31)*'Weighting Factors'!$O$5)+AY31 -> 11152800 | BE31: =IF('Weighting Factors'!F31>0,'Weighting Factors'!F31,'Preliminary SO66'!AV30) -> 11799923 | BF31: 11152800 | BG31: ='Weighting Factors'!E31 -> 0 | BH31: =Transportation!G31 -> 0 | BI31: =IF(ISNA(VLOOKUP($CX31,'Audit Values'!$A$2:$BT$511,2,FALSE)), 0, VLOOKUP($CX31,'Audit Values'!$A$2:$BT$511,72,FALSE)) -> -49630 | BJ31: -49630 | BK31: 11103170 | BL31: =SUM((U31+V31+AA31+AC31+AF31+AI31+AK31+AN31+AO31+AP31)*'Weighting Factors'!O$12)+(MAX(AQ31,'Weighting Factors'!B31)) -> 11138013 | BM31: ='LOB%'!F29 -> 0.31 | BN31: 3452784 | BO31: 3639956 | BP31: 3452784 | BQ31: 0.31 | BR31: =ROUND(IF(U31<=99.9,(U31*1.014331),0),1) -> 0 | BS31: =AND(U31>99.9,U31<=299.9) -> FALSE | BT31: =IF(BS31=TRUE,ROUND((U31-100)*9.655,3),0) -> 0 | BU31: 0 | BV31: =ROUND(BU31*U31,1) -> 0 | BW31: =AND(U31>299.9,U31<=1621.9) -> TRUE | BX31: =IF(BW31=TRUE,ROUND((U31-300)*1.2375,4),0) -> 1540.0688 | BY31: 0.061369 | BZ31: =ROUND(BY31*U31,1) -> 94.8 | CA31: =ROUND(IF(U31>=1622,(U31*0.03504),0),1) -> 0 | CB31: 517 | CC31: =AL31/CB31 -> 0.373 | CD31: =IF(CC31<0.06,1,IF(CC31>=18.29,52,MATCH(CC31-0.001,'Weighting Factors'!$W$5:$W$156)+1)) -> 22 | CE31: =VLOOKUP(CD31, 'Weighting Factors'!$U$5:$X$56,4) -> 1150 | CF31: =('Weighting Factors'!$O$5/'Weighting Factors'!$O$14) -> 1.1299 | CG31: =AL31*CE31 -> 221950 | CH31: =CG31*'Weighting Factors'!$Q$7 -> 221950 | CI31: 250781 | CJ31: =AM31/'Weighting Factors'!$O$5 -> 53.3 | CK31: 0 | CL31: 0 | CM31: 0 | CN31: =SUM((AT31*'Weighting Factors'!$O$5)+'2022 Legal Max'!AY31)*CM31 -> 0 | CO31: 0 | CP31: =AE31/AD31 -> 0.419 | CQ31: =IF(CP31>=50%,AE31*10.5%,0) -> 0 | CR31: =IF(AND(CP31>35%,CP31<50%),AE31*(CP31-35%)*0.7,0) -> 29.8 | CS31: =AU31+AR31 -> 2349.2 | CT31: ='LOB Transfers'!G30 -> 442302 | CU31: ='LOB Transfers'!J30 -> 138457 | CV31: ='General Fund Transfers'!F30 -> 1552980 | CW31: =SUM(R31+T31+AV31+AW31+AX31/6) -> 1472.3 | CX31: D0214
A32: 215 | B32: Kearny | C32: Lakin | D32: 641 | F32: 0 | G32: 641 | H32: 668 | J32: 0 | K32: 668 | L32: 615 | N32: 0 | O32: 615 | P32: =IF(ISNA(VLOOKUP($CX32,'Audit Values'!$A:$BW,2,FALSE)),'Preliminary SO66'!C31,VLOOKUP($CX32,'Audit Values'!$A:$BW,73,FALSE)) -> 602 | Q32: =IF(ISNA(VLOOKUP($CX32,'Audit Values'!$A:$BW,2,FALSE)),'Preliminary SO66'!F31,VLOOKUP($CX32,'Audit Values'!$A$2:$BW$936,4,FALSE)) -> 0 | R32: 602 | S32: =IF('Military Provision'!J32="YES", MAX('2022 Legal Max'!O32,'2022 Legal Max'!K32,AVERAGE('2022 Legal Max'!G32,'2022 Legal Max'!K32,'2022 Legal Max'!O32)), MAX(O32, K32)) -> 668 | T32: =IF(ISNA(VLOOKUP($CX32,'Audit Values'!$A:$BU,2,FALSE)),'Preliminary SO66'!AL31,VLOOKUP($CX32,'Audit Values'!$A:$BU,58,FALSE)) -> 7 | U32: 675 | V32: 240.8 | W32: =IF(ISNA(VLOOKUP($CX32,'Audit Values'!$A:$BW,2,FALSE)),'Preliminary SO66'!AM31,VLOOKUP($CX32,'Audit Values'!$A:$BW,62,FALSE)) -> 228.3 | X32: =(W32/6)*'Weighting Factors'!$O$7 -> 15 | Y32: =IF(ISNA(VLOOKUP($CX32,'Audit Values'!$A:$BW,2,FALSE)),'Preliminary SO66'!AN31,VLOOKUP($CX32,'Audit Values'!$A:$BW,61,FALSE)) -> 89 | Z32: =Y32*'Weighting Factors'!$O$8 -> 16.5 | AA32: 16.5 | AB32: =IF(ISNA(VLOOKUP($CX32,'Audit Values'!$A:$BW,2,FALSE)),'Preliminary SO66'!AO31,VLOOKUP($CX32,'Audit Values'!$A:$BW,60,FALSE)) -> 160.6 | AC32: =AB32/6*'Weighting Factors'!$O$6 -> 13.4 | AD32: =IF(ISNA(VLOOKUP($CX32,'Audit Values'!$A:$BU,2,FALSE)),'Preliminary SO66'!AS31,VLOOKUP($CX32,'Audit Values'!$A:$BU,63,FALSE)) -> 619 | AE32: =IF(ISNA(VLOOKUP($CX32,'Audit Values'!$A:$BU,2,FALSE)),'Preliminary SO66'!AP31,VLOOKUP($CX32,'Audit Values'!$A:$BU,64,FALSE)) -> 241 | AF32: =IF(A32=207, AE32,(AE32))*'Weighting Factors'!$O$9 -> 116.6 | AG32: 6.6 | AH32: =IF(ISNA(VLOOKUP($CX32,'Audit Values'!$A:$BW,2,FALSE)),'Preliminary SO66'!AG31,VLOOKUP($CX32,'Audit Values'!$A:$BW,70,FALSE)) -> 8.1 | AI32: 8.1 | AJ32: =IF(ISNA(VLOOKUP($CX32,'Audit Values'!$A:$BU,2,FALSE)),'Preliminary SO66'!AQ31,VLOOKUP($CX32,'Audit Values'!$A:$BU,65,FALSE)) -> 0 | AK32: =AJ32*'Weighting Factors'!$O$10 -> 0 | AL32: =IF(ISNA(VLOOKUP($CX32,'Audit Values'!$A:$BU,2,FALSE)),'Preliminary SO66'!AR31,VLOOKUP($CX32,'Audit Values'!$A:$BU,66,FALSE)) -> 68 | AM32: 111408 | AN32: =AM32/'Weighting Factors'!$O$5 -> 23.7 | AO32: =CK32/'Weighting Factors'!$O$5 -> 0 | AP32: =CO32/'Weighting Factors'!$O$5 -> 0 | AQ32: 397195 | AR32: =AQ32/'Weighting Factors'!$O$5 -> 84.4 | AS32: =IF(ISNA(VLOOKUP($CX32,'Audit Values'!$A:$BU,2,FALSE)),'Preliminary SO66'!X31,VLOOKUP($CX32,'Audit Values'!$A:$BU,47,FALSE)) -> 0 | AT32: 1178.5 | AU32: 1094.1 | AV32: =IF(ISNA(VLOOKUP($CX32,'Audit Values'!$A$2:$BU$917,2,FALSE)),'Preliminary SO66'!AA31,VLOOKUP($CX32,'Audit Values'!$A$2:$BU$917,41,FALSE)) -> 0 | AW32: =IF(ISNA(VLOOKUP($CX32,'Audit Values'!$A$2:$BU$917,2,FALSE)),'Preliminary SO66'!AB31,VLOOKUP($CX32,'Audit Values'!$A$2:$BU$917,42,FALSE)) -> 0 | AX32: 0 | AY32: =SUM(AV32*'Weighting Factors'!$R$10)+('2022 Legal Max'!AW32*'Weighting Factors'!$R$11)+('2022 Legal Max'!AX32*'Weighting Factors'!$R$12) -> 0 | AZ32: =IF(ISNA(VLOOKUP($CX32,'Audit Values'!$A$2:$BU$936,2,FALSE)),"",IF(AND('Weighting Factors'!F32>0,VLOOKUP($CX32,'Audit Values'!$A$2:$BU$936,51,FALSE)<'Weighting Factors'!F32),'Weighting Factors'!F32,VLOOKUP($CX32,'Audit Values'!$A$2:$BU$936,50,FALSE))) -> 17 | BA32: =IF(ISNA(VLOOKUP($CX32,'Audit Values'!$A:$BV,2,FALSE)),"",VLOOKUP($CX32,'Audit Values'!$A:$BV,51,FALSE)) -> A | BB32: =IF('Weighting Factors'!F32="","",IF('Weighting Factors'!H32="Pending","PX","R")) ->  | BC32: =SUM((U32+V32+AA32+AC32+AF32+AI32+AK32++AN32+AO32+AS32+AP32)*'Weighting Factors'!$O$5)+'2022 Legal Max'!AY32 -> 5148835 | BD32: =SUM((AT32+AP32)*'Weighting Factors'!$O$5)+AY32 -> 5546021 | BE32: =IF('Weighting Factors'!F32>0,'Weighting Factors'!F32,'Preliminary SO66'!AV31) -> 5744614 | BF32: 5546021 | BG32: ='Weighting Factors'!E32 -> 0 | BH32: =Transportation!G32 -> 0 | BI32: =IF(ISNA(VLOOKUP($CX32,'Audit Values'!$A$2:$BT$511,2,FALSE)), 0, VLOOKUP($CX32,'Audit Values'!$A$2:$BT$511,72,FALSE)) -> 0 | BJ32: 0 | BK32: 5546021 | BL32: =SUM((U32+V32+AA32+AC32+AF32+AI32+AK32+AN32+AO32+AP32)*'Weighting Factors'!O$12)+(MAX(AQ32,'Weighting Factors'!B32)) -> 5546030 | BM32: ='LOB%'!F30 -> 0.31 | BN32: 1719269 | BO32: 1780851 | BP32: 1719269 | BQ32: 0.31 | BR32: =ROUND(IF(U32<=99.9,(U32*1.014331),0),1) -> 0 | BS32: =AND(U32>99.9,U32<=299.9) -> FALSE | BT32: =IF(BS32=TRUE,ROUND((U32-100)*9.655,3),0) -> 0 | BU32: 0 | BV32: =ROUND(BU32*U32,1) -> 0 | BW32: =AND(U32>299.9,U32<=1621.9) -> TRUE | BX32: =IF(BW32=TRUE,ROUND((U32-300)*1.2375,4),0) -> 464.0625 | BY32: 0.356781 | BZ32: =ROUND(BY32*U32,1) -> 240.8 | CA32: =ROUND(IF(U32>=1622,(U32*0.03504),0),1) -> 0 | CB32: 646 | CC32: =AL32/CB32 -> 0.105 | CD32: =IF(CC32<0.06,1,IF(CC32>=18.29,52,MATCH(CC32-0.001,'Weighting Factors'!$W$5:$W$156)+1)) -> 6 | CE32: =VLOOKUP(CD32, 'Weighting Factors'!$U$5:$X$56,4) -> 1450 | CF32: =('Weighting Factors'!$O$5/'Weighting Factors'!$O$14) -> 1.1299 | CG32: =AL32*CE32 -> 98600 | CH32: =CG32*'Weighting Factors'!$Q$7 -> 98600 | CI32: 111408 | CJ32: =AM32/'Weighting Factors'!$O$5 -> 23.7 | CK32: 0 | CL32: 0 | CM32: 0 | CN32: =SUM((AT32*'Weighting Factors'!$O$5)+'2022 Legal Max'!AY32)*CM32 -> 0 | CO32: 0 | CP32: =AE32/AD32 -> 0.3893 | CQ32: =IF(CP32>=50%,AE32*10.5%,0) -> 0 | CR32: =IF(AND(CP32>35%,CP32<50%),AE32*(CP32-35%)*0.7,0) -> 6.6 | CS32: =AU32+AR32 -> 1178.5 | CT32: ='LOB Transfers'!G31 -> 171067 | CU32: ='LOB Transfers'!J31 -> 24242 | CV32: ='General Fund Transfers'!F31 -> 586838 | CW32: =SUM(R32+T32+AV32+AW32+AX32/6) -> 609 | CX32: D0215
A33: 216 | B33: Kearny | C33: Deerfield | D33: 182 | F33: 0 | G33: 182 | H33: 178 | J33: 0 | K33: 178 | L33: 179.5 | N33: 0 | O33: 179.5 | P33: =IF(ISNA(VLOOKUP($CX33,'Audit Values'!$A:$BW,2,FALSE)),'Preliminary SO66'!C32,VLOOKUP($CX33,'Audit Values'!$A:$BW,73,FALSE)) -> 210.5 | Q33: =IF(ISNA(VLOOKUP($CX33,'Audit Values'!$A:$BW,2,FALSE)),'Preliminary SO66'!F32,VLOOKUP($CX33,'Audit Values'!$A$2:$BW$936,4,FALSE)) -> 0 | R33: 210.5 | S33: =IF('Military Provision'!J33="YES", MAX('2022 Legal Max'!O33,'2022 Legal Max'!K33,AVERAGE('2022 Legal Max'!G33,'2022 Legal Max'!K33,'2022 Legal Max'!O33)), MAX(O33, K33)) -> 179.5 | T33: =IF(ISNA(VLOOKUP($CX33,'Audit Values'!$A:$BU,2,FALSE)),'Preliminary SO66'!AL32,VLOOKUP($CX33,'Audit Values'!$A:$BU,58,FALSE)) -> 9.5 | U33: 189 | V33: 147.1 | W33: =IF(ISNA(VLOOKUP($CX33,'Audit Values'!$A:$BW,2,FALSE)),'Preliminary SO66'!AM32,VLOOKUP($CX33,'Audit Values'!$A:$BW,62,FALSE)) -> 505.4 | X33: =(W33/6)*'Weighting Factors'!$O$7 -> 33.3 | Y33: =IF(ISNA(VLOOKUP($CX33,'Audit Values'!$A:$BW,2,FALSE)),'Preliminary SO66'!AN32,VLOOKUP($CX33,'Audit Values'!$A:$BW,61,FALSE)) -> 96 | Z33: =Y33*'Weighting Factors'!$O$8 -> 17.8 | AA33: 33.3 | AB33: =IF(ISNA(VLOOKUP($CX33,'Audit Values'!$A:$BW,2,FALSE)),'Preliminary SO66'!AO32,VLOOKUP($CX33,'Audit Values'!$A:$BW,60,FALSE)) -> 47.8 | AC33: =AB33/6*'Weighting Factors'!$O$6 -> 4 | AD33: =IF(ISNA(VLOOKUP($CX33,'Audit Values'!$A:$BU,2,FALSE)),'Preliminary SO66'!AS32,VLOOKUP($CX33,'Audit Values'!$A:$BU,63,FALSE)) -> 230 | AE33: =IF(ISNA(VLOOKUP($CX33,'Audit Values'!$A:$BU,2,FALSE)),'Preliminary SO66'!AP32,VLOOKUP($CX33,'Audit Values'!$A:$BU,64,FALSE)) -> 140 | AF33: =IF(A33=207, AE33,(AE33))*'Weighting Factors'!$O$9 -> 67.8 | AG33: 14.7 | AH33: =IF(ISNA(VLOOKUP($CX33,'Audit Values'!$A:$BW,2,FALSE)),'Preliminary SO66'!AG32,VLOOKUP($CX33,'Audit Values'!$A:$BW,70,FALSE)) -> 14.6 | AI33: 14.7 | AJ33: =IF(ISNA(VLOOKUP($CX33,'Audit Values'!$A:$BU,2,FALSE)),'Preliminary SO66'!AQ32,VLOOKUP($CX33,'Audit Values'!$A:$BU,65,FALSE)) -> 0 | AK33: =AJ33*'Weighting Factors'!$O$10 -> 0 | AL33: =IF(ISNA(VLOOKUP($CX33,'Audit Values'!$A:$BU,2,FALSE)),'Preliminary SO66'!AR32,VLOOKUP($CX33,'Audit Values'!$A:$BU,66,FALSE)) -> 15 | AM33: 26779 | AN33: =AM33/'Weighting Factors'!$O$5 -> 5.7 | AO33: =CK33/'Weighting Factors'!$O$5 -> 0 | AP33: =CO33/'Weighting Factors'!$O$5 -> 0 | AQ33: 125264 | AR33: =AQ33/'Weighting Factors'!$O$5 -> 26.6 | AS33: =IF(ISNA(VLOOKUP($CX33,'Audit Values'!$A:$BU,2,FALSE)),'Preliminary SO66'!X32,VLOOKUP($CX33,'Audit Values'!$A:$BU,47,FALSE)) -> 0 | AT33: 488.2 | AU33: 461.6 | AV33: =IF(ISNA(VLOOKUP($CX33,'Audit Values'!$A$2:$BU$917,2,FALSE)),'Preliminary SO66'!AA32,VLOOKUP($CX33,'Audit Values'!$A$2:$BU$917,41,FALSE)) -> 0 | AW33: =IF(ISNA(VLOOKUP($CX33,'Audit Values'!$A$2:$BU$917,2,FALSE)),'Preliminary SO66'!AB32,VLOOKUP($CX33,'Audit Values'!$A$2:$BU$917,42,FALSE)) -> 0 | AX33: 0 | AY33: =SUM(AV33*'Weighting Factors'!$R$10)+('2022 Legal Max'!AW33*'Weighting Factors'!$R$11)+('2022 Legal Max'!AX33*'Weighting Factors'!$R$12) -> 0 | AZ33: =IF(ISNA(VLOOKUP($CX33,'Audit Values'!$A$2:$BU$936,2,FALSE)),"",IF(AND('Weighting Factors'!F33>0,VLOOKUP($CX33,'Audit Values'!$A$2:$BU$936,51,FALSE)<'Weighting Factors'!F33),'Weighting Factors'!F33,VLOOKUP($CX33,'Audit Values'!$A$2:$BU$936,50,FALSE))) -> 14 | BA33: =IF(ISNA(VLOOKUP($CX33,'Audit Values'!$A:$BV,2,FALSE)),"",VLOOKUP($CX33,'Audit Values'!$A:$BV,51,FALSE)) -> A | BB33: =IF('Weighting Factors'!F33="","",IF('Weighting Factors'!H33="Pending","PX","R")) -> R | BC33: =SUM((U33+V33+AA33+AC33+AF33+AI33+AK33++AN33+AO33+AS33+AP33)*'Weighting Factors'!$O$5)+'2022 Legal Max'!AY33 -> 2172290 | BD33: =SUM((AT33+AP33)*'Weighting Factors'!$O$5)+AY33 -> 2297469 | BE33: =IF('Weighting Factors'!F33>0,'Weighting Factors'!F33,'Preliminary SO66'!AV32) -> 2297469 | BF33: 2297469 | BG33: ='Weighting Factors'!E33 -> 0 | BH33: =Transportation!G33 -> 0 | BI33: =IF(ISNA(VLOOKUP($CX33,'Audit Values'!$A$2:$BT$511,2,FALSE)), 0, VLOOKUP($CX33,'Audit Values'!$A$2:$BT$511,72,FALSE)) -> 0 | BJ33: 0 | BK33: 2297469 | BL33: =SUM((U33+V33+AA33+AC33+AF33+AI33+AK33+AN33+AO33+AP33)*'Weighting Factors'!O$12)+(MAX(AQ33,'Weighting Factors'!B33)) -> 2378179 | BM33: ='LOB%'!F31 -> 0.33 | BN33: 784799 | BO33: 770667 | BP33: 770667 | BQ33: 0.3241 | BR33: =ROUND(IF(U33<=99.9,(U33*1.014331),0),1) -> 0 | BS33: =AND(U33>99.9,U33<=299.9) -> TRUE | BT33: =IF(BS33=TRUE,ROUND((U33-100)*9.655,3),0) -> 859.295 | BU33: 0.778417 | BV33: =ROUND(BU33*U33,1) -> 147.1 | BW33: =AND(U33>299.9,U33<=1621.9) -> FALSE | BX33: =IF(BW33=TRUE,ROUND((U33-300)*1.2375,4),0) -> 0 | BY33: 0 | BZ33: =ROUND(BY33*U33,1) -> 0 | CA33: =ROUND(IF(U33>=1622,(U33*0.03504),0),1) -> 0 | CB33: 216 | CC33: =AL33/CB33 -> 0.069 | CD33: =IF(CC33<0.06,1,IF(CC33>=18.29,52,MATCH(CC33-0.001,'Weighting Factors'!$W$5:$W$156)+1)) -> 2 | CE33: =VLOOKUP(CD33, 'Weighting Factors'!$U$5:$X$56,4) -> 1580 | CF33: =('Weighting Factors'!$O$5/'Weighting Factors'!$O$14) -> 1.1299 | CG33: =AL33*CE33 -> 23700 | CH33: =CG33*'Weighting Factors'!$Q$7 -> 23700 | CI33: 26779 | CJ33: =AM33/'Weighting Factors'!$O$5 -> 5.7 | CK33: 0 | CL33: 0 | CM33: 0 | CN33: =SUM((AT33*'Weighting Factors'!$O$5)+'2022 Legal Max'!AY33)*CM33 -> 0 | CO33: 0 | CP33: =AE33/AD33 -> 0.6087 | CQ33: =IF(CP33>=50%,AE33*10.5%,0) -> 14.7 | CR33: =IF(AND(CP33>35%,CP33<50%),AE33*(CP33-35%)*0.7,0) -> 0 | CS33: =AU33+AR33 -> 488.2 | CT33: ='LOB Transfers'!G32 -> 109126 | CU33: ='LOB Transfers'!J32 -> 53638 | CV33: ='General Fund Transfers'!F32 -> 388245 | CW33: =SUM(R33+T33+AV33+AW33+AX33/6) -> 220 | CX33: D0216
A34: 217 | B34: Morton | C34: Rolla | D34: 113 | F34: 0 | G34: 113 | H34: 109 | J34: 0 | K34: 109 | L34: 108 | N34: 0 | O34: 108 | P34: =IF(ISNA(VLOOKUP($CX34,'Audit Values'!$A:$BW,2,FALSE)),'Preliminary SO66'!C33,VLOOKUP($CX34,'Audit Values'!$A:$BW,73,FALSE)) -> 95.5 | Q34: =IF(ISNA(VLOOKUP($CX34,'Audit Values'!$A:$BW,2,FALSE)),'Preliminary SO66'!F33,VLOOKUP($CX34,'Audit Values'!$A$2:$BW$936,4,FALSE)) -> 0 | R34: 95.5 | S34: =IF('Military Provision'!J34="YES", MAX('2022 Legal Max'!O34,'2022 Legal Max'!K34,AVERAGE('2022 Legal Max'!G34,'2022 Legal Max'!K34,'2022 Legal Max'!O34)), MAX(O34, K34)) -> 109 | T34: =IF(ISNA(VLOOKUP($CX34,'Audit Values'!$A:$BU,2,FALSE)),'Preliminary SO66'!AL33,VLOOKUP($CX34,'Audit Values'!$A:$BU,58,FALSE)) -> 1 | U34: 110 | V34: 108.7 | W34: =IF(ISNA(VLOOKUP($CX34,'Audit Values'!$A:$BW,2,FALSE)),'Preliminary SO66'!AM33,VLOOKUP($CX34,'Audit Values'!$A:$BW,62,FALSE)) -> 76.5 | X34: =(W34/6)*'Weighting Factors'!$O$7 -> 5 | Y34: =IF(ISNA(VLOOKUP($CX34,'Audit Values'!$A:$BW,2,FALSE)),'Preliminary SO66'!AN33,VLOOKUP($CX34,'Audit Values'!$A:$BW,61,FALSE)) -> 15 | Z34: =Y34*'Weighting Factors'!$O$8 -> 2.8 | AA34: 5 | AB34: =IF(ISNA(VLOOKUP($CX34,'Audit Values'!$A:$BW,2,FALSE)),'Preliminary SO66'!AO33,VLOOKUP($CX34,'Audit Values'!$A:$BW,60,FALSE)) -> 16.7 | AC34: =AB34/6*'Weighting Factors'!$O$6 -> 1.4 | AD34: =IF(ISNA(VLOOKUP($CX34,'Audit Values'!$A:$BU,2,FALSE)),'Preliminary SO66'!AS33,VLOOKUP($CX34,'Audit Values'!$A:$BU,63,FALSE)) -> 98 | AE34: =IF(ISNA(VLOOKUP($CX34,'Audit Values'!$A:$BU,2,FALSE)),'Preliminary SO66'!AP33,VLOOKUP($CX34,'Audit Values'!$A:$BU,64,FALSE)) -> 48 | AF34: =IF(A34=207, AE34,(AE34))*'Weighting Factors'!$O$9 -> 23.2 | AG34: 4.7 | AH34: =IF(ISNA(VLOOKUP($CX34,'Audit Values'!$A:$BW,2,FALSE)),'Preliminary SO66'!AG33,VLOOKUP($CX34,'Audit Values'!$A:$BW,70,FALSE)) -> 3.3 | AI34: 4.7 | AJ34: =IF(ISNA(VLOOKUP($CX34,'Audit Values'!$A:$BU,2,FALSE)),'Preliminary SO66'!AQ33,VLOOKUP($CX34,'Audit Values'!$A:$BU,65,FALSE)) -> 0 | AK34: =AJ34*'Weighting Factors'!$O$10 -> 0 | AL34: =IF(ISNA(VLOOKUP($CX34,'Audit Values'!$A:$BU,2,FALSE)),'Preliminary SO66'!AR33,VLOOKUP($CX34,'Audit Values'!$A:$BU,66,FALSE)) -> 26 | AM34: 42597 | AN34: =AM34/'Weighting Factors'!$O$5 -> 9.1 | AO34: =CK34/'Weighting Factors'!$O$5 -> 0 | AP34: =CO34/'Weighting Factors'!$O$5 -> 0 | AQ34: 77559 | AR34: =AQ34/'Weighting Factors'!$O$5 -> 16.5 | AS34: =IF(ISNA(VLOOKUP($CX34,'Audit Values'!$A:$BU,2,FALSE)),'Preliminary SO66'!X33,VLOOKUP($CX34,'Audit Values'!$A:$BU,47,FALSE)) -> 0 | AT34: 278.6 | AU34: 262.1 | AV34: =IF(ISNA(VLOOKUP($CX34,'Audit Values'!$A$2:$BU$917,2,FALSE)),'Preliminary SO66'!AA33,VLOOKUP($CX34,'Audit Values'!$A$2:$BU$917,41,FALSE)) -> 0 | AW34: =IF(ISNA(VLOOKUP($CX34,'Audit Values'!$A$2:$BU$917,2,FALSE)),'Preliminary SO66'!AB33,VLOOKUP($CX34,'Audit Values'!$A$2:$BU$917,42,FALSE)) -> 0 | AX34: 0 | AY34: =SUM(AV34*'Weighting Factors'!$R$10)+('2022 Legal Max'!AW34*'Weighting Factors'!$R$11)+('2022 Legal Max'!AX34*'Weighting Factors'!$R$12) -> 0 | AZ34: =IF(ISNA(VLOOKUP($CX34,'Audit Values'!$A$2:$BU$936,2,FALSE)),"",IF(AND('Weighting Factors'!F34>0,VLOOKUP($CX34,'Audit Values'!$A$2:$BU$936,51,FALSE)<'Weighting Factors'!F34),'Weighting Factors'!F34,VLOOKUP($CX34,'Audit Values'!$A$2:$BU$936,50,FALSE))) -> 3 | BA34: =IF(ISNA(VLOOKUP($CX34,'Audit Values'!$A:$BV,2,FALSE)),"",VLOOKUP($CX34,'Audit Values'!$A:$BV,51,FALSE)) -> A | BB34: =IF('Weighting Factors'!F34="","",IF('Weighting Factors'!H34="Pending","PX","R")) ->  | BC34: =SUM((U34+V34+AA34+AC34+AF34+AI34+AK34++AN34+AO34+AS34+AP34)*'Weighting Factors'!$O$5)+'2022 Legal Max'!AY34 -> 1233443 | BD34: =SUM((AT34+AP34)*'Weighting Factors'!$O$5)+AY34 -> 1311092 | BE34: =IF('Weighting Factors'!F34>0,'Weighting Factors'!F34,'Preliminary SO66'!AV33) -> 1387329 | BF34: 1311092 | BG34: ='Weighting Factors'!E34 -> 0 | BH34: =Transportation!G34 -> 0 | BI34: =IF(ISNA(VLOOKUP($CX34,'Audit Values'!$A$2:$BT$511,2,FALSE)), 0, VLOOKUP($CX34,'Audit Values'!$A$2:$BT$511,72,FALSE)) -> 0 | BJ34: 0 | BK34: 1311092 | BL34: =SUM((U34+V34+AA34+AC34+AF34+AI34+AK34+AN34+AO34+AP34)*'Weighting Factors'!O$12)+(MAX(AQ34,'Weighting Factors'!B34)) -> 1379783 | BM34: ='LOB%'!F32 -> 0.33 | BN34: 455328 | BO34: 477381 | BP34: 455328 | BQ34: 0.33 | BR34: =ROUND(IF(U34<=99.9,(U34*1.014331),0),1) -> 0 | BS34: =AND(U34>99.9,U34<=299.9) -> TRUE | BT34: =IF(BS34=TRUE,ROUND((U34-100)*9.655,3),0) -> 96.55 | BU34: 0.987824 | BV34: =ROUND(BU34*U34,1) -> 108.7 | BW34: =AND(U34>299.9,U34<=1621.9) -> FALSE | BX34: =IF(BW34=TRUE,ROUND((U34-300)*1.2375,4),0) -> 0 | BY34: 0 | BZ34: =ROUND(BY34*U34,1) -> 0 | CA34: =ROUND(IF(U34>=1622,(U34*0.03504),0),1) -> 0 | CB34: 252 | CC34: =AL34/CB34 -> 0.103 | CD34: =IF(CC34<0.06,1,IF(CC34>=18.29,52,MATCH(CC34-0.001,'Weighting Factors'!$W$5:$W$156)+1)) -> 6 | CE34: =VLOOKUP(CD34, 'Weighting Factors'!$U$5:$X$56,4) -> 1450 | CF34: =('Weighting Factors'!$O$5/'Weighting Factors'!$O$14) -> 1.1299 | CG34: =AL34*CE34 -> 37700 | CH34: =CG34*'Weighting Factors'!$Q$7 -> 37700 | CI34: 42597 | CJ34: =AM34/'Weighting Factors'!$O$5 -> 9.1 | CK34: 0 | CL34: 0 | CM34: 0 | CN34: =SUM((AT34*'Weighting Factors'!$O$5)+'2022 Legal Max'!AY34)*CM34 -> 0 | CO34: 0 | CP34: =AE34/AD34 -> 0.4898 | CQ34: =IF(CP34>=50%,AE34*10.5%,0) -> 0 | CR34: =IF(AND(CP34>35%,CP34<50%),AE34*(CP34-35%)*0.7,0) -> 4.7 | CS34: =AU34+AR34 -> 278.6 | CT34: ='LOB Transfers'!G33 -> 38065 | CU34: ='LOB Transfers'!J33 -> 8196 | CV34: ='General Fund Transfers'!F33 -> 131297 | CW34: =SUM(R34+T34+AV34+AW34+AX34/6) -> 96.5 | CX34: D0217
A35: 218 | B35: Morton | C35: Elkhart | D35: 407.2 | F35: 0 | G35: 407.2 | H35: 426.2 | J35: 0 | K35: 426.2 | L35: 389.5 | N35: 0 | O35: 389.5 | P35: =IF(ISNA(VLOOKUP($CX35,'Audit Values'!$A:$BW,2,FALSE)),'Preliminary SO66'!C34,VLOOKUP($CX35,'Audit Values'!$A:$BW,73,FALSE)) -> 394.5 | Q35: =IF(ISNA(VLOOKUP($CX35,'Audit Values'!$A:$BW,2,FALSE)),'Preliminary SO66'!F34,VLOOKUP($CX35,'Audit Values'!$A$2:$BW$936,4,FALSE)) -> 0 | R35: 394.5 | S35: =IF('Military Provision'!J35="YES", MAX('2022 Legal Max'!O35,'2022 Legal Max'!K35,AVERAGE('2022 Legal Max'!G35,'2022 Legal Max'!K35,'2022 Legal Max'!O35)), MAX(O35, K35)) -> 426.2 | T35: =IF(ISNA(VLOOKUP($CX35,'Audit Values'!$A:$BU,2,FALSE)),'Preliminary SO66'!AL34,VLOOKUP($CX35,'Audit Values'!$A:$BU,58,FALSE)) -> 10 | U35: 436.2 | V35: 191 | W35: =IF(ISNA(VLOOKUP($CX35,'Audit Values'!$A:$BW,2,FALSE)),'Preliminary SO66'!AM34,VLOOKUP($CX35,'Audit Values'!$A:$BW,62,FALSE)) -> 257.8 | X35: =(W35/6)*'Weighting Factors'!$O$7 -> 17 | Y35: =IF(ISNA(VLOOKUP($CX35,'Audit Values'!$A:$BW,2,FALSE)),'Preliminary SO66'!AN34,VLOOKUP($CX35,'Audit Values'!$A:$BW,61,FALSE)) -> 73 | Z35: =Y35*'Weighting Factors'!$O$8 -> 13.5 | AA35: 17 | AB35: =IF(ISNA(VLOOKUP($CX35,'Audit Values'!$A:$BW,2,FALSE)),'Preliminary SO66'!AO34,VLOOKUP($CX35,'Audit Values'!$A:$BW,60,FALSE)) -> 123.9 | AC35: =AB35/6*'Weighting Factors'!$O$6 -> 10.3 | AD35: =IF(ISNA(VLOOKUP($CX35,'Audit Values'!$A:$BU,2,FALSE)),'Preliminary SO66'!AS34,VLOOKUP($CX35,'Audit Values'!$A:$BU,63,FALSE)) -> 431 | AE35: =IF(ISNA(VLOOKUP($CX35,'Audit Values'!$A:$BU,2,FALSE)),'Preliminary SO66'!AP34,VLOOKUP($CX35,'Audit Values'!$A:$BU,64,FALSE)) -> 147 | AF35: =IF(A35=207, AE35,(AE35))*'Weighting Factors'!$O$9 -> 71.1 | AG35: 0 | AH35: =IF(ISNA(VLOOKUP($CX35,'Audit Values'!$A:$BW,2,FALSE)),'Preliminary SO66'!AG34,VLOOKUP($CX35,'Audit Values'!$A:$BW,70,FALSE)) -> 4.6 | AI35: 4.6 | AJ35: =IF(ISNA(VLOOKUP($CX35,'Audit Values'!$A:$BU,2,FALSE)),'Preliminary SO66'!AQ34,VLOOKUP($CX35,'Audit Values'!$A:$BU,65,FALSE)) -> 0 | AK35: =AJ35*'Weighting Factors'!$O$10 -> 0 | AL35: =IF(ISNA(VLOOKUP($CX35,'Audit Values'!$A:$BU,2,FALSE)),'Preliminary SO66'!AR34,VLOOKUP($CX35,'Audit Values'!$A:$BU,66,FALSE)) -> 23 | AM35: 41061 | AN35: =AM35/'Weighting Factors'!$O$5 -> 8.7 | AO35: =CK35/'Weighting Factors'!$O$5 -> 0 | AP35: =CO35/'Weighting Factors'!$O$5 -> 0 | AQ35: 261420 | AR35: =AQ35/'Weighting Factors'!$O$5 -> 55.6 | AS35: =IF(ISNA(VLOOKUP($CX35,'Audit Values'!$A:$BU,2,FALSE)),'Preliminary SO66'!X34,VLOOKUP($CX35,'Audit Values'!$A:$BU,47,FALSE)) -> 1 | AT35: 795.5 | AU35: 739.9 | AV35: =IF(ISNA(VLOOKUP($CX35,'Audit Values'!$A$2:$BU$917,2,FALSE)),'Preliminary SO66'!AA34,VLOOKUP($CX35,'Audit Values'!$A$2:$BU$917,41,FALSE)) -> 1249 | AW35: =IF(ISNA(VLOOKUP($CX35,'Audit Values'!$A$2:$BU$917,2,FALSE)),'Preliminary SO66'!AB34,VLOOKUP($CX35,'Audit Values'!$A$2:$BU$917,42,FALSE)) -> 109.1 | AX35: 0 | AY35: =SUM(AV35*'Weighting Factors'!$R$10)+('2022 Legal Max'!AW35*'Weighting Factors'!$R$11)+('2022 Legal Max'!AX35*'Weighting Factors'!$R$12) -> 6430470 | AZ35: =IF(ISNA(VLOOKUP($CX35,'Audit Values'!$A$2:$BU$936,2,FALSE)),"",IF(AND('Weighting Factors'!F35>0,VLOOKUP($CX35,'Audit Values'!$A$2:$BU$936,51,FALSE)<'Weighting Factors'!F35),'Weighting Factors'!F35,VLOOKUP($CX35,'Audit Values'!$A$2:$BU$936,50,FALSE))) -> 23 | BA35: =IF(ISNA(VLOOKUP($CX35,'Audit Values'!$A:$BV,2,FALSE)),"",VLOOKUP($CX35,'Audit Values'!$A:$BV,51,FALSE)) -> A | BC35: =SUM((U35+V35+AA35+AC35+AF35+AI35+AK35++AN35+AO35+AS35+AP35)*'Weighting Factors'!$O$5)+'2022 Legal Max'!AY35 -> 9912439 | BD35: =SUM((AT35+AP35)*'Weighting Factors'!$O$5)+AY35 -> 10174093 | BE35: =IF('Weighting Factors'!F35>0,'Weighting Factors'!F35,'Preliminary SO66'!AV34) -> 12283628 | BF35: 10174093 | BG35: ='Weighting Factors'!E35 -> 0 | BH35: =Transportation!G35 -> 0 | BI35: =IF(ISNA(VLOOKUP($CX35,'Audit Values'!$A$2:$BT$511,2,FALSE)), 0, VLOOKUP($CX35,'Audit Values'!$A$2:$BT$511,72,FALSE)) -> 0 | BJ35: 0 | BK35: 10174093 | BL35: =SUM((U35+V35+AA35+AC35+AF35+AI35+AK35+AN35+AO35+AP35)*'Weighting Factors'!O$12)+(MAX(AQ35,'Weighting Factors'!B35)) -> 3868052 | BM35: ='LOB%'!F33 -> 0.31 | BN35: 1199096 | BO35: 1250740 | BP35: 1199096 | BQ35: 0.31 | BR35: =ROUND(IF(U35<=99.9,(U35*1.014331),0),1) -> 0 | BS35: =AND(U35>99.9,U35<=299.9) -> FALSE | BT35: =IF(BS35=TRUE,ROUND((U35-100)*9.655,3),0) -> 0 | BU35: 0 | BV35: =ROUND(BU35*U35,1) -> 0 | BW35: =AND(U35>299.9,U35<=1621.9) -> TRUE | BX35: =IF(BW35=TRUE,ROUND((U35-300)*1.2375,4),0) -> 168.5475 | BY35: 0.437913 | BZ35: =ROUND(BY35*U35,1) -> 191 | CA35: =ROUND(IF(U35>=1622,(U35*0.03504),0),1) -> 0 | CB35: 376 | CC35: =AL35/CB35 -> 0.061 | CD35: =IF(CC35<0.06,1,IF(CC35>=18.29,52,MATCH(CC35-0.001,'Weighting Factors'!$W$5:$W$156)+1)) -> 2 | CE35: =VLOOKUP(CD35, 'Weighting Factors'!$U$5:$X$56,4) -> 1580 | CF35: =('Weighting Factors'!$O$5/'Weighting Factors'!$O$14) -> 1.1299 | CG35: =AL35*CE35 -> 36340 | CH35: =CG35*'Weighting Factors'!$Q$7 -> 36340 | CI35: 41061 | CJ35: =AM35/'Weighting Factors'!$O$5 -> 8.7 | CK35: 0 | CL35: 0 | CM35: 0 | CN35: =SUM((AT35*'Weighting Factors'!$O$5)+'2022 Legal Max'!AY35)*CM35 -> 0 | CO35: 0 | CP35: =AE35/AD35 -> 0.3411 | CQ35: =IF(CP35>=50%,AE35*10.5%,0) -> 0 | CR35: =IF(AND(CP35>35%,CP35<50%),AE35*(CP35-35%)*0.7,0) -> 0 | CS35: =AU35+AR35 -> 795.5 | CT35: ='LOB Transfers'!G34 -> 108638 | CU35: ='LOB Transfers'!J34 -> 26020 | CV35: ='General Fund Transfers'!F34 -> 356244 | CW35: =SUM(R35+T35+AV35+AW35+AX35/6) -> 1762.6 | CX35: D0218
A36: 219 | B36: Clark | C36: Minneola | D36: 237.5 | F36: 0 | G36: 237.5 | H36: 232.5 | J36: 0 | K36: 232.5 | L36: 247.7 | N36: 0 | O36: 247.7 | P36: =IF(ISNA(VLOOKUP($CX36,'Audit Values'!$A:$BW,2,FALSE)),'Preliminary SO66'!C35,VLOOKUP($CX36,'Audit Values'!$A:$BW,73,FALSE)) -> 225 | Q36: =IF(ISNA(VLOOKUP($CX36,'Audit Values'!$A:$BW,2,FALSE)),'Preliminary SO66'!F35,VLOOKUP($CX36,'Audit Values'!$A$2:$BW$936,4,FALSE)) -> 0 | R36: 225 | S36: =IF('Military Provision'!J36="YES", MAX('2022 Legal Max'!O36,'2022 Legal Max'!K36,AVERAGE('2022 Legal Max'!G36,'2022 Legal Max'!K36,'2022 Legal Max'!O36)), MAX(O36, K36)) -> 247.7 | T36: =IF(ISNA(VLOOKUP($CX36,'Audit Values'!$A:$BU,2,FALSE)),'Preliminary SO66'!AL35,VLOOKUP($CX36,'Audit Values'!$A:$BU,58,FALSE)) -> 1.5 | U36: 249.2 | V36: 154.2 | W36: =IF(ISNA(VLOOKUP($CX36,'Audit Values'!$A:$BW,2,FALSE)),'Preliminary SO66'!AM35,VLOOKUP($CX36,'Audit Values'!$A:$BW,62,FALSE)) -> 0 | X36: =(W36/6)*'Weighting Factors'!$O$7 -> 0 | Y36: =IF(ISNA(VLOOKUP($CX36,'Audit Values'!$A:$BW,2,FALSE)),'Preliminary SO66'!AN35,VLOOKUP($CX36,'Audit Values'!$A:$BW,61,FALSE)) -> 0 | Z36: =Y36*'Weighting Factors'!$O$8 -> 0 | AA36: 0 | AB36: =IF(ISNA(VLOOKUP($CX36,'Audit Values'!$A:$BW,2,FALSE)),'Preliminary SO66'!AO35,VLOOKUP($CX36,'Audit Values'!$A:$BW,60,FALSE)) -> 0 | AC36: =AB36/6*'Weighting Factors'!$O$6 -> 0 | AD36: =IF(ISNA(VLOOKUP($CX36,'Audit Values'!$A:$BU,2,FALSE)),'Preliminary SO66'!AS35,VLOOKUP($CX36,'Audit Values'!$A:$BU,63,FALSE)) -> 229 | AE36: =IF(ISNA(VLOOKUP($CX36,'Audit Values'!$A:$BU,2,FALSE)),'Preliminary SO66'!AP35,VLOOKUP($CX36,'Audit Values'!$A:$BU,64,FALSE)) -> 73 | AF36: =IF(A36=207, AE36,(AE36))*'Weighting Factors'!$O$9 -> 35.3 | AG36: 0 | AH36: =IF(ISNA(VLOOKUP($CX36,'Audit Values'!$A:$BW,2,FALSE)),'Preliminary SO66'!AG35,VLOOKUP($CX36,'Audit Values'!$A:$BW,70,FALSE)) -> 0 | AI36: 0 | AJ36: =IF(ISNA(VLOOKUP($CX36,'Audit Values'!$A:$BU,2,FALSE)),'Preliminary SO66'!AQ35,VLOOKUP($CX36,'Audit Values'!$A:$BU,65,FALSE)) -> 0 | AK36: =AJ36*'Weighting Factors'!$O$10 -> 0 | AL36: =IF(ISNA(VLOOKUP($CX36,'Audit Values'!$A:$BU,2,FALSE)),'Preliminary SO66'!AR35,VLOOKUP($CX36,'Audit Values'!$A:$BU,66,FALSE)) -> 36 | AM36: 57354 | AN36: =AM36/'Weighting Factors'!$O$5 -> 12.2 | AO36: =CK36/'Weighting Factors'!$O$5 -> 0 | AP36: =CO36/'Weighting Factors'!$O$5 -> 0 | AQ36: 181739 | AR36: =AQ36/'Weighting Factors'!$O$5 -> 38.6 | AS36: =IF(ISNA(VLOOKUP($CX36,'Audit Values'!$A:$BU,2,FALSE)),'Preliminary SO66'!X35,VLOOKUP($CX36,'Audit Values'!$A:$BU,47,FALSE)) -> 1 | AT36: 490.5 | AU36: 451.9 | AV36: =IF(ISNA(VLOOKUP($CX36,'Audit Values'!$A$2:$BU$917,2,FALSE)),'Preliminary SO66'!AA35,VLOOKUP($CX36,'Audit Values'!$A$2:$BU$917,41,FALSE)) -> 0 | AW36: =IF(ISNA(VLOOKUP($CX36,'Audit Values'!$A$2:$BU$917,2,FALSE)),'Preliminary SO66'!AB35,VLOOKUP($CX36,'Audit Values'!$A$2:$BU$917,42,FALSE)) -> 0 | AX36: 0 | AY36: =SUM(AV36*'Weighting Factors'!$R$10)+('2022 Legal Max'!AW36*'Weighting Factors'!$R$11)+('2022 Legal Max'!AX36*'Weighting Factors'!$R$12) -> 0 | AZ36: =IF(ISNA(VLOOKUP($CX36,'Audit Values'!$A$2:$BU$936,2,FALSE)),"",IF(AND('Weighting Factors'!F36>0,VLOOKUP($CX36,'Audit Values'!$A$2:$BU$936,51,FALSE)<'Weighting Factors'!F36),'Weighting Factors'!F36,VLOOKUP($CX36,'Audit Values'!$A$2:$BU$936,50,FALSE))) -> 14 | BA36: =IF(ISNA(VLOOKUP($CX36,'Audit Values'!$A:$BV,2,FALSE)),"",VLOOKUP($CX36,'Audit Values'!$A:$BV,51,FALSE)) -> A | BB36: =IF('Weighting Factors'!F36="","",IF('Weighting Factors'!H36="Pending","PX","R")) ->  | BC36: =SUM((U36+V36+AA36+AC36+AF36+AI36+AK36++AN36+AO36+AS36+AP36)*'Weighting Factors'!$O$5)+'2022 Legal Max'!AY36 -> 2126641 | BD36: =SUM((AT36+AP36)*'Weighting Factors'!$O$5)+AY36 -> 2308293 | BE36: =IF('Weighting Factors'!F36>0,'Weighting Factors'!F36,'Preliminary SO66'!AV35) -> 2485709 | BF36: 2308293 | BG36: ='Weighting Factors'!E36 -> 0 | BH36: =Transportation!G36 -> 0 | BI36: =IF(ISNA(VLOOKUP($CX36,'Audit Values'!$A$2:$BT$511,2,FALSE)), 0, VLOOKUP($CX36,'Audit Values'!$A$2:$BT$511,72,FALSE)) -> 0 | BJ36: 0 | BK36: 2308293 | BL36: =SUM((U36+V36+AA36+AC36+AF36+AI36+AK36+AN36+AO36+AP36)*'Weighting Factors'!O$12)+(MAX(AQ36,'Weighting Factors'!B36)) -> 2369758 | BM36: ='LOB%'!F34 -> 0.31 | BN36: 734625 | BO36: 770221 | BP36: 734625 | BQ36: 0.31 | BR36: =ROUND(IF(U36<=99.9,(U36*1.014331),0),1) -> 0 | BS36: =AND(U36>99.9,U36<=299.9) -> TRUE | BT36: =IF(BS36=TRUE,ROUND((U36-100)*9.655,3),0) -> 1440.526 | BU36: 0.618843 | BV36: =ROUND(BU36*U36,1) -> 154.2 | BW36: =AND(U36>299.9,U36<=1621.9) -> FALSE | BX36: =IF(BW36=TRUE,ROUND((U36-300)*1.2375,4),0) -> 0 | BY36: 0 | BZ36: =ROUND(BY36*U36,1) -> 0 | CA36: =ROUND(IF(U36>=1622,(U36*0.03504),0),1) -> 0 | CB36: 292 | CC36: =AL36/CB36 -> 0.123 | CD36: =IF(CC36<0.06,1,IF(CC36>=18.29,52,MATCH(CC36-0.001,'Weighting Factors'!$W$5:$W$156)+1)) -> 8 | CE36: =VLOOKUP(CD36, 'Weighting Factors'!$U$5:$X$56,4) -> 1410 | CF36: =('Weighting Factors'!$O$5/'Weighting Factors'!$O$14) -> 1.1299 | CG36: =AL36*CE36 -> 50760 | CH36: =CG36*'Weighting Factors'!$Q$7 -> 50760 | CI36: 57354 | CJ36: =AM36/'Weighting Factors'!$O$5 -> 12.2 | CK36: 0 | CL36: 0 | CM36: 0 | CN36: =SUM((AT36*'Weighting Factors'!$O$5)+'2022 Legal Max'!AY36)*CM36 -> 0 | CO36: 0 | CP36: =AE36/AD36 -> 0.3188 | CQ36: =IF(CP36>=50%,AE36*10.5%,0) -> 0 | CR36: =IF(AND(CP36>35%,CP36<50%),AE36*(CP36-35%)*0.7,0) -> 0 | CS36: =AU36+AR36 -> 490.5 | CT36: ='LOB Transfers'!G35 -> 53113 | CU36: ='LOB Transfers'!J35 -> 0 | CV36: ='General Fund Transfers'!F35 -> 166122 | CW36: =SUM(R36+T36+AV36+AW36+AX36/6) -> 226.5 | CX36: D0219
A37: 220 | B37: Clark | C37: Ashland | D37: 207.3 | F37: 0 | G37: 207.3 | H37: 200.7 | J37: 0 | K37: 200.7 | L37: 186.1 | N37: 0 | O37: 186.1 | P37: =IF(ISNA(VLOOKUP($CX37,'Audit Values'!$A:$BW,2,FALSE)),'Preliminary SO66'!C36,VLOOKUP($CX37,'Audit Values'!$A:$BW,73,FALSE)) -> 196.8 | Q37: =IF(ISNA(VLOOKUP($CX37,'Audit Values'!$A:$BW,2,FALSE)),'Preliminary SO66'!F36,VLOOKUP($CX37,'Audit Values'!$A$2:$BW$936,4,FALSE)) -> 0 | R37: 196.8 | S37: =IF('Military Provision'!J37="YES", MAX('2022 Legal Max'!O37,'2022 Legal Max'!K37,AVERAGE('2022 Legal Max'!G37,'2022 Legal Max'!K37,'2022 Legal Max'!O37)), MAX(O37, K37)) -> 200.7 | T37: =IF(ISNA(VLOOKUP($CX37,'Audit Values'!$A:$BU,2,FALSE)),'Preliminary SO66'!AL36,VLOOKUP($CX37,'Audit Values'!$A:$BU,58,FALSE)) -> 2 | U37: 202.7 | V37: 150.4 | W37: =IF(ISNA(VLOOKUP($CX37,'Audit Values'!$A:$BW,2,FALSE)),'Preliminary SO66'!AM36,VLOOKUP($CX37,'Audit Values'!$A:$BW,62,FALSE)) -> 27.3 | X37: =(W37/6)*'Weighting Factors'!$O$7 -> 1.8 | Y37: =IF(ISNA(VLOOKUP($CX37,'Audit Values'!$A:$BW,2,FALSE)),'Preliminary SO66'!AN36,VLOOKUP($CX37,'Audit Values'!$A:$BW,61,FALSE)) -> 17 | Z37: =Y37*'Weighting Factors'!$O$8 -> 3.1 | AA37: 3.1 | AB37: =IF(ISNA(VLOOKUP($CX37,'Audit Values'!$A:$BW,2,FALSE)),'Preliminary SO66'!AO36,VLOOKUP($CX37,'Audit Values'!$A:$BW,60,FALSE)) -> 55.3 | AC37: =AB37/6*'Weighting Factors'!$O$6 -> 4.6 | AD37: =IF(ISNA(VLOOKUP($CX37,'Audit Values'!$A:$BU,2,FALSE)),'Preliminary SO66'!AS36,VLOOKUP($CX37,'Audit Values'!$A:$BU,63,FALSE)) -> 205 | AE37: =IF(ISNA(VLOOKUP($CX37,'Audit Values'!$A:$BU,2,FALSE)),'Preliminary SO66'!AP36,VLOOKUP($CX37,'Audit Values'!$A:$BU,64,FALSE)) -> 56 | AF37: =IF(A37=207, AE37,(AE37))*'Weighting Factors'!$O$9 -> 27.1 | AG37: =MAX(CQ37,CR37) -> 0 | AH37: =IF(ISNA(VLOOKUP($CX37,'Audit Values'!$A:$BW,2,FALSE)),'Preliminary SO66'!AG36,VLOOKUP($CX37,'Audit Values'!$A:$BW,70,FALSE)) -> 0 | AI37: 0 | AJ37: =IF(ISNA(VLOOKUP($CX37,'Audit Values'!$A:$BU,2,FALSE)),'Preliminary SO66'!AQ36,VLOOKUP($CX37,'Audit Values'!$A:$BU,65,FALSE)) -> 0 | AK37: =AJ37*'Weighting Factors'!$O$10 -> 0 | AL37: =IF(ISNA(VLOOKUP($CX37,'Audit Values'!$A:$BU,2,FALSE)),'Preliminary SO66'!AR36,VLOOKUP($CX37,'Audit Values'!$A:$BU,66,FALSE)) -> 32 | AM37: 58574 | AN37: =AM37/'Weighting Factors'!$O$5 -> 12.4 | AO37: =CK37/'Weighting Factors'!$O$5 -> 0 | AP37: =CO37/'Weighting Factors'!$O$5 -> 0 | AQ37: 150804 | AR37: =AQ37/'Weighting Factors'!$O$5 -> 32 | AS37: =IF(ISNA(VLOOKUP($CX37,'Audit Values'!$A:$BU,2,FALSE)),'Preliminary SO66'!X36,VLOOKUP($CX37,'Audit Values'!$A:$BU,47,FALSE)) -> 0 | AT37: 432.3 | AU37: 400.3 | AV37: =IF(ISNA(VLOOKUP($CX37,'Audit Values'!$A$2:$BU$917,2,FALSE)),'Preliminary SO66'!AA36,VLOOKUP($CX37,'Audit Values'!$A$2:$BU$917,41,FALSE)) -> 0 | AW37: =IF(ISNA(VLOOKUP($CX37,'Audit Values'!$A$2:$BU$917,2,FALSE)),'Preliminary SO66'!AB36,VLOOKUP($CX37,'Audit Values'!$A$2:$BU$917,42,FALSE)) -> 0 | AX37: 0 | AY37: =SUM(AV37*'Weighting Factors'!$R$10)+('2022 Legal Max'!AW37*'Weighting Factors'!$R$11)+('2022 Legal Max'!AX37*'Weighting Factors'!$R$12) -> 0 | AZ37: =IF(ISNA(VLOOKUP($CX37,'Audit Values'!$A$2:$BU$936,2,FALSE)),"",IF(AND('Weighting Factors'!F37>0,VLOOKUP($CX37,'Audit Values'!$A$2:$BU$936,51,FALSE)<'Weighting Factors'!F37),'Weighting Factors'!F37,VLOOKUP($CX37,'Audit Values'!$A$2:$BU$936,50,FALSE))) -> 17 | BA37: =IF(ISNA(VLOOKUP($CX37,'Audit Values'!$A:$BV,2,FALSE)),"",VLOOKUP($CX37,'Audit Values'!$A:$BV,51,FALSE)) -> A | BC37: =SUM((U37+V37+AA37+AC37+AF37+AI37+AK37++AN37+AO37+AS37+AP37)*'Weighting Factors'!$O$5)+'2022 Legal Max'!AY37 -> 1883812 | BD37: =SUM((AT37+AP37)*'Weighting Factors'!$O$5)+AY37 -> 2034404 | BE37: =IF('Weighting Factors'!F37>0,'Weighting Factors'!F37,'Preliminary SO66'!AV36) -> 2202408 | BF37: 2034404 | BG37: ='Weighting Factors'!E37 -> 0 | BH37: =Transportation!G37 -> 0 | BI37: =IF(ISNA(VLOOKUP($CX37,'Audit Values'!$A$2:$BT$511,2,FALSE)), 0, VLOOKUP($CX37,'Audit Values'!$A$2:$BT$511,72,FALSE)) -> 0 | BJ37: 0 | BK37: 2034404 | BL37: =SUM((U37+V37+AA37+AC37+AF37+AI37+AK37+AN37+AO37+AP37)*'Weighting Factors'!O$12)+(MAX(AQ37,'Weighting Factors'!B37)) -> 2082493 | BM37: ='LOB%'!F35 -> 0.31 | BN37: 645573 | BO37: 691819 | BP37: 645573 | BQ37: 0.31 | BR37: =ROUND(IF(U37<=99.9,(U37*1.014331),0),1) -> 0 | BS37: =AND(U37>99.9,U37<=299.9) -> TRUE | BT37: =IF(BS37=TRUE,ROUND((U37-100)*9.655,3),0) -> 991.569 | BU37: 0.742102 | BV37: =ROUND(BU37*U37,1) -> 150.4 | BW37: =AND(U37>299.9,U37<=1621.9) -> FALSE | BX37: =IF(BW37=TRUE,ROUND((U37-300)*1.2375,4),0) -> 0 | BY37: 0 | BZ37: =ROUND(BY37*U37,1) -> 0 | CA37: =ROUND(IF(U37>=1622,(U37*0.03504),0),1) -> 0 | CB37: 660 | CC37: =AL37/CB37 -> 0.048 | CD37: =IF(CC37<0.06,1,IF(CC37>=18.29,52,MATCH(CC37-0.001,'Weighting Factors'!$W$5:$W$156)+1)) -> 1 | CE37: =VLOOKUP(CD37, 'Weighting Factors'!$U$5:$X$56,4) -> 1620 | CF37: =('Weighting Factors'!$O$5/'Weighting Factors'!$O$14) -> 1.1299 | CG37: =AL37*CE37 -> 51840 | CH37: =CG37*'Weighting Factors'!$Q$7 -> 51840 | CI37: 58574 | CJ37: =AM37/'Weighting Factors'!$O$5 -> 12.4 | CK37: 0 | CL37: 0 | CM37: 0 | CN37: =SUM((AT37*'Weighting Factors'!$O$5)+'2022 Legal Max'!AY37)*CM37 -> 0 | CO37: 0 | CP37: =AE37/AD37 -> 0.2732 | CQ37: =IF(CP37>=50%,AE37*10.5%,0) -> 0 | CR37: =IF(AND(CP37>35%,CP37<50%),AE37*(CP37-35%)*0.7,0) -> 0 | CS37: =AU37+AR37 -> 432.3 | CT37: ='LOB Transfers'!G36 -> 40671 | CU37: ='LOB Transfers'!J36 -> 4648 | CV37: ='General Fund Transfers'!F36 -> 127533 | CW37: =SUM(R37+T37+AV37+AW37+AX37/6) -> 198.8 | CX37: D0220
A38: 223 | B38: Washington | C38: Barnes | D38: 365 | F38: 0 | G38: 365 | H38: 352.6 | J38: 0 | K38: 352.6 | L38: 361.1 | N38: 0 | O38: 361.1 | P38: =IF(ISNA(VLOOKUP($CX38,'Audit Values'!$A:$BW,2,FALSE)),'Preliminary SO66'!C37,VLOOKUP($CX38,'Audit Values'!$A:$BW,73,FALSE)) -> 336.8 | Q38: =IF(ISNA(VLOOKUP($CX38,'Audit Values'!$A:$BW,2,FALSE)),'Preliminary SO66'!F37,VLOOKUP($CX38,'Audit Values'!$A$2:$BW$936,4,FALSE)) -> 0 | R38: 336.8 | S38: =IF('Military Provision'!J38="YES", MAX('2022 Legal Max'!O38,'2022 Legal Max'!K38,AVERAGE('2022 Legal Max'!G38,'2022 Legal Max'!K38,'2022 Legal Max'!O38)), MAX(O38, K38)) -> 361.1 | T38: =IF(ISNA(VLOOKUP($CX38,'Audit Values'!$A:$BU,2,FALSE)),'Preliminary SO66'!AL37,VLOOKUP($CX38,'Audit Values'!$A:$BU,58,FALSE)) -> 9.5 | U38: 370.6 | V38: 170.6 | W38: =IF(ISNA(VLOOKUP($CX38,'Audit Values'!$A:$BW,2,FALSE)),'Preliminary SO66'!AM37,VLOOKUP($CX38,'Audit Values'!$A:$BW,62,FALSE)) -> 23.1 | X38: =(W38/6)*'Weighting Factors'!$O$7 -> 1.5 | Y38: =IF(ISNA(VLOOKUP($CX38,'Audit Values'!$A:$BW,2,FALSE)),'Preliminary SO66'!AN37,VLOOKUP($CX38,'Audit Values'!$A:$BW,61,FALSE)) -> 15 | Z38: =Y38*'Weighting Factors'!$O$8 -> 2.8 | AA38: 2.8 | AB38: =IF(ISNA(VLOOKUP($CX38,'Audit Values'!$A:$BW,2,FALSE)),'Preliminary SO66'!AO37,VLOOKUP($CX38,'Audit Values'!$A:$BW,60,FALSE)) -> 98.2 | AC38: =AB38/6*'Weighting Factors'!$O$6 -> 8.2 | AD38: =IF(ISNA(VLOOKUP($CX38,'Audit Values'!$A:$BU,2,FALSE)),'Preliminary SO66'!AS37,VLOOKUP($CX38,'Audit Values'!$A:$BU,63,FALSE)) -> 442 | AE38: =IF(ISNA(VLOOKUP($CX38,'Audit Values'!$A:$BU,2,FALSE)),'Preliminary SO66'!AP37,VLOOKUP($CX38,'Audit Values'!$A:$BU,64,FALSE)) -> 99 | AF38: =IF(A38=207, AE38,(AE38))*'Weighting Factors'!$O$9 -> 47.9 | AG38: 0 | AH38: =IF(ISNA(VLOOKUP($CX38,'Audit Values'!$A:$BW,2,FALSE)),'Preliminary SO66'!AG37,VLOOKUP($CX38,'Audit Values'!$A:$BW,70,FALSE)) -> 0.1 | AI38: 0.1 | AJ38: =IF(ISNA(VLOOKUP($CX38,'Audit Values'!$A:$BU,2,FALSE)),'Preliminary SO66'!AQ37,VLOOKUP($CX38,'Audit Values'!$A:$BU,65,FALSE)) -> 0 | AK38: =AJ38*'Weighting Factors'!$O$10 -> 0 | AL38: =IF(ISNA(VLOOKUP($CX38,'Audit Values'!$A:$BU,2,FALSE)),'Preliminary SO66'!AR37,VLOOKUP($CX38,'Audit Values'!$A:$BU,66,FALSE)) -> 130.2 | AM38: 172122 | AN38: =AM38/'Weighting Factors'!$O$5 -> 36.6 | AO38: =CK38/'Weighting Factors'!$O$5 -> 0 | AP38: =CO38/'Weighting Factors'!$O$5 -> 0 | AQ38: 471343 | AR38: =AQ38/'Weighting Factors'!$O$5 -> 100.2 | AS38: =IF(ISNA(VLOOKUP($CX38,'Audit Values'!$A:$BU,2,FALSE)),'Preliminary SO66'!X37,VLOOKUP($CX38,'Audit Values'!$A:$BU,47,FALSE)) -> 0 | AT38: 737 | AU38: 636.8 | AV38: =IF(ISNA(VLOOKUP($CX38,'Audit Values'!$A$2:$BU$917,2,FALSE)),'Preliminary SO66'!AA37,VLOOKUP($CX38,'Audit Values'!$A$2:$BU$917,41,FALSE)) -> 0 | AW38: =IF(ISNA(VLOOKUP($CX38,'Audit Values'!$A$2:$BU$917,2,FALSE)),'Preliminary SO66'!AB37,VLOOKUP($CX38,'Audit Values'!$A$2:$BU$917,42,FALSE)) -> 0 | AX38: 0 | AY38: =SUM(AV38*'Weighting Factors'!$R$10)+('2022 Legal Max'!AW38*'Weighting Factors'!$R$11)+('2022 Legal Max'!AX38*'Weighting Factors'!$R$12) -> 0 | AZ38: =IF(ISNA(VLOOKUP($CX38,'Audit Values'!$A$2:$BU$936,2,FALSE)),"",IF(AND('Weighting Factors'!F38>0,VLOOKUP($CX38,'Audit Values'!$A$2:$BU$936,51,FALSE)<'Weighting Factors'!F38),'Weighting Factors'!F38,VLOOKUP($CX38,'Audit Values'!$A$2:$BU$936,50,FALSE))) -> 27 | BA38: =IF(ISNA(VLOOKUP($CX38,'Audit Values'!$A:$BV,2,FALSE)),"",VLOOKUP($CX38,'Audit Values'!$A:$BV,51,FALSE)) -> A | BB38: =IF('Weighting Factors'!F38="","",IF('Weighting Factors'!H38="Pending","PX","R")) ->  | BC38: =SUM((U38+V38+AA38+AC38+AF38+AI38+AK38++AN38+AO38+AS38+AP38)*'Weighting Factors'!$O$5)+'2022 Legal Max'!AY38 -> 2996781 | BD38: =SUM((AT38+AP38)*'Weighting Factors'!$O$5)+AY38 -> 3468322 | BE38: =IF('Weighting Factors'!F38>0,'Weighting Factors'!F38,'Preliminary SO66'!AV37) -> 3605267 | BF38: 3468322 | BG38: ='Weighting Factors'!E38 -> 0 | BH38: =Transportation!G38 -> 0 | BI38: =IF(ISNA(VLOOKUP($CX38,'Audit Values'!$A$2:$BT$511,2,FALSE)), 0, VLOOKUP($CX38,'Audit Values'!$A$2:$BT$511,72,FALSE)) -> 0 | BJ38: 0 | BK38: 3468322 | BL38: =SUM((U38+V38+AA38+AC38+AF38+AI38+AK38+AN38+AO38+AP38)*'Weighting Factors'!O$12)+(MAX(AQ38,'Weighting Factors'!B38)) -> 3468124 | BM38: ='LOB%'!F36 -> 0.31 | BN38: 1075118 | BO38: 1117612 | BP38: 1075118 | BQ38: 0.31 | BR38: =ROUND(IF(U38<=99.9,(U38*1.014331),0),1) -> 0 | BS38: =AND(U38>99.9,U38<=299.9) -> FALSE | BT38: =IF(BS38=TRUE,ROUND((U38-100)*9.655,3),0) -> 0 | BU38: 0 | BV38: =ROUND(BU38*U38,1) -> 0 | BW38: =AND(U38>299.9,U38<=1621.9) -> TRUE | BX38: =IF(BW38=TRUE,ROUND((U38-300)*1.2375,4),0) -> 87.3675 | BY38: 0.4602 | BZ38: =ROUND(BY38*U38,1) -> 170.6 | CA38: =ROUND(IF(U38>=1622,(U38*0.03504),0),1) -> 0 | CB38: 378 | CC38: =AL38/CB38 -> 0.344 | CD38: =IF(CC38<0.06,1,IF(CC38>=18.29,52,MATCH(CC38-0.001,'Weighting Factors'!$W$5:$W$156)+1)) -> 21 | CE38: =VLOOKUP(CD38, 'Weighting Factors'!$U$5:$X$56,4) -> 1170 | CF38: =('Weighting Factors'!$O$5/'Weighting Factors'!$O$14) -> 1.1299 | CG38: =AL38*CE38 -> 152334 | CH38: =CG38*'Weighting Factors'!$Q$7 -> 152334 | CI38: 172122 | CJ38: =AM38/'Weighting Factors'!$O$5 -> 36.6 | CK38: 0 | CL38: 0 | CM38: 0 | CN38: =SUM((AT38*'Weighting Factors'!$O$5)+'2022 Legal Max'!AY38)*CM38 -> 0 | CO38: 0 | CP38: =AE38/AD38 -> 0.224 | CQ38: =IF(CP38>=50%,AE38*10.5%,0) -> 0 | CR38: =IF(AND(CP38>35%,CP38<50%),AE38*(CP38-35%)*0.7,0) -> 0 | CS38: =AU38+AR38 -> 737 | CT38: ='LOB Transfers'!G37 -> 70743 | CU38: ='LOB Transfers'!J37 -> 4085 | CV38: ='General Fund Transfers'!F37 -> 225888 | CW38: =SUM(R38+T38+AV38+AW38+AX38/6) -> 346.3 | CX38: D0223
A39: 224 | B39: Washington | C39: Clifton-Clyde | D39: 311.5 | F39: 0 | G39: 311.5 | H39: 314 | J39: 0 | K39: 314 | L39: 289.8 | N39: 0 | O39: 289.8 | P39: =IF(ISNA(VLOOKUP($CX39,'Audit Values'!$A:$BW,2,FALSE)),'Preliminary SO66'!C38,VLOOKUP($CX39,'Audit Values'!$A:$BW,73,FALSE)) -> 281 | Q39: =IF(ISNA(VLOOKUP($CX39,'Audit Values'!$A:$BW,2,FALSE)),'Preliminary SO66'!F38,VLOOKUP($CX39,'Audit Values'!$A$2:$BW$936,4,FALSE)) -> 0 | R39: 281 | S39: =IF('Military Provision'!J39="YES", MAX('2022 Legal Max'!O39,'2022 Legal Max'!K39,AVERAGE('2022 Legal Max'!G39,'2022 Legal Max'!K39,'2022 Legal Max'!O39)), MAX(O39, K39)) -> 314 | T39: =IF(ISNA(VLOOKUP($CX39,'Audit Values'!$A:$BU,2,FALSE)),'Preliminary SO66'!AL38,VLOOKUP($CX39,'Audit Values'!$A:$BU,58,FALSE)) -> 1 | U39: 315 | V39: 150.9 | W39: =IF(ISNA(VLOOKUP($CX39,'Audit Values'!$A:$BW,2,FALSE)),'Preliminary SO66'!AM38,VLOOKUP($CX39,'Audit Values'!$A:$BW,62,FALSE)) -> 0 | X39: =(W39/6)*'Weighting Factors'!$O$7 -> 0 | Y39: =IF(ISNA(VLOOKUP($CX39,'Audit Values'!$A:$BW,2,FALSE)),'Preliminary SO66'!AN38,VLOOKUP($CX39,'Audit Values'!$A:$BW,61,FALSE)) -> 0 | Z39: =Y39*'Weighting Factors'!$O$8 -> 0 | AA39: 0 | AB39: =IF(ISNA(VLOOKUP($CX39,'Audit Values'!$A:$BW,2,FALSE)),'Preliminary SO66'!AO38,VLOOKUP($CX39,'Audit Values'!$A:$BW,60,FALSE)) -> 145.5 | AC39: =AB39/6*'Weighting Factors'!$O$6 -> 12.1 | AD39: =IF(ISNA(VLOOKUP($CX39,'Audit Values'!$A:$BU,2,FALSE)),'Preliminary SO66'!AS38,VLOOKUP($CX39,'Audit Values'!$A:$BU,63,FALSE)) -> 284 | AE39: =IF(ISNA(VLOOKUP($CX39,'Audit Values'!$A:$BU,2,FALSE)),'Preliminary SO66'!AP38,VLOOKUP($CX39,'Audit Values'!$A:$BU,64,FALSE)) -> 65 | AF39: =IF(A39=207, AE39,(AE39))*'Weighting Factors'!$O$9 -> 31.5 | AG39: 0 | AH39: =IF(ISNA(VLOOKUP($CX39,'Audit Values'!$A:$BW,2,FALSE)),'Preliminary SO66'!AG38,VLOOKUP($CX39,'Audit Values'!$A:$BW,70,FALSE)) -> 0 | AI39: 0 | AJ39: =IF(ISNA(VLOOKUP($CX39,'Audit Values'!$A:$BU,2,FALSE)),'Preliminary SO66'!AQ38,VLOOKUP($CX39,'Audit Values'!$A:$BU,65,FALSE)) -> 0 | AK39: =AJ39*'Weighting Factors'!$O$10 -> 0 | AL39: =IF(ISNA(VLOOKUP($CX39,'Audit Values'!$A:$BU,2,FALSE)),'Preliminary SO66'!AR38,VLOOKUP($CX39,'Audit Values'!$A:$BU,66,FALSE)) -> 153 | AM39: 181518 | AN39: =AM39/'Weighting Factors'!$O$5 -> 38.6 | AO39: =CK39/'Weighting Factors'!$O$5 -> 0 | AP39: =CO39/'Weighting Factors'!$O$5 -> 0 | AQ39: 269152 | AR39: =AQ39/'Weighting Factors'!$O$5 -> 57.2 | AS39: =IF(ISNA(VLOOKUP($CX39,'Audit Values'!$A:$BU,2,FALSE)),'Preliminary SO66'!X38,VLOOKUP($CX39,'Audit Values'!$A:$BU,47,FALSE)) -> 0 | AT39: 605.3 | AU39: 548.1 | AV39: =IF(ISNA(VLOOKUP($CX39,'Audit Values'!$A$2:$BU$917,2,FALSE)),'Preliminary SO66'!AA38,VLOOKUP($CX39,'Audit Values'!$A$2:$BU$917,41,FALSE)) -> 0 | AW39: =IF(ISNA(VLOOKUP($CX39,'Audit Values'!$A$2:$BU$917,2,FALSE)),'Preliminary SO66'!AB38,VLOOKUP($CX39,'Audit Values'!$A$2:$BU$917,42,FALSE)) -> 0 | AX39: 0 | AY39: =SUM(AV39*'Weighting Factors'!$R$10)+('2022 Legal Max'!AW39*'Weighting Factors'!$R$11)+('2022 Legal Max'!AX39*'Weighting Factors'!$R$12) -> 0 | AZ39: =IF(ISNA(VLOOKUP($CX39,'Audit Values'!$A$2:$BU$936,2,FALSE)),"",IF(AND('Weighting Factors'!F39>0,VLOOKUP($CX39,'Audit Values'!$A$2:$BU$936,51,FALSE)<'Weighting Factors'!F39),'Weighting Factors'!F39,VLOOKUP($CX39,'Audit Values'!$A$2:$BU$936,50,FALSE))) -> 2 | BA39: =IF(ISNA(VLOOKUP($CX39,'Audit Values'!$A:$BV,2,FALSE)),"",VLOOKUP($CX39,'Audit Values'!$A:$BV,51,FALSE)) -> A | BB39: =IF('Weighting Factors'!F39="","",IF('Weighting Factors'!H39="Pending","PX","R")) ->  | BC39: =SUM((U39+V39+AA39+AC39+AF39+AI39+AK39++AN39+AO39+AS39+AP39)*'Weighting Factors'!$O$5)+'2022 Legal Max'!AY39 -> 2579359 | BD39: =SUM((AT39+AP39)*'Weighting Factors'!$O$5)+AY39 -> 2848542 | BE39: =IF('Weighting Factors'!F39>0,'Weighting Factors'!F39,'Preliminary SO66'!AV38) -> 2932309 | BF39: 2848542 | BG39: ='Weighting Factors'!E39 -> 0 | BH39: =Transportation!G39 -> 0 | BI39: =IF(ISNA(VLOOKUP($CX39,'Audit Values'!$A$2:$BT$511,2,FALSE)), 0, VLOOKUP($CX39,'Audit Values'!$A$2:$BT$511,72,FALSE)) -> 0 | BJ39: 0 | BK39: 2848542 | BL39: =SUM((U39+V39+AA39+AC39+AF39+AI39+AK39+AN39+AO39+AP39)*'Weighting Factors'!O$12)+(MAX(AQ39,'Weighting Factors'!B39)) -> 2927217 | BM39: ='LOB%'!F37 -> 0.31 | BN39: 907437 | BO39: 926694 | BP39: 907437 | BQ39: 0.31 | BR39: =ROUND(IF(U39<=99.9,(U39*1.014331),0),1) -> 0 | BS39: =AND(U39>99.9,U39<=299.9) -> FALSE | BT39: =IF(BS39=TRUE,ROUND((U39-100)*9.655,3),0) -> 0 | BU39: 0 | BV39: =ROUND(BU39*U39,1) -> 0 | BW39: =AND(U39>299.9,U39<=1621.9) -> TRUE | BX39: =IF(BW39=TRUE,ROUND((U39-300)*1.2375,4),0) -> 18.5625 | BY39: 0.47909 | BZ39: =ROUND(BY39*U39,1) -> 150.9 | CA39: =ROUND(IF(U39>=1622,(U39*0.03504),0),1) -> 0 | CB39: 255 | CC39: =AL39/CB39 -> 0.6 | CD39: =IF(CC39<0.06,1,IF(CC39>=18.29,52,MATCH(CC39-0.001,'Weighting Factors'!$W$5:$W$156)+1)) -> 27 | CE39: =VLOOKUP(CD39, 'Weighting Factors'!$U$5:$X$56,4) -> 1050 | CF39: =('Weighting Factors'!$O$5/'Weighting Factors'!$O$14) -> 1.1299 | CG39: =AL39*CE39 -> 160650 | CH39: =CG39*'Weighting Factors'!$Q$7 -> 160650 | CI39: 181518 | CJ39: =AM39/'Weighting Factors'!$O$5 -> 38.6 | CK39: 0 | CL39: 0 | CM39: 0 | CN39: =SUM((AT39*'Weighting Factors'!$O$5)+'2022 Legal Max'!AY39)*CM39 -> 0 | CO39: 0 | CP39: =AE39/AD39 -> 0.2289 | CQ39: =IF(CP39>=50%,AE39*10.5%,0) -> 0 | CR39: =IF(AND(CP39>35%,CP39<50%),AE39*(CP39-35%)*0.7,0) -> 0 | CS39: =AU39+AR39 -> 605.3 | CT39: ='LOB Transfers'!G38 -> 47277 | CU39: ='LOB Transfers'!J38 -> 0 | CV39: ='General Fund Transfers'!F38 -> 148239 | CW39: =SUM(R39+T39+AV39+AW39+AX39/6) -> 282 | CX39: D0224
A40: 225 | B40: Meade | C40: Fowler | D40: 132.5 | F40: 0 | G40: 132.5 | H40: 120 | J40: 0 | K40: 120 | L40: 117 | N40: 0 | O40: 117 | P40: =IF(ISNA(VLOOKUP($CX40,'Audit Values'!$A:$BW,2,FALSE)),'Preliminary SO66'!C39,VLOOKUP($CX40,'Audit Values'!$A:$BW,73,FALSE)) -> 96 | Q40: =IF(ISNA(VLOOKUP($CX40,'Audit Values'!$A:$BW,2,FALSE)),'Preliminary SO66'!F39,VLOOKUP($CX40,'Audit Values'!$A$2:$BW$936,4,FALSE)) -> 0 | R40: 96 | S40: =IF('Military Provision'!J40="YES", MAX('2022 Legal Max'!O40,'2022 Legal Max'!K40,AVERAGE('2022 Legal Max'!G40,'2022 Legal Max'!K40,'2022 Legal Max'!O40)), MAX(O40, K40)) -> 120 | T40: =IF(ISNA(VLOOKUP($CX40,'Audit Values'!$A:$BU,2,FALSE)),'Preliminary SO66'!AL39,VLOOKUP($CX40,'Audit Values'!$A:$BU,58,FALSE)) -> 3 | U40: 123 | V40: 117.3 | W40: =IF(ISNA(VLOOKUP($CX40,'Audit Values'!$A:$BW,2,FALSE)),'Preliminary SO66'!AM39,VLOOKUP($CX40,'Audit Values'!$A:$BW,62,FALSE)) -> 17.4 | X40: =(W40/6)*'Weighting Factors'!$O$7 -> 1.1 | Y40: =IF(ISNA(VLOOKUP($CX40,'Audit Values'!$A:$BW,2,FALSE)),'Preliminary SO66'!AN39,VLOOKUP($CX40,'Audit Values'!$A:$BW,61,FALSE)) -> 11 | Z40: =Y40*'Weighting Factors'!$O$8 -> 2 | AA40: 2 | AB40: =IF(ISNA(VLOOKUP($CX40,'Audit Values'!$A:$BW,2,FALSE)),'Preliminary SO66'!AO39,VLOOKUP($CX40,'Audit Values'!$A:$BW,60,FALSE)) -> 5 | AC40: =AB40/6*'Weighting Factors'!$O$6 -> 0.4 | AD40: =IF(ISNA(VLOOKUP($CX40,'Audit Values'!$A:$BU,2,FALSE)),'Preliminary SO66'!AS39,VLOOKUP($CX40,'Audit Values'!$A:$BU,63,FALSE)) -> 102 | AE40: =IF(ISNA(VLOOKUP($CX40,'Audit Values'!$A:$BU,2,FALSE)),'Preliminary SO66'!AP39,VLOOKUP($CX40,'Audit Values'!$A:$BU,64,FALSE)) -> 40 | AF40: =IF(A40=207, AE40,(AE40))*'Weighting Factors'!$O$9 -> 19.4 | AG40: 1.2 | AH40: =IF(ISNA(VLOOKUP($CX40,'Audit Values'!$A:$BW,2,FALSE)),'Preliminary SO66'!AG39,VLOOKUP($CX40,'Audit Values'!$A:$BW,70,FALSE)) -> 1.8 | AI40: 1.8 | AJ40: =IF(ISNA(VLOOKUP($CX40,'Audit Values'!$A:$BU,2,FALSE)),'Preliminary SO66'!AQ39,VLOOKUP($CX40,'Audit Values'!$A:$BU,65,FALSE)) -> 0 | AK40: =AJ40*'Weighting Factors'!$O$10 -> 0 | AL40: =IF(ISNA(VLOOKUP($CX40,'Audit Values'!$A:$BU,2,FALSE)),'Preliminary SO66'!AR39,VLOOKUP($CX40,'Audit Values'!$A:$BU,66,FALSE)) -> 4 | AM40: 7322 | AN40: =AM40/'Weighting Factors'!$O$5 -> 1.6 | AO40: =CK40/'Weighting Factors'!$O$5 -> 0 | AP40: =CO40/'Weighting Factors'!$O$5 -> 0 | AQ40: 93570 | AR40: =AQ40/'Weighting Factors'!$O$5 -> 19.9 | AS40: =IF(ISNA(VLOOKUP($CX40,'Audit Values'!$A:$BU,2,FALSE)),'Preliminary SO66'!X39,VLOOKUP($CX40,'Audit Values'!$A:$BU,47,FALSE)) -> 0 | AT40: 285.4 | AU40: 265.5 | AV40: =IF(ISNA(VLOOKUP($CX40,'Audit Values'!$A$2:$BU$917,2,FALSE)),'Preliminary SO66'!AA39,VLOOKUP($CX40,'Audit Values'!$A$2:$BU$917,41,FALSE)) -> 0 | AW40: =IF(ISNA(VLOOKUP($CX40,'Audit Values'!$A$2:$BU$917,2,FALSE)),'Preliminary SO66'!AB39,VLOOKUP($CX40,'Audit Values'!$A$2:$BU$917,42,FALSE)) -> 0 | AX40: 0 | AY40: =SUM(AV40*'Weighting Factors'!$R$10)+('2022 Legal Max'!AW40*'Weighting Factors'!$R$11)+('2022 Legal Max'!AX40*'Weighting Factors'!$R$12) -> 0 | AZ40: =IF(ISNA(VLOOKUP($CX40,'Audit Values'!$A$2:$BU$936,2,FALSE)),"",IF(AND('Weighting Factors'!F40>0,VLOOKUP($CX40,'Audit Values'!$A$2:$BU$936,51,FALSE)<'Weighting Factors'!F40),'Weighting Factors'!F40,VLOOKUP($CX40,'Audit Values'!$A$2:$BU$936,50,FALSE))) -> 18 | BA40: =IF(ISNA(VLOOKUP($CX40,'Audit Values'!$A:$BV,2,FALSE)),"",VLOOKUP($CX40,'Audit Values'!$A:$BV,51,FALSE)) -> A | BB40: =IF('Weighting Factors'!F40="","",IF('Weighting Factors'!H40="Pending","PX","R")) ->  | BC40: =SUM((U40+V40+AA40+AC40+AF40+AI40+AK40++AN40+AO40+AS40+AP40)*'Weighting Factors'!$O$5)+'2022 Legal Max'!AY40 -> 1249443 | BD40: =SUM((AT40+AP40)*'Weighting Factors'!$O$5)+AY40 -> 1343092 | BE40: =IF('Weighting Factors'!F40>0,'Weighting Factors'!F40,'Preliminary SO66'!AV39) -> 1452272 | BF40: 1343092 | BG40: ='Weighting Factors'!E40 -> 0 | BH40: =Transportation!G40 -> 0 | BI40: =IF(ISNA(VLOOKUP($CX40,'Audit Values'!$A$2:$BT$511,2,FALSE)), 0, VLOOKUP($CX40,'Audit Values'!$A$2:$BT$511,72,FALSE)) -> 0 | BJ40: 0 | BK40: 1343092 | BL40: =SUM((U40+V40+AA40+AC40+AF40+AI40+AK40+AN40+AO40+AP40)*'Weighting Factors'!O$12)+(MAX(AQ40,'Weighting Factors'!B40)) -> 1402230 | BM40: ='LOB%'!F38 -> 0.33 | BN40: 462736 | BO40: 496746 | BP40: 462736 | BQ40: 0.33 | BR40: =ROUND(IF(U40<=99.9,(U40*1.014331),0),1) -> 0 | BS40: =AND(U40>99.9,U40<=299.9) -> TRUE | BT40: =IF(BS40=TRUE,ROUND((U40-100)*9.655,3),0) -> 222.065 | BU40: 0.953365 | BV40: =ROUND(BU40*U40,1) -> 117.3 | BW40: =AND(U40>299.9,U40<=1621.9) -> FALSE | BX40: =IF(BW40=TRUE,ROUND((U40-300)*1.2375,4),0) -> 0 | BY40: 0 | BZ40: =ROUND(BY40*U40,1) -> 0 | CA40: =ROUND(IF(U40>=1622,(U40*0.03504),0),1) -> 0 | CB40: 281 | CC40: =AL40/CB40 -> 0.014 | CD40: =IF(CC40<0.06,1,IF(CC40>=18.29,52,MATCH(CC40-0.001,'Weighting Factors'!$W$5:$W$156)+1)) -> 1 | CE40: =VLOOKUP(CD40, 'Weighting Factors'!$U$5:$X$56,4) -> 1620 | CF40: =('Weighting Factors'!$O$5/'Weighting Factors'!$O$14) -> 1.1299 | CG40: =AL40*CE40 -> 6480 | CH40: =CG40*'Weighting Factors'!$Q$7 -> 6480 | CI40: 7322 | CJ40: =AM40/'Weighting Factors'!$O$5 -> 1.6 | CK40: 0 | CL40: 0 | CM40: 0 | CN40: =SUM((AT40*'Weighting Factors'!$O$5)+'2022 Legal Max'!AY40)*CM40 -> 0 | CO40: 0 | CP40: =AE40/AD40 -> 0.3922 | CQ40: =IF(CP40>=50%,AE40*10.5%,0) -> 0 | CR40: =IF(AND(CP40>35%,CP40<50%),AE40*(CP40-35%)*0.7,0) -> 1.2 | CS40: =AU40+AR40 -> 285.4 | CT40: ='LOB Transfers'!G39 -> 31790 | CU40: ='LOB Transfers'!J39 -> 3285 | CV40: ='General Fund Transfers'!F39 -> 99767 | CW40: =SUM(R40+T40+AV40+AW40+AX40/6) -> 99 | CX40: D0225
A41: 226 | B41: Meade | C41: Meade | D41: 379 | F41: 0 | G41: 379 | H41: 370.9 | J41: 0 | K41: 370.9 | L41: 332 | N41: 0 | O41: 332 | P41: =IF(ISNA(VLOOKUP($CX41,'Audit Values'!$A:$BW,2,FALSE)),'Preliminary SO66'!C40,VLOOKUP($CX41,'Audit Values'!$A:$BW,73,FALSE)) -> 360.5 | Q41: =IF(ISNA(VLOOKUP($CX41,'Audit Values'!$A:$BW,2,FALSE)),'Preliminary SO66'!F40,VLOOKUP($CX41,'Audit Values'!$A$2:$BW$936,4,FALSE)) -> 0 | R41: 360.5 | S41: =IF('Military Provision'!J41="YES", MAX('2022 Legal Max'!O41,'2022 Legal Max'!K41,AVERAGE('2022 Legal Max'!G41,'2022 Legal Max'!K41,'2022 Legal Max'!O41)), MAX(O41, K41)) -> 370.9 | T41: =IF(ISNA(VLOOKUP($CX41,'Audit Values'!$A:$BU,2,FALSE)),'Preliminary SO66'!AL40,VLOOKUP($CX41,'Audit Values'!$A:$BU,58,FALSE)) -> 3.5 | U41: 374.4 | V41: 171.8 | W41: =IF(ISNA(VLOOKUP($CX41,'Audit Values'!$A:$BW,2,FALSE)),'Preliminary SO66'!AM40,VLOOKUP($CX41,'Audit Values'!$A:$BW,62,FALSE)) -> 65.3 | X41: =(W41/6)*'Weighting Factors'!$O$7 -> 4.3 | Y41: =IF(ISNA(VLOOKUP($CX41,'Audit Values'!$A:$BW,2,FALSE)),'Preliminary SO66'!AN40,VLOOKUP($CX41,'Audit Values'!$A:$BW,61,FALSE)) -> 24 | Z41: =Y41*'Weighting Factors'!$O$8 -> 4.4 | AA41: 4.4 | AB41: =IF(ISNA(VLOOKUP($CX41,'Audit Values'!$A:$BW,2,FALSE)),'Preliminary SO66'!AO40,VLOOKUP($CX41,'Audit Values'!$A:$BW,60,FALSE)) -> 88.2 | AC41: =AB41/6*'Weighting Factors'!$O$6 -> 7.4 | AD41: =IF(ISNA(VLOOKUP($CX41,'Audit Values'!$A:$BU,2,FALSE)),'Preliminary SO66'!AS40,VLOOKUP($CX41,'Audit Values'!$A:$BU,63,FALSE)) -> 371 | AE41: =IF(ISNA(VLOOKUP($CX41,'Audit Values'!$A:$BU,2,FALSE)),'Preliminary SO66'!AP40,VLOOKUP($CX41,'Audit Values'!$A:$BU,64,FALSE)) -> 104 | AF41: =IF(A41=207, AE41,(AE41))*'Weighting Factors'!$O$9 -> 50.3 | AG41: 0 | AH41: =IF(ISNA(VLOOKUP($CX41,'Audit Values'!$A:$BW,2,FALSE)),'Preliminary SO66'!AG40,VLOOKUP($CX41,'Audit Values'!$A:$BW,70,FALSE)) -> 0 | AI41: 0 | AJ41: =IF(ISNA(VLOOKUP($CX41,'Audit Values'!$A:$BU,2,FALSE)),'Preliminary SO66'!AQ40,VLOOKUP($CX41,'Audit Values'!$A:$BU,65,FALSE)) -> 0 | AK41: =AJ41*'Weighting Factors'!$O$10 -> 0 | AL41: =IF(ISNA(VLOOKUP($CX41,'Audit Values'!$A:$BU,2,FALSE)),'Preliminary SO66'!AR40,VLOOKUP($CX41,'Audit Values'!$A:$BU,66,FALSE)) -> 52 | AM41: 84019 | AN41: =AM41/'Weighting Factors'!$O$5 -> 17.9 | AO41: =CK41/'Weighting Factors'!$O$5 -> 0 | AP41: =CO41/'Weighting Factors'!$O$5 -> 0 | AQ41: 304612 | AR41: =AQ41/'Weighting Factors'!$O$5 -> 64.7 | AS41: =IF(ISNA(VLOOKUP($CX41,'Audit Values'!$A:$BU,2,FALSE)),'Preliminary SO66'!X40,VLOOKUP($CX41,'Audit Values'!$A:$BU,47,FALSE)) -> 0 | AT41: 690.9 | AU41: 626.2 | AV41: =IF(ISNA(VLOOKUP($CX41,'Audit Values'!$A$2:$BU$917,2,FALSE)),'Preliminary SO66'!AA40,VLOOKUP($CX41,'Audit Values'!$A$2:$BU$917,41,FALSE)) -> 0 | AW41: =IF(ISNA(VLOOKUP($CX41,'Audit Values'!$A$2:$BU$917,2,FALSE)),'Preliminary SO66'!AB40,VLOOKUP($CX41,'Audit Values'!$A$2:$BU$917,42,FALSE)) -> 0 | AX41: 0 | AY41: =SUM(AV41*'Weighting Factors'!$R$10)+('2022 Legal Max'!AW41*'Weighting Factors'!$R$11)+('2022 Legal Max'!AX41*'Weighting Factors'!$R$12) -> 0 | AZ41: =IF(ISNA(VLOOKUP($CX41,'Audit Values'!$A$2:$BU$936,2,FALSE)),"",IF(AND('Weighting Factors'!F41>0,VLOOKUP($CX41,'Audit Values'!$A$2:$BU$936,51,FALSE)<'Weighting Factors'!F41),'Weighting Factors'!F41,VLOOKUP($CX41,'Audit Values'!$A$2:$BU$936,50,FALSE))) -> 18 | BA41: =IF(ISNA(VLOOKUP($CX41,'Audit Values'!$A:$BV,2,FALSE)),"",VLOOKUP($CX41,'Audit Values'!$A:$BV,51,FALSE)) -> A | BB41: =IF('Weighting Factors'!F41="","",IF('Weighting Factors'!H41="Pending","PX","R")) ->  | BC41: =SUM((U41+V41+AA41+AC41+AF41+AI41+AK41++AN41+AO41+AS41+AP41)*'Weighting Factors'!$O$5)+'2022 Legal Max'!AY41 -> 2946897 | BD41: =SUM((AT41+AP41)*'Weighting Factors'!$O$5)+AY41 -> 3251375 | BE41: =IF('Weighting Factors'!F41>0,'Weighting Factors'!F41,'Preliminary SO66'!AV40) -> 3340789 | BF41: 3251375 | BG41: ='Weighting Factors'!E41 -> 0 | BH41: =Transportation!G41 -> 0 | BI41: =IF(ISNA(VLOOKUP($CX41,'Audit Values'!$A$2:$BT$511,2,FALSE)), 0, VLOOKUP($CX41,'Audit Values'!$A$2:$BT$511,72,FALSE)) -> 0 | BJ41: 0 | BK41: 3251375 | BL41: =SUM((U41+V41+AA41+AC41+AF41+AI41+AK41+AN41+AO41+AP41)*'Weighting Factors'!O$12)+(MAX(AQ41,'Weighting Factors'!B41)) -> 3340491 | BM41: ='LOB%'!F39 -> 0.33 | BN41: 1102362 | BO41: 1129539 | BP41: 1102362 | BQ41: 0.33 | BR41: =ROUND(IF(U41<=99.9,(U41*1.014331),0),1) -> 0 | BS41: =AND(U41>99.9,U41<=299.9) -> FALSE | BT41: =IF(BS41=TRUE,ROUND((U41-100)*9.655,3),0) -> 0 | BU41: 0 | BV41: =ROUND(BU41*U41,1) -> 0 | BW41: =AND(U41>299.9,U41<=1621.9) -> TRUE | BX41: =IF(BW41=TRUE,ROUND((U41-300)*1.2375,4),0) -> 92.07 | BY41: 0.458909 | BZ41: =ROUND(BY41*U41,1) -> 171.8 | CA41: =ROUND(IF(U41>=1622,(U41*0.03504),0),1) -> 0 | CB41: 440 | CC41: =AL41/CB41 -> 0.118 | CD41: =IF(CC41<0.06,1,IF(CC41>=18.29,52,MATCH(CC41-0.001,'Weighting Factors'!$W$5:$W$156)+1)) -> 7 | CE41: =VLOOKUP(CD41, 'Weighting Factors'!$U$5:$X$56,4) -> 1430 | CF41: =('Weighting Factors'!$O$5/'Weighting Factors'!$O$14) -> 1.1299 | CG41: =AL41*CE41 -> 74360 | CH41: =CG41*'Weighting Factors'!$Q$7 -> 74360 | CI41: 84019 | CJ41: =AM41/'Weighting Factors'!$O$5 -> 17.9 | CK41: 0 | CL41: 0 | CM41: 0 | CN41: =SUM((AT41*'Weighting Factors'!$O$5)+'2022 Legal Max'!AY41)*CM41 -> 0 | CO41: 0 | CP41: =AE41/AD41 -> 0.2803 | CQ41: =IF(CP41>=50%,AE41*10.5%,0) -> 0 | CR41: =IF(AND(CP41>35%,CP41<50%),AE41*(CP41-35%)*0.7,0) -> 0 | CS41: =AU41+AR41 -> 690.9 | CT41: ='LOB Transfers'!G40 -> 80693 | CU41: ='LOB Transfers'!J40 -> 7055 | CV41: ='General Fund Transfers'!F40 -> 236712 | CW41: =SUM(R41+T41+AV41+AW41+AX41/6) -> 364 | CX41: D0226
A42: 227 | B42: Hodgeman | C42: Hodgeman County Schools | D42: 280.5 | F42: 0 | G42: 280.5 | H42: 282 | J42: 0 | K42: 282 | L42: 293.5 | N42: 0 | O42: 293.5 | P42: =IF(ISNA(VLOOKUP($CX42,'Audit Values'!$A:$BW,2,FALSE)),'Preliminary SO66'!C41,VLOOKUP($CX42,'Audit Values'!$A:$BW,73,FALSE)) -> 287 | Q42: =IF(ISNA(VLOOKUP($CX42,'Audit Values'!$A:$BW,2,FALSE)),'Preliminary SO66'!F41,VLOOKUP($CX42,'Audit Values'!$A$2:$BW$936,4,FALSE)) -> 0 | R42: 287 | S42: =IF('Military Provision'!J42="YES", MAX('2022 Legal Max'!O42,'2022 Legal Max'!K42,AVERAGE('2022 Legal Max'!G42,'2022 Legal Max'!K42,'2022 Legal Max'!O42)), MAX(O42, K42)) -> 293.5 | T42: =IF(ISNA(VLOOKUP($CX42,'Audit Values'!$A:$BU,2,FALSE)),'Preliminary SO66'!AL41,VLOOKUP($CX42,'Audit Values'!$A:$BU,58,FALSE)) -> 0 | U42: 293.5 | V42: 147.2 | W42: =IF(ISNA(VLOOKUP($CX42,'Audit Values'!$A:$BW,2,FALSE)),'Preliminary SO66'!AM41,VLOOKUP($CX42,'Audit Values'!$A:$BW,62,FALSE)) -> 5.2 | X42: =(W42/6)*'Weighting Factors'!$O$7 -> 0.3 | Y42: =IF(ISNA(VLOOKUP($CX42,'Audit Values'!$A:$BW,2,FALSE)),'Preliminary SO66'!AN41,VLOOKUP($CX42,'Audit Values'!$A:$BW,61,FALSE)) -> 5 | Z42: =Y42*'Weighting Factors'!$O$8 -> 0.9 | AA42: 0.9 | AB42: =IF(ISNA(VLOOKUP($CX42,'Audit Values'!$A:$BW,2,FALSE)),'Preliminary SO66'!AO41,VLOOKUP($CX42,'Audit Values'!$A:$BW,60,FALSE)) -> 42.6 | AC42: =AB42/6*'Weighting Factors'!$O$6 -> 3.6 | AD42: =IF(ISNA(VLOOKUP($CX42,'Audit Values'!$A:$BU,2,FALSE)),'Preliminary SO66'!AS41,VLOOKUP($CX42,'Audit Values'!$A:$BU,63,FALSE)) -> 292 | AE42: =IF(ISNA(VLOOKUP($CX42,'Audit Values'!$A:$BU,2,FALSE)),'Preliminary SO66'!AP41,VLOOKUP($CX42,'Audit Values'!$A:$BU,64,FALSE)) -> 68 | AF42: =IF(A42=207, AE42,(AE42))*'Weighting Factors'!$O$9 -> 32.9 | AG42: 0 | AH42: =IF(ISNA(VLOOKUP($CX42,'Audit Values'!$A:$BW,2,FALSE)),'Preliminary SO66'!AG41,VLOOKUP($CX42,'Audit Values'!$A:$BW,70,FALSE)) -> 0 | AI42: 0 | AJ42: =IF(ISNA(VLOOKUP($CX42,'Audit Values'!$A:$BU,2,FALSE)),'Preliminary SO66'!AQ41,VLOOKUP($CX42,'Audit Values'!$A:$BU,65,FALSE)) -> 0 | AK42: =AJ42*'Weighting Factors'!$O$10 -> 0 | AL42: =IF(ISNA(VLOOKUP($CX42,'Audit Values'!$A:$BU,2,FALSE)),'Preliminary SO66'!AR41,VLOOKUP($CX42,'Audit Values'!$A:$BU,66,FALSE)) -> 144 | AM42: 214771 | AN42: =AM42/'Weighting Factors'!$O$5 -> 45.6 | AO42: =CK42/'Weighting Factors'!$O$5 -> 0 | AP42: =CO42/'Weighting Factors'!$O$5 -> 0 | AQ42: 211256 | AR42: =AQ42/'Weighting Factors'!$O$5 -> 44.9 | AS42: =IF(ISNA(VLOOKUP($CX42,'Audit Values'!$A:$BU,2,FALSE)),'Preliminary SO66'!X41,VLOOKUP($CX42,'Audit Values'!$A:$BU,47,FALSE)) -> 0 | AT42: 568.6 | AU42: 523.7 | AV42: =IF(ISNA(VLOOKUP($CX42,'Audit Values'!$A$2:$BU$917,2,FALSE)),'Preliminary SO66'!AA41,VLOOKUP($CX42,'Audit Values'!$A$2:$BU$917,41,FALSE)) -> 0 | AW42: =IF(ISNA(VLOOKUP($CX42,'Audit Values'!$A$2:$BU$917,2,FALSE)),'Preliminary SO66'!AB41,VLOOKUP($CX42,'Audit Values'!$A$2:$BU$917,42,FALSE)) -> 0 | AX42: 0 | AY42: =SUM(AV42*'Weighting Factors'!$R$10)+('2022 Legal Max'!AW42*'Weighting Factors'!$R$11)+('2022 Legal Max'!AX42*'Weighting Factors'!$R$12) -> 0 | AZ42: =IF(ISNA(VLOOKUP($CX42,'Audit Values'!$A$2:$BU$936,2,FALSE)),"",IF(AND('Weighting Factors'!F42>0,VLOOKUP($CX42,'Audit Values'!$A$2:$BU$936,51,FALSE)<'Weighting Factors'!F42),'Weighting Factors'!F42,VLOOKUP($CX42,'Audit Values'!$A$2:$BU$936,50,FALSE))) -> 18 | BA42: =IF(ISNA(VLOOKUP($CX42,'Audit Values'!$A:$BV,2,FALSE)),"",VLOOKUP($CX42,'Audit Values'!$A:$BV,51,FALSE)) -> A | BB42: =IF('Weighting Factors'!F42="","",IF('Weighting Factors'!H42="Pending","PX","R")) ->  | BC42: =SUM((U42+V42+AA42+AC42+AF42+AI42+AK42++AN42+AO42+AS42+AP42)*'Weighting Factors'!$O$5)+'2022 Legal Max'!AY42 -> 2464532 | BD42: =SUM((AT42+AP42)*'Weighting Factors'!$O$5)+AY42 -> 2675832 | BE42: =IF('Weighting Factors'!F42>0,'Weighting Factors'!F42,'Preliminary SO66'!AV41) -> 2766187 | BF42: 2675832 | BG42: ='Weighting Factors'!E42 -> 0 | BH42: =Transportation!G42 -> -42971 | BI42: =IF(ISNA(VLOOKUP($CX42,'Audit Values'!$A$2:$BT$511,2,FALSE)), 0, VLOOKUP($CX42,'Audit Values'!$A$2:$BT$511,72,FALSE)) -> 0 | BJ42: -42971 | BK42: 2632861 | BL42: =SUM((U42+V42+AA42+AC42+AF42+AI42+AK42+AN42+AO42+AP42)*'Weighting Factors'!O$12)+(MAX(AQ42,'Weighting Factors'!B42)) -> 2785184 | BM42: ='LOB%'!F40 -> 0.31 | BN42: 863407 | BO42: 879163 | BP42: 863407 | BQ42: 0.31 | BR42: =ROUND(IF(U42<=99.9,(U42*1.014331),0),1) -> 0 | BS42: =AND(U42>99.9,U42<=299.9) -> TRUE | BT42: =IF(BS42=TRUE,ROUND((U42-100)*9.655,3),0) -> 1868.243 | BU42: 0.501416 | BV42: =ROUND(BU42*U42,1) -> 147.2 | BW42: =AND(U42>299.9,U42<=1621.9) -> FALSE | BX42: =IF(BW42=TRUE,ROUND((U42-300)*1.2375,4),0) -> 0 | BY42: 0 | BZ42: =ROUND(BY42*U42,1) -> 0 | CA42: =ROUND(IF(U42>=1622,(U42*0.03504),0),1) -> 0 | CB42: 807.5 | CC42: =AL42/CB42 -> 0.178 | CD42: =IF(CC42<0.06,1,IF(CC42>=18.29,52,MATCH(CC42-0.001,'Weighting Factors'!$W$5:$W$156)+1)) -> 13 | CE42: =VLOOKUP(CD42, 'Weighting Factors'!$U$5:$X$56,4) -> 1320 | CF42: =('Weighting Factors'!$O$5/'Weighting Factors'!$O$14) -> 1.1299 | CG42: =AL42*CE42 -> 190080 | CH42: =CG42*'Weighting Factors'!$Q$7 -> 190080 | CI42: 214771 | CJ42: =AM42/'Weighting Factors'!$O$5 -> 45.6 | CK42: 0 | CL42: 0 | CM42: 0 | CN42: =SUM((AT42*'Weighting Factors'!$O$5)+'2022 Legal Max'!AY42)*CM42 -> 0 | CO42: 0 | CP42: =AE42/AD42 -> 0.2329 | CQ42: =IF(CP42>=50%,AE42*10.5%,0) -> 0 | CR42: =IF(AND(CP42>35%,CP42<50%),AE42*(CP42-35%)*0.7,0) -> 0 | CS42: =AU42+AR42 -> 568.6 | CT42: ='LOB Transfers'!G41 -> 49991 | CU42: ='LOB Transfers'!J41 -> 1381 | CV42: ='General Fund Transfers'!F41 -> 154827 | CW42: =SUM(R42+T42+AV42+AW42+AX42/6) -> 287 | CX42: D0227
A43: 229 | B43: Johnson | C43: Blue Valley | D43: 22329.2 | F43: 0 | G43: 22329.2 | H43: 22347.4 | J43: 0 | K43: 22347.4 | L43: 21753.2 | N43: 0 | O43: 21753.2 | P43: =IF(ISNA(VLOOKUP($CX43,'Audit Values'!$A:$BW,2,FALSE)),'Preliminary SO66'!C42,VLOOKUP($CX43,'Audit Values'!$A:$BW,73,FALSE)) -> 21823.2 | Q43: =IF(ISNA(VLOOKUP($CX43,'Audit Values'!$A:$BW,2,FALSE)),'Preliminary SO66'!F42,VLOOKUP($CX43,'Audit Values'!$A$2:$BW$936,4,FALSE)) -> 0 | R43: 21823.2 | S43: =IF('Military Provision'!J43="YES", MAX('2022 Legal Max'!O43,'2022 Legal Max'!K43,AVERAGE('2022 Legal Max'!G43,'2022 Legal Max'!K43,'2022 Legal Max'!O43)), MAX(O43, K43)) -> 22347.4 | T43: =IF(ISNA(VLOOKUP($CX43,'Audit Values'!$A:$BU,2,FALSE)),'Preliminary SO66'!AL42,VLOOKUP($CX43,'Audit Values'!$A:$BU,58,FALSE)) -> 0 | U43: 22347.4 | V43: 783.1 | W43: =IF(ISNA(VLOOKUP($CX43,'Audit Values'!$A:$BW,2,FALSE)),'Preliminary SO66'!AM42,VLOOKUP($CX43,'Audit Values'!$A:$BW,62,FALSE)) -> 725.4 | X43: =(W43/6)*'Weighting Factors'!$O$7 -> 47.8 | Y43: =IF(ISNA(VLOOKUP($CX43,'Audit Values'!$A:$BW,2,FALSE)),'Preliminary SO66'!AN42,VLOOKUP($CX43,'Audit Values'!$A:$BW,61,FALSE)) -> 503 | Z43: =Y43*'Weighting Factors'!$O$8 -> 93.1 | AA43: 93.1 | AB43: =IF(ISNA(VLOOKUP($CX43,'Audit Values'!$A:$BW,2,FALSE)),'Preliminary SO66'!AO42,VLOOKUP($CX43,'Audit Values'!$A:$BW,60,FALSE)) -> 5115.8 | AC43: =AB43/6*'Weighting Factors'!$O$6 -> 426.3 | AD43: =IF(ISNA(VLOOKUP($CX43,'Audit Values'!$A:$BU,2,FALSE)),'Preliminary SO66'!AS42,VLOOKUP($CX43,'Audit Values'!$A:$BU,63,FALSE)) -> 22146 | AE43: =IF(ISNA(VLOOKUP($CX43,'Audit Values'!$A:$BU,2,FALSE)),'Preliminary SO66'!AP42,VLOOKUP($CX43,'Audit Values'!$A:$BU,64,FALSE)) -> 901 | AF43: =IF(A43=207, AE43,(AE43))*'Weighting Factors'!$O$9 -> 436.1 | AG43: 0 | AH43: =IF(ISNA(VLOOKUP($CX43,'Audit Values'!$A:$BW,2,FALSE)),'Preliminary SO66'!AG42,VLOOKUP($CX43,'Audit Values'!$A:$BW,70,FALSE)) -> 0 | AI43: 0 | AJ43: =IF(ISNA(VLOOKUP($CX43,'Audit Values'!$A:$BU,2,FALSE)),'Preliminary SO66'!AQ42,VLOOKUP($CX43,'Audit Values'!$A:$BU,65,FALSE)) -> 0 | AK43: =AJ43*'Weighting Factors'!$O$10 -> 0 | AL43: =IF(ISNA(VLOOKUP($CX43,'Audit Values'!$A:$BU,2,FALSE)),'Preliminary SO66'!AR42,VLOOKUP($CX43,'Audit Values'!$A:$BU,66,FALSE)) -> 4988 | AM43: 3099768 | AN43: =AM43/'Weighting Factors'!$O$5 -> 658.7 | AO43: =CK43/'Weighting Factors'!$O$5 -> 436.7 | AP43: =CO43/'Weighting Factors'!$O$5 -> 1538.7 | AQ43: 25974933 | AR43: =AQ43/'Weighting Factors'!$O$5 -> 5519.5 | AS43: =IF(ISNA(VLOOKUP($CX43,'Audit Values'!$A:$BU,2,FALSE)),'Preliminary SO66'!X42,VLOOKUP($CX43,'Audit Values'!$A:$BU,47,FALSE)) -> 0 | AT43: 30700.9 | AU43: 26720.1 | AV43: =IF(ISNA(VLOOKUP($CX43,'Audit Values'!$A$2:$BU$917,2,FALSE)),'Preliminary SO66'!AA42,VLOOKUP($CX43,'Audit Values'!$A$2:$BU$917,41,FALSE)) -> 25 | AW43: =IF(ISNA(VLOOKUP($CX43,'Audit Values'!$A$2:$BU$917,2,FALSE)),'Preliminary SO66'!AB42,VLOOKUP($CX43,'Audit Values'!$A$2:$BU$917,42,FALSE)) -> 127.8 | AX43: 0 | AY43: =SUM(AV43*'Weighting Factors'!$R$10)+('2022 Legal Max'!AW43*'Weighting Factors'!$R$11)+('2022 Legal Max'!AX43*'Weighting Factors'!$R$12) -> 342260 | AZ43: =IF(ISNA(VLOOKUP($CX43,'Audit Values'!$A$2:$BU$936,2,FALSE)),"",IF(AND('Weighting Factors'!F43>0,VLOOKUP($CX43,'Audit Values'!$A$2:$BU$936,51,FALSE)<'Weighting Factors'!F43),'Weighting Factors'!F43,VLOOKUP($CX43,'Audit Values'!$A$2:$BU$936,50,FALSE))) -> 23 | BA43: =IF(ISNA(VLOOKUP($CX43,'Audit Values'!$A:$BV,2,FALSE)),"",VLOOKUP($CX43,'Audit Values'!$A:$BV,51,FALSE)) -> A | BB43: =IF('Weighting Factors'!F43="","",IF('Weighting Factors'!H43="Pending","PX","R")) ->  | BC43: =SUM((U43+V43+AA43+AC43+AF43+AI43+AK43++AN43+AO43+AS43+AP43)*'Weighting Factors'!$O$5)+'2022 Legal Max'!AY43 -> 126087051 | BD43: =SUM((AT43+AP43)*'Weighting Factors'!$O$5)+AY43 -> 152061818 | BE43: =IF('Weighting Factors'!F43>0,'Weighting Factors'!F43,'Preliminary SO66'!AV42) -> 152375173 | BF43: 152061818 | BG43: ='Weighting Factors'!E43 -> 0 | BH43: =Transportation!G43 -> 0 | BI43: =IF(ISNA(VLOOKUP($CX43,'Audit Values'!$A$2:$BT$511,2,FALSE)), 0, VLOOKUP($CX43,'Audit Values'!$A$2:$BT$511,72,FALSE)) -> 0 | BJ43: 0 | BK43: 152061818 | BL43: =SUM((U43+V43+AA43+AC43+AF43+AI43+AK43+AN43+AO43+AP43)*'Weighting Factors'!O$12)+(MAX(AQ43,'Weighting Factors'!B43)) -> 151719724 | BM43: ='LOB%'!F41 -> 0.33 | BN43: 50067509 | BO43: 50074178 | BP43: 50067509 | BQ43: 0.33 | BR43: =ROUND(IF(U43<=99.9,(U43*1.014331),0),1) -> 0 | BS43: =AND(U43>99.9,U43<=299.9) -> FALSE | BT43: =IF(BS43=TRUE,ROUND((U43-100)*9.655,3),0) -> 0 | BU43: 0 | BV43: =ROUND(BU43*U43,1) -> 0 | BW43: =AND(U43>299.9,U43<=1621.9) -> FALSE | BX43: =IF(BW43=TRUE,ROUND((U43-300)*1.2375,4),0) -> 0 | BY43: 0 | BZ43: =ROUND(BY43*U43,1) -> 0 | CA43: =ROUND(IF(U43>=1622,(U43*0.03504),0),1) -> 783.1 | CB43: 91 | CC43: =AL43/CB43 -> 54.813 | CD43: =IF(CC43<0.06,1,IF(CC43>=18.29,52,MATCH(CC43-0.001,'Weighting Factors'!$W$5:$W$156)+1)) -> 52 | CE43: =VLOOKUP(CD43, 'Weighting Factors'!$U$5:$X$56,4) -> 550 | CF43: =('Weighting Factors'!$O$5/'Weighting Factors'!$O$14) -> 1.1299 | CG43: =AL43*CE43 -> 2743400 | CH43: =CG43*'Weighting Factors'!$Q$7 -> 2743400 | CI43: 3099768 | CJ43: =AM43/'Weighting Factors'!$O$5 -> 658.7 | CK43: 2055008 | CL43: 7255950 | CM43: 0.05 | CN43: =SUM((AT43*'Weighting Factors'!$O$5)+'2022 Legal Max'!AY43)*CM43 -> 7241035 | CO43: 7241035 | CP43: =AE43/AD43 -> 0.0407 | CQ43: =IF(CP43>=50%,AE43*10.5%,0) -> 0 | CR43: =IF(AND(CP43>35%,CP43<50%),AE43*(CP43-35%)*0.7,0) -> 0 | CS43: =AU43+AR43 -> 32239.6 | CT43: ='LOB Transfers'!G42 -> 675911 | CU43: ='LOB Transfers'!J42 -> 145196 | CV43: ='General Fund Transfers'!F42 -> 2052287 | CW43: =SUM(R43+T43+AV43+AW43+AX43/6) -> 21976 | CX43: D0229
A44: 230 | B44: Johnson | C44: Spring Hill | D44: 3073.4 | F44: 0 | G44: 3073.4 | H44: 3236 | J44: 0 | K44: 3236 | L44: 3307.5 | N44: 0 | O44: 3307.5 | P44: =IF(ISNA(VLOOKUP($CX44,'Audit Values'!$A:$BW,2,FALSE)),'Preliminary SO66'!C43,VLOOKUP($CX44,'Audit Values'!$A:$BW,73,FALSE)) -> 3572.7 | Q44: =IF(ISNA(VLOOKUP($CX44,'Audit Values'!$A:$BW,2,FALSE)),'Preliminary SO66'!F43,VLOOKUP($CX44,'Audit Values'!$A$2:$BW$936,4,FALSE)) -> 0 | R44: 3572.7 | S44: =IF('Military Provision'!J44="YES", MAX('2022 Legal Max'!O44,'2022 Legal Max'!K44,AVERAGE('2022 Legal Max'!G44,'2022 Legal Max'!K44,'2022 Legal Max'!O44)), MAX(O44, K44)) -> 3307.5 | T44: =IF(ISNA(VLOOKUP($CX44,'Audit Values'!$A:$BU,2,FALSE)),'Preliminary SO66'!AL43,VLOOKUP($CX44,'Audit Values'!$A:$BU,58,FALSE)) -> 6 | U44: 3313.5 | V44: 116.1 | W44: =IF(ISNA(VLOOKUP($CX44,'Audit Values'!$A:$BW,2,FALSE)),'Preliminary SO66'!AM43,VLOOKUP($CX44,'Audit Values'!$A:$BW,62,FALSE)) -> 43.2 | X44: =(W44/6)*'Weighting Factors'!$O$7 -> 2.8 | Y44: =IF(ISNA(VLOOKUP($CX44,'Audit Values'!$A:$BW,2,FALSE)),'Preliminary SO66'!AN43,VLOOKUP($CX44,'Audit Values'!$A:$BW,61,FALSE)) -> 30 | Z44: =Y44*'Weighting Factors'!$O$8 -> 5.6 | AA44: 5.6 | AB44: =IF(ISNA(VLOOKUP($CX44,'Audit Values'!$A:$BW,2,FALSE)),'Preliminary SO66'!AO43,VLOOKUP($CX44,'Audit Values'!$A:$BW,60,FALSE)) -> 633.7 | AC44: =AB44/6*'Weighting Factors'!$O$6 -> 52.8 | AD44: =IF(ISNA(VLOOKUP($CX44,'Audit Values'!$A:$BU,2,FALSE)),'Preliminary SO66'!AS43,VLOOKUP($CX44,'Audit Values'!$A:$BU,63,FALSE)) -> 3598 | AE44: =IF(ISNA(VLOOKUP($CX44,'Audit Values'!$A:$BU,2,FALSE)),'Preliminary SO66'!AP43,VLOOKUP($CX44,'Audit Values'!$A:$BU,64,FALSE)) -> 306 | AF44: =IF(A44=207, AE44,(AE44))*'Weighting Factors'!$O$9 -> 148.1 | AG44: 0 | AH44: =IF(ISNA(VLOOKUP($CX44,'Audit Values'!$A:$BW,2,FALSE)),'Preliminary SO66'!AG43,VLOOKUP($CX44,'Audit Values'!$A:$BW,70,FALSE)) -> 0 | AI44: 0 | AJ44: =IF(ISNA(VLOOKUP($CX44,'Audit Values'!$A:$BU,2,FALSE)),'Preliminary SO66'!AQ43,VLOOKUP($CX44,'Audit Values'!$A:$BU,65,FALSE)) -> 0 | AK44: =AJ44*'Weighting Factors'!$O$10 -> 0 | AL44: =IF(ISNA(VLOOKUP($CX44,'Audit Values'!$A:$BU,2,FALSE)),'Preliminary SO66'!AR43,VLOOKUP($CX44,'Audit Values'!$A:$BU,66,FALSE)) -> 1382 | AM44: 858837 | AN44: =AM44/'Weighting Factors'!$O$5 -> 182.5 | AO44: =CK44/'Weighting Factors'!$O$5 -> 790 | AP44: =CO44/'Weighting Factors'!$O$5 -> 0 | AQ44: 3541647 | AR44: =AQ44/'Weighting Factors'!$O$5 -> 752.6 | AS44: =IF(ISNA(VLOOKUP($CX44,'Audit Values'!$A:$BU,2,FALSE)),'Preliminary SO66'!X43,VLOOKUP($CX44,'Audit Values'!$A:$BU,47,FALSE)) -> 0 | AT44: 5361.2 | AU44: 4608.6 | AV44: =IF(ISNA(VLOOKUP($CX44,'Audit Values'!$A$2:$BU$917,2,FALSE)),'Preliminary SO66'!AA43,VLOOKUP($CX44,'Audit Values'!$A$2:$BU$917,41,FALSE)) -> 1655 | AW44: =IF(ISNA(VLOOKUP($CX44,'Audit Values'!$A$2:$BU$917,2,FALSE)),'Preliminary SO66'!AB43,VLOOKUP($CX44,'Audit Values'!$A$2:$BU$917,42,FALSE)) -> 18.1 | AX44: 230 | AY44: =SUM(AV44*'Weighting Factors'!$R$10)+('2022 Legal Max'!AW44*'Weighting Factors'!$R$11)+('2022 Legal Max'!AX44*'Weighting Factors'!$R$12) -> 8468840 | AZ44: =IF(ISNA(VLOOKUP($CX44,'Audit Values'!$A$2:$BU$936,2,FALSE)),"",IF(AND('Weighting Factors'!F44>0,VLOOKUP($CX44,'Audit Values'!$A$2:$BU$936,51,FALSE)<'Weighting Factors'!F44),'Weighting Factors'!F44,VLOOKUP($CX44,'Audit Values'!$A$2:$BU$936,50,FALSE))) -> 13 | BA44: =IF(ISNA(VLOOKUP($CX44,'Audit Values'!$A:$BV,2,FALSE)),"",VLOOKUP($CX44,'Audit Values'!$A:$BV,51,FALSE)) -> A | BC44: =SUM((U44+V44+AA44+AC44+AF44+AI44+AK44++AN44+AO44+AS44+AP44)*'Weighting Factors'!$O$5)+'2022 Legal Max'!AY44 -> 30156912 | BD44: =SUM((AT44+AP44)*'Weighting Factors'!$O$5)+AY44 -> 33698647 | BE44: =IF('Weighting Factors'!F44>0,'Weighting Factors'!F44,'Preliminary SO66'!AV43) -> 39245119 | BF44: 33698647 | BG44: ='Weighting Factors'!E44 -> 0 | BH44: =Transportation!G44 -> 0 | BI44: =IF(ISNA(VLOOKUP($CX44,'Audit Values'!$A$2:$BT$511,2,FALSE)), 0, VLOOKUP($CX44,'Audit Values'!$A$2:$BT$511,72,FALSE)) -> -67355 | BJ44: -67355 | BK44: 33631292 | BL44: =SUM((U44+V44+AA44+AC44+AF44+AI44+AK44+AN44+AO44+AP44)*'Weighting Factors'!O$12)+(MAX(AQ44,'Weighting Factors'!B44)) -> 25229719 | BM44: ='LOB%'!F42 -> 0.33 | BN44: 8325807 | BO44: 8753410 | BP44: 8325807 | BQ44: 0.33 | BR44: =ROUND(IF(U44<=99.9,(U44*1.014331),0),1) -> 0 | BS44: =AND(U44>99.9,U44<=299.9) -> FALSE | BT44: =IF(BS44=TRUE,ROUND((U44-100)*9.655,3),0) -> 0 | BU44: 0 | BV44: =ROUND(BU44*U44,1) -> 0 | BW44: =AND(U44>299.9,U44<=1621.9) -> FALSE | BX44: =IF(BW44=TRUE,ROUND((U44-300)*1.2375,4),0) -> 0 | BY44: 0 | BZ44: =ROUND(BY44*U44,1) -> 0 | CA44: =ROUND(IF(U44>=1622,(U44*0.03504),0),1) -> 116.1 | CB44: 71 | CC44: =AL44/CB44 -> 19.465 | CD44: =IF(CC44<0.06,1,IF(CC44>=18.29,52,MATCH(CC44-0.001,'Weighting Factors'!$W$5:$W$156)+1)) -> 52 | CE44: =VLOOKUP(CD44, 'Weighting Factors'!$U$5:$X$56,4) -> 550 | CF44: =('Weighting Factors'!$O$5/'Weighting Factors'!$O$14) -> 1.1299 | CG44: =AL44*CE44 -> 760100 | CH44: =CG44*'Weighting Factors'!$Q$7 -> 760100 | CI44: 858837 | CJ44: =AM44/'Weighting Factors'!$O$5 -> 182.5 | CK44: 3717700 | CL44: 0 | CM44: 0.039 | CN44: =SUM((AT44*'Weighting Factors'!$O$5)+'2022 Legal Max'!AY44)*CM44 -> 1314247 | CO44: 0 | CP44: =AE44/AD44 -> 0.085 | CQ44: =IF(CP44>=50%,AE44*10.5%,0) -> 0 | CR44: =IF(AND(CP44>35%,CP44<50%),AE44*(CP44-35%)*0.7,0) -> 0 | CS44: =AU44+AR44 -> 5361.2 | CT44: ='LOB Transfers'!G43 -> 230625 | CU44: ='LOB Transfers'!J43 -> 8326 | CV44: ='General Fund Transfers'!F43 -> 696959 | CW44: =SUM(R44+T44+AV44+AW44+AX44/6) -> 5290.1 | CX44: D0230
A45: 231 | B45: Johnson | C45: Gardner Edgerton | D45: 5882.1 | F45: 0 | G45: 5882.1 | H45: 5955.7 | J45: 0 | K45: 5955.7 | L45: 5681.6 | N45: 0 | O45: 5681.6 | P45: =IF(ISNA(VLOOKUP($CX45,'Audit Values'!$A:$BW,2,FALSE)),'Preliminary SO66'!C44,VLOOKUP($CX45,'Audit Values'!$A:$BW,73,FALSE)) -> 5688.7 | Q45: =IF(ISNA(VLOOKUP($CX45,'Audit Values'!$A:$BW,2,FALSE)),'Preliminary SO66'!F44,VLOOKUP($CX45,'Audit Values'!$A$2:$BW$936,4,FALSE)) -> 0 | R45: 5688.7 | S45: =IF('Military Provision'!J45="YES", MAX('2022 Legal Max'!O45,'2022 Legal Max'!K45,AVERAGE('2022 Legal Max'!G45,'2022 Legal Max'!K45,'2022 Legal Max'!O45)), MAX(O45, K45)) -> 5955.7 | T45: =IF(ISNA(VLOOKUP($CX45,'Audit Values'!$A:$BU,2,FALSE)),'Preliminary SO66'!AL44,VLOOKUP($CX45,'Audit Values'!$A:$BU,58,FALSE)) -> 10 | U45: 5965.7 | V45: 209 | W45: =IF(ISNA(VLOOKUP($CX45,'Audit Values'!$A:$BW,2,FALSE)),'Preliminary SO66'!AM44,VLOOKUP($CX45,'Audit Values'!$A:$BW,62,FALSE)) -> 337.3 | X45: =(W45/6)*'Weighting Factors'!$O$7 -> 22.2 | Y45: =IF(ISNA(VLOOKUP($CX45,'Audit Values'!$A:$BW,2,FALSE)),'Preliminary SO66'!AN44,VLOOKUP($CX45,'Audit Values'!$A:$BW,61,FALSE)) -> 157 | Z45: =Y45*'Weighting Factors'!$O$8 -> 29 | AA45: 29 | AB45: =IF(ISNA(VLOOKUP($CX45,'Audit Values'!$A:$BW,2,FALSE)),'Preliminary SO66'!AO44,VLOOKUP($CX45,'Audit Values'!$A:$BW,60,FALSE)) -> 1458.2 | AC45: =AB45/6*'Weighting Factors'!$O$6 -> 121.5 | AD45: =IF(ISNA(VLOOKUP($CX45,'Audit Values'!$A:$BU,2,FALSE)),'Preliminary SO66'!AS44,VLOOKUP($CX45,'Audit Values'!$A:$BU,63,FALSE)) -> 5763 | AE45: =IF(ISNA(VLOOKUP($CX45,'Audit Values'!$A:$BU,2,FALSE)),'Preliminary SO66'!AP44,VLOOKUP($CX45,'Audit Values'!$A:$BU,64,FALSE)) -> 1089 | AF45: =IF(A45=207, AE45,(AE45))*'Weighting Factors'!$O$9 -> 527.1 | AG45: 0 | AH45: =IF(ISNA(VLOOKUP($CX45,'Audit Values'!$A:$BW,2,FALSE)),'Preliminary SO66'!AG44,VLOOKUP($CX45,'Audit Values'!$A:$BW,70,FALSE)) -> 0 | AI45: 0 | AJ45: =IF(ISNA(VLOOKUP($CX45,'Audit Values'!$A:$BU,2,FALSE)),'Preliminary SO66'!AQ44,VLOOKUP($CX45,'Audit Values'!$A:$BU,65,FALSE)) -> 0 | AK45: =AJ45*'Weighting Factors'!$O$10 -> 0 | AL45: =IF(ISNA(VLOOKUP($CX45,'Audit Values'!$A:$BU,2,FALSE)),'Preliminary SO66'!AR44,VLOOKUP($CX45,'Audit Values'!$A:$BU,66,FALSE)) -> 1120 | AM45: 771948 | AN45: =AM45/'Weighting Factors'!$O$5 -> 164 | AO45: =CK45/'Weighting Factors'!$O$5 -> 196.4 | AP45: =CO45/'Weighting Factors'!$O$5 -> 118.1 | AQ45: 8046165 | AR45: =AQ45/'Weighting Factors'!$O$5 -> 1709.8 | AS45: =IF(ISNA(VLOOKUP($CX45,'Audit Values'!$A:$BU,2,FALSE)),'Preliminary SO66'!X44,VLOOKUP($CX45,'Audit Values'!$A:$BU,47,FALSE)) -> 1 | AT45: 8923.5 | AU45: 7331.8 | AV45: =IF(ISNA(VLOOKUP($CX45,'Audit Values'!$A$2:$BU$917,2,FALSE)),'Preliminary SO66'!AA44,VLOOKUP($CX45,'Audit Values'!$A$2:$BU$917,41,FALSE)) -> 0 | AW45: =IF(ISNA(VLOOKUP($CX45,'Audit Values'!$A$2:$BU$917,2,FALSE)),'Preliminary SO66'!AB44,VLOOKUP($CX45,'Audit Values'!$A$2:$BU$917,42,FALSE)) -> 0 | AX45: 0 | AY45: =SUM(AV45*'Weighting Factors'!$R$10)+('2022 Legal Max'!AW45*'Weighting Factors'!$R$11)+('2022 Legal Max'!AX45*'Weighting Factors'!$R$12) -> 0 | AZ45: =IF(ISNA(VLOOKUP($CX45,'Audit Values'!$A$2:$BU$936,2,FALSE)),"",IF(AND('Weighting Factors'!F45>0,VLOOKUP($CX45,'Audit Values'!$A$2:$BU$936,51,FALSE)<'Weighting Factors'!F45),'Weighting Factors'!F45,VLOOKUP($CX45,'Audit Values'!$A$2:$BU$936,50,FALSE))) -> 14 | BA45: =IF(ISNA(VLOOKUP($CX45,'Audit Values'!$A:$BV,2,FALSE)),"",VLOOKUP($CX45,'Audit Values'!$A:$BV,51,FALSE)) -> A | BB45: =IF('Weighting Factors'!F45="","",IF('Weighting Factors'!H45="Pending","PX","R")) ->  | BC45: =SUM((U45+V45+AA45+AC45+AF45+AI45+AK45++AN45+AO45+AS45+AP45)*'Weighting Factors'!$O$5)+'2022 Legal Max'!AY45 -> 34503451 | BD45: =SUM((AT45+AP45)*'Weighting Factors'!$O$5)+AY45 -> 42549770 | BE45: =IF('Weighting Factors'!F45>0,'Weighting Factors'!F45,'Preliminary SO66'!AV44) -> 43010016 | BF45: 42549770 | BG45: ='Weighting Factors'!E45 -> 0 | BH45: =Transportation!G45 -> 0 | BI45: =IF(ISNA(VLOOKUP($CX45,'Audit Values'!$A$2:$BT$511,2,FALSE)), 0, VLOOKUP($CX45,'Audit Values'!$A$2:$BT$511,72,FALSE)) -> 0 | BJ45: 0 | BK45: 42549770 | BL45: =SUM((U45+V45+AA45+AC45+AF45+AI45+AK45+AN45+AO45+AP45)*'Weighting Factors'!O$12)+(MAX(AQ45,'Weighting Factors'!B45)) -> 42544910 | BM45: ='LOB%'!F43 -> 0.33 | BN45: 14039820 | BO45: 14191784 | BP45: 14039820 | BQ45: 0.33 | BR45: =ROUND(IF(U45<=99.9,(U45*1.014331),0),1) -> 0 | BS45: =AND(U45>99.9,U45<=299.9) -> FALSE | BT45: =IF(BS45=TRUE,ROUND((U45-100)*9.655,3),0) -> 0 | BU45: 0 | BV45: =ROUND(BU45*U45,1) -> 0 | BW45: =AND(U45>299.9,U45<=1621.9) -> FALSE | BX45: =IF(BW45=TRUE,ROUND((U45-300)*1.2375,4),0) -> 0 | BY45: 0 | BZ45: =ROUND(BY45*U45,1) -> 0 | CA45: =ROUND(IF(U45>=1622,(U45*0.03504),0),1) -> 209 | CB45: 103 | CC45: =AL45/CB45 -> 10.874 | CD45: =IF(CC45<0.06,1,IF(CC45>=18.29,52,MATCH(CC45-0.001,'Weighting Factors'!$W$5:$W$156)+1)) -> 49 | CE45: =VLOOKUP(CD45, 'Weighting Factors'!$U$5:$X$56,4) -> 610 | CF45: =('Weighting Factors'!$O$5/'Weighting Factors'!$O$14) -> 1.1299 | CG45: =AL45*CE45 -> 683200 | CH45: =CG45*'Weighting Factors'!$Q$7 -> 683200 | CI45: 771948 | CJ45: =AM45/'Weighting Factors'!$O$5 -> 164 | CK45: 924119 | CL45: 555717 | CM45: 0.0139 | CN45: =SUM((AT45*'Weighting Factors'!$O$5)+'2022 Legal Max'!AY45)*CM45 -> 583716 | CO45: 555717 | CP45: =AE45/AD45 -> 0.189 | CQ45: =IF(CP45>=50%,AE45*10.5%,0) -> 0 | CR45: =IF(AND(CP45>35%,CP45<50%),AE45*(CP45-35%)*0.7,0) -> 0 | CS45: =AU45+AR45 -> 9041.6 | CT45: ='LOB Transfers'!G44 -> 819925 | CU45: ='LOB Transfers'!J44 -> 44927 | CV45: ='General Fund Transfers'!F44 -> 2480533 | CW45: =SUM(R45+T45+AV45+AW45+AX45/6) -> 5698.7 | CX45: D0231
A46: 232 | B46: Johnson | C46: De Soto | D46: 7262.7 | F46: 0 | G46: 7262.7 | H46: 7307.1 | J46: 0 | K46: 7307.1 | L46: 6914.4 | N46: 0 | O46: 6914.4 | P46: =IF(ISNA(VLOOKUP($CX46,'Audit Values'!$A:$BW,2,FALSE)),'Preliminary SO66'!C45,VLOOKUP($CX46,'Audit Values'!$A:$BW,73,FALSE)) -> 7236.8 | Q46: =IF(ISNA(VLOOKUP($CX46,'Audit Values'!$A:$BW,2,FALSE)),'Preliminary SO66'!F45,VLOOKUP($CX46,'Audit Values'!$A$2:$BW$936,4,FALSE)) -> 0 | R46: 7236.8 | S46: =IF('Military Provision'!J46="YES", MAX('2022 Legal Max'!O46,'2022 Legal Max'!K46,AVERAGE('2022 Legal Max'!G46,'2022 Legal Max'!K46,'2022 Legal Max'!O46)), MAX(O46, K46)) -> 7307.1 | T46: =IF(ISNA(VLOOKUP($CX46,'Audit Values'!$A:$BU,2,FALSE)),'Preliminary SO66'!AL45,VLOOKUP($CX46,'Audit Values'!$A:$BU,58,FALSE)) -> 17 | U46: 7324.1 | V46: 256.6 | W46: =IF(ISNA(VLOOKUP($CX46,'Audit Values'!$A:$BW,2,FALSE)),'Preliminary SO66'!AM45,VLOOKUP($CX46,'Audit Values'!$A:$BW,62,FALSE)) -> 1109.3 | X46: =(W46/6)*'Weighting Factors'!$O$7 -> 73 | Y46: =IF(ISNA(VLOOKUP($CX46,'Audit Values'!$A:$BW,2,FALSE)),'Preliminary SO66'!AN45,VLOOKUP($CX46,'Audit Values'!$A:$BW,61,FALSE)) -> 253 | Z46: =Y46*'Weighting Factors'!$O$8 -> 46.8 | AA46: 73 | AB46: =IF(ISNA(VLOOKUP($CX46,'Audit Values'!$A:$BW,2,FALSE)),'Preliminary SO66'!AO45,VLOOKUP($CX46,'Audit Values'!$A:$BW,60,FALSE)) -> 2338.1 | AC46: =AB46/6*'Weighting Factors'!$O$6 -> 194.8 | AD46: =IF(ISNA(VLOOKUP($CX46,'Audit Values'!$A:$BU,2,FALSE)),'Preliminary SO66'!AS45,VLOOKUP($CX46,'Audit Values'!$A:$BU,63,FALSE)) -> 7315 | AE46: =IF(ISNA(VLOOKUP($CX46,'Audit Values'!$A:$BU,2,FALSE)),'Preliminary SO66'!AP45,VLOOKUP($CX46,'Audit Values'!$A:$BU,64,FALSE)) -> 488 | AF46: =IF(A46=207, AE46,(AE46))*'Weighting Factors'!$O$9 -> 236.2 | AG46: 0 | AH46: =IF(ISNA(VLOOKUP($CX46,'Audit Values'!$A:$BW,2,FALSE)),'Preliminary SO66'!AG45,VLOOKUP($CX46,'Audit Values'!$A:$BW,70,FALSE)) -> 0 | AI46: 0 | AJ46: =IF(ISNA(VLOOKUP($CX46,'Audit Values'!$A:$BU,2,FALSE)),'Preliminary SO66'!AQ45,VLOOKUP($CX46,'Audit Values'!$A:$BU,65,FALSE)) -> 0 | AK46: =AJ46*'Weighting Factors'!$O$10 -> 0 | AL46: =IF(ISNA(VLOOKUP($CX46,'Audit Values'!$A:$BU,2,FALSE)),'Preliminary SO66'!AR45,VLOOKUP($CX46,'Audit Values'!$A:$BU,66,FALSE)) -> 1768 | AM46: 1138668 | AN46: =AM46/'Weighting Factors'!$O$5 -> 242 | AO46: =CK46/'Weighting Factors'!$O$5 -> 0 | AP46: =CO46/'Weighting Factors'!$O$5 -> 464.6 | AQ46: 6151929 | AR46: =AQ46/'Weighting Factors'!$O$5 -> 1307.3 | AS46: =IF(ISNA(VLOOKUP($CX46,'Audit Values'!$A:$BU,2,FALSE)),'Preliminary SO66'!X45,VLOOKUP($CX46,'Audit Values'!$A:$BU,47,FALSE)) -> 0 | AT46: 9634 | AU46: 8791.3 | AV46: =IF(ISNA(VLOOKUP($CX46,'Audit Values'!$A$2:$BU$917,2,FALSE)),'Preliminary SO66'!AA45,VLOOKUP($CX46,'Audit Values'!$A$2:$BU$917,41,FALSE)) -> 2 | AW46: =IF(ISNA(VLOOKUP($CX46,'Audit Values'!$A$2:$BU$917,2,FALSE)),'Preliminary SO66'!AB45,VLOOKUP($CX46,'Audit Values'!$A$2:$BU$917,42,FALSE)) -> 5.7 | AX46: 0 | AY46: =SUM(AV46*'Weighting Factors'!$R$10)+('2022 Legal Max'!AW46*'Weighting Factors'!$R$11)+('2022 Legal Max'!AX46*'Weighting Factors'!$R$12) -> 19690 | AZ46: 23 | BA46: =IF(ISNA(VLOOKUP($CX46,'Audit Values'!$A:$BV,2,FALSE)),"",VLOOKUP($CX46,'Audit Values'!$A:$BV,51,FALSE)) -> A | BB46: =IF('Weighting Factors'!F46="","",IF('Weighting Factors'!H46="Pending","PX","R")) -> R | BC46: =SUM((U46+V46+AA46+AC46+AF46+AI46+AK46++AN46+AO46+AS46+AP46)*'Weighting Factors'!$O$5)+'2022 Legal Max'!AY46 -> 41391548 | BD46: =SUM((AT46+AP46)*'Weighting Factors'!$O$5)+AY46 -> 47543702 | BE46: =IF('Weighting Factors'!F46>0,'Weighting Factors'!F46,'Preliminary SO66'!AV45) -> 48633626 | BF46: 47543702 | BG46: ='Weighting Factors'!E46 -> 0 | BH46: =Transportation!G46 -> 0 | BI46: =IF(ISNA(VLOOKUP($CX46,'Audit Values'!$A$2:$BT$511,2,FALSE)), 0, VLOOKUP($CX46,'Audit Values'!$A$2:$BT$511,72,FALSE)) -> 0 | BJ46: 0 | BK46: 47543702 | BL46: =SUM((U46+V46+AA46+AC46+AF46+AI46+AK46+AN46+AO46+AP46)*'Weighting Factors'!O$12)+(MAX(AQ46,'Weighting Factors'!B46)) -> 47523787 | BM46: ='LOB%'!F44 -> 0.33 | BN46: 15682850 | BO46: 16028249 | BP46: 15682850 | BQ46: 0.33 | BR46: =ROUND(IF(U46<=99.9,(U46*1.014331),0),1) -> 0 | BS46: =AND(U46>99.9,U46<=299.9) -> FALSE | BT46: =IF(BS46=TRUE,ROUND((U46-100)*9.655,3),0) -> 0 | BU46: 0 | BV46: =ROUND(BU46*U46,1) -> 0 | BW46: =AND(U46>299.9,U46<=1621.9) -> FALSE | BX46: =IF(BW46=TRUE,ROUND((U46-300)*1.2375,4),0) -> 0 | BY46: 0 | BZ46: =ROUND(BY46*U46,1) -> 0 | CA46: =ROUND(IF(U46>=1622,(U46*0.03504),0),1) -> 256.6 | CB46: 100 | CC46: =AL46/CB46 -> 17.68 | CD46: =IF(CC46<0.06,1,IF(CC46>=18.29,52,MATCH(CC46-0.001,'Weighting Factors'!$W$5:$W$156)+1)) -> 51 | CE46: =VLOOKUP(CD46, 'Weighting Factors'!$U$5:$X$56,4) -> 570 | CF46: =('Weighting Factors'!$O$5/'Weighting Factors'!$O$14) -> 1.1299 | CG46: =AL46*CE46 -> 1007760 | CH46: =CG46*'Weighting Factors'!$Q$7 -> 1007760 | CI46: 1138668 | CJ46: =AM46/'Weighting Factors'!$O$5 -> 242 | CK46: 0 | CL46: 2233451 | CM46: 0.0482 | CN46: =SUM((AT46*'Weighting Factors'!$O$5)+'2022 Legal Max'!AY46)*CM46 -> 2186222 | CO46: 2186222 | CP46: =AE46/AD46 -> 0.0667 | CQ46: =IF(CP46>=50%,AE46*10.5%,0) -> 0 | CR46: =IF(AND(CP46>35%,CP46<50%),AE46*(CP46-35%)*0.7,0) -> 0 | CS46: =AU46+AR46 -> 10098.6 | CT46: ='LOB Transfers'!G45 -> 366979 | CU46: ='LOB Transfers'!J45 -> 112917 | CV46: ='General Fund Transfers'!F45 -> 1111557 | CW46: =SUM(R46+T46+AV46+AW46+AX46/6) -> 7261.5 | CX46: D0232
A47: 233 | B47: Johnson | C47: Olathe | D47: 29177.1 | F47: 0 | G47: 29177.1 | H47: 29287.6 | I47: 2 | J47: 0 | K47: 29285.6 | L47: 28385.8 | N47: 0 | O47: 28385.8 | P47: =IF(ISNA(VLOOKUP($CX47,'Audit Values'!$A:$BW,2,FALSE)),'Preliminary SO66'!C46,VLOOKUP($CX47,'Audit Values'!$A:$BW,73,FALSE)) -> 28066.1 | Q47: =IF(ISNA(VLOOKUP($CX47,'Audit Values'!$A:$BW,2,FALSE)),'Preliminary SO66'!F46,VLOOKUP($CX47,'Audit Values'!$A$2:$BW$936,4,FALSE)) -> 0 | R47: 28066.1 | S47: =IF('Military Provision'!J47="YES", MAX('2022 Legal Max'!O47,'2022 Legal Max'!K47,AVERAGE('2022 Legal Max'!G47,'2022 Legal Max'!K47,'2022 Legal Max'!O47)), MAX(O47, K47)) -> 29285.6 | T47: =IF(ISNA(VLOOKUP($CX47,'Audit Values'!$A:$BU,2,FALSE)),'Preliminary SO66'!AL46,VLOOKUP($CX47,'Audit Values'!$A:$BU,58,FALSE)) -> 53.3 | U47: 29338.9 | V47: 1028 | W47: =IF(ISNA(VLOOKUP($CX47,'Audit Values'!$A:$BW,2,FALSE)),'Preliminary SO66'!AM46,VLOOKUP($CX47,'Audit Values'!$A:$BW,62,FALSE)) -> 3472.6 | X47: =(W47/6)*'Weighting Factors'!$O$7 -> 228.6 | Y47: =IF(ISNA(VLOOKUP($CX47,'Audit Values'!$A:$BW,2,FALSE)),'Preliminary SO66'!AN46,VLOOKUP($CX47,'Audit Values'!$A:$BW,61,FALSE)) -> 2413 | Z47: =Y47*'Weighting Factors'!$O$8 -> 446.4 | AA47: 446.4 | AB47: =IF(ISNA(VLOOKUP($CX47,'Audit Values'!$A:$BW,2,FALSE)),'Preliminary SO66'!AO46,VLOOKUP($CX47,'Audit Values'!$A:$BW,60,FALSE)) -> 7448.8 | AC47: =AB47/6*'Weighting Factors'!$O$6 -> 620.7 | AD47: =IF(ISNA(VLOOKUP($CX47,'Audit Values'!$A:$BU,2,FALSE)),'Preliminary SO66'!AS46,VLOOKUP($CX47,'Audit Values'!$A:$BU,63,FALSE)) -> 28438 | AE47: =IF(ISNA(VLOOKUP($CX47,'Audit Values'!$A:$BU,2,FALSE)),'Preliminary SO66'!AP46,VLOOKUP($CX47,'Audit Values'!$A:$BU,64,FALSE)) -> 5088 | AF47: =IF(A47=207, AE47,(AE47))*'Weighting Factors'!$O$9 -> 2462.6 | AG47: 0 | AH47: =IF(ISNA(VLOOKUP($CX47,'Audit Values'!$A:$BW,2,FALSE)),'Preliminary SO66'!AG46,VLOOKUP($CX47,'Audit Values'!$A:$BW,70,FALSE)) -> 102.8 | AI47: 102.8 | AJ47: =IF(ISNA(VLOOKUP($CX47,'Audit Values'!$A:$BU,2,FALSE)),'Preliminary SO66'!AQ46,VLOOKUP($CX47,'Audit Values'!$A:$BU,65,FALSE)) -> 0 | AK47: =AJ47*'Weighting Factors'!$O$10 -> 0 | AL47: =IF(ISNA(VLOOKUP($CX47,'Audit Values'!$A:$BU,2,FALSE)),'Preliminary SO66'!AR46,VLOOKUP($CX47,'Audit Values'!$A:$BU,66,FALSE)) -> 5293 | AM47: 3289308 | AN47: =AM47/'Weighting Factors'!$O$5 -> 699 | AO47: =CK47/'Weighting Factors'!$O$5 -> 4043.4 | AP47: =CO47/'Weighting Factors'!$O$5 -> 2319 | AQ47: 34278255 | AR47: =AQ47/'Weighting Factors'!$O$5 -> 7283.9 | AS47: =IF(ISNA(VLOOKUP($CX47,'Audit Values'!$A:$BU,2,FALSE)),'Preliminary SO66'!X46,VLOOKUP($CX47,'Audit Values'!$A:$BU,47,FALSE)) -> 0 | AT47: 46025.7 | AU47: 41060.8 | AV47: =IF(ISNA(VLOOKUP($CX47,'Audit Values'!$A$2:$BU$917,2,FALSE)),'Preliminary SO66'!AA46,VLOOKUP($CX47,'Audit Values'!$A$2:$BU$917,41,FALSE)) -> 301 | AW47: =IF(ISNA(VLOOKUP($CX47,'Audit Values'!$A$2:$BU$917,2,FALSE)),'Preliminary SO66'!AB46,VLOOKUP($CX47,'Audit Values'!$A$2:$BU$917,42,FALSE)) -> 0.8 | AX47: 228.75 | AY47: =SUM(AV47*'Weighting Factors'!$R$10)+('2022 Legal Max'!AW47*'Weighting Factors'!$R$11)+('2022 Legal Max'!AX47*'Weighting Factors'!$R$12) -> 1668544 | AZ47: =IF(ISNA(VLOOKUP($CX47,'Audit Values'!$A$2:$BU$936,2,FALSE)),"",IF(AND('Weighting Factors'!F47>0,VLOOKUP($CX47,'Audit Values'!$A$2:$BU$936,51,FALSE)<'Weighting Factors'!F47),'Weighting Factors'!F47,VLOOKUP($CX47,'Audit Values'!$A$2:$BU$936,50,FALSE))) -> 18 | BA47: =IF(ISNA(VLOOKUP($CX47,'Audit Values'!$A:$BV,2,FALSE)),"",VLOOKUP($CX47,'Audit Values'!$A:$BV,51,FALSE)) -> A | BB47: =IF('Weighting Factors'!F47="","",IF('Weighting Factors'!H47="Pending","PX","R")) ->  | BC47: =SUM((U47+V47+AA47+AC47+AF47+AI47+AK47++AN47+AO47+AS47+AP47)*'Weighting Factors'!$O$5)+'2022 Legal Max'!AY47 -> 194900669 | BD47: =SUM((AT47+AP47)*'Weighting Factors'!$O$5)+AY47 -> 229178702 | BE47: =IF('Weighting Factors'!F47>0,'Weighting Factors'!F47,'Preliminary SO66'!AV46) -> 234491619 | BF47: 229178702 | BG47: ='Weighting Factors'!E47 -> 0 | BH47: =Transportation!G47 -> 0 | BI47: =IF(ISNA(VLOOKUP($CX47,'Audit Values'!$A$2:$BT$511,2,FALSE)), 0, VLOOKUP($CX47,'Audit Values'!$A$2:$BT$511,72,FALSE)) -> 0 | BJ47: 0 | BK47: 229178702 | BL47: =SUM((U47+V47+AA47+AC47+AF47+AI47+AK47+AN47+AO47+AP47)*'Weighting Factors'!O$12)+(MAX(AQ47,'Weighting Factors'!B47)) -> 227510380 | BM47: ='LOB%'!F45 -> 0.33 | BN47: 75078425 | BO47: 76890423 | BP47: 75078425 | BQ47: 0.33 | BR47: =ROUND(IF(U47<=99.9,(U47*1.014331),0),1) -> 0 | BS47: =AND(U47>99.9,U47<=299.9) -> FALSE | BT47: =IF(BS47=TRUE,ROUND((U47-100)*9.655,3),0) -> 0 | BU47: 0 | BV47: =ROUND(BU47*U47,1) -> 0 | BW47: =AND(U47>299.9,U47<=1621.9) -> FALSE | BX47: =IF(BW47=TRUE,ROUND((U47-300)*1.2375,4),0) -> 0 | BY47: 0 | BZ47: =ROUND(BY47*U47,1) -> 0 | CA47: =ROUND(IF(U47>=1622,(U47*0.03504),0),1) -> 1028 | CB47: 75.3 | CC47: =AL47/CB47 -> 70.292 | CD47: =IF(CC47<0.06,1,IF(CC47>=18.29,52,MATCH(CC47-0.001,'Weighting Factors'!$W$5:$W$156)+1)) -> 52 | CE47: =VLOOKUP(CD47, 'Weighting Factors'!$U$5:$X$56,4) -> 550 | CF47: =('Weighting Factors'!$O$5/'Weighting Factors'!$O$14) -> 1.1299 | CG47: =AL47*CE47 -> 2911150 | CH47: =CG47*'Weighting Factors'!$Q$7 -> 2911150 | CI47: 3289308 | CJ47: =AM47/'Weighting Factors'!$O$5 -> 699 | CK47: 19028131 | CL47: 11166261 | CM47: 0.05 | CN47: =SUM((AT47*'Weighting Factors'!$O$5)+'2022 Legal Max'!AY47)*CM47 -> 10913274 | CO47: 10913274 | CP47: =AE47/AD47 -> 0.1789 | CQ47: =IF(CP47>=50%,AE47*10.5%,0) -> 0 | CR47: =IF(AND(CP47>35%,CP47<50%),AE47*(CP47-35%)*0.7,0) -> 0 | CS47: =AU47+AR47 -> 48344.7 | CT47: ='LOB Transfers'!G46 -> 3829000 | CU47: ='LOB Transfers'!J46 -> 690722 | CV47: ='General Fund Transfers'!F46 -> 12072772 | CW47: =SUM(R47+T47+AV47+AW47+AX47/6) -> 28459.3 | CX47: D0233
A48: 234 | B48: Bourbon | C48: Fort Scott | D48: 1863 | F48: 0 | G48: 1863 | H48: 1823.1 | J48: 0 | K48: 1823.1 | L48: 1726.1 | N48: 0 | O48: 1726.1 | P48: =IF(ISNA(VLOOKUP($CX48,'Audit Values'!$A:$BW,2,FALSE)),'Preliminary SO66'!C47,VLOOKUP($CX48,'Audit Values'!$A:$BW,73,FALSE)) -> 1748.2 | Q48: =IF(ISNA(VLOOKUP($CX48,'Audit Values'!$A:$BW,2,FALSE)),'Preliminary SO66'!F47,VLOOKUP($CX48,'Audit Values'!$A$2:$BW$936,4,FALSE)) -> 0 | R48: 1748.2 | S48: =IF('Military Provision'!J48="YES", MAX('2022 Legal Max'!O48,'2022 Legal Max'!K48,AVERAGE('2022 Legal Max'!G48,'2022 Legal Max'!K48,'2022 Legal Max'!O48)), MAX(O48, K48)) -> 1823.1 | T48: =IF(ISNA(VLOOKUP($CX48,'Audit Values'!$A:$BU,2,FALSE)),'Preliminary SO66'!AL47,VLOOKUP($CX48,'Audit Values'!$A:$BU,58,FALSE)) -> 16 | U48: 1839.1 | V48: 64.4 | W48: =IF(ISNA(VLOOKUP($CX48,'Audit Values'!$A:$BW,2,FALSE)),'Preliminary SO66'!AM47,VLOOKUP($CX48,'Audit Values'!$A:$BW,62,FALSE)) -> 6.7 | X48: =(W48/6)*'Weighting Factors'!$O$7 -> 0.4 | Y48: =IF(ISNA(VLOOKUP($CX48,'Audit Values'!$A:$BW,2,FALSE)),'Preliminary SO66'!AN47,VLOOKUP($CX48,'Audit Values'!$A:$BW,61,FALSE)) -> 8 | Z48: =Y48*'Weighting Factors'!$O$8 -> 1.5 | AA48: 1.5 | AB48: =IF(ISNA(VLOOKUP($CX48,'Audit Values'!$A:$BW,2,FALSE)),'Preliminary SO66'!AO47,VLOOKUP($CX48,'Audit Values'!$A:$BW,60,FALSE)) -> 571.4 | AC48: =AB48/6*'Weighting Factors'!$O$6 -> 47.6 | AD48: =IF(ISNA(VLOOKUP($CX48,'Audit Values'!$A:$BU,2,FALSE)),'Preliminary SO66'!AS47,VLOOKUP($CX48,'Audit Values'!$A:$BU,63,FALSE)) -> 1795 | AE48: =IF(ISNA(VLOOKUP($CX48,'Audit Values'!$A:$BU,2,FALSE)),'Preliminary SO66'!AP47,VLOOKUP($CX48,'Audit Values'!$A:$BU,64,FALSE)) -> 855 | AF48: =IF(A48=207, AE48,(AE48))*'Weighting Factors'!$O$9 -> 413.8 | AG48: 75.6 | AH48: =IF(ISNA(VLOOKUP($CX48,'Audit Values'!$A:$BW,2,FALSE)),'Preliminary SO66'!AG47,VLOOKUP($CX48,'Audit Values'!$A:$BW,70,FALSE)) -> 65.8 | AI48: 75.6 | AJ48: =IF(ISNA(VLOOKUP($CX48,'Audit Values'!$A:$BU,2,FALSE)),'Preliminary SO66'!AQ47,VLOOKUP($CX48,'Audit Values'!$A:$BU,65,FALSE)) -> 0 | AK48: =AJ48*'Weighting Factors'!$O$10 -> 0 | AL48: =IF(ISNA(VLOOKUP($CX48,'Audit Values'!$A:$BU,2,FALSE)),'Preliminary SO66'!AR47,VLOOKUP($CX48,'Audit Values'!$A:$BU,66,FALSE)) -> 502 | AM48: 493473 | AN48: =AM48/'Weighting Factors'!$O$5 -> 104.9 | AO48: =CK48/'Weighting Factors'!$O$5 -> 0 | AP48: =CO48/'Weighting Factors'!$O$5 -> 0 | AQ48: 1946200 | AR48: =AQ48/'Weighting Factors'!$O$5 -> 413.6 | AS48: =IF(ISNA(VLOOKUP($CX48,'Audit Values'!$A:$BU,2,FALSE)),'Preliminary SO66'!X47,VLOOKUP($CX48,'Audit Values'!$A:$BU,47,FALSE)) -> 0 | AT48: 2960.5 | AU48: 2546.9 | AV48: =IF(ISNA(VLOOKUP($CX48,'Audit Values'!$A$2:$BU$917,2,FALSE)),'Preliminary SO66'!AA47,VLOOKUP($CX48,'Audit Values'!$A$2:$BU$917,41,FALSE)) -> 9 | AW48: =IF(ISNA(VLOOKUP($CX48,'Audit Values'!$A$2:$BU$917,2,FALSE)),'Preliminary SO66'!AB47,VLOOKUP($CX48,'Audit Values'!$A$2:$BU$917,42,FALSE)) -> 1.3 | AX48: 0 | AY48: =SUM(AV48*'Weighting Factors'!$R$10)+('2022 Legal Max'!AW48*'Weighting Factors'!$R$11)+('2022 Legal Max'!AX48*'Weighting Factors'!$R$12) -> 47210 | AZ48: 23 | BA48: =IF(ISNA(VLOOKUP($CX48,'Audit Values'!$A:$BV,2,FALSE)),"",VLOOKUP($CX48,'Audit Values'!$A:$BV,51,FALSE)) -> A | BB48: =IF('Weighting Factors'!F48="","",IF('Weighting Factors'!H48="Pending","PX","R")) -> R | BC48: =SUM((U48+V48+AA48+AC48+AF48+AI48+AK48++AN48+AO48+AS48+AP48)*'Weighting Factors'!$O$5)+'2022 Legal Max'!AY48 -> 12032921 | BD48: =SUM((AT48+AP48)*'Weighting Factors'!$O$5)+AY48 -> 13979323 | BE48: =IF('Weighting Factors'!F48>0,'Weighting Factors'!F48,'Preliminary SO66'!AV47) -> 14003147 | BF48: 13979323 | BG48: ='Weighting Factors'!E48 -> 0 | BH48: =Transportation!G48 -> 0 | BI48: =IF(ISNA(VLOOKUP($CX48,'Audit Values'!$A$2:$BT$511,2,FALSE)), 0, VLOOKUP($CX48,'Audit Values'!$A$2:$BT$511,72,FALSE)) -> 0 | BJ48: 0 | BK48: 13979323 | BL48: =SUM((U48+V48+AA48+AC48+AF48+AI48+AK48+AN48+AO48+AP48)*'Weighting Factors'!O$12)+(MAX(AQ48,'Weighting Factors'!B48)) -> 13931911 | BM48: ='LOB%'!F46 -> 0.31 | BN48: 4318892 | BO48: 4280794 | BP48: 4280794 | BQ48: 0.3073 | BR48: =ROUND(IF(U48<=99.9,(U48*1.014331),0),1) -> 0 | BS48: =AND(U48>99.9,U48<=299.9) -> FALSE | BT48: =IF(BS48=TRUE,ROUND((U48-100)*9.655,3),0) -> 0 | BU48: 0 | BV48: =ROUND(BU48*U48,1) -> 0 | BW48: =AND(U48>299.9,U48<=1621.9) -> FALSE | BX48: =IF(BW48=TRUE,ROUND((U48-300)*1.2375,4),0) -> 0 | BY48: 0 | BZ48: =ROUND(BY48*U48,1) -> 0 | CA48: =ROUND(IF(U48>=1622,(U48*0.03504),0),1) -> 64.4 | CB48: 300 | CC48: =AL48/CB48 -> 1.673 | CD48: =IF(CC48<0.06,1,IF(CC48>=18.29,52,MATCH(CC48-0.001,'Weighting Factors'!$W$5:$W$156)+1)) -> 36 | CE48: =VLOOKUP(CD48, 'Weighting Factors'!$U$5:$X$56,4) -> 870 | CF48: =('Weighting Factors'!$O$5/'Weighting Factors'!$O$14) -> 1.1299 | CG48: =AL48*CE48 -> 436740 | CH48: =CG48*'Weighting Factors'!$Q$7 -> 436740 | CI48: 493473 | CJ48: =AM48/'Weighting Factors'!$O$5 -> 104.9 | CK48: 0 | CL48: 0 | CM48: 0 | CN48: =SUM((AT48*'Weighting Factors'!$O$5)+'2022 Legal Max'!AY48)*CM48 -> 0 | CO48: 0 | CP48: =AE48/AD48 -> 0.4763 | CQ48: =IF(CP48>=50%,AE48*10.5%,0) -> 0 | CR48: =IF(AND(CP48>35%,CP48<50%),AE48*(CP48-35%)*0.7,0) -> 75.6 | CS48: =AU48+AR48 -> 2960.5 | CT48: ='LOB Transfers'!G47 -> 601452 | CU48: ='LOB Transfers'!J47 -> 2140 | CV48: ='General Fund Transfers'!F47 -> 2303116 | CW48: =SUM(R48+T48+AV48+AW48+AX48/6) -> 1774.5 | CX48: D0234
A49: 235 | B49: Bourbon | C49: Uniontown | D49: 428.5 | F49: 0 | G49: 428.5 | H49: 429.5 | J49: 0 | K49: 429.5 | L49: 443.5 | N49: 0 | O49: 443.5 | P49: =IF(ISNA(VLOOKUP($CX49,'Audit Values'!$A:$BW,2,FALSE)),'Preliminary SO66'!C48,VLOOKUP($CX49,'Audit Values'!$A:$BW,73,FALSE)) -> 453.5 | Q49: =IF(ISNA(VLOOKUP($CX49,'Audit Values'!$A:$BW,2,FALSE)),'Preliminary SO66'!F48,VLOOKUP($CX49,'Audit Values'!$A$2:$BW$936,4,FALSE)) -> 0 | R49: 453.5 | S49: =IF('Military Provision'!J49="YES", MAX('2022 Legal Max'!O49,'2022 Legal Max'!K49,AVERAGE('2022 Legal Max'!G49,'2022 Legal Max'!K49,'2022 Legal Max'!O49)), MAX(O49, K49)) -> 443.5 | T49: =IF(ISNA(VLOOKUP($CX49,'Audit Values'!$A:$BU,2,FALSE)),'Preliminary SO66'!AL48,VLOOKUP($CX49,'Audit Values'!$A:$BU,58,FALSE)) -> 4.5 | U49: 448 | V49: 194.4 | W49: =IF(ISNA(VLOOKUP($CX49,'Audit Values'!$A:$BW,2,FALSE)),'Preliminary SO66'!AM48,VLOOKUP($CX49,'Audit Values'!$A:$BW,62,FALSE)) -> 0 | X49: =(W49/6)*'Weighting Factors'!$O$7 -> 0 | Y49: =IF(ISNA(VLOOKUP($CX49,'Audit Values'!$A:$BW,2,FALSE)),'Preliminary SO66'!AN48,VLOOKUP($CX49,'Audit Values'!$A:$BW,61,FALSE)) -> 0 | Z49: =Y49*'Weighting Factors'!$O$8 -> 0 | AA49: 0 | AB49: =IF(ISNA(VLOOKUP($CX49,'Audit Values'!$A:$BW,2,FALSE)),'Preliminary SO66'!AO48,VLOOKUP($CX49,'Audit Values'!$A:$BW,60,FALSE)) -> 77.9 | AC49: =AB49/6*'Weighting Factors'!$O$6 -> 6.5 | AD49: =IF(ISNA(VLOOKUP($CX49,'Audit Values'!$A:$BU,2,FALSE)),'Preliminary SO66'!AS48,VLOOKUP($CX49,'Audit Values'!$A:$BU,63,FALSE)) -> 465 | AE49: =IF(ISNA(VLOOKUP($CX49,'Audit Values'!$A:$BU,2,FALSE)),'Preliminary SO66'!AP48,VLOOKUP($CX49,'Audit Values'!$A:$BU,64,FALSE)) -> 201 | AF49: =IF(A49=207, AE49,(AE49))*'Weighting Factors'!$O$9 -> 97.3 | AG49: 11.6 | AH49: =IF(ISNA(VLOOKUP($CX49,'Audit Values'!$A:$BW,2,FALSE)),'Preliminary SO66'!AG48,VLOOKUP($CX49,'Audit Values'!$A:$BW,70,FALSE)) -> 12.7 | AI49: 12.7 | AJ49: =IF(ISNA(VLOOKUP($CX49,'Audit Values'!$A:$BU,2,FALSE)),'Preliminary SO66'!AQ48,VLOOKUP($CX49,'Audit Values'!$A:$BU,65,FALSE)) -> 0 | AK49: =AJ49*'Weighting Factors'!$O$10 -> 0 | AL49: =IF(ISNA(VLOOKUP($CX49,'Audit Values'!$A:$BU,2,FALSE)),'Preliminary SO66'!AR48,VLOOKUP($CX49,'Audit Values'!$A:$BU,66,FALSE)) -> 266 | AM49: 297548 | AN49: =AM49/'Weighting Factors'!$O$5 -> 63.2 | AO49: =CK49/'Weighting Factors'!$O$5 -> 0 | AP49: =CO49/'Weighting Factors'!$O$5 -> 0 | AQ49: 494822 | AR49: =AQ49/'Weighting Factors'!$O$5 -> 105.1 | AS49: =IF(ISNA(VLOOKUP($CX49,'Audit Values'!$A:$BU,2,FALSE)),'Preliminary SO66'!X48,VLOOKUP($CX49,'Audit Values'!$A:$BU,47,FALSE)) -> 0 | AT49: 927.2 | AU49: 822.1 | AV49: =IF(ISNA(VLOOKUP($CX49,'Audit Values'!$A$2:$BU$917,2,FALSE)),'Preliminary SO66'!AA48,VLOOKUP($CX49,'Audit Values'!$A$2:$BU$917,41,FALSE)) -> 3 | AW49: =IF(ISNA(VLOOKUP($CX49,'Audit Values'!$A$2:$BU$917,2,FALSE)),'Preliminary SO66'!AB48,VLOOKUP($CX49,'Audit Values'!$A$2:$BU$917,42,FALSE)) -> 1 | AX49: 0 | AY49: =SUM(AV49*'Weighting Factors'!$R$10)+('2022 Legal Max'!AW49*'Weighting Factors'!$R$11)+('2022 Legal Max'!AX49*'Weighting Factors'!$R$12) -> 16700 | AZ49: =IF(ISNA(VLOOKUP($CX49,'Audit Values'!$A$2:$BU$936,2,FALSE)),"",IF(AND('Weighting Factors'!F49>0,VLOOKUP($CX49,'Audit Values'!$A$2:$BU$936,51,FALSE)<'Weighting Factors'!F49),'Weighting Factors'!F49,VLOOKUP($CX49,'Audit Values'!$A$2:$BU$936,50,FALSE))) -> 15 | BA49: =IF(ISNA(VLOOKUP($CX49,'Audit Values'!$A:$BV,2,FALSE)),"",VLOOKUP($CX49,'Audit Values'!$A:$BV,51,FALSE)) -> A | BC49: =SUM((U49+V49+AA49+AC49+AF49+AI49+AK49++AN49+AO49+AS49+AP49)*'Weighting Factors'!$O$5)+'2022 Legal Max'!AY49 -> 3885503 | BD49: =SUM((AT49+AP49)*'Weighting Factors'!$O$5)+AY49 -> 4380103 | BE49: =IF('Weighting Factors'!F49>0,'Weighting Factors'!F49,'Preliminary SO66'!AV48) -> 4385401 | BF49: 4380103 | BG49: ='Weighting Factors'!E49 -> 0 | BH49: =Transportation!G49 -> 0 | BI49: =IF(ISNA(VLOOKUP($CX49,'Audit Values'!$A$2:$BT$511,2,FALSE)), 0, VLOOKUP($CX49,'Audit Values'!$A$2:$BT$511,72,FALSE)) -> 0 | BJ49: 0 | BK49: 4380103 | BL49: =SUM((U49+V49+AA49+AC49+AF49+AI49+AK49+AN49+AO49+AP49)*'Weighting Factors'!O$12)+(MAX(AQ49,'Weighting Factors'!B49)) -> 4363625 | BM49: ='LOB%'!F47 -> 0.31 | BN49: 1352724 | BO49: 1357234 | BP49: 1352724 | BQ49: 0.31 | BR49: =ROUND(IF(U49<=99.9,(U49*1.014331),0),1) -> 0 | BS49: =AND(U49>99.9,U49<=299.9) -> FALSE | BT49: =IF(BS49=TRUE,ROUND((U49-100)*9.655,3),0) -> 0 | BU49: 0 | BV49: =ROUND(BU49*U49,1) -> 0 | BW49: =AND(U49>299.9,U49<=1621.9) -> TRUE | BX49: =IF(BW49=TRUE,ROUND((U49-300)*1.2375,4),0) -> 183.15 | BY49: 0.433903 | BZ49: =ROUND(BY49*U49,1) -> 194.4 | CA49: =ROUND(IF(U49>=1622,(U49*0.03504),0),1) -> 0 | CB49: 309 | CC49: =AL49/CB49 -> 0.861 | CD49: =IF(CC49<0.06,1,IF(CC49>=18.29,52,MATCH(CC49-0.001,'Weighting Factors'!$W$5:$W$156)+1)) -> 30 | CE49: =VLOOKUP(CD49, 'Weighting Factors'!$U$5:$X$56,4) -> 990 | CF49: =('Weighting Factors'!$O$5/'Weighting Factors'!$O$14) -> 1.1299 | CG49: =AL49*CE49 -> 263340 | CH49: =CG49*'Weighting Factors'!$Q$7 -> 263340 | CI49: 297548 | CJ49: =AM49/'Weighting Factors'!$O$5 -> 63.2 | CK49: 0 | CL49: 0 | CM49: 0 | CN49: =SUM((AT49*'Weighting Factors'!$O$5)+'2022 Legal Max'!AY49)*CM49 -> 0 | CO49: 0 | CP49: =AE49/AD49 -> 0.4323 | CQ49: =IF(CP49>=50%,AE49*10.5%,0) -> 0 | CR49: =IF(AND(CP49>35%,CP49<50%),AE49*(CP49-35%)*0.7,0) -> 11.6 | CS49: =AU49+AR49 -> 927.2 | CT49: ='LOB Transfers'!G48 -> 142712 | CU49: ='LOB Transfers'!J48 -> 0 | CV49: ='General Fund Transfers'!F48 -> 517660 | CW49: =SUM(R49+T49+AV49+AW49+AX49/6) -> 462 | CX49: D0235
A50: 237 | B50: Smith | C50: Smith Center | D50: 423.3 | F50: 0 | G50: 423.3 | H50: 399 | J50: 0 | K50: 399 | L50: 394.9 | N50: 0 | O50: 394.9 | P50: =IF(ISNA(VLOOKUP($CX50,'Audit Values'!$A:$BW,2,FALSE)),'Preliminary SO66'!C49,VLOOKUP($CX50,'Audit Values'!$A:$BW,73,FALSE)) -> 433 | Q50: =IF(ISNA(VLOOKUP($CX50,'Audit Values'!$A:$BW,2,FALSE)),'Preliminary SO66'!F49,VLOOKUP($CX50,'Audit Values'!$A$2:$BW$936,4,FALSE)) -> 0 | R50: 433 | S50: =IF('Military Provision'!J50="YES", MAX('2022 Legal Max'!O50,'2022 Legal Max'!K50,AVERAGE('2022 Legal Max'!G50,'2022 Legal Max'!K50,'2022 Legal Max'!O50)), MAX(O50, K50)) -> 399 | T50: =IF(ISNA(VLOOKUP($CX50,'Audit Values'!$A:$BU,2,FALSE)),'Preliminary SO66'!AL49,VLOOKUP($CX50,'Audit Values'!$A:$BU,58,FALSE)) -> 2.5 | U50: 401.5 | V50: 180.6 | W50: =IF(ISNA(VLOOKUP($CX50,'Audit Values'!$A:$BW,2,FALSE)),'Preliminary SO66'!AM49,VLOOKUP($CX50,'Audit Values'!$A:$BW,62,FALSE)) -> 8.2 | X50: =(W50/6)*'Weighting Factors'!$O$7 -> 0.5 | Y50: =IF(ISNA(VLOOKUP($CX50,'Audit Values'!$A:$BW,2,FALSE)),'Preliminary SO66'!AN49,VLOOKUP($CX50,'Audit Values'!$A:$BW,61,FALSE)) -> 3 | Z50: =Y50*'Weighting Factors'!$O$8 -> 0.6 | AA50: 0.6 | AB50: =IF(ISNA(VLOOKUP($CX50,'Audit Values'!$A:$BW,2,FALSE)),'Preliminary SO66'!AO49,VLOOKUP($CX50,'Audit Values'!$A:$BW,60,FALSE)) -> 156.4 | AC50: =AB50/6*'Weighting Factors'!$O$6 -> 13 | AD50: =IF(ISNA(VLOOKUP($CX50,'Audit Values'!$A:$BU,2,FALSE)),'Preliminary SO66'!AS49,VLOOKUP($CX50,'Audit Values'!$A:$BU,63,FALSE)) -> 446 | AE50: =IF(ISNA(VLOOKUP($CX50,'Audit Values'!$A:$BU,2,FALSE)),'Preliminary SO66'!AP49,VLOOKUP($CX50,'Audit Values'!$A:$BU,64,FALSE)) -> 127 | AF50: =IF(A50=207, AE50,(AE50))*'Weighting Factors'!$O$9 -> 61.5 | AG50: 0 | AH50: =IF(ISNA(VLOOKUP($CX50,'Audit Values'!$A:$BW,2,FALSE)),'Preliminary SO66'!AG49,VLOOKUP($CX50,'Audit Values'!$A:$BW,70,FALSE)) -> 0 | AI50: 0 | AJ50: =IF(ISNA(VLOOKUP($CX50,'Audit Values'!$A:$BU,2,FALSE)),'Preliminary SO66'!AQ49,VLOOKUP($CX50,'Audit Values'!$A:$BU,65,FALSE)) -> 0 | AK50: =AJ50*'Weighting Factors'!$O$10 -> 0 | AL50: =IF(ISNA(VLOOKUP($CX50,'Audit Values'!$A:$BU,2,FALSE)),'Preliminary SO66'!AR49,VLOOKUP($CX50,'Audit Values'!$A:$BU,66,FALSE)) -> 129 | AM50: 185112 | AN50: =AM50/'Weighting Factors'!$O$5 -> 39.3 | AO50: =CK50/'Weighting Factors'!$O$5 -> 0 | AP50: =CO50/'Weighting Factors'!$O$5 -> 0 | AQ50: 548461 | AR50: =AQ50/'Weighting Factors'!$O$5 -> 116.5 | AS50: =IF(ISNA(VLOOKUP($CX50,'Audit Values'!$A:$BU,2,FALSE)),'Preliminary SO66'!X49,VLOOKUP($CX50,'Audit Values'!$A:$BU,47,FALSE)) -> 0 | AT50: 813 | AU50: 696.5 | AV50: =IF(ISNA(VLOOKUP($CX50,'Audit Values'!$A$2:$BU$917,2,FALSE)),'Preliminary SO66'!AA49,VLOOKUP($CX50,'Audit Values'!$A$2:$BU$917,41,FALSE)) -> 0 | AW50: =IF(ISNA(VLOOKUP($CX50,'Audit Values'!$A$2:$BU$917,2,FALSE)),'Preliminary SO66'!AB49,VLOOKUP($CX50,'Audit Values'!$A$2:$BU$917,42,FALSE)) -> 0 | AX50: 0 | AY50: =SUM(AV50*'Weighting Factors'!$R$10)+('2022 Legal Max'!AW50*'Weighting Factors'!$R$11)+('2022 Legal Max'!AX50*'Weighting Factors'!$R$12) -> 0 | AZ50: =IF(ISNA(VLOOKUP($CX50,'Audit Values'!$A$2:$BU$936,2,FALSE)),"",IF(AND('Weighting Factors'!F50>0,VLOOKUP($CX50,'Audit Values'!$A$2:$BU$936,51,FALSE)<'Weighting Factors'!F50),'Weighting Factors'!F50,VLOOKUP($CX50,'Audit Values'!$A$2:$BU$936,50,FALSE))) -> 10 | BA50: =IF(ISNA(VLOOKUP($CX50,'Audit Values'!$A:$BV,2,FALSE)),"",VLOOKUP($CX50,'Audit Values'!$A:$BV,51,FALSE)) -> A | BB50: =IF('Weighting Factors'!F50="","",IF('Weighting Factors'!H50="Pending","PX","R")) ->  | BC50: =SUM((U50+V50+AA50+AC50+AF50+AI50+AK50++AN50+AO50+AS50+AP50)*'Weighting Factors'!$O$5)+'2022 Legal Max'!AY50 -> 3277729 | BD50: =SUM((AT50+AP50)*'Weighting Factors'!$O$5)+AY50 -> 3825978 | BE50: =IF('Weighting Factors'!F50>0,'Weighting Factors'!F50,'Preliminary SO66'!AV49) -> 3938451 | BF50: 3825978 | BG50: ='Weighting Factors'!E50 -> 0 | BH50: =Transportation!G50 -> 0 | BI50: =IF(ISNA(VLOOKUP($CX50,'Audit Values'!$A$2:$BT$511,2,FALSE)), 0, VLOOKUP($CX50,'Audit Values'!$A$2:$BT$511,72,FALSE)) -> 0 | BJ50: 0 | BK50: 3825978 | BL50: =SUM((U50+V50+AA50+AC50+AF50+AI50+AK50+AN50+AO50+AP50)*'Weighting Factors'!O$12)+(MAX(AQ50,'Weighting Factors'!B50)) -> 3863764 | BM50: ='LOB%'!F48 -> 0.33 | BN50: 1275042 | BO50: 1299650 | BP50: 1275042 | BQ50: 0.33 | BR50: =ROUND(IF(U50<=99.9,(U50*1.014331),0),1) -> 0 | BS50: =AND(U50>99.9,U50<=299.9) -> FALSE | BT50: =IF(BS50=TRUE,ROUND((U50-100)*9.655,3),0) -> 0 | BU50: 0 | BV50: =ROUND(BU50*U50,1) -> 0 | BW50: =AND(U50>299.9,U50<=1621.9) -> TRUE | BX50: =IF(BW50=TRUE,ROUND((U50-300)*1.2375,4),0) -> 125.6063 | BY50: 0.449702 | BZ50: =ROUND(BY50*U50,1) -> 180.6 | CA50: =ROUND(IF(U50>=1622,(U50*0.03504),0),1) -> 0 | CB50: 599 | CC50: =AL50/CB50 -> 0.215 | CD50: =IF(CC50<0.06,1,IF(CC50>=18.29,52,MATCH(CC50-0.001,'Weighting Factors'!$W$5:$W$156)+1)) -> 16 | CE50: =VLOOKUP(CD50, 'Weighting Factors'!$U$5:$X$56,4) -> 1270 | CF50: =('Weighting Factors'!$O$5/'Weighting Factors'!$O$14) -> 1.1299 | CG50: =AL50*CE50 -> 163830 | CH50: =CG50*'Weighting Factors'!$Q$7 -> 163830 | CI50: 185112 | CJ50: =AM50/'Weighting Factors'!$O$5 -> 39.3 | CK50: 0 | CL50: 0 | CM50: 0 | CN50: =SUM((AT50*'Weighting Factors'!$O$5)+'2022 Legal Max'!AY50)*CM50 -> 0 | CO50: 0 | CP50: =AE50/AD50 -> 0.2848 | CQ50: =IF(CP50>=50%,AE50*10.5%,0) -> 0 | CR50: =IF(AND(CP50>35%,CP50<50%),AE50*(CP50-35%)*0.7,0) -> 0 | CS50: =AU50+AR50 -> 813 | CT50: ='LOB Transfers'!G49 -> 96776 | CU50: ='LOB Transfers'!J49 -> 893 | CV50: ='General Fund Transfers'!F49 -> 289419 | CW50: =SUM(R50+T50+AV50+AW50+AX50/6) -> 435.5 | CX50: D0237
A51: 239 | B51: Ottawa | C51: North Ottawa County | D51: 594.8 | F51: 0 | G51: 594.8 | H51: 618.6 | J51: 0 | K51: 618.6 | L51: 595.4 | N51: 0 | O51: 595.4 | P51: =IF(ISNA(VLOOKUP($CX51,'Audit Values'!$A:$BW,2,FALSE)),'Preliminary SO66'!C50,VLOOKUP($CX51,'Audit Values'!$A:$BW,73,FALSE)) -> 633.5 | Q51: =IF(ISNA(VLOOKUP($CX51,'Audit Values'!$A:$BW,2,FALSE)),'Preliminary SO66'!F50,VLOOKUP($CX51,'Audit Values'!$A$2:$BW$936,4,FALSE)) -> 0 | R51: 633.5 | S51: =IF('Military Provision'!J51="YES", MAX('2022 Legal Max'!O51,'2022 Legal Max'!K51,AVERAGE('2022 Legal Max'!G51,'2022 Legal Max'!K51,'2022 Legal Max'!O51)), MAX(O51, K51)) -> 618.6 | T51: =IF(ISNA(VLOOKUP($CX51,'Audit Values'!$A:$BU,2,FALSE)),'Preliminary SO66'!AL50,VLOOKUP($CX51,'Audit Values'!$A:$BU,58,FALSE)) -> 0 | U51: 618.6 | V51: 232.6 | W51: =IF(ISNA(VLOOKUP($CX51,'Audit Values'!$A:$BW,2,FALSE)),'Preliminary SO66'!AM50,VLOOKUP($CX51,'Audit Values'!$A:$BW,62,FALSE)) -> 0 | X51: =(W51/6)*'Weighting Factors'!$O$7 -> 0 | Y51: =IF(ISNA(VLOOKUP($CX51,'Audit Values'!$A:$BW,2,FALSE)),'Preliminary SO66'!AN50,VLOOKUP($CX51,'Audit Values'!$A:$BW,61,FALSE)) -> 0 | Z51: =Y51*'Weighting Factors'!$O$8 -> 0 | AA51: 0 | AB51: =IF(ISNA(VLOOKUP($CX51,'Audit Values'!$A:$BW,2,FALSE)),'Preliminary SO66'!AO50,VLOOKUP($CX51,'Audit Values'!$A:$BW,60,FALSE)) -> 151.9 | AC51: =AB51/6*'Weighting Factors'!$O$6 -> 12.7 | AD51: =IF(ISNA(VLOOKUP($CX51,'Audit Values'!$A:$BU,2,FALSE)),'Preliminary SO66'!AS50,VLOOKUP($CX51,'Audit Values'!$A:$BU,63,FALSE)) -> 639 | AE51: =IF(ISNA(VLOOKUP($CX51,'Audit Values'!$A:$BU,2,FALSE)),'Preliminary SO66'!AP50,VLOOKUP($CX51,'Audit Values'!$A:$BU,64,FALSE)) -> 186 | AF51: =IF(A51=207, AE51,(AE51))*'Weighting Factors'!$O$9 -> 90 | AG51: 0 | AH51: =IF(ISNA(VLOOKUP($CX51,'Audit Values'!$A:$BW,2,FALSE)),'Preliminary SO66'!AG50,VLOOKUP($CX51,'Audit Values'!$A:$BW,70,FALSE)) -> 0 | AI51: 0 | AJ51: =IF(ISNA(VLOOKUP($CX51,'Audit Values'!$A:$BU,2,FALSE)),'Preliminary SO66'!AQ50,VLOOKUP($CX51,'Audit Values'!$A:$BU,65,FALSE)) -> 0 | AK51: =AJ51*'Weighting Factors'!$O$10 -> 0 | AL51: =IF(ISNA(VLOOKUP($CX51,'Audit Values'!$A:$BU,2,FALSE)),'Preliminary SO66'!AR50,VLOOKUP($CX51,'Audit Values'!$A:$BU,66,FALSE)) -> 180 | AM51: 225754 | AN51: =AM51/'Weighting Factors'!$O$5 -> 48 | AO51: =CK51/'Weighting Factors'!$O$5 -> 0 | AP51: =CO51/'Weighting Factors'!$O$5 -> 0 | AQ51: 738286 | AR51: =AQ51/'Weighting Factors'!$O$5 -> 156.9 | AS51: =IF(ISNA(VLOOKUP($CX51,'Audit Values'!$A:$BU,2,FALSE)),'Preliminary SO66'!X50,VLOOKUP($CX51,'Audit Values'!$A:$BU,47,FALSE)) -> 0 | AT51: 1158.8 | AU51: 1001.9 | AV51: =IF(ISNA(VLOOKUP($CX51,'Audit Values'!$A$2:$BU$917,2,FALSE)),'Preliminary SO66'!AA50,VLOOKUP($CX51,'Audit Values'!$A$2:$BU$917,41,FALSE)) -> 0 | AW51: =IF(ISNA(VLOOKUP($CX51,'Audit Values'!$A$2:$BU$917,2,FALSE)),'Preliminary SO66'!AB50,VLOOKUP($CX51,'Audit Values'!$A$2:$BU$917,42,FALSE)) -> 0 | AX51: 0 | AY51: =SUM(AV51*'Weighting Factors'!$R$10)+('2022 Legal Max'!AW51*'Weighting Factors'!$R$11)+('2022 Legal Max'!AX51*'Weighting Factors'!$R$12) -> 0 | AZ51: =IF(ISNA(VLOOKUP($CX51,'Audit Values'!$A$2:$BU$936,2,FALSE)),"",IF(AND('Weighting Factors'!F51>0,VLOOKUP($CX51,'Audit Values'!$A$2:$BU$936,51,FALSE)<'Weighting Factors'!F51),'Weighting Factors'!F51,VLOOKUP($CX51,'Audit Values'!$A$2:$BU$936,50,FALSE))) -> 15 | BA51: =IF(ISNA(VLOOKUP($CX51,'Audit Values'!$A:$BV,2,FALSE)),"",VLOOKUP($CX51,'Audit Values'!$A:$BV,51,FALSE)) -> A | BB51: =IF('Weighting Factors'!F51="","",IF('Weighting Factors'!H51="Pending","PX","R")) ->  | BC51: =SUM((U51+V51+AA51+AC51+AF51+AI51+AK51++AN51+AO51+AS51+AP51)*'Weighting Factors'!$O$5)+'2022 Legal Max'!AY51 -> 4714941 | BD51: =SUM((AT51+AP51)*'Weighting Factors'!$O$5)+AY51 -> 5453313 | BE51: =IF('Weighting Factors'!F51>0,'Weighting Factors'!F51,'Preliminary SO66'!AV50) -> 5474960 | BF51: 5453313 | BG51: ='Weighting Factors'!E51 -> 0 | BH51: =Transportation!G51 -> 0 | BI51: =IF(ISNA(VLOOKUP($CX51,'Audit Values'!$A$2:$BT$511,2,FALSE)), 0, VLOOKUP($CX51,'Audit Values'!$A$2:$BT$511,72,FALSE)) -> 0 | BJ51: 0 | BK51: 5453313 | BL51: =SUM((U51+V51+AA51+AC51+AF51+AI51+AK51+AN51+AO51+AP51)*'Weighting Factors'!O$12)+(MAX(AQ51,'Weighting Factors'!B51)) -> 5453227 | BM51: ='LOB%'!F49 -> 0.33 | BN51: 1799565 | BO51: 1806668 | BP51: 1799565 | BQ51: 0.33 | BR51: =ROUND(IF(U51<=99.9,(U51*1.014331),0),1) -> 0 | BS51: =AND(U51>99.9,U51<=299.9) -> FALSE | BT51: =IF(BS51=TRUE,ROUND((U51-100)*9.655,3),0) -> 0 | BU51: 0 | BV51: =ROUND(BU51*U51,1) -> 0 | BW51: =AND(U51>299.9,U51<=1621.9) -> TRUE | BX51: =IF(BW51=TRUE,ROUND((U51-300)*1.2375,4),0) -> 394.2675 | BY51: 0.375942 | BZ51: =ROUND(BY51*U51,1) -> 232.6 | CA51: =ROUND(IF(U51>=1622,(U51*0.03504),0),1) -> 0 | CB51: 418.5 | CC51: =AL51/CB51 -> 0.43 | CD51: =IF(CC51<0.06,1,IF(CC51>=18.29,52,MATCH(CC51-0.001,'Weighting Factors'!$W$5:$W$156)+1)) -> 24 | CE51: =VLOOKUP(CD51, 'Weighting Factors'!$U$5:$X$56,4) -> 1110 | CF51: =('Weighting Factors'!$O$5/'Weighting Factors'!$O$14) -> 1.1299 | CG51: =AL51*CE51 -> 199800 | CH51: =CG51*'Weighting Factors'!$Q$7 -> 199800 | CI51: 225754 | CJ51: =AM51/'Weighting Factors'!$O$5 -> 48 | CK51: 0 | CL51: 0 | CM51: 0 | CN51: =SUM((AT51*'Weighting Factors'!$O$5)+'2022 Legal Max'!AY51)*CM51 -> 0 | CO51: 0 | CP51: =AE51/AD51 -> 0.2911 | CQ51: =IF(CP51>=50%,AE51*10.5%,0) -> 0 | CR51: =IF(AND(CP51>35%,CP51<50%),AE51*(CP51-35%)*0.7,0) -> 0 | CS51: =AU51+AR51 -> 1158.8 | CT51: ='LOB Transfers'!G50 -> 139826 | CU51: ='LOB Transfers'!J50 -> 0 | CV51: ='General Fund Transfers'!F50 -> 423540 | CW51: =SUM(R51+T51+AV51+AW51+AX51/6) -> 633.5 | CX51: D0239
A52: 240 | B52: Ottawa | C52: Twin Valley | D52: 562 | F52: 0 | G52: 562 | H52: 524.5 | J52: 0 | K52: 524.5 | L52: 536 | N52: 0 | O52: 536 | P52: =IF(ISNA(VLOOKUP($CX52,'Audit Values'!$A:$BW,2,FALSE)),'Preliminary SO66'!C51,VLOOKUP($CX52,'Audit Values'!$A:$BW,73,FALSE)) -> 570 | Q52: =IF(ISNA(VLOOKUP($CX52,'Audit Values'!$A:$BW,2,FALSE)),'Preliminary SO66'!F51,VLOOKUP($CX52,'Audit Values'!$A$2:$BW$936,4,FALSE)) -> 0 | R52: 570 | S52: =IF('Military Provision'!J52="YES", MAX('2022 Legal Max'!O52,'2022 Legal Max'!K52,AVERAGE('2022 Legal Max'!G52,'2022 Legal Max'!K52,'2022 Legal Max'!O52)), MAX(O52, K52)) -> 536 | T52: =IF(ISNA(VLOOKUP($CX52,'Audit Values'!$A:$BU,2,FALSE)),'Preliminary SO66'!AL51,VLOOKUP($CX52,'Audit Values'!$A:$BU,58,FALSE)) -> 9.5 | U52: 545.5 | V52: 218.6 | W52: =IF(ISNA(VLOOKUP($CX52,'Audit Values'!$A:$BW,2,FALSE)),'Preliminary SO66'!AM51,VLOOKUP($CX52,'Audit Values'!$A:$BW,62,FALSE)) -> 0 | X52: =(W52/6)*'Weighting Factors'!$O$7 -> 0 | Y52: =IF(ISNA(VLOOKUP($CX52,'Audit Values'!$A:$BW,2,FALSE)),'Preliminary SO66'!AN51,VLOOKUP($CX52,'Audit Values'!$A:$BW,61,FALSE)) -> 1 | Z52: =Y52*'Weighting Factors'!$O$8 -> 0.2 | AA52: 0.2 | AB52: =IF(ISNA(VLOOKUP($CX52,'Audit Values'!$A:$BW,2,FALSE)),'Preliminary SO66'!AO51,VLOOKUP($CX52,'Audit Values'!$A:$BW,60,FALSE)) -> 200.2 | AC52: =AB52/6*'Weighting Factors'!$O$6 -> 16.7 | AD52: =IF(ISNA(VLOOKUP($CX52,'Audit Values'!$A:$BU,2,FALSE)),'Preliminary SO66'!AS51,VLOOKUP($CX52,'Audit Values'!$A:$BU,63,FALSE)) -> 593 | AE52: =IF(ISNA(VLOOKUP($CX52,'Audit Values'!$A:$BU,2,FALSE)),'Preliminary SO66'!AP51,VLOOKUP($CX52,'Audit Values'!$A:$BU,64,FALSE)) -> 173 | AF52: =IF(A52=207, AE52,(AE52))*'Weighting Factors'!$O$9 -> 83.7 | AG52: 0 | AH52: =IF(ISNA(VLOOKUP($CX52,'Audit Values'!$A:$BW,2,FALSE)),'Preliminary SO66'!AG51,VLOOKUP($CX52,'Audit Values'!$A:$BW,70,FALSE)) -> 5.1 | AI52: 5.1 | AJ52: =IF(ISNA(VLOOKUP($CX52,'Audit Values'!$A:$BU,2,FALSE)),'Preliminary SO66'!AQ51,VLOOKUP($CX52,'Audit Values'!$A:$BU,65,FALSE)) -> 0 | AK52: =AJ52*'Weighting Factors'!$O$10 -> 0 | AL52: =IF(ISNA(VLOOKUP($CX52,'Audit Values'!$A:$BU,2,FALSE)),'Preliminary SO66'!AR51,VLOOKUP($CX52,'Audit Values'!$A:$BU,66,FALSE)) -> 173 | AM52: 201337 | AN52: =AM52/'Weighting Factors'!$O$5 -> 42.8 | AO52: =CK52/'Weighting Factors'!$O$5 -> 0 | AP52: =CO52/'Weighting Factors'!$O$5 -> 0 | AQ52: 600579 | AR52: =AQ52/'Weighting Factors'!$O$5 -> 127.6 | AS52: =IF(ISNA(VLOOKUP($CX52,'Audit Values'!$A:$BU,2,FALSE)),'Preliminary SO66'!X51,VLOOKUP($CX52,'Audit Values'!$A:$BU,47,FALSE)) -> 0 | AT52: 1040.2 | AU52: 912.6 | AV52: =IF(ISNA(VLOOKUP($CX52,'Audit Values'!$A$2:$BU$917,2,FALSE)),'Preliminary SO66'!AA51,VLOOKUP($CX52,'Audit Values'!$A$2:$BU$917,41,FALSE)) -> 0 | AW52: =IF(ISNA(VLOOKUP($CX52,'Audit Values'!$A$2:$BU$917,2,FALSE)),'Preliminary SO66'!AB51,VLOOKUP($CX52,'Audit Values'!$A$2:$BU$917,42,FALSE)) -> 0 | AX52: 0 | AY52: =SUM(AV52*'Weighting Factors'!$R$10)+('2022 Legal Max'!AW52*'Weighting Factors'!$R$11)+('2022 Legal Max'!AX52*'Weighting Factors'!$R$12) -> 0 | AZ52: =IF(ISNA(VLOOKUP($CX52,'Audit Values'!$A$2:$BU$936,2,FALSE)),"",IF(AND('Weighting Factors'!F52>0,VLOOKUP($CX52,'Audit Values'!$A$2:$BU$936,51,FALSE)<'Weighting Factors'!F52),'Weighting Factors'!F52,VLOOKUP($CX52,'Audit Values'!$A$2:$BU$936,50,FALSE))) -> 3 | BA52: =IF(ISNA(VLOOKUP($CX52,'Audit Values'!$A:$BV,2,FALSE)),"",VLOOKUP($CX52,'Audit Values'!$A:$BV,51,FALSE)) -> A | BB52: =IF('Weighting Factors'!F52="","",IF('Weighting Factors'!H52="Pending","PX","R")) ->  | BC52: =SUM((U52+V52+AA52+AC52+AF52+AI52+AK52++AN52+AO52+AS52+AP52)*'Weighting Factors'!$O$5)+'2022 Legal Max'!AY52 -> 4294696 | BD52: =SUM((AT52+AP52)*'Weighting Factors'!$O$5)+AY52 -> 4895181 | BE52: =IF('Weighting Factors'!F52>0,'Weighting Factors'!F52,'Preliminary SO66'!AV51) -> 5068362 | BF52: 4895181 | BG52: ='Weighting Factors'!E52 -> 0 | BH52: =Transportation!G52 -> 0 | BI52: =IF(ISNA(VLOOKUP($CX52,'Audit Values'!$A$2:$BT$511,2,FALSE)), 0, VLOOKUP($CX52,'Audit Values'!$A$2:$BT$511,72,FALSE)) -> 0 | BJ52: 0 | BK52: 4895181 | BL52: =SUM((U52+V52+AA52+AC52+AF52+AI52+AK52+AN52+AO52+AP52)*'Weighting Factors'!O$12)+(MAX(AQ52,'Weighting Factors'!B52)) -> 4895275 | BM52: ='LOB%'!F50 -> 0.33 | BN52: 1615441 | BO52: 1672602 | BP52: 1615441 | BQ52: 0.33 | BR52: =ROUND(IF(U52<=99.9,(U52*1.014331),0),1) -> 0 | BS52: =AND(U52>99.9,U52<=299.9) -> FALSE | BT52: =IF(BS52=TRUE,ROUND((U52-100)*9.655,3),0) -> 0 | BU52: 0 | BV52: =ROUND(BU52*U52,1) -> 0 | BW52: =AND(U52>299.9,U52<=1621.9) -> TRUE | BX52: =IF(BW52=TRUE,ROUND((U52-300)*1.2375,4),0) -> 303.8063 | BY52: 0.400778 | BZ52: =ROUND(BY52*U52,1) -> 218.6 | CA52: =ROUND(IF(U52>=1622,(U52*0.03504),0),1) -> 0 | CB52: 269.3 | CC52: =AL52/CB52 -> 0.642 | CD52: =IF(CC52<0.06,1,IF(CC52>=18.29,52,MATCH(CC52-0.001,'Weighting Factors'!$W$5:$W$156)+1)) -> 28 | CE52: =VLOOKUP(CD52, 'Weighting Factors'!$U$5:$X$56,4) -> 1030 | CF52: =('Weighting Factors'!$O$5/'Weighting Factors'!$O$14) -> 1.1299 | CG52: =AL52*CE52 -> 178190 | CH52: =CG52*'Weighting Factors'!$Q$7 -> 178190 | CI52: 201337 | CJ52: =AM52/'Weighting Factors'!$O$5 -> 42.8 | CK52: 0 | CL52: 0 | CM52: 0 | CN52: =SUM((AT52*'Weighting Factors'!$O$5)+'2022 Legal Max'!AY52)*CM52 -> 0 | CO52: 0 | CP52: =AE52/AD52 -> 0.2917 | CQ52: =IF(CP52>=50%,AE52*10.5%,0) -> 0 | CR52: =IF(AND(CP52>35%,CP52<50%),AE52*(CP52-35%)*0.7,0) -> 0 | CS52: =AU52+AR52 -> 1040.2 | CT52: ='LOB Transfers'!G51 -> 131174 | CU52: ='LOB Transfers'!J51 -> 323 | CV52: ='General Fund Transfers'!F51 -> 417893 | CW52: =SUM(R52+T52+AV52+AW52+AX52/6) -> 579.5 | CX52: D0240
A53: 241 | B53: Wallace | C53: Wallace County Schools | D53: 198 | F53: 0 | G53: 198 | H53: 198 | J53: 0 | K53: 198 | L53: 208.5 | N53: 0 | O53: 208.5 | P53: =IF(ISNA(VLOOKUP($CX53,'Audit Values'!$A:$BW,2,FALSE)),'Preliminary SO66'!C52,VLOOKUP($CX53,'Audit Values'!$A:$BW,73,FALSE)) -> 184 | Q53: =IF(ISNA(VLOOKUP($CX53,'Audit Values'!$A:$BW,2,FALSE)),'Preliminary SO66'!F52,VLOOKUP($CX53,'Audit Values'!$A$2:$BW$936,4,FALSE)) -> 0 | R53: 184 | S53: =IF('Military Provision'!J53="YES", MAX('2022 Legal Max'!O53,'2022 Legal Max'!K53,AVERAGE('2022 Legal Max'!G53,'2022 Legal Max'!K53,'2022 Legal Max'!O53)), MAX(O53, K53)) -> 208.5 | T53: =IF(ISNA(VLOOKUP($CX53,'Audit Values'!$A:$BU,2,FALSE)),'Preliminary SO66'!AL52,VLOOKUP($CX53,'Audit Values'!$A:$BU,58,FALSE)) -> 0 | U53: 208.5 | V53: 151.5 | W53: =IF(ISNA(VLOOKUP($CX53,'Audit Values'!$A:$BW,2,FALSE)),'Preliminary SO66'!AM52,VLOOKUP($CX53,'Audit Values'!$A:$BW,62,FALSE)) -> 0 | X53: =(W53/6)*'Weighting Factors'!$O$7 -> 0 | Y53: =IF(ISNA(VLOOKUP($CX53,'Audit Values'!$A:$BW,2,FALSE)),'Preliminary SO66'!AN52,VLOOKUP($CX53,'Audit Values'!$A:$BW,61,FALSE)) -> 5 | Z53: =Y53*'Weighting Factors'!$O$8 -> 0.9 | AA53: 0.9 | AB53: =IF(ISNA(VLOOKUP($CX53,'Audit Values'!$A:$BW,2,FALSE)),'Preliminary SO66'!AO52,VLOOKUP($CX53,'Audit Values'!$A:$BW,60,FALSE)) -> 0 | AC53: =AB53/6*'Weighting Factors'!$O$6 -> 0 | AD53: =IF(ISNA(VLOOKUP($CX53,'Audit Values'!$A:$BU,2,FALSE)),'Preliminary SO66'!AS52,VLOOKUP($CX53,'Audit Values'!$A:$BU,63,FALSE)) -> 184 | AE53: =IF(ISNA(VLOOKUP($CX53,'Audit Values'!$A:$BU,2,FALSE)),'Preliminary SO66'!AP52,VLOOKUP($CX53,'Audit Values'!$A:$BU,64,FALSE)) -> 25 | AF53: =IF(A53=207, AE53,(AE53))*'Weighting Factors'!$O$9 -> 12.1 | AG53: 0 | AH53: =IF(ISNA(VLOOKUP($CX53,'Audit Values'!$A:$BW,2,FALSE)),'Preliminary SO66'!AG52,VLOOKUP($CX53,'Audit Values'!$A:$BW,70,FALSE)) -> 0 | AI53: 0 | AJ53: =IF(ISNA(VLOOKUP($CX53,'Audit Values'!$A:$BU,2,FALSE)),'Preliminary SO66'!AQ52,VLOOKUP($CX53,'Audit Values'!$A:$BU,65,FALSE)) -> 0 | AK53: =AJ53*'Weighting Factors'!$O$10 -> 0 | AL53: =IF(ISNA(VLOOKUP($CX53,'Audit Values'!$A:$BU,2,FALSE)),'Preliminary SO66'!AR52,VLOOKUP($CX53,'Audit Values'!$A:$BU,66,FALSE)) -> 61 | AM53: 102007 | AN53: =AM53/'Weighting Factors'!$O$5 -> 21.7 | AO53: =CK53/'Weighting Factors'!$O$5 -> 0 | AP53: =CO53/'Weighting Factors'!$O$5 -> 0 | AQ53: 120647 | AR53: =AQ53/'Weighting Factors'!$O$5 -> 25.6 | AS53: =IF(ISNA(VLOOKUP($CX53,'Audit Values'!$A:$BU,2,FALSE)),'Preliminary SO66'!X52,VLOOKUP($CX53,'Audit Values'!$A:$BU,47,FALSE)) -> 0 | AT53: 420.3 | AU53: 394.7 | AV53: =IF(ISNA(VLOOKUP($CX53,'Audit Values'!$A$2:$BU$917,2,FALSE)),'Preliminary SO66'!AA52,VLOOKUP($CX53,'Audit Values'!$A$2:$BU$917,41,FALSE)) -> 0 | AW53: =IF(ISNA(VLOOKUP($CX53,'Audit Values'!$A$2:$BU$917,2,FALSE)),'Preliminary SO66'!AB52,VLOOKUP($CX53,'Audit Values'!$A$2:$BU$917,42,FALSE)) -> 0 | AX53: 0 | AY53: =SUM(AV53*'Weighting Factors'!$R$10)+('2022 Legal Max'!AW53*'Weighting Factors'!$R$11)+('2022 Legal Max'!AX53*'Weighting Factors'!$R$12) -> 0 | AZ53: =IF(ISNA(VLOOKUP($CX53,'Audit Values'!$A$2:$BU$936,2,FALSE)),"",IF(AND('Weighting Factors'!F53>0,VLOOKUP($CX53,'Audit Values'!$A$2:$BU$936,51,FALSE)<'Weighting Factors'!F53),'Weighting Factors'!F53,VLOOKUP($CX53,'Audit Values'!$A$2:$BU$936,50,FALSE))) -> 15 | BA53: =IF(ISNA(VLOOKUP($CX53,'Audit Values'!$A:$BV,2,FALSE)),"",VLOOKUP($CX53,'Audit Values'!$A:$BV,51,FALSE)) -> A | BB53: =IF('Weighting Factors'!F53="","",IF('Weighting Factors'!H53="Pending","PX","R")) ->  | BC53: =SUM((U53+V53+AA53+AC53+AF53+AI53+AK53++AN53+AO53+AS53+AP53)*'Weighting Factors'!$O$5)+'2022 Legal Max'!AY53 -> 1857458 | BD53: =SUM((AT53+AP53)*'Weighting Factors'!$O$5)+AY53 -> 1977932 | BE53: =IF('Weighting Factors'!F53>0,'Weighting Factors'!F53,'Preliminary SO66'!AV52) -> 2105464 | BF53: 1977932 | BG53: ='Weighting Factors'!E53 -> 0 | BH53: =Transportation!G53 -> -23550 | BI53: =IF(ISNA(VLOOKUP($CX53,'Audit Values'!$A$2:$BT$511,2,FALSE)), 0, VLOOKUP($CX53,'Audit Values'!$A$2:$BT$511,72,FALSE)) -> 0 | BJ53: -23550 | BK53: 1954382 | BL53: =SUM((U53+V53+AA53+AC53+AF53+AI53+AK53+AN53+AO53+AP53)*'Weighting Factors'!O$12)+(MAX(AQ53,'Weighting Factors'!B53)) -> 2014232 | BM53: ='LOB%'!F51 -> 0.3 | BN53: 604270 | BO53: 631606 | BP53: 604270 | BQ53: 0.3 | BR53: =ROUND(IF(U53<=99.9,(U53*1.014331),0),1) -> 0 | BS53: =AND(U53>99.9,U53<=299.9) -> TRUE | BT53: =IF(BS53=TRUE,ROUND((U53-100)*9.655,3),0) -> 1047.568 | BU53: 0.726727 | BV53: =ROUND(BU53*U53,1) -> 151.5 | BW53: =AND(U53>299.9,U53<=1621.9) -> FALSE | BX53: =IF(BW53=TRUE,ROUND((U53-300)*1.2375,4),0) -> 0 | BY53: 0 | BZ53: =ROUND(BY53*U53,1) -> 0 | CA53: =ROUND(IF(U53>=1622,(U53*0.03504),0),1) -> 0 | CB53: 681.5 | CC53: =AL53/CB53 -> 0.09 | CD53: =IF(CC53<0.06,1,IF(CC53>=18.29,52,MATCH(CC53-0.001,'Weighting Factors'!$W$5:$W$156)+1)) -> 5 | CE53: =VLOOKUP(CD53, 'Weighting Factors'!$U$5:$X$56,4) -> 1480 | CF53: =('Weighting Factors'!$O$5/'Weighting Factors'!$O$14) -> 1.1299 | CG53: =AL53*CE53 -> 90280 | CH53: =CG53*'Weighting Factors'!$Q$7 -> 90280 | CI53: 102007 | CJ53: =AM53/'Weighting Factors'!$O$5 -> 21.7 | CK53: 0 | CL53: 0 | CM53: 0 | CN53: =SUM((AT53*'Weighting Factors'!$O$5)+'2022 Legal Max'!AY53)*CM53 -> 0 | CO53: 0 | CP53: =AE53/AD53 -> 0.1359 | CQ53: =IF(CP53>=50%,AE53*10.5%,0) -> 0 | CR53: =IF(AND(CP53>35%,CP53<50%),AE53*(CP53-35%)*0.7,0) -> 0 | CS53: =AU53+AR53 -> 420.3 | CT53: ='LOB Transfers'!G52 -> 17403 | CU53: ='LOB Transfers'!J52 -> 1269 | CV53: ='General Fund Transfers'!F52 -> 56943 | CW53: =SUM(R53+T53+AV53+AW53+AX53/6) -> 184 | CX53: D0241
A54: 242 | B54: Wallace | C54: Weskan | D54: 99.5 | F54: 0 | G54: 99.5 | H54: 103.5 | J54: 0 | K54: 103.5 | L54: 102.5 | N54: 0 | O54: 102.5 | P54: =IF(ISNA(VLOOKUP($CX54,'Audit Values'!$A:$BW,2,FALSE)),'Preliminary SO66'!C53,VLOOKUP($CX54,'Audit Values'!$A:$BW,73,FALSE)) -> 96.5 | Q54: =IF(ISNA(VLOOKUP($CX54,'Audit Values'!$A:$BW,2,FALSE)),'Preliminary SO66'!F53,VLOOKUP($CX54,'Audit Values'!$A$2:$BW$936,4,FALSE)) -> 0 | R54: 96.5 | S54: =IF('Military Provision'!J54="YES", MAX('2022 Legal Max'!O54,'2022 Legal Max'!K54,AVERAGE('2022 Legal Max'!G54,'2022 Legal Max'!K54,'2022 Legal Max'!O54)), MAX(O54, K54)) -> 103.5 | T54: =IF(ISNA(VLOOKUP($CX54,'Audit Values'!$A:$BU,2,FALSE)),'Preliminary SO66'!AL53,VLOOKUP($CX54,'Audit Values'!$A:$BU,58,FALSE)) -> 0 | U54: 103.5 | V54: 104 | W54: =IF(ISNA(VLOOKUP($CX54,'Audit Values'!$A:$BW,2,FALSE)),'Preliminary SO66'!AM53,VLOOKUP($CX54,'Audit Values'!$A:$BW,62,FALSE)) -> 14.6 | X54: =(W54/6)*'Weighting Factors'!$O$7 -> 1 | Y54: =IF(ISNA(VLOOKUP($CX54,'Audit Values'!$A:$BW,2,FALSE)),'Preliminary SO66'!AN53,VLOOKUP($CX54,'Audit Values'!$A:$BW,61,FALSE)) -> 4 | Z54: =Y54*'Weighting Factors'!$O$8 -> 0.7 | AA54: 1 | AB54: =IF(ISNA(VLOOKUP($CX54,'Audit Values'!$A:$BW,2,FALSE)),'Preliminary SO66'!AO53,VLOOKUP($CX54,'Audit Values'!$A:$BW,60,FALSE)) -> 14.3 | AC54: =AB54/6*'Weighting Factors'!$O$6 -> 1.2 | AD54: =IF(ISNA(VLOOKUP($CX54,'Audit Values'!$A:$BU,2,FALSE)),'Preliminary SO66'!AS53,VLOOKUP($CX54,'Audit Values'!$A:$BU,63,FALSE)) -> 104 | AE54: =IF(ISNA(VLOOKUP($CX54,'Audit Values'!$A:$BU,2,FALSE)),'Preliminary SO66'!AP53,VLOOKUP($CX54,'Audit Values'!$A:$BU,64,FALSE)) -> 26 | AF54: =IF(A54=207, AE54,(AE54))*'Weighting Factors'!$O$9 -> 12.6 | AG54: 0 | AH54: =IF(ISNA(VLOOKUP($CX54,'Audit Values'!$A:$BW,2,FALSE)),'Preliminary SO66'!AG53,VLOOKUP($CX54,'Audit Values'!$A:$BW,70,FALSE)) -> 0 | AI54: 0 | AJ54: =IF(ISNA(VLOOKUP($CX54,'Audit Values'!$A:$BU,2,FALSE)),'Preliminary SO66'!AQ53,VLOOKUP($CX54,'Audit Values'!$A:$BU,65,FALSE)) -> 0 | AK54: =AJ54*'Weighting Factors'!$O$10 -> 0 | AL54: =IF(ISNA(VLOOKUP($CX54,'Audit Values'!$A:$BU,2,FALSE)),'Preliminary SO66'!AR53,VLOOKUP($CX54,'Audit Values'!$A:$BU,66,FALSE)) -> 29 | AM54: 46857 | AN54: =AM54/'Weighting Factors'!$O$5 -> 10 | AO54: =CK54/'Weighting Factors'!$O$5 -> 0 | AP54: =CO54/'Weighting Factors'!$O$5 -> 0 | AQ54: 94266 | AR54: =AQ54/'Weighting Factors'!$O$5 -> 20 | AS54: =IF(ISNA(VLOOKUP($CX54,'Audit Values'!$A:$BU,2,FALSE)),'Preliminary SO66'!X53,VLOOKUP($CX54,'Audit Values'!$A:$BU,47,FALSE)) -> 0 | AT54: 252.3 | AU54: 232.3 | AV54: =IF(ISNA(VLOOKUP($CX54,'Audit Values'!$A$2:$BU$917,2,FALSE)),'Preliminary SO66'!AA53,VLOOKUP($CX54,'Audit Values'!$A$2:$BU$917,41,FALSE)) -> 0 | AW54: =IF(ISNA(VLOOKUP($CX54,'Audit Values'!$A$2:$BU$917,2,FALSE)),'Preliminary SO66'!AB53,VLOOKUP($CX54,'Audit Values'!$A$2:$BU$917,42,FALSE)) -> 0 | AX54: 0 | AY54: =SUM(AV54*'Weighting Factors'!$R$10)+('2022 Legal Max'!AW54*'Weighting Factors'!$R$11)+('2022 Legal Max'!AX54*'Weighting Factors'!$R$12) -> 0 | AZ54: =IF(ISNA(VLOOKUP($CX54,'Audit Values'!$A$2:$BU$936,2,FALSE)),"",IF(AND('Weighting Factors'!F54>0,VLOOKUP($CX54,'Audit Values'!$A$2:$BU$936,51,FALSE)<'Weighting Factors'!F54),'Weighting Factors'!F54,VLOOKUP($CX54,'Audit Values'!$A$2:$BU$936,50,FALSE))) -> 14 | BA54: =IF(ISNA(VLOOKUP($CX54,'Audit Values'!$A:$BV,2,FALSE)),"",VLOOKUP($CX54,'Audit Values'!$A:$BV,51,FALSE)) -> A | BB54: =IF('Weighting Factors'!F54="","",IF('Weighting Factors'!H54="Pending","PX","R")) ->  | BC54: =SUM((U54+V54+AA54+AC54+AF54+AI54+AK54++AN54+AO54+AS54+AP54)*'Weighting Factors'!$O$5)+'2022 Legal Max'!AY54 -> 1093204 | BD54: =SUM((AT54+AP54)*'Weighting Factors'!$O$5)+AY54 -> 1187324 | BE54: =IF('Weighting Factors'!F54>0,'Weighting Factors'!F54,'Preliminary SO66'!AV53) -> 1187324 | BF54: 1187324 | BG54: ='Weighting Factors'!E54 -> 0 | BH54: =Transportation!G54 -> 0 | BI54: =IF(ISNA(VLOOKUP($CX54,'Audit Values'!$A$2:$BT$511,2,FALSE)), 0, VLOOKUP($CX54,'Audit Values'!$A$2:$BT$511,72,FALSE)) -> 0 | BJ54: 0 | BK54: 1187324 | BL54: =SUM((U54+V54+AA54+AC54+AF54+AI54+AK54+AN54+AO54+AP54)*'Weighting Factors'!O$12)+(MAX(AQ54,'Weighting Factors'!B54)) -> 1191461 | BM54: ='LOB%'!F52 -> 0.33 | BN54: 393182 | BO54: 391765 | BP54: 391765 | BQ54: 0.3288 | BR54: =ROUND(IF(U54<=99.9,(U54*1.014331),0),1) -> 0 | BS54: =AND(U54>99.9,U54<=299.9) -> TRUE | BT54: =IF(BS54=TRUE,ROUND((U54-100)*9.655,3),0) -> 33.793 | BU54: 1.005054 | BV54: =ROUND(BU54*U54,1) -> 104 | BW54: =AND(U54>299.9,U54<=1621.9) -> FALSE | BX54: =IF(BW54=TRUE,ROUND((U54-300)*1.2375,4),0) -> 0 | BY54: 0 | BZ54: =ROUND(BY54*U54,1) -> 0 | CA54: =ROUND(IF(U54>=1622,(U54*0.03504),0),1) -> 0 | CB54: 243 | CC54: =AL54/CB54 -> 0.119 | CD54: =IF(CC54<0.06,1,IF(CC54>=18.29,52,MATCH(CC54-0.001,'Weighting Factors'!$W$5:$W$156)+1)) -> 7 | CE54: =VLOOKUP(CD54, 'Weighting Factors'!$U$5:$X$56,4) -> 1430 | CF54: =('Weighting Factors'!$O$5/'Weighting Factors'!$O$14) -> 1.1299 | CG54: =AL54*CE54 -> 41470 | CH54: =CG54*'Weighting Factors'!$Q$7 -> 41470 | CI54: 46857 | CJ54: =AM54/'Weighting Factors'!$O$5 -> 10 | CK54: 0 | CL54: 0 | CM54: 0 | CN54: =SUM((AT54*'Weighting Factors'!$O$5)+'2022 Legal Max'!AY54)*CM54 -> 0 | CO54: 0 | CP54: =AE54/AD54 -> 0.25 | CQ54: =IF(CP54>=50%,AE54*10.5%,0) -> 0 | CR54: =IF(AND(CP54>35%,CP54<50%),AE54*(CP54-35%)*0.7,0) -> 0 | CS54: =AU54+AR54 -> 252.3 | CT54: ='LOB Transfers'!G53 -> 19549 | CU54: ='LOB Transfers'!J53 -> 1567 | CV54: ='General Fund Transfers'!F53 -> 59296 | CW54: =SUM(R54+T54+AV54+AW54+AX54/6) -> 96.5 | CX54: D0242
A55: 243 | B55: Coffey | C55: Lebo-Waverly | D55: 423 | F55: 0 | G55: 423 | H55: 444.2 | J55: 0 | K55: 444.2 | L55: 451 | N55: 0 | O55: 451 | P55: =IF(ISNA(VLOOKUP($CX55,'Audit Values'!$A:$BW,2,FALSE)),'Preliminary SO66'!C54,VLOOKUP($CX55,'Audit Values'!$A:$BW,73,FALSE)) -> 447.1 | Q55: =IF(ISNA(VLOOKUP($CX55,'Audit Values'!$A:$BW,2,FALSE)),'Preliminary SO66'!F54,VLOOKUP($CX55,'Audit Values'!$A$2:$BW$936,4,FALSE)) -> 0 | R55: 447.1 | S55: =IF('Military Provision'!J55="YES", MAX('2022 Legal Max'!O55,'2022 Legal Max'!K55,AVERAGE('2022 Legal Max'!G55,'2022 Legal Max'!K55,'2022 Legal Max'!O55)), MAX(O55, K55)) -> 451 | T55: =IF(ISNA(VLOOKUP($CX55,'Audit Values'!$A:$BU,2,FALSE)),'Preliminary SO66'!AL54,VLOOKUP($CX55,'Audit Values'!$A:$BU,58,FALSE)) -> 4 | U55: 455 | V55: 196.3 | W55: =IF(ISNA(VLOOKUP($CX55,'Audit Values'!$A:$BW,2,FALSE)),'Preliminary SO66'!AM54,VLOOKUP($CX55,'Audit Values'!$A:$BW,62,FALSE)) -> 0 | X55: =(W55/6)*'Weighting Factors'!$O$7 -> 0 | Y55: =IF(ISNA(VLOOKUP($CX55,'Audit Values'!$A:$BW,2,FALSE)),'Preliminary SO66'!AN54,VLOOKUP($CX55,'Audit Values'!$A:$BW,61,FALSE)) -> 0 | Z55: =Y55*'Weighting Factors'!$O$8 -> 0 | AA55: 0 | AB55: =IF(ISNA(VLOOKUP($CX55,'Audit Values'!$A:$BW,2,FALSE)),'Preliminary SO66'!AO54,VLOOKUP($CX55,'Audit Values'!$A:$BW,60,FALSE)) -> 104.8 | AC55: =AB55/6*'Weighting Factors'!$O$6 -> 8.7 | AD55: =IF(ISNA(VLOOKUP($CX55,'Audit Values'!$A:$BU,2,FALSE)),'Preliminary SO66'!AS54,VLOOKUP($CX55,'Audit Values'!$A:$BU,63,FALSE)) -> 461 | AE55: =IF(ISNA(VLOOKUP($CX55,'Audit Values'!$A:$BU,2,FALSE)),'Preliminary SO66'!AP54,VLOOKUP($CX55,'Audit Values'!$A:$BU,64,FALSE)) -> 128 | AF55: =IF(A55=207, AE55,(AE55))*'Weighting Factors'!$O$9 -> 62 | AG55: 0 | AH55: =IF(ISNA(VLOOKUP($CX55,'Audit Values'!$A:$BW,2,FALSE)),'Preliminary SO66'!AG54,VLOOKUP($CX55,'Audit Values'!$A:$BW,70,FALSE)) -> 0 | AI55: 0 | AJ55: =IF(ISNA(VLOOKUP($CX55,'Audit Values'!$A:$BU,2,FALSE)),'Preliminary SO66'!AQ54,VLOOKUP($CX55,'Audit Values'!$A:$BU,65,FALSE)) -> 0 | AK55: =AJ55*'Weighting Factors'!$O$10 -> 0 | AL55: =IF(ISNA(VLOOKUP($CX55,'Audit Values'!$A:$BU,2,FALSE)),'Preliminary SO66'!AR54,VLOOKUP($CX55,'Audit Values'!$A:$BU,66,FALSE)) -> 95.5 | AM55: 124091 | AN55: =AM55/'Weighting Factors'!$O$5 -> 26.4 | AO55: =CK55/'Weighting Factors'!$O$5 -> 0 | AP55: =CO55/'Weighting Factors'!$O$5 -> 0 | AQ55: 700893 | AR55: =AQ55/'Weighting Factors'!$O$5 -> 148.9 | AS55: =IF(ISNA(VLOOKUP($CX55,'Audit Values'!$A:$BU,2,FALSE)),'Preliminary SO66'!X54,VLOOKUP($CX55,'Audit Values'!$A:$BU,47,FALSE)) -> 0 | AT55: 897.3 | AU55: 748.4 | AV55: =IF(ISNA(VLOOKUP($CX55,'Audit Values'!$A$2:$BU$917,2,FALSE)),'Preliminary SO66'!AA54,VLOOKUP($CX55,'Audit Values'!$A$2:$BU$917,41,FALSE)) -> 0 | AW55: =IF(ISNA(VLOOKUP($CX55,'Audit Values'!$A$2:$BU$917,2,FALSE)),'Preliminary SO66'!AB54,VLOOKUP($CX55,'Audit Values'!$A$2:$BU$917,42,FALSE)) -> 0 | AX55: 0 | AY55: =SUM(AV55*'Weighting Factors'!$R$10)+('2022 Legal Max'!AW55*'Weighting Factors'!$R$11)+('2022 Legal Max'!AX55*'Weighting Factors'!$R$12) -> 0 | AZ55: =IF(ISNA(VLOOKUP($CX55,'Audit Values'!$A$2:$BU$936,2,FALSE)),"",IF(AND('Weighting Factors'!F55>0,VLOOKUP($CX55,'Audit Values'!$A$2:$BU$936,51,FALSE)<'Weighting Factors'!F55),'Weighting Factors'!F55,VLOOKUP($CX55,'Audit Values'!$A$2:$BU$936,50,FALSE))) -> 24 | BA55: =IF(ISNA(VLOOKUP($CX55,'Audit Values'!$A:$BV,2,FALSE)),"",VLOOKUP($CX55,'Audit Values'!$A:$BV,51,FALSE)) -> A | BB55: =IF('Weighting Factors'!F55="","",IF('Weighting Factors'!H55="Pending","PX","R")) ->  | BC55: =SUM((U55+V55+AA55+AC55+AF55+AI55+AK55++AN55+AO55+AS55+AP55)*'Weighting Factors'!$O$5)+'2022 Legal Max'!AY55 -> 3521970 | BD55: =SUM((AT55+AP55)*'Weighting Factors'!$O$5)+AY55 -> 4222694 | BE55: =IF('Weighting Factors'!F55>0,'Weighting Factors'!F55,'Preliminary SO66'!AV54) -> 4547408 | BF55: 4222694 | BG55: ='Weighting Factors'!E55 -> 0 | BH55: =Transportation!G55 -> 0 | BI55: =IF(ISNA(VLOOKUP($CX55,'Audit Values'!$A$2:$BT$511,2,FALSE)), 0, VLOOKUP($CX55,'Audit Values'!$A$2:$BT$511,72,FALSE)) -> 0 | BJ55: 0 | BK55: 4222694 | BL55: =SUM((U55+V55+AA55+AC55+AF55+AI55+AK55+AN55+AO55+AP55)*'Weighting Factors'!O$12)+(MAX(AQ55,'Weighting Factors'!B55)) -> 4222863 | BM55: ='LOB%'!F53 -> 0.31 | BN55: 1309088 | BO55: 1409705 | BP55: 1309088 | BQ55: 0.31 | BR55: =ROUND(IF(U55<=99.9,(U55*1.014331),0),1) -> 0 | BS55: =AND(U55>99.9,U55<=299.9) -> FALSE | BT55: =IF(BS55=TRUE,ROUND((U55-100)*9.655,3),0) -> 0 | BU55: 0 | BV55: =ROUND(BU55*U55,1) -> 0 | BW55: =AND(U55>299.9,U55<=1621.9) -> TRUE | BX55: =IF(BW55=TRUE,ROUND((U55-300)*1.2375,4),0) -> 191.8125 | BY55: 0.431525 | BZ55: =ROUND(BY55*U55,1) -> 196.3 | CA55: =ROUND(IF(U55>=1622,(U55*0.03504),0),1) -> 0 | CB55: 248 | CC55: =AL55/CB55 -> 0.385 | CD55: =IF(CC55<0.06,1,IF(CC55>=18.29,52,MATCH(CC55-0.001,'Weighting Factors'!$W$5:$W$156)+1)) -> 22 | CE55: =VLOOKUP(CD55, 'Weighting Factors'!$U$5:$X$56,4) -> 1150 | CF55: =('Weighting Factors'!$O$5/'Weighting Factors'!$O$14) -> 1.1299 | CG55: =AL55*CE55 -> 109825 | CH55: =CG55*'Weighting Factors'!$Q$7 -> 109825 | CI55: 124091 | CJ55: =AM55/'Weighting Factors'!$O$5 -> 26.4 | CK55: 0 | CL55: 0 | CM55: 0 | CN55: =SUM((AT55*'Weighting Factors'!$O$5)+'2022 Legal Max'!AY55)*CM55 -> 0 | CO55: 0 | CP55: =AE55/AD55 -> 0.2777 | CQ55: =IF(CP55>=50%,AE55*10.5%,0) -> 0 | CR55: =IF(AND(CP55>35%,CP55<50%),AE55*(CP55-35%)*0.7,0) -> 0 | CS55: =AU55+AR55 -> 897.3 | CT55: ='LOB Transfers'!G54 -> 90851 | CU55: ='LOB Transfers'!J54 -> 0 | CV55: ='General Fund Transfers'!F54 -> 291772 | CW55: =SUM(R55+T55+AV55+AW55+AX55/6) -> 451.1 | CX55: D0243
A56: 244 | B56: Coffey | C56: Burlington | D56: 815 | F56: 0 | G56: 815 | H56: 799 | J56: 0 | K56: 799 | L56: 772.5 | N56: 0 | O56: 772.5 | P56: =IF(ISNA(VLOOKUP($CX56,'Audit Values'!$A:$BW,2,FALSE)),'Preliminary SO66'!C55,VLOOKUP($CX56,'Audit Values'!$A:$BW,73,FALSE)) -> 785.5 | Q56: =IF(ISNA(VLOOKUP($CX56,'Audit Values'!$A:$BW,2,FALSE)),'Preliminary SO66'!F55,VLOOKUP($CX56,'Audit Values'!$A$2:$BW$936,4,FALSE)) -> 0 | R56: 785.5 | S56: =IF('Military Provision'!J56="YES", MAX('2022 Legal Max'!O56,'2022 Legal Max'!K56,AVERAGE('2022 Legal Max'!G56,'2022 Legal Max'!K56,'2022 Legal Max'!O56)), MAX(O56, K56)) -> 799 | T56: =IF(ISNA(VLOOKUP($CX56,'Audit Values'!$A:$BU,2,FALSE)),'Preliminary SO66'!AL55,VLOOKUP($CX56,'Audit Values'!$A:$BU,58,FALSE)) -> 9.5 | U56: 808.5 | V56: 251.8 | W56: =IF(ISNA(VLOOKUP($CX56,'Audit Values'!$A:$BW,2,FALSE)),'Preliminary SO66'!AM55,VLOOKUP($CX56,'Audit Values'!$A:$BW,62,FALSE)) -> 1.8 | X56: =(W56/6)*'Weighting Factors'!$O$7 -> 0.1 | Y56: =IF(ISNA(VLOOKUP($CX56,'Audit Values'!$A:$BW,2,FALSE)),'Preliminary SO66'!AN55,VLOOKUP($CX56,'Audit Values'!$A:$BW,61,FALSE)) -> 7 | Z56: =Y56*'Weighting Factors'!$O$8 -> 1.3 | AA56: 1.3 | AB56: =IF(ISNA(VLOOKUP($CX56,'Audit Values'!$A:$BW,2,FALSE)),'Preliminary SO66'!AO55,VLOOKUP($CX56,'Audit Values'!$A:$BW,60,FALSE)) -> 295.5 | AC56: =AB56/6*'Weighting Factors'!$O$6 -> 24.6 | AD56: =IF(ISNA(VLOOKUP($CX56,'Audit Values'!$A:$BU,2,FALSE)),'Preliminary SO66'!AS55,VLOOKUP($CX56,'Audit Values'!$A:$BU,63,FALSE)) -> 812 | AE56: =IF(ISNA(VLOOKUP($CX56,'Audit Values'!$A:$BU,2,FALSE)),'Preliminary SO66'!AP55,VLOOKUP($CX56,'Audit Values'!$A:$BU,64,FALSE)) -> 232 | AF56: =IF(A56=207, AE56,(AE56))*'Weighting Factors'!$O$9 -> 112.3 | AG56: 0 | AH56: =IF(ISNA(VLOOKUP($CX56,'Audit Values'!$A:$BW,2,FALSE)),'Preliminary SO66'!AG55,VLOOKUP($CX56,'Audit Values'!$A:$BW,70,FALSE)) -> 0 | AI56: 0 | AJ56: =IF(ISNA(VLOOKUP($CX56,'Audit Values'!$A:$BU,2,FALSE)),'Preliminary SO66'!AQ55,VLOOKUP($CX56,'Audit Values'!$A:$BU,65,FALSE)) -> 0 | AK56: =AJ56*'Weighting Factors'!$O$10 -> 0 | AL56: =IF(ISNA(VLOOKUP($CX56,'Audit Values'!$A:$BU,2,FALSE)),'Preliminary SO66'!AR55,VLOOKUP($CX56,'Audit Values'!$A:$BU,66,FALSE)) -> 230 | AM56: 231291 | AN56: =AM56/'Weighting Factors'!$O$5 -> 49.1 | AO56: =CK56/'Weighting Factors'!$O$5 -> 0 | AP56: =CO56/'Weighting Factors'!$O$5 -> 0 | AQ56: 1207098 | AR56: =AQ56/'Weighting Factors'!$O$5 -> 256.5 | AS56: =IF(ISNA(VLOOKUP($CX56,'Audit Values'!$A:$BU,2,FALSE)),'Preliminary SO66'!X55,VLOOKUP($CX56,'Audit Values'!$A:$BU,47,FALSE)) -> 0 | AT56: 1504.1 | AU56: 1247.6 | AV56: =IF(ISNA(VLOOKUP($CX56,'Audit Values'!$A$2:$BU$917,2,FALSE)),'Preliminary SO66'!AA55,VLOOKUP($CX56,'Audit Values'!$A$2:$BU$917,41,FALSE)) -> 0 | AW56: =IF(ISNA(VLOOKUP($CX56,'Audit Values'!$A$2:$BU$917,2,FALSE)),'Preliminary SO66'!AB55,VLOOKUP($CX56,'Audit Values'!$A$2:$BU$917,42,FALSE)) -> 0 | AX56: 0 | AY56: =SUM(AV56*'Weighting Factors'!$R$10)+('2022 Legal Max'!AW56*'Weighting Factors'!$R$11)+('2022 Legal Max'!AX56*'Weighting Factors'!$R$12) -> 0 | AZ56: =IF(ISNA(VLOOKUP($CX56,'Audit Values'!$A$2:$BU$936,2,FALSE)),"",IF(AND('Weighting Factors'!F56>0,VLOOKUP($CX56,'Audit Values'!$A$2:$BU$936,51,FALSE)<'Weighting Factors'!F56),'Weighting Factors'!F56,VLOOKUP($CX56,'Audit Values'!$A$2:$BU$936,50,FALSE))) -> 12 | BA56: =IF(ISNA(VLOOKUP($CX56,'Audit Values'!$A:$BV,2,FALSE)),"",VLOOKUP($CX56,'Audit Values'!$A:$BV,51,FALSE)) -> A | BB56: =IF('Weighting Factors'!F56="","",IF('Weighting Factors'!H56="Pending","PX","R")) ->  | BC56: =SUM((U56+V56+AA56+AC56+AF56+AI56+AK56++AN56+AO56+AS56+AP56)*'Weighting Factors'!$O$5)+'2022 Legal Max'!AY56 -> 5871206 | BD56: =SUM((AT56+AP56)*'Weighting Factors'!$O$5)+AY56 -> 7078295 | BE56: =IF('Weighting Factors'!F56>0,'Weighting Factors'!F56,'Preliminary SO66'!AV55) -> 7490070 | BF56: 7078295 | BG56: ='Weighting Factors'!E56 -> 0 | BH56: =Transportation!G56 -> 0 | BI56: =IF(ISNA(VLOOKUP($CX56,'Audit Values'!$A$2:$BT$511,2,FALSE)), 0, VLOOKUP($CX56,'Audit Values'!$A$2:$BT$511,72,FALSE)) -> 0 | BJ56: 0 | BK56: 7078295 | BL56: =SUM((U56+V56+AA56+AC56+AF56+AI56+AK56+AN56+AO56+AP56)*'Weighting Factors'!O$12)+(MAX(AQ56,'Weighting Factors'!B56)) -> 7171556 | BM56: ='LOB%'!F54 -> 0.31 | BN56: 2223182 | BO56: 2321893 | BP56: 2223182 | BQ56: 0.31 | BR56: =ROUND(IF(U56<=99.9,(U56*1.014331),0),1) -> 0 | BS56: =AND(U56>99.9,U56<=299.9) -> FALSE | BT56: =IF(BS56=TRUE,ROUND((U56-100)*9.655,3),0) -> 0 | BU56: 0 | BV56: =ROUND(BU56*U56,1) -> 0 | BW56: =AND(U56>299.9,U56<=1621.9) -> TRUE | BX56: =IF(BW56=TRUE,ROUND((U56-300)*1.2375,4),0) -> 629.2688 | BY56: 0.311424 | BZ56: =ROUND(BY56*U56,1) -> 251.8 | CA56: =ROUND(IF(U56>=1622,(U56*0.03504),0),1) -> 0 | CB56: 147 | CC56: =AL56/CB56 -> 1.565 | CD56: =IF(CC56<0.06,1,IF(CC56>=18.29,52,MATCH(CC56-0.001,'Weighting Factors'!$W$5:$W$156)+1)) -> 35 | CE56: =VLOOKUP(CD56, 'Weighting Factors'!$U$5:$X$56,4) -> 890 | CF56: =('Weighting Factors'!$O$5/'Weighting Factors'!$O$14) -> 1.1299 | CG56: =AL56*CE56 -> 204700 | CH56: =CG56*'Weighting Factors'!$Q$7 -> 204700 | CI56: 231291 | CJ56: =AM56/'Weighting Factors'!$O$5 -> 49.1 | CK56: 0 | CL56: 0 | CM56: 0 | CN56: =SUM((AT56*'Weighting Factors'!$O$5)+'2022 Legal Max'!AY56)*CM56 -> 0 | CO56: 0 | CP56: =AE56/AD56 -> 0.2857 | CQ56: =IF(CP56>=50%,AE56*10.5%,0) -> 0 | CR56: =IF(AND(CP56>35%,CP56<50%),AE56*(CP56-35%)*0.7,0) -> 0 | CS56: =AU56+AR56 -> 1504.1 | CT56: ='LOB Transfers'!G55 -> 166961 | CU56: ='LOB Transfers'!J55 -> 2001 | CV56: ='General Fund Transfers'!F55 -> 528484 | CW56: =SUM(R56+T56+AV56+AW56+AX56/6) -> 795 | CX56: D0244
